Workbook

Sheet Instrucoes
C2: Células que representam uma informação ao usuário, como o início de uma nova seção de análise
C3: Títulos de rótulos de colunas ou linhas
C4: Valores com fórmulas que não devem ser alteradas
C5: Valores de entrada (definidos pelo usuário)
B7: Esta pasta de trabalho, contendo um conjunto de planilhas (abas) para a determinação do valor intrínseco de uma empresa,
B8: é calculada com base nos demonstrativos contábeis da empresa provenientes do sítio Internet do professor Alexandre Assaf Neto
B9: (www.institutoassaf.com.br), do professor Aswath Damodaran (www.damodaran.com) e demais como BM&F Bovespa e Yahoo Finanças.
B10: As fórmulas e expressões de cálculo estão disponíveis na literatura de finanças, dentre os quais:
B11: FINANÇAS CORPORATIVAS. 3ª edição. São Paulo: Atlas, 2007
B12: ESTRUTURA E ANÁLISE DE BALANÇOS. 8ª edição. São Paulo: Atlas, 2006.
B14: Acrescentamos que decisões de investimento/desinvestimento devem ser tomadas com base em análises detalhadas
B15: realizadas por profissionais de mercado qualificados. Esta pasta de trabalho tem propósitos acadêmicos e, portanto,
B16: não tem como objetivo orientar decisões de investimento/desinvestimento.

Sheet Parametros_de_entrada
B1: Parâmetros do Valuation
B3: Informações de base
B4: Nome da empresa | C4: Totvs S.A
B5: Setor de atuação | C5: 32
B6: Ano da avaliação | C6: 2014
B7: Tipo de empresa (1=grande, 2= financeira; 3=pequena) | C7: 1
B8: Dados para custo médio ponderado de capital (Wacc)
B9: Parâmetros para álculo do custo do capital de terceiros (Kd)
C10: Parâmetros
B11: 1-Período para o cálculo do custo da dívida (Kd) (Contábil - histórico) | C11: 5 | D11: <-Digite ao lado os últimos anos do demonstrativo para o cálculo da média
B12: 2-Período para o cálculo do custo da dívida (Kd) (Contábil - dívida líquida) | C12: 5 | D12: <-Digite ao lado os últimos anos do demonstrativo para o cálculo da média
B13: EBIT (últimos 12 meses) | C13: =Demonstrativos!B55 -> 347076 | D13: Valores provenientes da planilha (aba) Demonstrativos
B14: Juros pagos (últimos 12 meses) | C14: =-Demonstrativos!B57 -> 57826 | D14: Valores provenientes da planilha (aba) Demonstrativos
B16: Parâmetros para cálculo do custo do capital próprio (Ke)
C17: Parâmetros
B18: US T-Bond (Rf) | C18: 0.02 | D18: US T-Bond (Rf) - Fonte: www.damodaran.com http://pages.stern.nyu.edu/~adamodar/New_Home_Page/datafile/ctryprem.html)
B19: Country Default Spread (CDS) | C19: 0.052 | D19: T-bond (maturidade de 10 anos) - Damodaran (http://pages.stern.nyu.edu/~adamodar/New_Home_Page/datafile/ctryprem.html)
B20: Índice de volatilidade | C20: 1.858813701 | D20: http://pages.stern.nyu.edu/~adamodar/New_Home_Page/datafile/ctryprem.html
B21: Opção de coeficiente beta | C21: 2 | D21: Escolha o tipo de coefirience que será usado para determinação da taxa de desconto (veja B22 e B23)
B22: 1. Beta desalavancado da empresa - Desde o IPO | C22: 0.5109369056 | D22: Calculado com base na variação mensal das ações ordinárias da empresa desde o IPO
B23: 2. Beta desalavancado do setor (βo) - Damodaran Developing countries | C23: 1.05 | D23: Planilha ctryprem.xls - Damodaran: http://pages.stern.nyu.edu/~adamodar/New_Home_Page/datafile/ctryprem.html
B24: Fonte: www.damodaran.com
C25: Parâmetros
B26: Relação D/(D+CP) | C26: 3 | D26: -> Marque a opção para uso de capital oneroso médio (Veja B27:B30)
B27: 1-Média móvel dos últimos 5 anos de empresas do setor | C27: =INDEX(Endividamento_Brasil!A1:P37,C5+1,16) -> 0.482 | D27: -> Conforme Assaf Neto (ver aba Endividamento_Brasil)
B28: 2- Endividamento médio mercados emergentes (Damodaran) | C28: 0.2446 | D28: -> Escolher no sítio do Damodaran o indicador D/(D+E) para empresas do setor em análise
B29: 3- Endividamento histórico da empresa em análise | C29: =AVERAGE(OFFSET(Indicadores!B8,0,0,1,D29)) -> 0.2390127621 | D29: 5 | E29: <-Digite ao lado os últimos anos do demonstrativo para o cálculo da média | F29: =Parametros_de_entrada!C55 -> 162774000
B30: 4- Outro valor | C30: 0 | D30: --> Digite aqui outro valor de referência para o endividamento oneroso médio da empresa ou de seu setor
B31: US Risk Premium | C31: 0.0406 | D31: Planilha ctryprem.xls - Damodaran: http://pages.stern.nyu.edu/~adamodar/New_Home_Page/datafile/ctryprem.html
B33: Parâmetros macroeconômicos | C33: Parâmetros
B34: Inflação BRASIL | C34: 0.07933772298 | D34: Média dos últimos 15 anos (IGP-M)
B35: Inflação EUA | C35: 0.02
B36: Fonte: http://www.portalbrasil.net/ipca.htm
B38: Cálculo do WACC pelo valor do patrimônio líquido e passivo oneroso contábil (dívida líquida):
B39: Custo da dívida (Kd) - 1: Dívida contábil; 2: Dívida líquida; 3: Rf+Risco da empresa + CDS | D39: 3 | E39: -> selecione o item referente ao custo da dívida
B41: Modo 1 - Wacc conforme levantamento do Assaf Neto | C41: Parâmetros
B42: Setor de atuação | C42: =INDEX(Endividamento_Brasil!A1:P37,Parametros_de_entrada!C5+1,1) -> Softwares, serviços computacionais | E42: --> Não modifique aqui (use célula C5)
B43: Critério para o cálculo do Wacc médio | C43: 1 | E43: --> escolha entre o ultimo ano, últimos dois anos ou todos os anos
B44: Último ano
B45: Últimos dois anos
B46: Todos os anos (média)
B48: Modo 2 - Wacc usando D/(D+CP) contábil
B49: Valores derivados dos demonstrativos - Veja planilha "Custo de Capital Empresa"
B51: Modo 3 - Wacc usando D/(D+CP) a valor de mercado | D51: Ano do valuation
C52: Quantidade de ações | D52: ="31/12/"&C6 -> 31/12/2014
B53: PNA | C53: 0 | D53: -
B54: PNB | C54: - | D54: -
B55: ON | C55: 162774000 | D55: 36.2
B57: g (taxa de crescimento do fluxo de caixa livre)
B58: Taxa de reinvestimento do fluxo de caixa livre - TR | D58: -> Obtido a partir de Damodaran, usando as taxas de reinvestimento para empresas do setor

Sheet Resumo
B2: Resultados | G2: ="Valor mercado ("&Indicadores!$B$1&")" -> Valor mercado (2014) | H2: Valor intrínseco
B3: Equity Book Value (Valor contábil do Patrimônio Líquido) | C3: =Demonstrativos!B33 -> 1118062 | D3: [R$ 1.000] | F3: Valor da ação | G3: =SUMPRODUCT(Custo_de_capital_Empresa!C86:C88,Custo_de_capital_Empresa!D86:D88)/SUM(Custo_de_capital_Empresa!C86:C88) -> 36.2 | H3: =IF(Analise_Fundamentalista!F32=0,Analise_Fundamentalista!F34,SUMPRODUCT(Custo_de_capital_Empresa!C86:C88,Analise_Fundamentalista!F34:F35)/SUM(Custo_de_capital_Empresa!C86:C88)) -> 34.46178383 | I3: [R$/ação]
B4: Debt book value (Valor contábil da dívida) | C4: =Demonstrativos!B21+Demonstrativos!B27 -> 482490 | D4: [R$ 1.000] | G4: =Indicadores!$B$1 -> 2014 | H4: =Demonstrativos!B1+Analise_Fundamentalista!C2 -> 2024
B5: Ativo total | C5: =Demonstrativos!B2 -> 2143866 | D5: [R$ 1.000] | F5: Receitas líquidas | G5: =Demonstrativos!B45 -> 1772447 | H5: =G5*(1+Analise_Fundamentalista!C4)^Analise_Fundamentalista!C2 -> 21497566.43 | I5: [R$ 1.000]
B6: Debt market value (dívida líquida do excendente de caixa) | C6: =Custo_de_capital_Empresa!C111 -> 447321 | D6: [R$ 1.000] | F6: Wacc utlizado | G6: =Analise_Fundamentalista!C10 -> 0.07728472117 | I6: [Real em R$]
B7: EBIT | C7: =Demonstrativos!B55 -> 347076 | D7: [R$ 1.000] | G7: =Indicadores!$B$1 -> 2014 | H7: Valor intrínseco
C8: Nominal | D8: Real | F8: Market value of equity | G8: =Custo_de_capital_Empresa!D89 -> 5892418.8 | H8: =Analise_Fundamentalista!F28 -> 5609482.401 | I8: [R$ 1.000]
B9: WACC - Instituto Assaf para empresas do setor | C9: =Custo_de_capital_Empresa!C114 -> 0.163 | D9: =Custo_de_capital_Empresa!D114 -> 0.07751260355 | E9: [ao ano] | G9: Drivers do Valor (%)
B10: WACC - Dívida líquida | C10: =Custo_de_capital_Empresa!C115 -> 0.1489050201 | D10: =(1+Analise_Fundamentalista!C4)/(1+Parametros_de_entrada!C34)-1 -> 0.1891160698 | E10: [ao ano] | F10: [Nopat/Receitas] | G10: =Analise_Fundamentalista!C5 -> 0.1499824995 | H10: [ao ano]
B11: WACC conforme equity de mercado | C11: =Custo_de_capital_Empresa!C116 -> 0.1627540379 | D11: =Custo_de_capital_Empresa!D116 -> 0.07728472117 | E11: [ao ano] | F11: [Invest/Receitas] | G11: =-Analise_Fundamentalista!C13 -> -0.0712659361 | H11: [ao ano]
F12: [∆NCG/Receitas] | G12: =-Analise_Fundamentalista!C14 -> -0.01068809268 | H12: [ao ano]
B13: Outras informações | F13: [Deprec/Receitas] | G13: =Analise_Fundamentalista!C12 -> 0.03629967434 | H13: [ao ano]
B14: Capital investido | C14: =Indicadores!B20 -> 800000 | D14: [R$ 1.000] | F14: Cresc. Vendas | G14: =Analise_Fundamentalista!C4 -> 0.2834578311 | H14: [ao ano] - nominal
B15: Nopat | C15: =Demonstrativos!B55*(1-Custo_de_capital_Empresa!C20) -> 229070.16 | D15: [R$ 1.000]
B16: EVA | C16: =(C22-Analise_Fundamentalista!C10)*C14 -> 167242.3831 | D16: [R$ 1.000] - ações ordinárias e preferenciais
B17: MVA | C17: =C16/Analise_Fundamentalista!C10 -> 2163977.311 | D17: [R$ 1.000]
B18: P/L | C18: =SUMPRODUCT(Custo_de_capital_Empresa!C86:C88,Custo_de_capital_Empresa!D86:D88)/SUM(Custo_de_capital_Empresa!C86:C88)/C19 -> 22.42202621 | D18: [R$/ação]
B19: LPA | C19: =Demonstrativos!B62/SUM(Custo_de_capital_Empresa!C86:C88)*1000 -> 1.614483886 | D19: [R$/ação]
B20: ROA | C20: =C15/C5 -> 0.1068491034
B21: ROE | C21: =Indicadores!B30 -> 0.2350459992
B22: ROCE | C22: =C15/C14 -> 0.2863377
B23: Enterprise Value | C23: =Custo_de_capital_Empresa!D91 -> 6339739.8 | D23: [R$ 1.000]
B24: GAF (Grau de alavancagem financeira) | C24: =C21/C20 -> 2.199793837

Sheet Resumo_WACC
B1: =Parametros_de_entrada!C4 -> Totvs S.A | C1: Modo 1 - Assaf Neto | D1: Modo 2 - Estrutura de capital contábil | E1: Modo 3 - A valor de mercado | F1: Observação
B2: Inflação Brasil (a.a) | C2: =Custo_de_capital_Empresa!F44 -> 0.07933772298 | F2: IGP-DI médio dos últimos 15 anos
B3: Inflação EUA (a.a.) | C3: =Custo_de_capital_Empresa!F45 -> 0.02 | F3: www.damodaran.com
B4: Alíquota marginal de IR | D4: =Custo_de_capital_Empresa!C20 -> 0.34 | F4: Imposto de renda efetivamente pago (valor médio)
B5: D/(D+CP) | D5: =Custo_de_capital_Empresa!C79 -> 0.2390127621 | E5: =Custo_de_capital_Empresa!D90/Custo_de_capital_Empresa!D91 -> 0.07055825856
B6: CP/(D+CP) | D6: =1-D5 -> 0.7609872379 | E6: =1-E5 -> 0.9294417414
B7: Kd (nominal, R$) | D7: =Custo_de_capital_Empresa!D70 -> 0.0857121133 | F7: =IF(Custo_de_capital_Empresa!E70=1,"Usa dívida contábil",IF(Custo_de_capital_Empresa!E70=2,"Usa dívida líquida","Usa Rf+Risco da Empresa+CDS")) -> Usa Rf+Risco da Empresa+CDS
B8: Kcp (nominal, R$) | D8: =(D10+D9*D11+D12*D13)*(1+C2)/(1+C3) -> 0.1315696017 | E8: =(D10+E9*D11+D12*D13)*(1+C2)/(1+C3) -> 0.170814964 | F8: =Rf+Beta*(Rm-Rf)*CDS*IV
B9: Coef. Beta (alavancado) | D9: =(1+Analise_Fundamentalista!C4)/(1+Parametros_de_entrada!C34)-1 -> 0.1891160698 | E9: =Custo_de_capital_Empresa!C40 -> 1.102608863 | F9: =Parametros_de_entrada!D31 -> Planilha ctryprem.xls - Damodaran: http://pages.stern.nyu.edu/~adamodar/New_Home_Page/datafile/ctryprem.html
B10: Rf | D10: =Custo_de_capital_Empresa!C24 -> 0.02 | F10: =Parametros_de_entrada!D18 -> US T-Bond (Rf) - Fonte: www.damodaran.com http://pages.stern.nyu.edu/~adamodar/New_Home_Page/datafile/ctryprem.html)
B11: Rm-Rf | D11: =Custo_de_capital_Empresa!C41 -> 0.0406 | F11: =Parametros_de_entrada!D31 -> Planilha ctryprem.xls - Damodaran: http://pages.stern.nyu.edu/~adamodar/New_Home_Page/datafile/ctryprem.html
B12: Country Deafault Spread (CDS) | C12: =Parametros_de_entrada!C18 -> 0.02 | D12: =Custo_de_capital_Empresa!C25 -> 0.052 | F12: =Parametros_de_entrada!D19 -> T-bond (maturidade de 10 anos) - Damodaran (http://pages.stern.nyu.edu/~adamodar/New_Home_Page/datafile/ctryprem.html)
B13: ìndice de Volatilidade (IV) | C13: =Parametros_de_entrada!C20 -> 1.858813701 | D13: =Custo_de_capital_Empresa!C26 -> 1.858813701 | F13: Volatidade dos retornos das ações de empresas brasileiras/volatilidade títulos da dívida pública brasileira
B14: WACC (nominal R$) | C14: =Custo_de_capital_Empresa!C74 -> 0.163 | D14: =D7*D5*(1-D4)+D8*D6 -> 0.1136437385 | E14: =D7*E5*(1-D4)+E8*E6 -> 0.1627540379
F28: =Parametros_de_entrada!C55 -> 162774000

Sheet Analise_Fundamentalista
B2: Período de avaliação explícita | C2: 10 | D2: [anos] | E2: -> escolha um valor entre 3 e 20 anos (em C2)
B3: Receitas anuais | C3: =Demonstrativos!B45 -> 1772447 | D3: [R$ 1.000]
B4: Crescimento das receitas (nominal) | C4: =((Demonstrativos!B45/OFFSET(Demonstrativos!B45,0,Analise_Fundamentalista!F4))^(1/(Demonstrativos!B44-OFFSET(Demonstrativos!B44,0,Analise_Fundamentalista!F4)))-1)*(1-H4) -> 0.2834578311 | D4: [% ao ano] | E4: Últimos (anos) | F4: 10 | G4: --> Reduzir em (%) | H4: 0
B5: Margem operacional | C5: =AVERAGE(OFFSET(Indicadores!B3,0,0,1,F5))*(1-H5) -> 0.1499824995 | D5: [%/líquida] | E5: Últimos (anos) | F5: 10 | G5: --> Reduzir em (%) | H5: 0
B6: Alíquota de IR/CSLL | C6: =AVERAGE(OFFSET(Indicadores!B7,0,0,1,F6))*(1-H6) -> 0.34 | D6: [%] | E6: Últimos (anos) | F6: 10 | G6: --> Reduzir em (%) | H6: 0.2089231771
B8: Taxa de desconto | C8: 3 | D8: 1- WACC pelo Instituto Assaf; 2 - WACC contábil; 3- WACC por valor de mercado
B9: Custo do capital (WACC) | C9: =IF(C8=1,Custo_de_capital_Empresa!C74,IF(C8=2,Custo_de_capital_Empresa!C81,Custo_de_capital_Empresa!D92)) -> 0.1627540379 | D9: [%] - nominal (R$)
B10: Custo do capital (WACC) | C10: =IF(C8=1,Custo_de_capital_Empresa!C73,IF(C8=2,Custo_de_capital_Empresa!C82,Custo_de_capital_Empresa!D93)) -> 0.07728472117
B12: Taxa de depreciação | C12: =(AVERAGE(OFFSET(Indicadores!B12,0,0,1,F12)))*(1-H12) -> 0.03629967434 | D12: [% das receitas] | E12: Últimos (anos) | F12: 10 | G12: --> Reduzir em (%) | H12: 0
B13: Taxa de investimento | C13: =AVERAGE(OFFSET(Indicadores!B13,0,0,1,F13))*(1-H13) -> 0.0712659361 | D13: [% das receitas] | E13: Últimos (anos) | F13: 10 | G13: --> Reduzir em (%) | H13: 0
B14: Variação Nec Capital de Giro | C14: =AVERAGE(OFFSET(Indicadores!B19,0,0,1,F14))*(1-H14) -> 0.01068809268 | D14: [% das receitas] | E14: Últimos (anos) | F14: 10 | G14: --> Reduzir em (%) | H14: 0
B15: Ativos de curto prazo | C15: =Demonstrativos!B3 -> 1156160 | D15: [R$ 1.000]
B16: Passivo de curto prazo | C16: =Demonstrativos!C17 -> 367653 | D16: [R$ 1.000]
B17: Dívida | C17: =Demonstrativos!C21+Demonstrativos!C27 -> 410648 | D17: [R$ 1.000]
B19: Avaliação
C21: + Fluxos de caixa descontados | F21: =SUM(N39:N121) - F22 -> 1693666.614 | G21: [R$ 1.000]
C22: + Fluxo de caixa residual descontado | F22: 3537956.787 | G22: [R$ 1.000]
C23: + Ativos de curto prazo | F23: =C15 -> 1156160 | G23: [R$ 1.000]
C24: = Valor total da empresa | F24: =F21+F22+F23 -> 6387783.401 | G24: [R$ 1.000]
C26: - Dívida | F26: =-C17 -> -410648 | G26: [R$ 1.000]
C27: - Passivos de curto prazo | F27: =-C16 -> -367653 | G27: [R$ 1.000]
C28: = Valor total do capital próprio (equity) | F28: =F24+F26+F27 -> 5609482.401 | G28: [R$ 1.000]
C29: Quantidade de ações ordinárias em circulação | F29: =Parametros_de_entrada!C55 -> 162774000
C30: Quantidade de ações preferenciais em circulação | F30: =SUM(Parametros_de_entrada!C53:C54) -> 0
C31: % ações ordinárias em circulação | F31: =Parametros_de_entrada!C55/SUM(Parametros_de_entrada!C53:C55) -> 1
C32: % ações preferenciais em circulação | F32: =SUM(Parametros_de_entrada!C53:C54)/SUM(Parametros_de_entrada!C53:C55) -> 0
C34: = Valor intrínseco por ação ordinária | F34: =F31*F28/F29*1000 -> 34.46178383
C35: = Valor intrínseco por ação preferencial | F35: =IF(ISERR(F32*F28/F30*1000),0,F32*F28/F30*1000) -> 0
C37: Período | D37: Receitas | E37: Lucro Operacional | F37: IR/CSLL | G37: Nopat | H37: Investimento | I37: Depreciação | J37: Variação investimento | K37: Mudança em Capital de giro | L37: Fluxo de Caixa | M37: Fator de desconto | N37: FC Descontado
C38: 0 | D38: =C3 -> 1772447
C39: 1 | D39: =D38*(1+$C$4)/(1+Parametros_de_entrada!$C$34) -> 2107645.211 | E39: =$C$5*D39 -> 316109.8968 | F39: =-$C$6*E39 -> -107477.3649 | G39: =E39+F39 -> 208632.5319 | H39: =$C$13*D39 -> 150203.3089 | I39: =$C$12*D39 -> 76506.83476 | J39: =H39-I39 -> 73696.47413 | K39: =$C$14*D39 -> 22526.70734 | L39: =G39-J39-K39 -> 112409.3504 | M39: =1/(1+$C$10)^C39 -> 0.9282597073 | N39: =L39*M39 -> 104345.0707
C40: 2 | D40: =D39*(1+$C$4)/(1+Parametros_de_entrada!$C$34) -> 2506234.789 | E40: =$C$5*D40 -> 375891.3581 | F40: =-$C$6*E40 -> -127803.0618 | G40: =E40+F40 -> 248088.2964 | H40: =$C$13*D40 -> 178609.1683 | I40: =$C$12*D40 -> 90975.50667 | J40: =H40-I40 -> 87633.66167 | K40: =$C$14*D40 -> 26786.86969 | L40: =G40-J40-K40 -> 133667.765 | M40: =1/(1+$C$10)^C40 -> 0.8616660843 | N40: =L40*M40 -> 115176.9797
C41: 3 | D41: =D40*(1+$C$4)/(1+Parametros_de_entrada!$C$34) -> 2980204.062 | E41: 446978.4544 | F41: -151972.6745 | G41: 295005.7799 | H41: 212387.0323 | I41: 108180.4369 | J41: 104206.5953 | K41: 31852.69721 | L41: 158946.4874 | M41: 0.7998499072 | N41: 127133.3332
C42: 4 | D42: =D41*(1+$C$4)/(1+Parametros_de_entrada!$C$34) -> 3543808.542 | E42: 531509.263 | F42: -180713.1494 | G42: 350796.1136 | H42: 252552.8331 | I42: 128639.096 | J42: 123913.7371 | K42: 37876.55412 | L42: 189005.8223 | M42: 0.7424684408 | N42: 140330.8582
C43: 5 | D43: =D42*(1+$C$4)/(1+Parametros_de_entrada!$C$34) -> 4213999.685 | E43: 632026.2058 | F43: -214888.91 | G43: 417137.2959 | H43: 300314.6323 | I43: 152966.8162 | J43: 147347.8161 | K43: 45039.61917 | L43: 224749.8606 | M43: 0.6892035376 | N43: 154898.399
C44: 6 | D44: =D43*(1+$C$4)/(1+Parametros_de_entrada!$C$34) -> 5010934.744 | E44: 751552.5179 | F44: -255527.8561 | G44: 496024.6618 | H44: 357108.9552 | I44: 181895.2993 | J44: 175213.6559 | K44: 53557.33493 | L44: 267253.671 | M44: 0.6397598741 | N44: 170978.1749
C45: 7 | D45: =D44*(1+$C$4)/(1+Parametros_de_entrada!$C$34) -> 5958583.028 | E45: 893683.1763 | F45: -303852.2799 | G45: 589830.8963 | H45: 424643.9973 | I45: 216294.6234 | J45: 208349.3739 | K45: 63685.88762 | L45: 317795.6348 | M45: 0.5938633135 | N45: 188727.1687
C46: 8 | D46: =D45*(1+$C$4)/(1+Parametros_de_entrada!$C$34) -> 7085446.832 | E46: 1062693.026 | F46: -361315.6289 | G46: 701377.3973 | H46: 504951.0012 | I46: 257199.4125 | J46: 247751.5886 | K46: 75729.91239 | L46: 377895.8963 | M46: 0.5512593856 | N46: 208318.6596
C47: 9 | D47: =D46*(1+$C$4)/(1+Parametros_de_entrada!$C$34) -> 8425418.689 | E47: 1263665.355 | F47: -429646.2206 | G47: 834019.1341 | H47: 600445.3499 | I47: 305839.9546 | J47: 294605.3953 | K47: 90051.65579 | L47: 449362.083 | M47: 0.5117118759 | N47: 229943.9145
C48: 10 | D48: =D47*(1+$C$4)/(1+Parametros_de_entrada!$C$34) -> 10018800.76 | E48: 1502644.78 | F48: -510899.2252 | G48: 991745.5548 | H48: 713999.2146 | I48: 363679.2048 | J48: 350320.0098 | K48: 107081.871 | L48: 534343.674 | M48: 0.4750015162 | N48: 253814.0553
L50: 7448306.304 | M50: 0.4750015162 | N50: 3537956.787

Sheet Demonstrativos
A1: BALANÇO PATRIMONIAL | B1: 2014 | C1: 2013 | D1: 2012 | E1: 2011 | F1: 2010 | G1: 2009 | H1: 2008 | I1: 2007 | J1: 2006 | K1: 2005 | L1: 2004 | M1: 2003
A2: ATIVO TOTAL | B2: 2143866 | C2: 1848780 | D2: 1420621 | E2: 1337848 | F2: 1291846 | G2: 1206442 | H2: 1040333 | I2: 444144 | J2: 423015 | K2: 123229 | L2: 57855 | M2: 45352
A3: ATIVO CIRCULANTE | B3: 1156160 | C3: 941748 | D3: 744980 | E3: 621340 | F3: 528678 | G3: 485233 | H3: 332644 | I3: 237936 | J3: 199228 | K3: 78628 | L3: 45826 | M3: 38269
A4: Disponibilidades | B4: 697901 | C4: 533063 | D4: 412408 | E4: 287079 | F4: 232508 | G4: 207721 | H4: 134978 | I4: 137403 | J4: 98550 | K4: 22105 | L4: 8355 | M4: 13480
A5: Aplicações Financeiras | B5: 35169 | C5: 13277 | D5: 10168 | E5: 28502 | F5: 6317 | G5: 22469
A6: Valores a Receber | B6: 448360 | C6: 365220 | D6: 289595 | E6: 263282 | F6: 243129 | G6: 210681 | H6: 153213 | I6: 77551 | J6: 73599 | K6: 46984 | L6: 33980 | M6: 21920
A7: Estoques | C7: 0 | D7: 0 | E7: 0 | F7: 0 | G7: 0 | H7: 0 | I7: 0 | J7: 0 | K7: 0 | L7: 0 | M7: 0
A8: Outros Ativos Circulantes | B8: -25270 | C8: 30188 | D8: 32809 | E8: 42477 | F8: 46724 | G8: 44362 | H8: 44453 | I8: 22982 | J8: 27079 | K8: 9539 | L8: 3491 | M8: 2869
A9: ATIVO NÃO CIRCULANTE | B9: 987706 | C9: 907032 | D9: 675641 | E9: 716508 | F9: 763168 | G9: 721209 | H9: 0 | I9: 0 | J9: 223787 | K9: 44601 | L9: 12029 | M9: 7083
A10: Ativo Realizável a Longo Prazo | B10: 256499 | C10: 204451 | D10: 129996 | E10: 116956 | F10: 132752 | G10: 84241 | H10: 707689 | I10: 206208 | J10: 18105 | K10: 9759 | L10: 2740 | M10: 1387
A11: Ativo Permanente | B11: 731207 | C11: 702581 | D11: 545645 | E11: 599552 | F11: 630416 | G11: 636968 | H11: 65502 | I11: 35743 | J11: 205682 | K11: 34842 | L11: 9289 | M11: 5696
A12: Investimentos | B12: 0 | C12: 0 | D12: 0 | E12: 0 | F12: 8 | G12: 10 | H12: 642187 | I12: 170465 | J12: 186335 | K12: 20623 | L12: 0 | M12: 0
A13: Imobilizado | B13: 79121 | C13: 70674 | D13: 58089 | E13: 53793 | F13: 36535 | G13: 32887 | H13: 21 | I13: 55 | J13: 19347 | K13: 14219 | L13: 9289 | M13: 5696
A14: Intangível | B14: 652086 | C14: 631907 | D14: 487556 | E14: 545759 | F14: 593873 | G14: 604071 | H14: 31863 | I14: 18768
B15: 2014 | C15: 2013 | D15: 2012 | E15: 2011 | F15: 2010 | G15: 2009 | H15: 2008 | I15: 2007 | J15: 2006 | K15: 2005 | L15: 2004 | M15: 2003
A16: PASSIVO TOTAL E PATRIMÔNIO LÍQUIDO | B16: 2143866 | C16: 1848780 | D16: 1420621 | E16: 1337848 | F16: 1291846 | G16: 1206442 | H16: 1040333 | I16: 444144 | J16: 423015 | K16: 123229 | L16: 57855 | M16: 45352
A17: PASSIVO CIRCULANTE | B17: 379611 | C17: 367653 | D17: 334016 | E17: 315531 | F17: 255215 | G17: 204082 | H17: 167589 | I17: 82490 | J17: 69986 | K17: 38481 | L17: 24673 | M17: 18108
A18: Obrigações Sociais e Trabalhistas | B18: 111397 | C18: 99552 | D18: 95072 | E18: 72985 | F18: 69072 | G18: 59199
A19: Fornecedores | B19: 35479 | C19: 33149 | D19: 30281 | E19: 19535 | F19: 17363 | G19: 23984 | H19: 27711 | I19: 5469 | J19: 4123 | K19: 3128 | L19: 1667 | M19: 1719
A20: Obrigações Fiscais | B20: 13739 | C20: 13836 | D20: 3518 | E20: 6544 | F20: 5903 | G20: 7198 | H20: 7937 | I20: 3686 | J20: 7671 | K20: 4779 | L20: 3725 | M20: 2778
A21: Empréstimos e Financiamentos | B21: 25314 | C21: 58248 | D21: 97329 | E21: 98565 | F21: 76107 | G21: 17083 | H21: 21541 | I21: 569 | J21: 343 | K21: 218 | L21: 99 | M21: 18
A22: Outros Passivos de Curto Prazo | B22: 54206 | C22: 162868 | D22: 107816 | E22: 117902 | F22: 86770 | G22: 96618 | H22: 91265 | I22: 62131 | J22: 46956 | K22: 25438 | L22: 15582 | M22: 10338
A23: Provisões | B23: 139476 | C23: 0 | D23: 0 | E23: 0 | F23: 0 | G23: 0 | H23: 19135 | I23: 10635 | J23: 10893 | K23: 4918 | L23: 3600 | M23: 3255
A24: Passivos sobre Ativos Não-Correntes a Venda e Descontinuados | B24: 0 | C24: 0 | D24: 0 | E24: 0 | F24: 0 | G24: 0
A25: PASSIVO NÃO CIRCULANTE | B25: 646193 | C25: 411289 | D25: 173459 | E25: 272450 | F25: 405055 | G25: 460335 | H25: 413525 | I25: 3754 | J25: 3577 | K25: 8593 | L25: 1500 | M25: 512
A26: Passivo Exigível a Longo Prazo | B26: 646193 | C26: 411289 | D26: 173459 | E26: 272450 | F26: 405055 | G26: 460335 | H26: 413525 | I26: 3754 | J26: 3577 | K26: 8593 | L26: 1500 | M26: 512
A27: Empréstimos e Financiamentos | B27: 457176 | C27: 352400 | D27: 150815 | E27: 235172 | F27: 342139 | G27: 424395 | H27: 189018 | I27: 0 | J27: 0 | K27: 0 | L27: 0 | M27: 0
A28: Tributos Diferidos | C28: 0 | D28: 0 | E28: 0 | F28: 0 | G28: 0
A29: Provisões de Longo Prazo | B29: 13456 | C29: 7660 | D29: 6370 | E29: 2588 | F29: 5876 | G29: 10653 | H29: 15384 | I29: 1221 | J29: 640 | K29: 4618 | L29: 336 | M29: 193
A30: Outros Passivos de Longo Prazo | B30: 175561 | C30: 51229 | D30: 16274 | E30: 34690 | F30: 57040 | G30: 25287 | H30: 209123 | I30: 2533 | J30: 2937 | K30: 3975 | L30: 1164 | M30: 319
A31: Passivos sobre Ativos Não-Correntes a Venda e Descontinuados | C31: 0 | D31: 0 | E31: 0 | F31: 0 | G31: 0
A32: Lucros e Receitas a Apropriar | C32: 0 | D32: 0 | E32: 0 | F32: 0 | G32: 0
A33: PATRIMÔNIO LÍQUIDO | B33: 1118062 | C33: 1069838 | D33: 913146 | E33: 749867 | F33: 631576 | G33: 542025 | H33: 459219 | I33: 357900 | J33: 349452 | K33: 76155 | L33: 31682 | M33: 26732
A34: Capital Social | B34: 474380 | C34: 526592 | D34: 480598 | E34: 443702 | F34: 406489 | G34: 376493 | H34: 376493 | I34: 307373 | J34: 307373 | K34: 21636 | L34: 1697 | M34: 1697
A35: Reservas de Capital | B35: 92493 | C35: 85367 | D35: 78241 | E35: 50757 | F35: 32096 | G35: 28935 | H35: 46831 | I35: 31557 | J35: 31557 | K35: 31391 | L35: 9268 | M35: 9268
A36: Reservas de Reavaliação | C36: 0 | D36: 0 | E36: 0 | F36: 0 | G36: 0 | H36: 0 | I36: 0 | J36: 0 | K36: 0 | L36: 0 | M36: 0
A37: Reservas de Lucros | B37: 451768 | C37: 457382 | D37: 356520 | E37: 257966 | F37: 183463 | G37: 121615 | H37: 29822 | I37: 18174
A38: Ajustes de Avaliação Patrimonial | C38: -1720 | D38: -2213 | E38: -2558 | F38: -2186 | G38: -1977 | H38: 532 | I38: 0
A39: Lucros/Prejuízos acumulados | C39: 0 | D39: 0 | E39: 0 | F39: 0 | G39: 0 | H39: 0 | I39: 0 | J39: 0 | K39: 0 | L39: 0 | M39: 0
A40: Participação de acionistas não controladores | B40: 1688 | C40: 2217 | D40: 0 | E40: 0 | F40: 11714 | G40: 16959 | H40: 5541 | I40: 796
A41: Ajustes Acumulados de Conversão | C41: 0 | D41: 0 | E41: 0 | F41: 0 | G41: 0
A42: Outros Resultados | B42: 97733 | C42: 0 | D42: 0 | E42: 0 | F42: 0 | G42: 0 | J42: 10522 | K42: 23128 | L42: 20717 | M42: 15767
B43: 0.2859722972 | C43: 0.1192424121
A44: DEMONSTRAÇÃO DO RESULTADO DO EXERCÍCIO | B44: 2014 | C44: 2013 | D44: 2012 | E44: 2011 | F44: 2010 | G44: 2009 | H44: 2008 | I44: 2007 | J44: 2006 | K44: 2005 | L44: 2004 | M44: 2003
A45: (=) RECEITA DE VENDAS | B45: 1772447 | C45: 1611794 | D45: 1413976 | E45: 1279160 | F45: 1129475 | G45: 988679 | H45: 678765 | I45: 439679 | J45: 349991 | K45: 219283 | L45: 146136 | M45: 111436
A46: (-) Custo dos bens e serviços vendidos | B46: -599159 | C46: -541296 | D46: -456820 | E46: -421106 | F46: -377450 | G46: -319587 | H46: -232147 | I46: -138672 | J46: -112868 | K46: -77611 | L46: -48251 | M46: -40565
A47: (=) RESULTADO BRUTO | B47: 1173288 | C47: 1070498 | D47: 957156 | E47: 858054 | F47: 752025 | G47: 669092 | H47: 446618 | I47: 301007 | J47: 237123 | K47: 141672 | L47: 97885 | M47: 70871
A48: (-) Despesas Operacionais | B48: -826212 | C48: -751474 | D48: -660336 | E48: -631855 | F48: -540356 | G48: -489745 | H48: -103389 | I48: -72575 | J48: -70598 | K48: -59193 | L48: -36199 | M48: -18490
A49: Despesas com Vendas | B49: -131741 | C49: -107432 | D49: -88058 | E49: -86717 | F49: -71225 | G49: -57393 | H49: -42508 | I49: -32683 | J49: -25235 | K49: -13724 | L49: -8042 | M49: -5073
A50: Despesas Gerais e Administrativas | B50: -114376 | C50: -95809 | D50: -82875 | E50: -78176 | F50: -71819 | G50: -76268 | H50: -60881 | I50: -39892 | J50: -45363 | K50: -45469 | L50: -28157 | M50: -13417
A51: Perdas pela Não Recuperabilidade de Ativos | C51: 0 | D51: 0 | E51: 0 | F51: 0 | G51: 0
A52: Outras Receitas Operacionais | C52: 0 | D52: 0 | E52: 0 | F52: 0 | G52: 0 | H52: 0 | I52: 0 | J52: 0 | K52: 0 | L52: 0 | M52: 0
A53: Outras Despesas Operacionais | B53: -579512 | C53: -547737 | D53: -489403 | E53: -466962 | F53: -397312 | G53: -356084 | H53: -290843 | I53: -183688 | J53: -166778 | K53: -59501 | L53: -45718 | M53: -40041
A54: Resultado da Equivalência Patrimonial | B54: -583 | C54: -496 | D54: 0 | E54: 0 | F54: 0 | G54: 0 | J54: 0 | K54: 0 | L54: 0 | M54: 0
A55: (=) RESULTADO ANTES DOS JUROS E NÃO OPERACIONAL | B55: 347076 | C55: 319024 | D55: 296820 | E55: 226199 | F55: 211669 | G55: 179347 | H55: 78479 | I55: 57525 | J55: -253 | K55: 22978 | L55: 15968 | M55: 12340
A56: (+) Receitas Financeiras | B56: 71008 | C56: 40459 | D56: 45415 | E56: 40527 | F56: 18442 | G56: 19257 | H56: 26093 | I56: 12781 | J56: 13214 | K56: 4583 | L56: 1305 | M56: 1888
A57: (-) Despesas Financeiras | B57: -57826 | C57: -43116 | D57: -54038 | E57: -58274 | F57: -68172 | G57: -50481 | H57: -44108 | I57: -9656 | J57: -6743 | K57: -4543 | L57: -1185 | M57: -1149
A58: (=) RESULTADO ANTES IR/CSSL E DEDUÇÕES | B58: 360258 | C58: 316367 | D58: 288197 | E58: 208452 | F58: 161939 | G58: 148123 | H58: 34371 | I58: 47877 | J58: 6218 | K58: 23018 | L58: 16088 | M58: 13079
A59: (-) Provisão para IR e CSLL | B59: -97462 | C59: -93267 | D59: -81049 | E59: -39069 | F59: -24411 | G59: -25227 | H59: -15662 | I59: -16820 | J59: -10138 | K59: -11635 | L59: -6493 | M59: -4126
A60: (=) RESULTADO LÍQUIDO DAS OPERAÇÕES CONTINUADAS | B60: 262796 | C60: 223100 | D60: 207148 | E60: 169383 | F60: 137528 | G60: 122896 | H60: 18709 | I60: 31057 | J60: 11059 | K60: 15325 | L60: 9800 | M60: 8043
A61: (+) Resultado Líquido de Operações Descontinuadas | C61: 0 | D61: 0 | E61: 0 | F61: 0 | G61: 0
A62: (=) RESULTADO LÍQUIDO DO EXERCÍCIO | B62: 262796 | C62: 223100 | D62: 207148 | E62: 169383 | F62: 137528 | G62: 122896 | H62: 48212 | I62: 37233 | J62: 11059 | K62: 15325 | L62: 9800 | M62: 8043
A64: DEMONSTRAÇÃO DO FLUXO DE CAIXA | B64: 2014 | C64: 2013 | D64: 2012 | E64: 2011 | F64: 2010 | G64: 2009 | H64: 2008 | I64: 2007 | J64: 2006 | K64: 2005 | L64: 2004 | M64: 2003
A65: Caixa Líquido Atividades OPERACIONAIS | B65: 332045 | C65: 282226 | D65: 306796 | E65: 264147 | F65: 217145 | G65: 185540 | H65: 68153 | I65: 183302
A66: Caixa Líquido Atividades de INVESTIMENTO | B66: -132771 | C66: -218130 | D66: -34791 | E66: -69005 | F66: -88705 | G66: -78151 | H66: -430835 | I66: -75913
A67: Caixa Líquido Atividades de FINANCIAMENTO | B67: 123573 | C67: 56559 | D67: -146676 | E67: -140571 | F67: -103653 | G67: -20345 | H67: 345956 | I67: -20345
A68: Dividendos e Juros sobre Capital Próprio | B68: -158009 | C68: -139661 | D68: -99383 | E68: -85249 | F68: -68794 | G68: -36264
A69: Variação Cambial sobre Caixa e Equivalentes | C69: 0 | D69: 0 | E69: 0 | F69: 0 | G69: 0 | H69: 0 | I69: 0
A70: AUMENTO/REDUÇÃO CAIXA E EQUIVALENTES | B70: 164838 | C70: 120655 | D70: 125329 | E70: 54571 | F70: 24787 | G70: 87044 | H70: -16726 | I70: 87044
A71: Saldo Inicial de Caixa e Equivalentes | B71: 533063 | C71: 412408 | D71: 287079 | E71: 232508 | F71: 207721 | G71: 120677 | H71: 137403 | I71: 120677
A72: Saldo Final de Caixa e Equivalentes | B72: 697901 | C72: 533063 | D72: 412408 | E72: 287079 | F72: 232508 | G72: 207721 | H72: 120677 | I72: 207721
A74: DEMONSTRAÇÃO DO VALOR ADICIONADO | B74: 2014 | C74: 2013 | D74: 2012 | E74: 2011 | F74: 2010 | G74: 2009 | H74: 2008 | I74: 2007 | J74: 2006 | K74: 2005 | L74: 2004 | M74: 2003
A75: Receitas | B75: 1908375 | C75: 1733401 | D75: 1513303 | E75: 1349692 | F75: 1210603 | G75: 1055880 | H75: 717525 | I75: 1055881
A76: (-) Insumos Adquiridos de Terceiros | B76: -584765 | C76: -561795 | D76: -480154 | E76: -441549 | F76: -434477 | G76: -387571 | H76: -264421 | I76: -387571
A77: (=) Valor Adicionado Bruto | B77: 1323610 | C77: 1171606 | D77: 1033149 | E77: 908143 | F77: 776126 | G77: 668309 | H77: 453104 | I77: 668310
A78: (-) Retenções | B78: -88928 | C78: -82558 | D78: -81228 | E78: -82484 | F78: -77883 | G78: -69918 | H78: -87497 | I78: -69918
A79: Depreciação, Amortização e Exaustão | B79: -88928 | C79: -82558 | D79: -81228 | E79: -82484 | F79: -77883 | G79: -69918
A80: (=) Valor Adicionado Líquido Produzido | B80: 1234682 | C80: 1089048 | D80: 951921 | E80: 825659 | F80: 698243 | G80: 598391 | H80: 365607 | I80: 598392
A81: (+) Vlr Adicionado Recebido em Transferência | B81: 70425 | C81: 39742 | D81: 42273 | E81: 37635 | F81: 18442 | G81: 19257 | H81: 26093 | I81: 19256
A82: (=) VALOR ADICIONADO TOTAL | B82: 1305107 | C82: 1128790 | D82: 994194 | E82: 863294 | F82: 716685 | G82: 617648 | H82: 391700 | I82: 617648
A84: DISTRIBUIÇÃO DO VALOR ADICIONADO | B84: 1306107 | C84: 1128790 | D84: 994194 | E84: 863294 | F84: 716685 | G84: 617648 | H84: 391700 | I84: 617648
A85: Pessoal | B85: 659122 | C85: 532000 | D85: 473051 | E85: 377649 | F85: 332138 | G85: 267746 | H85: 207996 | I85: 267746
A86: Impostos, Taxas e Contribuições | B86: 295841 | C86: 269382 | D86: 244911 | E86: 213639 | F86: 171094 | G86: 163835 | H86: 99147 | I86: 163834
A87: Remuneração de Capitais de Terceiros | B87: 88346 | C87: 104308 | D87: 69084 | E87: 102623 | F87: 75925 | G87: 63171 | H87: 35051 | I87: 63172
A88: Remuneração de Capitais Próprios | B88: 262798 | C88: 223100 | D88: 207148 | E88: 169383 | F88: 137528 | G88: 122896 | H88: 49506 | I88: 122896
A89: Outros | C89: 0 | D89: 0 | E89: 0 | F89: 0 | G89: 0 | H89: 0 | I89: 0

Sheet Indicadores
B1: =Demonstrativos!B15 -> 2014 | C1: =Demonstrativos!C15 -> 2013 | D1: =Demonstrativos!D15 -> 2012 | E1: =Demonstrativos!E15 -> 2011 | F1: =Demonstrativos!F15 -> 2010 | G1: =Demonstrativos!G15 -> 2009 | H1: =Demonstrativos!H15 -> 2008 | I1: =Demonstrativos!I15 -> 2007 | J1: =Demonstrativos!J15 -> 2006 | K1: =Demonstrativos!K15 -> 2005 | L1: =Demonstrativos!L15 -> 2004 | M1: =Demonstrativos!M15 -> 2003
A2: Margem Bruta | B2: =Demonstrativos!B47/Demonstrativos!B45 -> 0.6619594267 | C2: =Demonstrativos!C47/Demonstrativos!C45 -> 0.6641655199 | D2: =Demonstrativos!D47/Demonstrativos!D45 -> 0.6769252095 | E2: =Demonstrativos!E47/Demonstrativos!E45 -> 0.6707948967 | F2: =Demonstrativos!F47/Demonstrativos!F45 -> 0.6658181899 | G2: =Demonstrativos!G47/Demonstrativos!G45 -> 0.6767535267 | H2: =Demonstrativos!H47/Demonstrativos!H45 -> 0.6579861955 | I2: =Demonstrativos!I47/Demonstrativos!I45 -> 0.6846062696 | J2: =Demonstrativos!J47/Demonstrativos!J45 -> 0.6775117074 | K2: =Demonstrativos!K47/Demonstrativos!K45 -> 0.6460692347 | L2: =Demonstrativos!L47/Demonstrativos!L45 -> 0.6698212624 | M2: =Demonstrativos!M47/Demonstrativos!M45 -> 0.6359793962
A3: Margem Operacional (EBIT) | B3: =Demonstrativos!B55/Demonstrativos!B45 -> 0.1958174208 | C3: =Demonstrativos!C55/Demonstrativos!C45 -> 0.1979310011 | D3: =Demonstrativos!D55/Demonstrativos!D45 -> 0.2099186973 | E3: =Demonstrativos!E55/Demonstrativos!E45 -> 0.1768340161 | F3: =Demonstrativos!F55/Demonstrativos!F45 -> 0.1874047677 | G3: =Demonstrativos!G55/Demonstrativos!G45 -> 0.1814006366 | H3: =Demonstrativos!H55/Demonstrativos!H45 -> 0.115620281 | I3: =Demonstrativos!I55/Demonstrativos!I45 -> 0.1308340858 | J3: =Demonstrativos!J55/Demonstrativos!J45 -> -0.0007228757311 | K3: =Demonstrativos!K55/Demonstrativos!K45 -> 0.1047869648 | L3: =Demonstrativos!L55/Demonstrativos!L45 -> 0.109268079 | M3: =Demonstrativos!M55/Demonstrativos!M45 -> 0.1107362073
A4: Margem EBITDA | B4: =(Demonstrativos!B55-Demonstrativos!B79)/Demonstrativos!B45 -> 0.245989866 | C4: =(Demonstrativos!C55-Demonstrativos!C79)/Demonstrativos!C45 -> 0.2491521869 | D4: =(Demonstrativos!D55-Demonstrativos!D79)/Demonstrativos!D45 -> 0.2673652169 | E4: =(Demonstrativos!E55-Demonstrativos!E79)/Demonstrativos!E45 -> 0.241316958 | F4: =(Demonstrativos!F55-Demonstrativos!F79)/Demonstrativos!F45 -> 0.2563598132 | G4: =(Demonstrativos!G55-Demonstrativos!G79)/Demonstrativos!G45 -> 0.2521192419 | H4: =(Demonstrativos!H55-Demonstrativos!H79)/Demonstrativos!H45 -> 0.115620281 | I4: =(Demonstrativos!I55-Demonstrativos!I79)/Demonstrativos!I45 -> 0.1308340858 | J4: =(Demonstrativos!J55-Demonstrativos!J79)/Demonstrativos!J45 -> -0.0007228757311 | K4: =(Demonstrativos!K55-Demonstrativos!K79)/Demonstrativos!K45 -> 0.1047869648 | L4: =(Demonstrativos!L55-Demonstrativos!L79)/Demonstrativos!L45 -> 0.109268079 | M4: =(Demonstrativos!M55-Demonstrativos!M79)/Demonstrativos!M45 -> 0.1107362073
A5: Margem Líquida | B5: =Demonstrativos!B62/Demonstrativos!B45 -> 0.1482673389 | C5: =Demonstrativos!C62/Demonstrativos!C45 -> 0.1384171923 | D5: =Demonstrativos!D62/Demonstrativos!D45 -> 0.1465003649 | E5: =Demonstrativos!E62/Demonstrativos!E45 -> 0.1324173676 | F5: =Demonstrativos!F62/Demonstrativos!F45 -> 0.1217627659 | G5: =Demonstrativos!G62/Demonstrativos!G45 -> 0.1243032369 | H5: =Demonstrativos!H62/Demonstrativos!H45 -> 0.0710290012 | I5: =Demonstrativos!I62/Demonstrativos!I45 -> 0.08468223408 | J5: =Demonstrativos!J62/Demonstrativos!J45 -> 0.03159795538 | K5: =Demonstrativos!K62/Demonstrativos!K45 -> 0.06988685853 | L5: =Demonstrativos!L62/Demonstrativos!L45 -> 0.06706082006 | M5: =Demonstrativos!M62/Demonstrativos!M45 -> 0.0721759575
A7: IR Pago | B7: =-Demonstrativos!B59/Demonstrativos!B58 -> 0.2705338952 | C7: =-Demonstrativos!C59/Demonstrativos!C58 -> 0.2948063483 | D7: =-Demonstrativos!D59/Demonstrativos!D58 -> 0.2812277713 | E7: =-Demonstrativos!E59/Demonstrativos!E58 -> 0.187424443 | F7: =-Demonstrativos!F59/Demonstrativos!F58 -> 0.150741946 | G7: =-Demonstrativos!G59/Demonstrativos!G58 -> 0.1703111603 | H7: =-Demonstrativos!H59/Demonstrativos!H58 -> 0.4556748422 | I7: =-Demonstrativos!I59/Demonstrativos!I58 -> 0.3513169163 | J7: =-Demonstrativos!J59/Demonstrativos!J58 -> 1.63042779 | K7: =-Demonstrativos!K59/Demonstrativos!K58 -> 0.5054739769 | L7: =-Demonstrativos!L59/Demonstrativos!L58 -> 0.4035927399 | M7: =-Demonstrativos!M59/Demonstrativos!M58 -> 0.3154675434
A8: Endividamento oneroso | B8: =(Demonstrativos!B21+Demonstrativos!B27)/Demonstrativos!B16 -> 0.2250560436 | C8: =(Demonstrativos!C21+Demonstrativos!C27)/Demonstrativos!C16 -> 0.22211837 | D8: =(Demonstrativos!D21+Demonstrativos!D27)/Demonstrativos!D16 -> 0.1746729071 | E8: =(Demonstrativos!E21+Demonstrativos!E27)/Demonstrativos!E16 -> 0.2494580849 | F8: =(Demonstrativos!F21+Demonstrativos!F27)/Demonstrativos!F16 -> 0.3237584046 | G8: =(Demonstrativos!G21+Demonstrativos!G27)/Demonstrativos!G16 -> 0.3659338783 | H8: =(Demonstrativos!H21+Demonstrativos!H27)/Demonstrativos!H16 -> 0.2023957714 | I8: =(Demonstrativos!I21+Demonstrativos!I27)/Demonstrativos!I16 -> 0.001281116034 | J8: =(Demonstrativos!J21+Demonstrativos!J27)/Demonstrativos!J16 -> 0.0008108459511 | K8: =(Demonstrativos!K21+Demonstrativos!K27)/Demonstrativos!K16 -> 0.0017690641 | L8: =(Demonstrativos!L21+Demonstrativos!L27)/Demonstrativos!L16 -> 0.001711174488 | M8: =(Demonstrativos!M21+Demonstrativos!M27)/Demonstrativos!M16 -> 0.000396895396
A9: Alavancagem Financeira | B9: =(Demonstrativos!B21+Demonstrativos!B27)/Demonstrativos!B33 -> 0.4315413635 | C9: =(Demonstrativos!C21+Demonstrativos!C27)/Demonstrativos!C33 -> 0.3838412919 | D9: =(Demonstrativos!D21+Demonstrativos!D27)/Demonstrativos!D33 -> 0.2717462487 | E9: =(Demonstrativos!E21+Demonstrativos!E27)/Demonstrativos!E33 -> 0.4450615909 | F9: =(Demonstrativos!F21+Demonstrativos!F27)/Demonstrativos!F33 -> 0.6622259237 | G9: =(Demonstrativos!G21+Demonstrativos!G27)/Demonstrativos!G33 -> 0.8144974863 | H9: =(Demonstrativos!H21+Demonstrativos!H27)/Demonstrativos!H33 -> 0.458515436 | I9: =(Demonstrativos!I21+Demonstrativos!I27)/Demonstrativos!I33 -> 0.001589829561 | J9: =(Demonstrativos!J21+Demonstrativos!J27)/Demonstrativos!J33 -> 0.0009815368062 | K9: =(Demonstrativos!K21+Demonstrativos!K27)/Demonstrativos!K33 -> 0.00286258289 | L9: =(Demonstrativos!L21+Demonstrativos!L27)/Demonstrativos!L33 -> 0.003124802727 | M9: =(Demonstrativos!M21+Demonstrativos!M27)/Demonstrativos!M33 -> 0.0006733502918
A10: Custo da dívida (Kd) | B10: =-(Demonstrativos!B57)/(Demonstrativos!B21+Demonstrativos!B27) -> 0.119849116 | C10: =-(Demonstrativos!C57)/(Demonstrativos!C21+Demonstrativos!C27) -> 0.1049950322 | D10: =-(Demonstrativos!D57)/(Demonstrativos!D21+Demonstrativos!D27) -> 0.2177687149 | E10: =-(Demonstrativos!E57)/(Demonstrativos!E21+Demonstrativos!E27) -> 0.1746105466 | F10: =-(Demonstrativos!F57)/(Demonstrativos!F21+Demonstrativos!F27) -> 0.1629949838 | G10: =-(Demonstrativos!G57)/(Demonstrativos!G21+Demonstrativos!G27) -> 0.1143454487 | H10: =-(Demonstrativos!H57)/(Demonstrativos!H21+Demonstrativos!H27) -> 0.2094804782 | I10: =-(Demonstrativos!I57)/(Demonstrativos!I21+Demonstrativos!I27) -> 16.97012302 | J10: =-(Demonstrativos!J57)/(Demonstrativos!J21+Demonstrativos!J27) -> 19.65889213 | K10: =-(Demonstrativos!K57)/(Demonstrativos!K21+Demonstrativos!K27) -> 20.83944954 | L10: =-(Demonstrativos!L57)/(Demonstrativos!L21+Demonstrativos!L27) -> 11.96969697 | M10: =-(Demonstrativos!M57)/(Demonstrativos!M21+Demonstrativos!M27) -> 63.83333333
A11: Custo da dívida líquida (Kd) | B11: =-(Demonstrativos!B57)/B39 -> 0.1292718205 | C11: =-(Demonstrativos!C57)/C39 -> 0.1085031369 | D11: =(1+Analise_Fundamentalista!C4)/(1+Parametros_de_entrada!C34)-1 -> 0.1891160698 | E11: =-(Demonstrativos!E57)/E39 -> 0.1909151965 | F11: =-(Demonstrativos!F57)/F39 -> 0.1654977532 | G11: =-(Demonstrativos!G57)/G39 -> 0.1204800011 | H11: =-(Demonstrativos!H57)/H39 ->  | I11: =-(Demonstrativos!I57)/I39 ->  | J11: =-(Demonstrativos!J57)/J39 ->  | K11: =-(Demonstrativos!K57)/K39 ->  | L11: =-(Demonstrativos!L57)/L39 -> 11.96969697 | M11: =-(Demonstrativos!M57)/M39 -> 63.83333333
A12: Depreciação/Receitas | B12: =-Demonstrativos!B79/Demonstrativos!B45 -> 0.05017244521 | C12: =-Demonstrativos!C79/Demonstrativos!C45 -> 0.05122118583 | D12: =-Demonstrativos!D79/Demonstrativos!D45 -> 0.0574465196 | E12: =-Demonstrativos!E79/Demonstrativos!E45 -> 0.06448294193 | F12: =-Demonstrativos!F79/Demonstrativos!F45 -> 0.06895504549 | G12: =-Demonstrativos!G79/Demonstrativos!G45 -> 0.07071860533 | H12: =-Demonstrativos!H79/Demonstrativos!H45 -> 0 | I12: =-Demonstrativos!I79/Demonstrativos!I45 -> 0 | J12: =-Demonstrativos!J79/Demonstrativos!J45 -> 0 | K12: =-Demonstrativos!K79/Demonstrativos!K45 -> 0 | L12: =-Demonstrativos!L79/Demonstrativos!L45 -> 0 | M12: =-Demonstrativos!M79/Demonstrativos!M45 -> 0
A13: Investimento/Receitas | B13: =(Demonstrativos!B13+Demonstrativos!B14-Demonstrativos!C13-Demonstrativos!C14)/Demonstrativos!B45 -> 0.01615055344 | C13: =(Demonstrativos!C13+Demonstrativos!C14-Demonstrativos!D13-Demonstrativos!D14)/Demonstrativos!C45 -> 0.09736728143 | D13: =(Demonstrativos!D13+Demonstrativos!D14-Demonstrativos!E13-Demonstrativos!E14)/Demonstrativos!D45 -> -0.03812440947 | E13: =(Demonstrativos!E13+Demonstrativos!E14-Demonstrativos!F13-Demonstrativos!F14)/Demonstrativos!E45 -> -0.02412208012 | F13: =(Demonstrativos!F13+Demonstrativos!F14-Demonstrativos!G13-Demonstrativos!G14)/Demonstrativos!F45 -> -0.005799154474 | G13: =(Demonstrativos!G13+Demonstrativos!G14-Demonstrativos!H13-Demonstrativos!H14)/Demonstrativos!G45 -> 0.6120024801 | H13: =(Demonstrativos!H13+Demonstrativos!H14-Demonstrativos!I13-Demonstrativos!I14)/Demonstrativos!H45 -> 0.01924230035 | I13: =(Demonstrativos!I13+Demonstrativos!I14-Demonstrativos!J13-Demonstrativos!J14)/Demonstrativos!I45 -> -0.001191778548 | J13: =(Demonstrativos!J13+Demonstrativos!J14-Demonstrativos!K13-Demonstrativos!K14)/Demonstrativos!J45 -> 0.01465180533 | K13: =(Demonstrativos!K13+Demonstrativos!K14-Demonstrativos!L13-Demonstrativos!L14)/Demonstrativos!K45 -> 0.02248236297 | L13: =(Demonstrativos!L13+Demonstrativos!L14-Demonstrativos!M13-Demonstrativos!M14)/Demonstrativos!L45 -> 0.02458668637 | M13: =(Demonstrativos!M13+Demonstrativos!M14-Demonstrativos!N13-Demonstrativos!N14)/Demonstrativos!M45 -> 0.05111454108
C14: =Demonstrativos!B55 -> 347076
A15: Ativo Circulante Cíclico | B15: =SUM(Demonstrativos!B6:B8) -> 423090 | C15: =SUM(Demonstrativos!C6:C8) -> 395408 | D15: =SUM(Demonstrativos!D6:D8) -> 322404 | E15: =SUM(Demonstrativos!E6:E8) -> 305759 | F15: =SUM(Demonstrativos!F6:F8) -> 289853 | G15: =SUM(Demonstrativos!G6:G8) -> 255043 | H15: =SUM(Demonstrativos!H6:H8) -> 197666 | I15: =SUM(Demonstrativos!I6:I8) -> 100533 | J15: =SUM(Demonstrativos!J6:J8) -> 100678 | K15: =SUM(Demonstrativos!K6:K8) -> 56523 | L15: =SUM(Demonstrativos!L6:L8) -> 37471 | M15: =SUM(Demonstrativos!M6:M8) -> 24789
A16: Passivo Circulante Cíclico | B16: =Demonstrativos!B17-Demonstrativos!B21 -> 354297 | C16: =Demonstrativos!C17-Demonstrativos!C21 -> 309405 | D16: =Demonstrativos!D17-Demonstrativos!D21 -> 236687 | E16: =Demonstrativos!E17-Demonstrativos!E21 -> 216966 | F16: =Demonstrativos!F17-Demonstrativos!F21 -> 179108 | G16: =Demonstrativos!G17-Demonstrativos!G21 -> 186999 | H16: =Demonstrativos!H17-Demonstrativos!H21 -> 146048 | I16: =Demonstrativos!I17-Demonstrativos!I21 -> 81921 | J16: =Demonstrativos!J17-Demonstrativos!J21 -> 69643 | K16: =Demonstrativos!K17-Demonstrativos!K21 -> 38263 | L16: =Demonstrativos!L17-Demonstrativos!L21 -> 24574 | M16: =Demonstrativos!M17-Demonstrativos!M21 -> 18090
A17: NCG | B17: =B15-B16 -> 68793 | C17: =C15-C16 -> 86003 | D17: =D15-D16 -> 85717 | E17: 88793 | F17: 110745 | G17: 68044 | H17: 51618 | I17: 18612 | J17: 31035 | K17: 18260 | L17: 12897 | M17: 6699
A18: Variação NCG | B18: =B17-C17 -> -17210 | C18: =C17-D17 -> 286 | D18: -3076 | E18: -21952 | F18: 42701 | G18: 16426 | H18: 33006 | I18: =I17-J17 -> -12423 | J18: 12775 | K18: 5363 | L18: 6198
A19: Variação NCG/Receita | B19: =B18/Demonstrativos!B45 -> -0.009709740263 | C19: =C18/Demonstrativos!C45 -> 0.0001774420304 | D19: =D18/Demonstrativos!D45 -> -0.002175425891 | E19: =E18/Demonstrativos!E45 -> -0.01716126208 | F19: =F18/Demonstrativos!F45 -> 0.03780606034 | G19: =G18/Demonstrativos!G45 -> 0.01661408809 | H19: =H18/Demonstrativos!H45 -> 0.04862654969 | I19: =I18/Demonstrativos!I45 -> -0.028254704 | J19: =J18/Demonstrativos!J45 -> 0.0365009386 | K19: =K18/Demonstrativos!K45 -> 0.02445698025 | L19: =L18/Demonstrativos!L45 -> 0.04241254722 | M19: =M18/Demonstrativos!M45 -> 0
A20: Capital empregado | B20: =(Demonstrativos!B13+Demonstrativos!B14)+(B17) -> 800000 | C20: =(Demonstrativos!C13+Demonstrativos!C14)+(C17) -> 788584 | D20: =(Demonstrativos!D13+Demonstrativos!D14)+(D17) -> 631362 | E20: =(Demonstrativos!E13+Demonstrativos!E14)+(E17) -> 688345 | F20: =(Demonstrativos!F13+Demonstrativos!F14)+(F17) -> 741153 | G20: =(Demonstrativos!G13+Demonstrativos!G14)+(G17) -> 705002 | H20: =(Demonstrativos!H13+Demonstrativos!H14)+(H17) -> 83502 | I20: =(Demonstrativos!I13+Demonstrativos!I14)+(I17) -> 37435 | J20: =(Demonstrativos!J13+Demonstrativos!J14)+(J17) -> 50382 | K20: =(Demonstrativos!K13+Demonstrativos!K14)+(K17) -> 32479 | L20: =(Demonstrativos!L13+Demonstrativos!L14)+(L17) -> 22186 | M20: =(Demonstrativos!M13+Demonstrativos!M14)+(M17) -> 12395
A21: Reinvestimento | B21: =IF((B17-C17)<0,0,(B17-C17))+(Demonstrativos!B13-Demonstrativos!C13)+(Demonstrativos!B14-Demonstrativos!C14)+Demonstrativos!B79 -> -60302 | C21: =IF((C17-D17)<0,0,(C17-D17))+(Demonstrativos!C13-Demonstrativos!D13)+(Demonstrativos!C14-Demonstrativos!D14)+Demonstrativos!C79 -> 74664 | D21: =IF((D17-E17)<0,0,(D17-E17))+(Demonstrativos!D13-Demonstrativos!E13)+(Demonstrativos!D14-Demonstrativos!E14)+Demonstrativos!D79 -> -135135 | E21: =IF((E17-F17)<0,0,(E17-F17))+(Demonstrativos!E13-Demonstrativos!F13)+(Demonstrativos!E14-Demonstrativos!F14)+Demonstrativos!E79 -> -113340 | F21: =IF((F17-G17)<0,0,(F17-G17))+(Demonstrativos!F13-Demonstrativos!G13)+(Demonstrativos!F14-Demonstrativos!G14)+Demonstrativos!F79 -> -41732 | G21: =IF((G17-H17)<0,0,(G17-H17))+(Demonstrativos!G13-Demonstrativos!H13)+(Demonstrativos!G14-Demonstrativos!H14)+Demonstrativos!G79 -> 551582 | H21: =IF((H17-I17)<0,0,(H17-I17))+(Demonstrativos!H13-Demonstrativos!I13)+(Demonstrativos!H14-Demonstrativos!I14)+Demonstrativos!H79 -> 46067 | I21: =IF((I17-J17)<0,0,(I17-J17))+(Demonstrativos!I13-Demonstrativos!J13)+(Demonstrativos!I14-Demonstrativos!J14)+Demonstrativos!I79 -> -524 | J21: =IF((J17-K17)<0,0,(J17-K17))+(Demonstrativos!J13-Demonstrativos!K13)+(Demonstrativos!J14-Demonstrativos!K14)+Demonstrativos!J79 -> 17903 | K21: =IF((K17-L17)<0,0,(K17-L17))+(Demonstrativos!K13-Demonstrativos!L13)+(Demonstrativos!K14-Demonstrativos!L14)+Demonstrativos!K79 -> 10293 | L21: =IF((L17-M17)<0,0,(L17-M17))+(Demonstrativos!L13-Demonstrativos!M13)+(Demonstrativos!L14-Demonstrativos!M14)+Demonstrativos!L79 -> 9791 | M21: =IF((M17-N17)<0,0,(M17-N17))+(Demonstrativos!M13-Demonstrativos!N13)+(Demonstrativos!M14-Demonstrativos!N14)+Demonstrativos!M79 -> 12395
A22: EBIT * (1-Alíquota de IR) | B22: =Demonstrativos!B55*(1-B7) -> 253180.1778 | C22: =Demonstrativos!C55*(1-C7) -> 224973.6995 | D22: =Demonstrativos!D55*(1-D7) -> 213345.9729 | E22: =Demonstrativos!E55*(1-E7) -> 183803.7784 | F22: =Demonstrativos!F55*(1-F7) -> 179761.603 | G22: =Demonstrativos!G55*(1-G7) -> 148802.2043 | H22: =Demonstrativos!H55*(1-H7) -> 42718.09406 | I22: =Demonstrativos!I55*(1-I7) -> 37315.49439 | J22: =Demonstrativos!J55*(1-J7) -> 159.4982309 | K22: =Demonstrativos!K55*(1-K7) -> 11363.21896 | L22: =Demonstrativos!L55*(1-L7) -> 9523.431129 | M22: =Demonstrativos!M55*(1-M7) -> 8447.130515
A24: Cresc receitas anual | B24: =Demonstrativos!B45/Demonstrativos!C45-1 -> 0.0996734074 | C24: =Demonstrativos!C45/Demonstrativos!D45-1 -> 0.1399019502 | D24: =Demonstrativos!D45/Demonstrativos!E45-1 -> 0.1053941649 | E24: =Demonstrativos!E45/Demonstrativos!F45-1 -> 0.1325261737 | F24: =Demonstrativos!F45/Demonstrativos!G45-1 -> 0.1424082033 | G24: =Demonstrativos!G45/Demonstrativos!H45-1 -> 0.4565851215 | H24: =Demonstrativos!H45/Demonstrativos!I45-1 -> 0.5437739806 | I24: =Demonstrativos!I45/Demonstrativos!J45-1 -> 0.2562580181 | J24: =Demonstrativos!J45/Demonstrativos!K45-1 -> 0.5960699188 | K24: =Demonstrativos!K45/Demonstrativos!L45-1 -> 0.5005405923 | L24: =Demonstrativos!L45/Demonstrativos!M45-1 -> 0.3113894971
A25: Cresc custos anual | B25: =(Demonstrativos!B46/Demonstrativos!C46)-1 -> 0.1068971505 | C25: =(Demonstrativos!C46/Demonstrativos!D46)-1 -> 0.1849218511 | D25: =(Demonstrativos!D46/Demonstrativos!E46)-1 -> 0.08481000033 | E25: =(Demonstrativos!E46/Demonstrativos!F46)-1 -> 0.1156603524 | F25: =(Demonstrativos!F46/Demonstrativos!G46)-1 -> 0.1810555498 | G25: =(Demonstrativos!G46/Demonstrativos!H46)-1 -> 0.3766578935 | H25: =(Demonstrativos!H46/Demonstrativos!I46)-1 -> 0.6740726318 | I25: =(Demonstrativos!I46/Demonstrativos!J46)-1 -> 0.2286210441 | J25: =(Demonstrativos!J46/Demonstrativos!K46)-1 -> 0.4542783884 | K25: =(Demonstrativos!K46/Demonstrativos!L46)-1 -> 0.6084847982 | L25: =(Demonstrativos!L46/Demonstrativos!M46)-1 -> 0.1894736842
A26: Cresc desp anual | B26: =(Demonstrativos!B48/Demonstrativos!C48)-1 -> 0.09945520404 | C26: =(Demonstrativos!C48/Demonstrativos!D48)-1 -> 0.1380176153 | D26: =(Demonstrativos!D48/Demonstrativos!E48)-1 -> 0.04507521504 | E26: =(Demonstrativos!E48/Demonstrativos!F48)-1 -> 0.1693309596 | F26: =(Demonstrativos!F48/Demonstrativos!G48)-1 -> 0.1033415349 | G26: =(Demonstrativos!G48/Demonstrativos!H48)-1 -> 3.736915919 | H26: =(Demonstrativos!H48/Demonstrativos!I48)-1 -> 0.4245814674 | I26: =(Demonstrativos!I48/Demonstrativos!J48)-1 -> 0.02800362617 | J26: =(Demonstrativos!J48/Demonstrativos!K48)-1 -> 0.1926748095 | K26: =(Demonstrativos!K48/Demonstrativos!L48)-1 -> 0.6352109174 | L26: =(Demonstrativos!L48/Demonstrativos!M48)-1 -> 0.9577609519
A27: Cresc custos + despesas anual | B27: =(Demonstrativos!B46+Demonstrativos!B48)/(Demonstrativos!C46+Demonstrativos!C48)-1 -> 0.102571223 | C27: =(Demonstrativos!C46+Demonstrativos!C48)/(Demonstrativos!D46+Demonstrativos!D48)-1 -> 0.1571973834 | D27: =(Demonstrativos!D46+Demonstrativos!D48)/(Demonstrativos!E46+Demonstrativos!E48)-1 -> 0.06096617064 | E27: =(Demonstrativos!E46+Demonstrativos!E48)/(Demonstrativos!F46+Demonstrativos!F46)-1 -> 0.3948350775 | F27: =(Demonstrativos!F46+Demonstrativos!F48)/(Demonstrativos!G46+Demonstrativos!G48)-1 -> 0.1340290511 | G27: =(Demonstrativos!G46+Demonstrativos!G48)/(Demonstrativos!H46+Demonstrativos!H48)-1 -> 1.412057127 | H27: =(Demonstrativos!H46+Demonstrativos!H48)/(Demonstrativos!I46+Demonstrativos!I48)-1 -> 0.5883586512 | I27: =(Demonstrativos!I46+Demonstrativos!I48)/(Demonstrativos!J46+Demonstrativos!J48)-1 -> 0.151423152 | J27: =(Demonstrativos!J46+Demonstrativos!J48)/(Demonstrativos!K46+Demonstrativos!K48)-1 -> 0.3410865179 | K27: =(Demonstrativos!K46+Demonstrativos!K48)/(Demonstrativos!L46+Demonstrativos!L48)-1 -> 0.6199407934 | L27: =(Demonstrativos!L46+Demonstrativos!L48)/(Demonstrativos!M46+Demonstrativos!M48)-1 -> 0.43002286
A29: ROCE | B29: =B22/B20 -> 0.3164752223 | C29: 0.2852881868 | D29: 0.3379138639 | E29: 0.2670227552 | F29: 0.2425431767 | G29: 0.2110663577 | H29: 0.5115816874 | I29: 0.9968076504 | J29: 0.003165778074 | K29: 0.3498635721 | L29: 0.429254085 | M29: 0.6814949992
A30: ROE | B30: =Demonstrativos!B62/Demonstrativos!B33 -> 0.2350459992 | C30: =Demonstrativos!C62/Demonstrativos!C33 -> 0.2085362457 | D30: =Demonstrativos!D62/Demonstrativos!D33 -> 0.2268509088 | E30: =Demonstrativos!E62/Demonstrativos!E33 -> 0.2258840568 | F30: =Demonstrativos!F62/Demonstrativos!F33 -> 0.2177536829 | G30: =Demonstrativos!G62/Demonstrativos!G33 -> 0.2267349292 | H30: =Demonstrativos!H62/Demonstrativos!H33 -> 0.1049869452 | I30: =Demonstrativos!I62/Demonstrativos!I33 -> 0.1040318525 | J30: =Demonstrativos!J62/Demonstrativos!J33 -> 0.03164669254 | K30: =Demonstrativos!K62/Demonstrativos!K33 -> 0.2012343247 | L30: =Demonstrativos!L62/Demonstrativos!L33 -> 0.3093239063 | M30: =Demonstrativos!M62/Demonstrativos!M33 -> 0.3008753554
A31: ROA | B31: =B22/Demonstrativos!B2 -> 0.1180951504 | C31: =C22/Demonstrativos!C2 -> 0.1216876532 | D31: =D22/Demonstrativos!D2 -> 0.1501779665 | E31: =E22/Demonstrativos!E2 -> 0.1373876393 | F31: =F22/Demonstrativos!F2 -> 0.1391509538 | G31: =G22/Demonstrativos!G2 -> 0.1233397083 | H31: =H22/Demonstrativos!H2 -> 0.04106194273 | I31: =I22/Demonstrativos!I2 -> 0.08401665764 | J31: =J22/Demonstrativos!J2 -> 0.0003770510051 | K31: =K22/Demonstrativos!K2 -> 0.09221221433 | L31: =L22/Demonstrativos!L2 -> 0.16460861 | M31: =M22/Demonstrativos!M2 -> 0.1862570673
A32: Vendas/Capital | B32: =Demonstrativos!B45/Indicadores!B20 -> 2.21555875 | C32: =Demonstrativos!C45/Indicadores!C20 -> 2.043909083 | D32: =Demonstrativos!D45/Indicadores!D20 -> 2.239564624 | E32: =Demonstrativos!E45/Indicadores!E20 -> 1.858312329 | F32: =Demonstrativos!F45/Indicadores!F20 -> 1.523943099 | G32: =Demonstrativos!G45/Indicadores!G20 -> 1.402377582 | H32: =Demonstrativos!H45/Indicadores!H20 -> 8.128727456 | I32: =Demonstrativos!I45/Indicadores!I20 -> 11.74513156 | J32: =Demonstrativos!J45/Indicadores!J20 -> 6.946746854 | K32: =Demonstrativos!K45/Indicadores!K20 -> 6.751531759 | L32: =Demonstrativos!L45/Indicadores!L20 -> 6.586856576 | M32: =Demonstrativos!M45/Indicadores!M20 -> 8.990399355
A34: Elementos para o cálculo da dívida líquida
A35: Disponível | B35: =Demonstrativos!B4 -> 697901 | C35: =Demonstrativos!C4 -> 533063 | D35: =Demonstrativos!D4 -> 412408 | E35: =Demonstrativos!E4 -> 287079 | F35: =Demonstrativos!F4 -> 232508 | G35: =Demonstrativos!G4 -> 207721 | H35: =Demonstrativos!H4 -> 134978 | I35: =Demonstrativos!I4 -> 137403 | J35: =Demonstrativos!J4 -> 98550 | K35: =Demonstrativos!K4 -> 22105 | L35: =Demonstrativos!L4 -> 8355 | M35: =Demonstrativos!M4 -> 13480
A36: Aplicações financeiras | B36: =Demonstrativos!B5 -> 35169 | C36: =Demonstrativos!C5 -> 13277 | D36: =Demonstrativos!D5 -> 10168 | E36: =Demonstrativos!E5 -> 28502 | F36: =Demonstrativos!F5 -> 6317 | G36: =Demonstrativos!G5 -> 22469 | H36: =Demonstrativos!H5 -> 0 | I36: =Demonstrativos!I5 -> 0 | J36: =Demonstrativos!J5 -> 0 | K36: =Demonstrativos!K5 -> 0 | L36: =Demonstrativos!L5 -> 0 | M36: =Demonstrativos!M5 -> 0
A37: Investimentos | B37: =Demonstrativos!B12 -> 0 | C37: =Demonstrativos!C12 -> 0 | D37: =Demonstrativos!D12 -> 0 | E37: =Demonstrativos!E12 -> 0 | F37: =Demonstrativos!F12 -> 8 | G37: =Demonstrativos!G12 -> 10 | H37: =Demonstrativos!H12 -> 642187 | I37: =Demonstrativos!I12 -> 170465 | J37: =Demonstrativos!J12 -> 186335 | K37: =Demonstrativos!K12 -> 20623 | L37: =Demonstrativos!L12 -> 0 | M37: =Demonstrativos!M12 -> 0
A38: Dívida | B38: =Demonstrativos!B21+Demonstrativos!B27 -> 482490 | C38: =Demonstrativos!C21+Demonstrativos!C27 -> 410648 | D38: =Demonstrativos!D21+Demonstrativos!D27 -> 248144 | E38: =Demonstrativos!E21+Demonstrativos!E27 -> 333737 | F38: =Demonstrativos!F21+Demonstrativos!F27 -> 418246 | G38: =Demonstrativos!G21+Demonstrativos!G27 -> 441478 | H38: =Demonstrativos!H21+Demonstrativos!H27 -> 210559 | I38: =Demonstrativos!I21+Demonstrativos!I27 -> 569 | J38: =Demonstrativos!J21+Demonstrativos!J27 -> 343 | K38: =Demonstrativos!K21+Demonstrativos!K27 -> 218 | L38: =Demonstrativos!L21+Demonstrativos!L27 -> 99 | M38: =Demonstrativos!M21+Demonstrativos!M27 -> 18
A39: Nova dívida líquida do caixa excedente | B39: =IF((B38-B37-B36)<=0,0,B38-B37-B36) -> 447321 | C39: =IF((C38-C37-C36)<=0,0,C38-C37-C36) -> 397371 | D39: 237976 | E39: =IF((E38-E37-E36)<=0,0,E38-E37-E36) -> 305235 | F39: 411921 | G39: 418999 | H39: 0 | I39: 0 | J39: 0 | K39: 0 | L39: 99 | M39: 18
A41: Giro do Ativo | B41: =Demonstrativos!B45/Demonstrativos!B2 -> 0.8267526982 | C41: =Demonstrativos!C45/Demonstrativos!C2 -> 0.8718149266 | D41: =Demonstrativos!D45/Demonstrativos!D2 -> 0.9953224681 | E41: =Demonstrativos!E45/Demonstrativos!E2 -> 0.9561325352 | F41: =Demonstrativos!F45/Demonstrativos!F2 -> 0.8743108699 | G41: =Demonstrativos!G45/Demonstrativos!G2 -> 0.8194998185 | H41: =Demonstrativos!H45/Demonstrativos!H2 -> 0.6524497445 | I41: =Demonstrativos!I45/Demonstrativos!I2 -> 0.9899469541 | J41: =Demonstrativos!J45/Demonstrativos!J2 -> 0.8273725518 | K41: =Demonstrativos!K45/Demonstrativos!K2 -> 1.77947561 | L41: =Demonstrativos!L45/Demonstrativos!L2 -> 2.525900959 | M41: =Demonstrativos!M45/Demonstrativos!M2 -> 2.457135297
A42: Prazo Médio de Pagamento de Fornecedores | B42: =(Demonstrativos!B19/-Demonstrativos!B46)*360 -> 21.31727972 | C42: =(Demonstrativos!C19/-Demonstrativos!C46)*360 -> 22.04642192 | D42: =(Demonstrativos!D19/-Demonstrativos!D46)*360 -> 23.86314084 | E42: =(Demonstrativos!E19/-Demonstrativos!E46)*360 -> 16.70030824 | F42: =(Demonstrativos!F19/-Demonstrativos!F46)*360 -> 16.56028613 | G42: =(Demonstrativos!G19/-Demonstrativos!G46)*360 -> 27.01686865 | H42: =(Demonstrativos!H19/-Demonstrativos!H46)*360 -> 42.97259926 | I42: =(Demonstrativos!I19/-Demonstrativos!I46)*360 -> 14.19781931 | J42: =(Demonstrativos!J19/-Demonstrativos!J46)*360 -> 13.15058298 | K42: =(Demonstrativos!K19/-Demonstrativos!K46)*360 -> 14.50928348 | L42: =(Demonstrativos!L19/-Demonstrativos!L46)*360 -> 12.43746244 | M42: =(Demonstrativos!M19/-Demonstrativos!M46)*360 -> 15.25551584
A43: Prazo Médio de Recebimento das Vendas | B43: =(Demonstrativos!B6/Demonstrativos!B45)*360 -> 91.06596699 | C43: =(Demonstrativos!C6/Demonstrativos!C45)*360 -> 81.57320352 | D43: =(Demonstrativos!D6/Demonstrativos!D45)*360 -> 73.73123731 | E43: =(Demonstrativos!E6/Demonstrativos!E45)*360 -> 74.09668845 | F43: =(Demonstrativos!F6/Demonstrativos!F45)*360 -> 77.49302995 | G43: =(Demonstrativos!G6/Demonstrativos!G45)*360 -> 76.71363506 | H43: =(Demonstrativos!H6/Demonstrativos!H45)*360 -> 81.26034784 | I43: =(Demonstrativos!I6/Demonstrativos!I45)*360 -> 63.49714223 | J43: =(Demonstrativos!J6/Demonstrativos!J45)*360 -> 75.70377524 | K43: =(Demonstrativos!K6/Demonstrativos!K45)*360 -> 77.13429678 | L43: =(Demonstrativos!L6/Demonstrativos!L45)*360 -> 83.70832649 | M43: =(Demonstrativos!M6/Demonstrativos!M45)*360 -> 70.81374062
A44: Dias de vendas em caixa | B44: =(Demonstrativos!B4+Demonstrativos!B5)/Demonstrativos!B45*360 -> 148.8931404 | C44: =(Demonstrativos!C4+Demonstrativos!C5)/Demonstrativos!C45*360 -> 122.0270084 | D44: =(Demonstrativos!D4+Demonstrativos!D5)/Demonstrativos!D45*360 -> 107.5883608 | E44: =(Demonstrativos!E4+Demonstrativos!E5)/Demonstrativos!E45*360 -> 88.81544138 | F44: =(Demonstrativos!F4+Demonstrativos!F5)/Demonstrativos!F45*360 -> 76.12120676 | G44: =(Demonstrativos!G4+Demonstrativos!G5)/Demonstrativos!G45*360 -> 83.8172956 | H44: =(Demonstrativos!H4+Demonstrativos!H5)/Demonstrativos!H45*360 -> 71.58895936 | I44: =(Demonstrativos!I4+Demonstrativos!I5)/Demonstrativos!I45*360 -> 112.5027122 | J44: =(Demonstrativos!J4+Demonstrativos!J5)/Demonstrativos!J45*360 -> 101.3683209 | K44: =(Demonstrativos!K4+Demonstrativos!K5)/Demonstrativos!K45*360 -> 36.29009089 | L44: =(Demonstrativos!L4+Demonstrativos!L5)/Demonstrativos!L45*360 -> 20.58219741 | M44: =(Demonstrativos!M4+Demonstrativos!M5)/Demonstrativos!M45*360 -> 43.54786604
A45: Capital Circulante Líquido | B45: =Demonstrativos!B3-Demonstrativos!B17 -> 776549 | C45: =Demonstrativos!C3-Demonstrativos!C17 -> 574095 | D45: =Demonstrativos!D3-Demonstrativos!D17 -> 410964 | E45: =Demonstrativos!E3-Demonstrativos!E17 -> 305809 | F45: =Demonstrativos!F3-Demonstrativos!F17 -> 273463 | G45: =Demonstrativos!G3-Demonstrativos!G17 -> 281151 | H45: =Demonstrativos!H3-Demonstrativos!H17 -> 165055 | I45: =Demonstrativos!I3-Demonstrativos!I17 -> 155446 | J45: =Demonstrativos!J3-Demonstrativos!J17 -> 129242 | K45: =Demonstrativos!K3-Demonstrativos!K17 -> 40147 | L45: =Demonstrativos!L3-Demonstrativos!L17 -> 21153 | M45: =Demonstrativos!M3-Demonstrativos!M17 -> 20161
A46: Giro do estoque | B46: =IF(ISERR(-Demonstrativos!B46/Demonstrativos!B7),0,-Demonstrativos!B46/Demonstrativos!B7) -> 0 | C46: =IF(ISERR(-Demonstrativos!C46/Demonstrativos!C7),0,-Demonstrativos!C46/Demonstrativos!C7) -> 0 | D46: =IF(ISERR(-Demonstrativos!D46/Demonstrativos!D7),0,-Demonstrativos!D46/Demonstrativos!D7) -> 0 | E46: =IF(ISERR(-Demonstrativos!E46/Demonstrativos!E7),0,-Demonstrativos!E46/Demonstrativos!E7) -> 0 | F46: =IF(ISERR(-Demonstrativos!F46/Demonstrativos!F7),0,-Demonstrativos!F46/Demonstrativos!F7) -> 0 | G46: =IF(ISERR(-Demonstrativos!G46/Demonstrativos!G7),0,-Demonstrativos!G46/Demonstrativos!G7) -> 0 | H46: =IF(ISERR(-Demonstrativos!H46/Demonstrativos!H7),0,-Demonstrativos!H46/Demonstrativos!H7) -> 0 | I46: =IF(ISERR(-Demonstrativos!I46/Demonstrativos!I7),0,-Demonstrativos!I46/Demonstrativos!I7) -> 0 | J46: =IF(ISERR(-Demonstrativos!J46/Demonstrativos!J7),0,-Demonstrativos!J46/Demonstrativos!J7) -> 0 | K46: =IF(ISERR(-Demonstrativos!K46/Demonstrativos!K7),0,-Demonstrativos!K46/Demonstrativos!K7) -> 0 | L46: =IF(ISERR(-Demonstrativos!L46/Demonstrativos!L7),0,-Demonstrativos!L46/Demonstrativos!L7) -> 0 | M46: =IF(ISERR(-Demonstrativos!M46/Demonstrativos!M7),0,-Demonstrativos!M46/Demonstrativos!M7) -> 0
A48: Liquidez Corrente | B48: =Demonstrativos!B3/Demonstrativos!B17 -> 3.045644094 | C48: =Demonstrativos!C3/Demonstrativos!C17 -> 2.561513166 | D48: =Demonstrativos!D3/Demonstrativos!D17 -> 2.230372198 | E48: =Demonstrativos!E3/Demonstrativos!E17 -> 1.969188447 | F48: =Demonstrativos!F3/Demonstrativos!F17 -> 2.0715005 | G48: =Demonstrativos!G3/Demonstrativos!G17 -> 2.37763742 | H48: =Demonstrativos!H3/Demonstrativos!H17 -> 1.984879676 | I48: =Demonstrativos!I3/Demonstrativos!I17 -> 2.884422354 | J48: =Demonstrativos!J3/Demonstrativos!J17 -> 2.846683622 | K48: =Demonstrativos!K3/Demonstrativos!K17 -> 2.043294093 | L48: =Demonstrativos!L3/Demonstrativos!L17 -> 1.857333928 | M48: =Demonstrativos!M3/Demonstrativos!M17 -> 2.113375304
A49: Liquidez Seca | B49: =(Demonstrativos!B3-Demonstrativos!B7)/Demonstrativos!B17 -> 3.045644094 | C49: =(Demonstrativos!C3-Demonstrativos!C7)/Demonstrativos!C17 -> 2.561513166 | D49: =(Demonstrativos!D3-Demonstrativos!D7)/Demonstrativos!D17 -> 2.230372198 | E49: =(Demonstrativos!E3-Demonstrativos!E7)/Demonstrativos!E17 -> 1.969188447 | F49: =(Demonstrativos!F3-Demonstrativos!F7)/Demonstrativos!F17 -> 2.0715005 | G49: =(Demonstrativos!G3-Demonstrativos!G7)/Demonstrativos!G17 -> 2.37763742 | H49: =(Demonstrativos!H3-Demonstrativos!H7)/Demonstrativos!H17 -> 1.984879676 | I49: =(Demonstrativos!I3-Demonstrativos!I7)/Demonstrativos!I17 -> 2.884422354 | J49: =(Demonstrativos!J3-Demonstrativos!J7)/Demonstrativos!J17 -> 2.846683622 | K49: =(Demonstrativos!K3-Demonstrativos!K7)/Demonstrativos!K17 -> 2.043294093 | L49: =(Demonstrativos!L3-Demonstrativos!L7)/Demonstrativos!L17 -> 1.857333928 | M49: =(Demonstrativos!M3-Demonstrativos!M7)/Demonstrativos!M17 -> 2.113375304
A50: Liquidez Geral | B50: =Demonstrativos!B2/(Demonstrativos!B17+Demonstrativos!B25) -> 2.089937259 | C50: =Demonstrativos!C2/(Demonstrativos!C17+Demonstrativos!C25) -> 2.373450141 | D50: =Demonstrativos!D2/(Demonstrativos!D17+Demonstrativos!D25) -> 2.799391103 | E50: =Demonstrativos!E2/(Demonstrativos!E17+Demonstrativos!E25) -> 2.275325223 | F50: =Demonstrativos!F2/(Demonstrativos!F17+Demonstrativos!F25) -> 1.956542021 | G50: =Demonstrativos!G2/(Demonstrativos!G17+Demonstrativos!G25) -> 1.815790385 | H50: =Demonstrativos!H2/(Demonstrativos!H17+Demonstrativos!H25) -> 1.790239093 | I50: =Demonstrativos!I2/(Demonstrativos!I17+Demonstrativos!I25) -> 5.149853903 | J50: =Demonstrativos!J2/(Demonstrativos!J17+Demonstrativos!J25) -> 5.750377228 | K50: =Demonstrativos!K2/(Demonstrativos!K17+Demonstrativos!K25) -> 2.617772019 | L50: =Demonstrativos!L2/(Demonstrativos!L17+Demonstrativos!L25) -> 2.210484087 | M50: =Demonstrativos!M2/(Demonstrativos!M17+Demonstrativos!M25) -> 2.43566058
A51: Liquidez Imediada | B51: =(Demonstrativos!B4+Demonstrativos!B5)/Demonstrativos!B17 -> 1.931108424 | C51: =(Demonstrativos!C4+Demonstrativos!C5)/Demonstrativos!C17 -> 1.486020786 | D51: =(Demonstrativos!D4+Demonstrativos!D5)/Demonstrativos!D17 -> 1.265136999 | E51: =(Demonstrativos!E4+Demonstrativos!E5)/Demonstrativos!E17 -> 1.000158463 | F51: =(Demonstrativos!F4+Demonstrativos!F5)/Demonstrativos!F17 -> 0.9357796368 | G51: =(Demonstrativos!G4+Demonstrativos!G5)/Demonstrativos!G17 -> 1.12792897 | H51: =(Demonstrativos!H4+Demonstrativos!H5)/Demonstrativos!H17 -> 0.8054108563 | I51: =(Demonstrativos!I4+Demonstrativos!I5)/Demonstrativos!I17 -> 1.665692811 | J51: =(Demonstrativos!J4+Demonstrativos!J5)/Demonstrativos!J17 -> 1.408138771 | K51: =(Demonstrativos!K4+Demonstrativos!K5)/Demonstrativos!K17 -> 0.5744393337 | L51: =(Demonstrativos!L4+Demonstrativos!L5)/Demonstrativos!L17 -> 0.3386292709 | M51: =(Demonstrativos!M4+Demonstrativos!M5)/Demonstrativos!M17 -> 0.7444223548

Sheet Custo_de_capital_Empresa
B1: Não modifique os valores desta planilha. Use a aba "Parâmetros de Entrada"
B2: PASSO 1
B3: Cálculo do custo da dívida (Kd)
B4: Esses valores representam o custo da dívida bruta. Alternativamente, seria interessante calcularmos a dívida líquida, ou seja: dívida bruta – excedente de caixa. O excedente de caixa são as aplicações financeiras, as disponibilidades e os investimentos de curto prazo que possuem liquidez, mas não instantaneamente. Alternativamente, conforme Tinoco et al. página 98, o custo da dívida pode também ser estimado da seguinte forma: Kd = Rf + Spread de Risco de crédito + Risco país
C8: Parâmetros
B9: 1-Cálculo do custo da dívida (Kd) (Contábil - histórico) | C9: =AVERAGE(OFFSET(Indicadores!B10,0,0,1,D9)) -> 0.1560436787 | D9: =Parametros_de_entrada!C11 -> 5 | E9: <-Média dos últimos anos, como na célula ao lado
B10: 2-Cálculo do custo da dívida (Kd) (Contábil - dívida líquida) | C10: =AVERAGE(OFFSET(Indicadores!B11,0,0,1,D10)) -> 0.1566607954 | D10: =Parametros_de_entrada!C12 -> 5 | E10: <-Média dos últimos anos, como na célula ao lado
B11: 3-Custo da dívida para empresas de capital aberto (nominal em R$) | C11: =C12*(1+F44)/(1+F45) -> 0.0857121133
B12: Custo da dívida para empresas de capital aberto (em US$) | C12: =C13+C15+C19 -> 0.081
B13: =B24 -> US T-Bond (Rf) | C13: =Parametros_de_entrada!C18 -> 0.02
B14: Tipó de empresa (1=grande, 2= financeira; 3=pequena) | C14: =Parametros_de_entrada!C7 -> 1
B15: Prêmio de risco da empresa | C15: =IF(C14=1,VLOOKUP(C16,'Níveis de risco corporativo'!A6:D20,4),(IF(C14=2,VLOOKUP(C16,'Níveis de risco corporativo'!F6:I20,4),VLOOKUP(C16,'Níveis de risco corporativo'!K6:N20,4)))) -> 0.009
B16: Cobertura dos Juros | C16: =C17/C18 -> 6.002075191
B17: EBIT | C17: =Parametros_de_entrada!C13 -> 347076
B18: Juros | C18: =Parametros_de_entrada!C14 -> 57826
B19: Country Default Spread (CDS) | C19: =C25 -> 0.052
B20: Alíquota marginal de IR+CSLL | C20: =Analise_Fundamentalista!C6 -> 0.34
B22: Cálculo do custo do capital próprio (Ke)
C23: Parâmetros
B24: US T-Bond (Rf) | C24: =Parametros_de_entrada!C18 -> 0.02
B25: Country Default Spread (CDS) | C25: =Parametros_de_entrada!C19 -> 0.052
B26: Índice de volatilidade | C26: =Parametros_de_entrada!C20 -> 1.858813701
B27: Coeficientes Beta | C27: =Parametros_de_entrada!C21 -> 2
B28: 1. Beta desalavancado da empresa - Desde o IPO | C28: =Parametros_de_entrada!C22 -> 0.5109369056
B29: 2. Beta desalavancado do setor (βo) - Damodaran Developing countries | C29: =Parametros_de_entrada!C23 -> 1.05
B30: Fonte: www.damodaran.com
C31: Parâmetros
B32: Relação D/(D+CP) | C32: =IF(Parametros_de_entrada!C26=1,C33,IF(Parametros_de_entrada!C26=2,C34,IF(Parametros_de_entrada!C26=3,C35,C36))) -> 0.2390127621
B33: 1-Média móvel dos últimos 5 anos de empresas do setor | C33: =Parametros_de_entrada!C27 -> 0.482
B34: 2- Endividamento médio mercados emergentes (Damodaran) | C34: =Parametros_de_entrada!C28 -> 0.2446
B35: 3- Endividamento histórico da empresa em análise | C35: =Parametros_de_entrada!C29 -> 0.2390127621
B36: 4- Outro valor | C36: =Parametros_de_entrada!C30 -> 0
B37: Relação D/CP (opções 1 a 4, acima) | C37: =C32/(1-C32) -> 0.3140824841 | D37: =D/(D+CP) / [1- D/(D+CP)]
B38: Relação D/CP (a valor de mercado - vide WACC modo 3, abaixo) | C38: =(D90/D91)/(1-(D90/D91)) -> 0.07591466513 | D38: =D/(D+CP) / [1- D/(D+CP)], a valor de mercado
B39: Beta Alavancado - D/CP Histórico (vide WACC, modo 2) | C39: =IF(C27=1,C28*(1+(1-$C$20)*C37),C29*(1+(1-$C$20)*C37)) -> 1.267659161
B40: Beta Alavancado - D/CP a valor de mercado (vide WACC, modo 3) | C40: =IF(C27=1,C28*(1+(1-$C$20)*C38),C29*(1+(1-$C$20)*C38)) -> 1.102608863
B41: US Risk Premium | C41: =Parametros_de_entrada!C31 -> 0.0406
C43: Wacc - Modo 2 | D43: Wacc - Modo 3 | F43: Parâmetros
B44: Kcp nominal US$ | C44: =C24+C25*C26+C39*C41 -> 0.1681252744 | D44: =C24+C25*C26+C40*C41 -> 0.1614242323 | E44: Inflação BRASIL | F44: =Parametros_de_entrada!C34 -> 0.07933772298
B45: KCp nominal R$ | C45: =C44*((1+F44)/(1+F45)) -> 0.1779058342 | D45: =D44*((1+F44)/(1+F45)) -> 0.170814964 | E45: Inflação EUA | F45: =Parametros_de_entrada!C35 -> 0.02
B46: KCp real R$ | C46: =(1+C45)/(1+F44)-1 -> 0.09132277052 | D46: =(1+D45)/(1+F44)-1 -> 0.08475312138 | E46: Fonte: http://www.portalbrasil.net/ipca.htm
B48: O custo médio ponderado do capital (WACC) é uma média ponderada dos custos das diversas fontes de recursos que financiam os ativos da empresa. O enfoque do CMPC parte da idéia de que o projeto é financiado simultaneamente com capital próprio e capital de terceiros; portanto, o CMPC é igual à soma das rentabilidades médias dessas fontes de recursos, ponderadas pela participação de cada fonte no financiamento total. Essa média ponderada é a seguinte:
B57: onde:
B58: K = custo médio ponderado do capital;
B59: Kcp = custo do capital próprio;
B60: Kd = custo da dívida;
B61: D= valor da dívida (passivo oneroso);
B62: PL= valor do patrimônio líquido;
B63: AT= ativo total;
B64: T= alíquota de imposto de renda.
B66: Apresentaremos duas metodologias para o cálculo do WACC: cálculo do WACC usando o valor do patrimônio líquido e o valor da dívida líquida onerosa contábil e o cálculo do WACC usando o valor do equity e da dívida líquida onerosa contábil. Recomenda-se usar o WACC pelo valor do equity (segundo modo).
B69: Cálculo do WACC pelo valor do patrimônio líquido e passivo oneroso contábil (dívida líquida):
B70: Custo da dívida (Kd) - 1: Dívida contábil; 2: Dívida líquida; 3: Rf+Risco da empresa + CDS | D70: =IF(E70=1,C9,IF(E70=2,C10,C11)) -> 0.0857121133 | E70: =Parametros_de_entrada!D39 -> 3
B72: Modo 1 - Wacc conforme levantamento do Assaf Neto | C72: Parâmetros
B73: Wacc Assaf Neto para empresas brasileiras de capital aberto | C73: =(1+C74)/(1+F44)-1 -> 0.07751260355 | D73: --> Real R$
B74: Wacc Assaf Neto para empresas brasileiras de capital aberto | C74: =INDEX('Wacc Brasil (Nominal)'!A1:G37,Parametros_de_entrada!C5+1,IF(Parametros_de_entrada!C43=1,5,IF(Parametros_de_entrada!C43=2,6,7))) -> 0.163 | D74: --> Nominal R$
B75: Setor escolhido | C75: =INDEX(Endividamento_Brasil!A1:P37,Parametros_de_entrada!C5+1,1) -> Softwares, serviços computacionais
B76: Base para cálculo | C76: =INDEX(Parametros_de_entrada!B44:B46,Parametros_de_entrada!C43,1) -> Último ano
B78: Modo 2 - Wacc usando D/(D+CP) contábil | C78: Parâmetros
B79: D/(D+CP) | C79: =C32 -> 0.2390127621 | D79: =IF(D32=1,B33,IF(D32=2,B34,B35)) -> 3- Endividamento histórico da empresa em análise
B80: CP/(D+CP) | C80: =1-C79 -> 0.7609872379
B81: WACC nominal R$ | C81: =D70*C79*(1-$C$20)+C45*C80 -> 0.1489050201
B82: WACC real R$ | C82: =(1+C81)/(1+F44)-1 -> 0.06445368822
B84: Modo 3 - Wacc usando D/(D+CP) a valor de mercado | D84: Ano do valuation
C85: Quantidade de ações | D85: ="31/12/"&Parametros_de_entrada!C6 -> 31/12/2014
B86: PNA | C86: =Parametros_de_entrada!C53 -> 0 | D86: =Parametros_de_entrada!D53 -> -
B87: PNB | C87: =Parametros_de_entrada!C54 -> - | D87: =Parametros_de_entrada!D54 -> -
B88: ON | C88: =Parametros_de_entrada!C55 -> 162774000 | D88: =Parametros_de_entrada!D55 -> 36.2
B89: Market value of equity | D89: =SUMPRODUCT($C$86:$C$88,D86:D88)/1000 -> 5892418.8
B90: Dívida (líquida) | D90: =Indicadores!B39 -> 447321
B91: Valor total da Empresa | D91: =SUM(D89:D90) -> 6339739.8
B92: WACC nominal R$ | D92: =D70*D90/D91*(1-$C$20)+D45*D89/D91 -> 0.1627540379
B93: WACC real R$ | D93: =(1+D92)/(1+F44)-1 -> 0.07728472117
B95: PASSO 2
B96: Os três principais e mais usados indicadores de rentabilidade são: o retorno operacional sobre os ativos (ROA — return on assets), o retorno sobre o patrimônio líquido (ROE — return on equity) e o retorno sobre o investimento (ROI — return on investment). O ROA mede a eficiência com que a administração emprega os ativos, o ROE mede a lucratividade dos recursos aplicados pelos acionistas e o ROI mede o retorno sobre o capital investido. As principais bases de comparação adotadas para a análise da rentabilidade de uma empresa são o ativo total, o patrimônio líquido, o capital investido e as receitas de vendas. Os resultados normalmente utilizados são o lucro operacional (lucro gerado pelos ativos) e o lucro líquido.
B102: A alavancagem financeira (GAF) mede o efeito sobre a rentabilidade e sobre o valor da empresa causado pelos custos fixos de obrigações de dívida. A alavancagem financeira é favorável quando os recursos de terceiros tomados pela empresa para serem aplicados nas operações rendem mais do que custam, aumentando dessa maneira o retorno dos proprietários (ROE).
B106: Resultados | C106: Parâmetros
B107: Equity Book Value (Valor contábil do Patrimônio Líquido) | C107: =Demonstrativos!B33 -> 1118062 | D107: [R$ 1.000]
B108: Debt book value (Valor contábil da dívida) | C108: =Demonstrativos!B21+Demonstrativos!B27 -> 482490 | D108: [R$ 1.000]
B109: Ativo total | C109: =Demonstrativos!B2 -> 2143866 | D109: [R$ 1.000]
B110: Equity market value (valor de mercado das ações) | C110: =D89 -> 5892418.8 | D110: [R$ 1.000]
B111: Debt market value (dívida líquida do excendente de caixa) | C111: =D90 -> 447321 | D111: [R$ 1.000]
B112: EBIT | C112: =Demonstrativos!B55 -> 347076 | D112: [R$ 1.000]
C113: Nominal | D113: Real
B114: WACC - Instituto Assaf para empresas do setor (nominal R$) | C114: =C74 -> 0.163 | D114: =C73 -> 0.07751260355 | E114: ao ano
B115: WACC - Dívida líquida | C115: =C81 -> 0.1489050201 | D115: =C82 -> 0.06445368822 | E115: ao ano
B116: WACC conforme equity de mercado | C116: =D92 -> 0.1627540379 | D116: =D93 -> 0.07728472117 | E116: ao ano
B117: Capital investido | C117: =Indicadores!B20 -> 800000 | D117: [R$ 1.000]
B118: Nopat | C118: =Demonstrativos!B55*(1-Custo_de_capital_Empresa!C20) -> 229070.16 | D118: [R$ 1.000]
B119: EVA (usando WACCnominal baseado em equity a valor de mercado) | C119: =(C131-C116)*C117 -> 98866.92964 | D119: [R$ 1.000]
B120: MVA | C120: =C119/C116 -> 607462.2227 | D120: [R$ 1.000]
B121: Valor da empresa [NOPAT * (1-Taxa de reinvestimento)] / (Wacc - g) | C121: =C118*(1-C133)/(D116-C132) -> 2963977.311 | D121: [R$ 1.000]
B122: Valor da empresa/EBIT | C122: =C121/C112 -> 8.539850957
B123: Valor da empresa/Capital Investido | C123: =C121/C117 -> 3.704971638
B124: Valor patrimonial (contábil) | C124: =Demonstrativos!B33 -> 1118062 | D124: [R$ 1.000]
B125: Valor de mercado da empresa | C125: =D91 -> 6339739.8 | D125: [R$ 1.000]
B126: Valor do Equity (Market value of equity) | C126: =D89 -> 5892418.8 | D126: [R$ 1.000]
B127: P/L | C127: =D88/C128 -> 22.42202621
B128: LPA | C128: =Demonstrativos!B62/SUM(C86:C88)*1000 -> 1.614483886
B129: ROA | C129: =C118/C109 -> 0.1068491034
B130: ROE | C130: =Indicadores!B30 -> 0.2350459992
B131: ROCE ou ROI | C131: =C118/C117 -> 0.2863377
B132: g (taxa de crescimento do fluxo de caixa livre) | C132: =Parametros_de_entrada!C57 -> 0
B133: Taxa de reinvestimento do fluxo de caixa livre - TR | C133: =Parametros_de_entrada!C58 -> 0
B134: GAF | C134: =C130/C129 -> 2.199793837

Sheet Tornado
D2: [R$/ação] | F2: Rótulo de dados
D3: P90 | E3: P10 | F3: P90 | G3: P10
C4: Nopat/Receitas | D4: 16.56593581 | E4: 52.35763185 | F4: -0.3 | G4: 0.3
C5: Investimentos/Receitas | D5: 21.57781236 | E5: 47.3457553 | F5: 0.3 | G5: -0.3
C6: ∆NCG/Receitas | D6: 32.52951312 | E6: 36.39405454 | F6: 0.3 | G6: -0.3
C7: Depreciação/Receitas | D7: 27.89926611 | E7: 41.02430155 | F7: -0.3 | G7: 0.3 | J7: Base R$/ação | L7: =Resumo!H3 -> 34.46178383
C8: Cresc vendas | D8: 20.15538575 | E8: 59.4428296 | F8: -0.3 | G8: 0.3
D10: =(1+Analise_Fundamentalista!C4)/(1+Parametros_de_entrada!C34)-1 -> 0.1891160698
C13: =Demonstrativos!B55 -> 347076
C14: =-Demonstrativos!B57 -> 57826
F29: =Parametros_de_entrada!C55 -> 162774000

Sheet Monte_Carlo
A1: Estimativa do valor da Ação | R1: Classes | S1: 20 | T1: Altura (range/classes) | U1: =(H9-H10)/S1 -> 5.928819711 | V1: 1
A2: Simulação de Monte Carlo sobre FC Descontado | R2: =H10+U1 -> 10.92881971 | S2: =FREQUENCY(BL25:BL5025,R2:R23) -> 1330 | T2: =S2/SUM($S$2:$S$22) -> 0.2659468106 | U2: =SUM($T$2:T2) -> 0.2659468106 | V2: 2 | W2: =R2 -> 10.92881971
A3: (Valores de entrada nas células azuis) | R3: =R2+$U$1 -> 16.85763942 | S3: 250 | T3: =S3/SUM($S$2:$S$22) -> 0.049990002 | U3: =SUM($T$2:T3) -> 0.3159368126 | V3: 3 | W3: =R3 -> 16.85763942
R4: =R3+$U$1 -> 22.78645913 | S4: 306 | T4: 0.06118776245 | U4: =SUM($T$2:T4) -> 0.3771245751 | V4: 4 | W4: 22.78645913
R5: 28.71527885 | S5: 311 | T5: 0.06218756249 | U5: =SUM($T$2:T5) -> 0.4393121376 | V5: 5 | W5: 28.71527885
B6: Distrib cumulativa? | C6: TRUE | D6: Verdadeiro/Falso | F6: Resultados ($ milhões) | R6: 34.64409856 | S6: 310 | T6: 0.06198760248 | U6: =SUM($T$2:T6) -> 0.5012997401 | V6: 6 | W6: 34.64409856
F7: VPL médio | H7: =AVERAGE(BL26:BL5025) -> 31.86469986 | I7: =NORMDIST(H7,$H$7,$H$8,$C$6) -> 0.5 | R7: 40.57291827 | S7: 347 | T7: 0.06938612278 | U7: =SUM($T$2:T7) -> 0.5706858628 | V7: 7 | W7: 40.57291827
B8: Valor base - R$/ação | D8: =BL25 -> 34.46178383 | F8: Desv padrão do VPL | H8: =STDEV(BL26:BL5025) -> 35.20888101 | R8: 46.50173798 | S8: 339 | T8: 0.06778644271 | U8: =SUM($T$2:T8) -> 0.6384723055 | V8: 8 | W8: 46.50173798
B9: Cresc. das receitas | F9: VPL máximo | H9: =MAX(BL26:BL5025) -> 123.5763942 | R9: 52.43055769 | S9: 319 | T9: 0.06378724255 | U9: =SUM($T$2:T9) -> 0.7022595481 | V9: 9 | W9: 52.43055769
B10: Crescimento esperado (real) | D10: =(1+Analise_Fundamentalista!C4)/(1+Parametros_de_entrada!C34)-1 -> 0.1891160698 | F10: VPL mínimo | H10: 5 | R10: 58.3593774 | S10: 283 | T10: 0.05658868226 | U10: =SUM($T$2:T10) -> 0.7588482304 | V10: 10 | W10: 58.3593774
B11: Distribuição | D11: Lognormal | F11: "+ 1 x Desvio Padrao | H11: =H7+H8 -> 67.07358087 | I11: =NORMDIST(H11,$H$7,$H$8,$C$6) -> 0.8413447461 | R11: 64.28819711 | S11: 303 | T11: 0.06058788242 | U11: =SUM($T$2:T11) -> 0.8194361128 | V11: 11 | W11: 64.28819711
B12: Desvio -padrão | D12: 0.1 | F12: "- 1 x Desvio Padrao | H12: =H7-H8 -> -3.344181144 | I12: =NORMDIST(H12,$H$7,$H$8,$C$6) -> 0.1586552539 | R12: 70.21701683 | S12: 245 | T12: 0.04899020196 | U12: =SUM($T$2:T12) -> 0.8684263147 | V12: 12 | W12: 70.21701683
B13: Margem operacional (antes dos impostos) | F13: Prob Ação > Valor base da ação | H13: =1-NORMDIST(D8,$H$7,$H$8,TRUE) -> 0.4705998088 | R13: 76.14583654 | S13: 175 | T13: 0.0349930014 | U13: =SUM($T$2:T13) -> 0.9034193161 | V13: 13 | W13: 76.14583654
B14: Margem esperada | D14: =Analise_Fundamentalista!C5 -> 0.1499824995 | F14: ="VaR ("&G14&")" -> VaR (0,05) | G14: 0.05 | H14: =_xlfn.NORM.INV(G14,H7,H8) -> -26.04875576 | I14: D Normal | R14: 82.07465625 | S14: 138 | T14: 0.0275944811 | U14: =SUM($T$2:T14) -> 0.9310137972 | V14: 14 | W14: 82.07465625
B15: Distribuição | D15: Uniforme | F15: ="VaR ("&G15&")" -> VaR (0,05) | G15: =G14 -> 0.05 | H15: =(G15-INDEX(U1:V22,MATCH(G15,U1:U22,1),1))*(INDEX(R1:V22,MATCH(G15,U1:U22,1)+1,1)-INDEX(R1:V22,MATCH(G15,U1:U22,1),1))/(INDEX(U1:V22,MATCH(G15,U1:U22,1)+1,1)-INDEX(U1:V22,MATCH(G15,U1:U22,1),1))+INDEX(R1:V22,MATCH(G15,U1:U22,1),1) ->  | I15: Amostra | R15: 88.00347596 | S15: 138 | T15: 0.0275944811 | U15: =SUM($T$2:T15) -> 0.9586082783 | V15: 15 | W15: 88.00347596
B16: Mínimo | D16: =D14-10% -> 0.04998249954 | R16: 93.93229567 | S16: 84 | T16: 0.01679664067 | U16: =SUM($T$2:T16) -> 0.975404919 | V16: 16 | W16: 93.93229567
B17: Máximo | D17: =D14+10% -> 0.2499824995 | R17: 99.86111538 | S17: 57 | T17: 0.01139772046 | U17: =SUM($T$2:T17) -> 0.9868026395 | V17: 17 | W17: 99.86111538
B18: Investimento/receitas | R18: 105.7899351 | S18: 39 | T18: 0.007798440312 | U18: =SUM($T$2:T18) -> 0.9946010798 | V18: 18 | W18: 105.7899351
B19: Valor esperado | D19: =Analise_Fundamentalista!C13 -> 0.0712659361 | R19: 111.7187548 | S19: 19 | T19: 0.003799240152 | U19: =SUM($T$2:T19) -> 0.9984003199 | V19: 19 | W19: 111.7187548
B20: Distribuição | D20: Lognormal | R20: 117.6475745 | S20: 5 | T20: 0.00099980004 | U20: =SUM($T$2:T20) -> 0.99940012 | V20: 20 | W20: 117.6475745
B21: Desvio-padrão | D21: 0.07 | R21: 123.5763942 | S21: 3 | T21: 0.000599880024 | U21: =SUM($T$2:T21) -> 1 | V21: 21 | W21: 123.5763942
R22: 129.5052139 | S22: 0 | T22: 0 | U22: =SUM($T$2:T22) -> 1 | V22: 22 | W22: 129.5052139
B24: Rec 1 | C24: Nopat 1 | D24: Invest 1 | E24: Dep 1 | F24: ∆NCG 1 | G24: Rec 2 | H24: Nopat 2 | I24: Invest 2 | J24: Dep 2 | K24: ∆NCG 2 | L24: Rec 3 | M24: Nopat 3 | N24: Invest 3 | O24: Dep 3 | P24: ∆NCG 3 | Q24: Rec 4 | R24: Nopat 4 | S24: Invest 4 | T24: Dep 4 | U24: ∆NCG 4 | V24: Rec 5 | W24: Nopat 5 | X24: Invest 5 | Y24: Dep 5 | Z24: ∆NCG 5 | AA24: Rec 6 | AB24: Nopat 6 | AC24: Invest 6 | AD24: Dep 6 | AE24: ∆NCG 6 | AF24: Rec 7 | AG24: Nopat 7 | AH24: Invest 7 | AI24: Dep 7 | AJ24: ∆NCG 7 | AK24: Rec 8 | AL24: Nopat 8 | AM24: Invest 8 | AN24: Dep 8 | AO24: ∆NCG 8 | AP24: Rec 9 | AQ24: Nopat 9 | AR24: Invest 9 | AS24: Dep 9 | AT24: ∆NCG 9 | AU24: Rec 10 | AV24: Nopat 10 | AW24: Invest 10 | AX24: Dep 10 | AY24: ∆NCG 10 | AZ24: FC 1 | BA24: FC 2 | BB24: FC 3 | BC24: FC 4 | BD24: FC 5 | BE24: FC 6 | BF24: FC 7 | BG24: FC 8 | BH24: FC 9 | BI24: FC 10 | BJ24: Terminal | BK24: VPL FCL | BL24: Valor por ação | BM24: Prob
A25: Base | B25: =Demonstrativos!$B$45*(1+Monte_Carlo!$D$10) -> 2107645.211 | C25: =$D$14*(1-Analise_Fundamentalista!$C$6)*B25 -> 208632.5319 | D25: =-$D$19*B25 -> -150203.3089 | E25: =Analise_Fundamentalista!$C$12*Monte_Carlo!B25 -> 76506.83476 | F25: =-Analise_Fundamentalista!$C$14*Monte_Carlo!$B$25 -> -22526.70734 | G25: =B25*(1+Monte_Carlo!$D$10) -> 2506234.789 | H25: =$D$14*(1-Analise_Fundamentalista!$C$6)*G25 -> 248088.2964 | I25: =-$D$19*G25 -> -178609.1683 | J25: =Analise_Fundamentalista!$C$12*Monte_Carlo!G25 -> 90975.50667 | K25: =-Analise_Fundamentalista!$C$14*Monte_Carlo!G25 -> -26786.86969 | L25: =G25*(1+Monte_Carlo!$D$10) -> 2980204.062 | M25: =$D$14*(1-Analise_Fundamentalista!$C$6)*L25 -> 295005.7799 | N25: =-$D$19*L25 -> -212387.0323 | O25: =Analise_Fundamentalista!$C$12*Monte_Carlo!L25 -> 108180.4369 | P25: =-Analise_Fundamentalista!$C$14*Monte_Carlo!L25 -> -31852.69721 | Q25: =L25*(1+Monte_Carlo!$D$10) -> 3543808.542 | R25: =$D$14*(1-Analise_Fundamentalista!$C$6)*Q25 -> 350796.1136 | S25: =-$D$19*Q25 -> -252552.8331 | T25: =Analise_Fundamentalista!$C$12*Monte_Carlo!Q25 -> 128639.096 | U25: =-Analise_Fundamentalista!$C$14*Monte_Carlo!Q25 -> -37876.55412 | V25: =Q25*(1+Monte_Carlo!$D$10) -> 4213999.685 | W25: =$D$14*(1-Analise_Fundamentalista!$C$6)*V25 -> 417137.2959 | X25: =-$D$19*V25 -> -300314.6323 | Y25: =Analise_Fundamentalista!$C$12*Monte_Carlo!V25 -> 152966.8162 | Z25: =-Analise_Fundamentalista!$C$14*Monte_Carlo!V25 -> -45039.61917 | AA25: =V25*(1+Monte_Carlo!$D$10) -> 5010934.744 | AB25: =$D$14*(1-Analise_Fundamentalista!$C$6)*AA25 -> 496024.6618 | AC25: =-$D$19*AA25 -> -357108.9552 | AD25: =Analise_Fundamentalista!$C$12*Monte_Carlo!AA25 -> 181895.2993 | AE25: =-Analise_Fundamentalista!$C$14*Monte_Carlo!AA25 -> -53557.33493 | AF25: =AA25*(1+Monte_Carlo!$D$10) -> 5958583.028 | AG25: =$D$14*(1-Analise_Fundamentalista!$C$6)*AF25 -> 589830.8963 | AH25: =-$D$19*AF25 -> -424643.9973 | AI25: =Analise_Fundamentalista!$C$12*Monte_Carlo!AF25 -> 216294.6234 | AJ25: =-Analise_Fundamentalista!$C$14*Monte_Carlo!AF25 -> -63685.88762 | AK25: =AF25*(1+Monte_Carlo!$D$10) -> 7085446.832 | AL25: =$D$14*(1-Analise_Fundamentalista!$C$6)*AK25 -> 701377.3973 | AM25: =-$D$19*AK25 -> -504951.0012 | AN25: =Analise_Fundamentalista!$C$12*Monte_Carlo!AK25 -> 257199.4125 | AO25: =-Analise_Fundamentalista!$C$14*Monte_Carlo!AK25 -> -75729.91239 | AP25: =AK25*(1+Monte_Carlo!$D$10) -> 8425418.689 | AQ25: =$D$14*(1-Analise_Fundamentalista!$C$6)*AP25 -> 834019.1341 | AR25: =-$D$19*AP25 -> -600445.3499 | AS25: =Analise_Fundamentalista!$C$12*Monte_Carlo!AP25 -> 305839.9546 | AT25: =-Analise_Fundamentalista!$C$14*Monte_Carlo!AP25 -> -90051.65579 | AU25: =AP25*(1+Monte_Carlo!$D$10) -> 10018800.76 | AV25: =$D$14*(1-Analise_Fundamentalista!$C$6)*AU25 -> 991745.5548 | AW25: =-$D$19*AU25 -> -713999.2146 | AX25: =Analise_Fundamentalista!$C$12*Monte_Carlo!AU25 -> 363679.2048 | AY25: =-Analise_Fundamentalista!$C$14*Monte_Carlo!AU25 -> -107081.871 | AZ25: =SUM(C25:F25) -> 112409.3504 | BA25: =SUM(H25:K25) -> 133667.765 | BB25: =SUM(M25:P25) -> 158946.4874 | BC25: =SUM(R25:U25) -> 189005.8223 | BD25: =SUM(W25:Z25) -> 224749.8606 | BE25: =SUM(AB25:AE25) -> 267253.671 | BF25: =SUM(AG25:AJ25) -> 317795.6348 | BG25: =SUM(AL25:AO25) -> 377895.8963 | BH25: =SUM(AQ25:AT25) -> 449362.083 | BI25: =SUM(AV25:AY25) -> 534343.674 | BJ25: =BI25*(1+Analise_Fundamentalista!$C$10)/(Analise_Fundamentalista!$C$10) -> 7448306.304 | BK25: =NPV(Analise_Fundamentalista!$C$10,Monte_Carlo!AZ25:BI25)+Monte_Carlo!BJ25/(1+Analise_Fundamentalista!$C$10)^10 -> 5231623.401 | BL25: =(BK25+Analise_Fundamentalista!$C$15-Analise_Fundamentalista!$C$16-Analise_Fundamentalista!$C$17)/(Analise_Fundamentalista!$F$29+Analise_Fundamentalista!$F$30)*1000 -> 34.46178383 | BM25: =_xlfn.NORM.DIST(BL25,$H$7,$H$8,$C$6) -> 0.5294001912
A26: 1 | B26: =B$25*(1+LN(_xlfn.LOGNORM.INV(RAND(),$D$10,$D$12))) -> 2170499.155 | C26: =(RAND()*($D$17-$D$16)+$D$16)*(1-Analise_Fundamentalista!$C$6)*B26 -> 81691.76553 | D26: =-ABS((LN(_xlfn.LOGNORM.INV(RAND(),$D$19,$D$21)))*B26) -> -113380.0502 | E26: =Analise_Fundamentalista!$C$12*Monte_Carlo!B26 -> 78788.41247 | F26: =-Analise_Fundamentalista!$C$14*Monte_Carlo!B26 -> -23198.49612 | G26: =G$25*(1+LN(_xlfn.LOGNORM.INV(RAND(),$D$10,$D$12))) -> 3028295.354 | H26: =(RAND()*($D$17-$D$16)+$D$16)*(1-Analise_Fundamentalista!$C$6)*G26 -> 343223.0121 | I26: =-ABS((LN(_xlfn.LOGNORM.INV(RAND(),$D$19,$D$21)))*G26) -> -143011.6043 | J26: =Analise_Fundamentalista!$C$12*Monte_Carlo!G26 -> 109926.1352 | K26: =-Analise_Fundamentalista!$C$14*Monte_Carlo!G26 -> -32366.70139 | L26: =L$25*(1+LN(_xlfn.LOGNORM.INV(RAND(),$D$10,$D$12))) -> 3999479.341 | M26: =(RAND()*($D$17-$D$16)+$D$16)*(1-Analise_Fundamentalista!$C$6)*L26 -> 320238.8938 | N26: =-ABS((LN(_xlfn.LOGNORM.INV(RAND(),$D$19,$D$21)))*L26) -> -599240.0133 | O26: =Analise_Fundamentalista!$C$12*Monte_Carlo!L26 -> 145179.7976 | P26: =-Analise_Fundamentalista!$C$14*Monte_Carlo!L26 -> -42746.80585 | Q26: =Q$25*(1+LN(_xlfn.LOGNORM.INV(RAND(),$D$10,$D$12))) -> 4538741.801 | R26: =(RAND()*($D$17-$D$16)+$D$16)*(1-Analise_Fundamentalista!$C$6)*Q26 -> 429785.6962 | S26: =-ABS((LN(_xlfn.LOGNORM.INV(RAND(),$D$19,$D$21)))*Q26) -> -142577.1111 | T26: =Analise_Fundamentalista!$C$12*Monte_Carlo!Q26 -> 164754.8493 | U26: =-Analise_Fundamentalista!$C$14*Monte_Carlo!Q26 -> -48510.493 | V26: =V$25*(1+LN(_xlfn.LOGNORM.INV(RAND(),$D$10,$D$12))) -> 4810566.46 | W26: =(RAND()*($D$17-$D$16)+$D$16)*(1-Analise_Fundamentalista!$C$6)*V26 -> 433091.9166 | X26: =-ABS((LN(_xlfn.LOGNORM.INV(RAND(),$D$19,$D$21)))*V26) -> -217134.4466 | Y26: =Analise_Fundamentalista!$C$12*Monte_Carlo!V26 -> 174621.9959 | Z26: =-Analise_Fundamentalista!$C$14*Monte_Carlo!V26 -> -51415.78015 | AA26: =AA$25*(1+LN(_xlfn.LOGNORM.INV(RAND(),$D$10,$D$12))) -> 5849414.702 | AB26: =(RAND()*($D$17-$D$16)+$D$16)*(1-Analise_Fundamentalista!$C$6)*AA26 -> 337091.2408 | AC26: =-ABS((LN(_xlfn.LOGNORM.INV(RAND(),$D$19,$D$21)))*AA26) -> -549748.1559 | AD26: =Analise_Fundamentalista!$C$12*Monte_Carlo!AA26 -> 212331.8488 | AE26: =-Analise_Fundamentalista!$C$14*Monte_Carlo!AA26 -> -62519.08644 | AF26: =AF$25*(1+LN(_xlfn.LOGNORM.INV(RAND(),$D$10,$D$12))) -> 7445896.593 | AG26: =(RAND()*($D$17-$D$16)+$D$16)*(1-Analise_Fundamentalista!$C$6)*AF26 -> 845863.2261 | AH26: =-ABS((LN(_xlfn.LOGNORM.INV(RAND(),$D$19,$D$21)))*AF26) -> -93506.69892 | AI26: =Analise_Fundamentalista!$C$12*Monte_Carlo!AF26 -> 270283.6215 | AJ26: =-Analise_Fundamentalista!$C$14*Monte_Carlo!AF26 -> -79582.43284 | AK26: =AK$25*(1+LN(_xlfn.LOGNORM.INV(RAND(),$D$10,$D$12))) -> 8696581.522 | AL26: =(RAND()*($D$17-$D$16)+$D$16)*(1-Analise_Fundamentalista!$C$6)*AK26 -> 1140458.074 | AM26: =-ABS((LN(_xlfn.LOGNORM.INV(RAND(),$D$19,$D$21)))*AK26) -> -865935.4715 | AN26: =Analise_Fundamentalista!$C$12*Monte_Carlo!AK26 -> 315683.0771 | AO26: =-Analise_Fundamentalista!$C$14*Monte_Carlo!AK26 -> -92949.86928 | AP26: =AP$25*(1+LN(_xlfn.LOGNORM.INV(RAND(),$D$10,$D$12))) -> 9573369.834 | AQ26: =(RAND()*($D$17-$D$16)+$D$16)*(1-Analise_Fundamentalista!$C$6)*AP26 -> 674860.6701 | AR26: =-ABS((LN(_xlfn.LOGNORM.INV(RAND(),$D$19,$D$21)))*AP26) -> -600771.7684 | AS26: =Analise_Fundamentalista!$C$12*Monte_Carlo!AP26 -> 347510.2073 | AT26: =-Analise_Fundamentalista!$C$14*Monte_Carlo!AP26 -> -102321.064 | AU26: =AU$25*(1+LN(_xlfn.LOGNORM.INV(RAND(),$D$10,$D$12))) -> 10064385.97 | AV26: =(RAND()*($D$17-$D$16)+$D$16)*(1-Analise_Fundamentalista!$C$6)*AU26 -> 698945.4508 | AW26: =-ABS((LN(_xlfn.LOGNORM.INV(RAND(),$D$19,$D$21)))*AU26) -> -2548749.742 | AX26: =Analise_Fundamentalista!$C$12*Monte_Carlo!AU26 -> 365333.933 | AY26: =-Analise_Fundamentalista!$C$14*Monte_Carlo!AU26 -> -107569.0899 | AZ26: =SUM(C26:F26) -> 23901.63171 | BA26: =SUM(H26:K26) -> 277770.8416 | BB26: =SUM(M26:P26) -> -176568.1278 | BC26: =SUM(R26:U26) -> 403452.9414 | BD26: =SUM(W26:Z26) -> 339163.6858 | BE26: =SUM(AB26:AE26) -> -62844.15279 | BF26: =SUM(AG26:AJ26) -> 943057.7159 | BG26: =SUM(AL26:AO26) -> 497255.8104 | BH26: =SUM(AQ26:AT26) -> 319278.0451 | BI26: =SUM(AV26:AY26) -> -1592039.448 | BJ26: =BI26*(1+Analise_Fundamentalista!$C$10)/(Analise_Fundamentalista!$C$10) -> -22191705.51 | BK26: =NPV(Analise_Fundamentalista!$C$10,Monte_Carlo!AZ26:BI26)+Monte_Carlo!BJ26/(1+Analise_Fundamentalista!$C$10)^10 -> -9686368.881 | BL26: =(BK26+Analise_Fundamentalista!$C$15-Analise_Fundamentalista!$C$16-Analise_Fundamentalista!$C$17)/(Analise_Fundamentalista!$F$29+Analise_Fundamentalista!$F$30)*1000 -> -57.18671213 | BM26: 0.00571562953
A27: 2 | B27: =B$25*(1+LN(_xlfn.LOGNORM.INV(RAND(),$D$10,$D$12))) -> 2481056.751 | C27: =(RAND()*($D$17-$D$16)+$D$16)*(1-Analise_Fundamentalista!$C$6)*B27 -> 247685.929 | D27: =-ABS((LN(_xlfn.LOGNORM.INV(RAND(),$D$19,$D$21)))*B27) -> -319632.4106 | E27: =Analise_Fundamentalista!$C$12*Monte_Carlo!B27 -> 90061.55209 | F27: =-Analise_Fundamentalista!$C$14*Monte_Carlo!B27 -> -26517.76449 | G27: 2637734.226 | H27: =(RAND()*($D$17-$D$16)+$D$16)*(1-Analise_Fundamentalista!$C$6)*G27 -> 225590.8491 | I27: =-ABS((LN(_xlfn.LOGNORM.INV(RAND(),$D$19,$D$21)))*G27) -> -334154.1885 | J27: =Analise_Fundamentalista!$C$12*Monte_Carlo!G27 -> 95748.89339 | K27: =-Analise_Fundamentalista!$C$14*Monte_Carlo!G27 -> -28192.34786 | L27: 3651237.777 | M27: =(RAND()*($D$17-$D$16)+$D$16)*(1-Analise_Fundamentalista!$C$6)*L27 -> 490371.8308 | N27: =-ABS((LN(_xlfn.LOGNORM.INV(RAND(),$D$19,$D$21)))*L27) -> -458643.1404 | O27: =Analise_Fundamentalista!$C$12*Monte_Carlo!L27 -> 132538.7423 | P27: =-Analise_Fundamentalista!$C$14*Monte_Carlo!L27 -> -39024.76775 | Q27: 4574121.426 | R27: =(RAND()*($D$17-$D$16)+$D$16)*(1-Analise_Fundamentalista!$C$6)*Q27 -> 593859.2135 | S27: =-ABS((LN(_xlfn.LOGNORM.INV(RAND(),$D$19,$D$21)))*Q27) -> -110040.442 | T27: =Analise_Fundamentalista!$C$12*Monte_Carlo!Q27 -> 166039.1182 | U27: =-Analise_Fundamentalista!$C$14*Monte_Carlo!Q27 -> -48888.63372 | V27: 5226387.943 | W27: =(RAND()*($D$17-$D$16)+$D$16)*(1-Analise_Fundamentalista!$C$6)*V27 -> 520694.3383 | X27: =-ABS((LN(_xlfn.LOGNORM.INV(RAND(),$D$19,$D$21)))*V27) -> -395001.8549 | Y27: =Analise_Fundamentalista!$C$12*Monte_Carlo!V27 -> 189716.1803 | Z27: =-Analise_Fundamentalista!$C$14*Monte_Carlo!V27 -> -55860.1187 | AA27: 6157867.371 | AB27: =(RAND()*($D$17-$D$16)+$D$16)*(1-Analise_Fundamentalista!$C$6)*AA27 -> 442148.2497 | AC27: =-ABS((LN(_xlfn.LOGNORM.INV(RAND(),$D$19,$D$21)))*AA27) -> -78209.50649 | AD27: =Analise_Fundamentalista!$C$12*Monte_Carlo!AA27 -> 223528.5802 | AE27: =-Analise_Fundamentalista!$C$14*Monte_Carlo!AA27 -> -65815.85715 | AF27: 7689236.489 | AG27: =(RAND()*($D$17-$D$16)+$D$16)*(1-Analise_Fundamentalista!$C$6)*AF27 -> 354807.9057 | AH27: =-ABS((LN(_xlfn.LOGNORM.INV(RAND(),$D$19,$D$21)))*AF27) -> -916037.2218 | AI27: =Analise_Fundamentalista!$C$12*Monte_Carlo!AF27 -> 279116.7805 | AJ27: =-Analise_Fundamentalista!$C$14*Monte_Carlo!AF27 -> -82183.2722 | AK27: 7407760.763 | AL27: =(RAND()*($D$17-$D$16)+$D$16)*(1-Analise_Fundamentalista!$C$6)*AK27 -> 977353.951 | AM27: =-ABS((LN(_xlfn.LOGNORM.INV(RAND(),$D$19,$D$21)))*AK27) -> -890396.8846 | AN27: =Analise_Fundamentalista!$C$12*Monte_Carlo!AK27 -> 268899.3033 | AO27: =-Analise_Fundamentalista!$C$14*Monte_Carlo!AK27 -> -79174.83355 | AP27: 11267273.41 | AQ27: =(RAND()*($D$17-$D$16)+$D$16)*(1-Analise_Fundamentalista!$C$6)*AP27 -> 425526.3504 | AR27: =-ABS((LN(_xlfn.LOGNORM.INV(RAND(),$D$19,$D$21)))*AP27) -> -1812145.246 | AS27: =Analise_Fundamentalista!$C$12*Monte_Carlo!AP27 -> 408998.3556 | AT27: =-Analise_Fundamentalista!$C$14*Monte_Carlo!AP27 -> -120425.6625 | AU27: 11877928.18 | AV27: =(RAND()*($D$17-$D$16)+$D$16)*(1-Analise_Fundamentalista!$C$6)*AU27 -> 1151169.08 | AW27: =-ABS((LN(_xlfn.LOGNORM.INV(RAND(),$D$19,$D$21)))*AU27) -> -1756197.416 | AX27: =Analise_Fundamentalista!$C$12*Monte_Carlo!AU27 -> 431164.9247 | AY27: =-Analise_Fundamentalista!$C$14*Monte_Carlo!AU27 -> -126952.3972 | AZ27: =SUM(C27:F27) -> -8402.693935 | BA27: =SUM(H27:K27) -> -41006.79384 | BB27: =SUM(M27:P27) -> 125242.6649 | BC27: =SUM(R27:U27) -> 600969.2559 | BD27: =SUM(W27:Z27) -> 259548.545 | BE27: =SUM(AB27:AE27) -> 521651.4663 | BF27: =SUM(AG27:AJ27) -> -364295.8078 | BG27: =SUM(AL27:AO27) -> 276681.536 | BH27: =SUM(AQ27:AT27) -> -1098046.202 | BI27: =SUM(AV27:AY27) -> -300815.8088 | BJ27: =BI27*(1+Analise_Fundamentalista!$C$10)/(Analise_Fundamentalista!$C$10) -> -4193122.131 | BK27: =NPV(Analise_Fundamentalista!$C$10,Monte_Carlo!AZ27:BI27)+Monte_Carlo!BJ27/(1+Analise_Fundamentalista!$C$10)^10 -> -1744473.792 | BL27: =(BK27+Analise_Fundamentalista!$C$15-Analise_Fundamentalista!$C$16-Analise_Fundamentalista!$C$17)/(Analise_Fundamentalista!$F$29+Analise_Fundamentalista!$F$30)*1000 -> -8.395780606 | BM27: =_xlfn.NORM.DIST(BL27,$H$7,$H$8,$C$6) -> 0.1264206834
A28: 3 | B28: =B$25*(1+LN(_xlfn.LOGNORM.INV(RAND(),$D$10,$D$12))) -> 2140692.897 | C28: =(RAND()*($D$17-$D$16)+$D$16)*(1-Analise_Fundamentalista!$C$6)*B28 -> 243052.1876 | D28: -41201.69608 | E28: =Analise_Fundamentalista!$C$12*Monte_Carlo!B28 -> 77706.45501 | F28: =-Analise_Fundamentalista!$C$14*Monte_Carlo!B28 -> -22879.92407 | G28: 2877041.881 | H28: =(RAND()*($D$17-$D$16)+$D$16)*(1-Analise_Fundamentalista!$C$6)*G28 -> 183461.9288 | I28: =-ABS((LN(_xlfn.LOGNORM.INV(RAND(),$D$19,$D$21)))*G28) -> -92387.7131 | J28: =Analise_Fundamentalista!$C$12*Monte_Carlo!G28 -> 104435.6834 | K28: =-Analise_Fundamentalista!$C$14*Monte_Carlo!G28 -> -30750.09026 | L28: 3607238.073 | M28: =(RAND()*($D$17-$D$16)+$D$16)*(1-Analise_Fundamentalista!$C$6)*L28 -> 241665.2546 | N28: -342595.379 | O28: =Analise_Fundamentalista!$C$12*Monte_Carlo!L28 -> 130941.5673 | P28: =-Analise_Fundamentalista!$C$14*Monte_Carlo!L28 -> -38554.49483 | Q28: 3955742.978 | R28: =(RAND()*($D$17-$D$16)+$D$16)*(1-Analise_Fundamentalista!$C$6)*Q28 -> 212927.1137 | S28: -161260.2397 | T28: =Analise_Fundamentalista!$C$12*Monte_Carlo!Q28 -> 143592.1819 | U28: =-Analise_Fundamentalista!$C$14*Monte_Carlo!Q28 -> -42279.34755 | V28: 5049780.469 | W28: =(RAND()*($D$17-$D$16)+$D$16)*(1-Analise_Fundamentalista!$C$6)*V28 -> 733817.8975 | X28: -192358.5971 | Y28: =Analise_Fundamentalista!$C$12*Monte_Carlo!V28 -> 183305.3865 | Z28: =-Analise_Fundamentalista!$C$14*Monte_Carlo!V28 -> -53972.52164 | AA28: 5859382.017 | AB28: =(RAND()*($D$17-$D$16)+$D$16)*(1-Analise_Fundamentalista!$C$6)*AA28 -> 622869.1283 | AC28: -1137127.097 | AD28: =Analise_Fundamentalista!$C$12*Monte_Carlo!AA28 -> 212693.659 | AE28: =-Analise_Fundamentalista!$C$14*Monte_Carlo!AA28 -> -62625.61802 | AF28: 6948027.958 | AG28: =(RAND()*($D$17-$D$16)+$D$16)*(1-Analise_Fundamentalista!$C$6)*AF28 -> 604570.263 | AH28: -713352.6556 | AI28: =Analise_Fundamentalista!$C$12*Monte_Carlo!AF28 -> 252211.1522 | AJ28: =-Analise_Fundamentalista!$C$14*Monte_Carlo!AF28 -> -74261.16673 | AK28: 8246611.761 | AL28: =(RAND()*($D$17-$D$16)+$D$16)*(1-Analise_Fundamentalista!$C$6)*AK28 -> 827354.0616 | AM28: -1092941.762 | AN28: =Analise_Fundamentalista!$C$12*Monte_Carlo!AK28 -> 299349.3213 | AO28: =-Analise_Fundamentalista!$C$14*Monte_Carlo!AK28 -> -88140.55076 | AP28: 10486915.16 | AQ28: =(RAND()*($D$17-$D$16)+$D$16)*(1-Analise_Fundamentalista!$C$6)*AP28 -> 1244564.605 | AR28: -613522.8238 | AS28: =Analise_Fundamentalista!$C$12*Monte_Carlo!AP28 -> 380671.6052 | AT28: =-Analise_Fundamentalista!$C$14*Monte_Carlo!AP28 -> -112085.1211 | AU28: 10967009.2 | AV28: =(RAND()*($D$17-$D$16)+$D$16)*(1-Analise_Fundamentalista!$C$6)*AU28 -> 1732196.9 | AW28: -1686469.002 | AX28: =Analise_Fundamentalista!$C$12*Monte_Carlo!AU28 -> 398098.8623 | AY28: =-Analise_Fundamentalista!$C$14*Monte_Carlo!AU28 -> -117216.4107 | AZ28: 256677.0224 | BA28: 164759.8088 | BB28: -8543.051928 | BC28: 152979.7084 | BD28: 670792.1653 | BE28: -364189.9273 | BF28: 69167.59283 | BG28: -54378.92942 | BH28: 899628.2653 | BI28: 326610.3501 | BJ28: =BI28*(1+Analise_Fundamentalista!$C$10)/(Analise_Fundamentalista!$C$10) -> 4552676.578 | BK28: =NPV(Analise_Fundamentalista!$C$10,Monte_Carlo!AZ28:BI28)+Monte_Carlo!BJ28/(1+Analise_Fundamentalista!$C$10)^10 -> 3505416.911 | BL28: =(BK28+Analise_Fundamentalista!$C$15-Analise_Fundamentalista!$C$16-Analise_Fundamentalista!$C$17)/(Analise_Fundamentalista!$F$29+Analise_Fundamentalista!$F$30)*1000 -> 23.8568562 | BM28: 0.4100415191
A29: 4 | B29: 2169017.218 | C29: =(RAND()*($D$17-$D$16)+$D$16)*(1-Analise_Fundamentalista!$C$6)*B29 -> 96894.15577 | D29: =-ABS((LN(_xlfn.LOGNORM.INV(RAND(),$D$19,$D$21)))*B29) -> -121063.2801 | E29: =Analise_Fundamentalista!$C$12*Monte_Carlo!B29 -> 78734.61867 | F29: =-Analise_Fundamentalista!$C$14*Monte_Carlo!B29 -> -23182.65705 | G29: =G$25*(1+LN(_xlfn.LOGNORM.INV(RAND(),$D$10,$D$12))) -> 2708902.746 | H29: =(RAND()*($D$17-$D$16)+$D$16)*(1-Analise_Fundamentalista!$C$6)*G29 -> 420639.4028 | I29: -12352.34977 | J29: =Analise_Fundamentalista!$C$12*Monte_Carlo!G29 -> 98332.28751 | K29: =-Analise_Fundamentalista!$C$14*Monte_Carlo!G29 -> -28953.0036 | L29: 3282948.959 | M29: =(RAND()*($D$17-$D$16)+$D$16)*(1-Analise_Fundamentalista!$C$6)*L29 -> 469768.4721 | N29: -164140.7563 | O29: =Analise_Fundamentalista!$C$12*Monte_Carlo!L29 -> 119169.9781 | P29: =-Analise_Fundamentalista!$C$14*Monte_Carlo!L29 -> -35088.46273 | Q29: 4978744.726 | R29: =(RAND()*($D$17-$D$16)+$D$16)*(1-Analise_Fundamentalista!$C$6)*Q29 -> 600912.2491 | S29: -121130.3653 | T29: =Analise_Fundamentalista!$C$12*Monte_Carlo!Q29 -> 180726.8122 | U29: =-Analise_Fundamentalista!$C$14*Monte_Carlo!Q29 -> -53213.28505 | V29: 5740940.323 | W29: =(RAND()*($D$17-$D$16)+$D$16)*(1-Analise_Fundamentalista!$C$6)*V29 -> 828770.0333 | X29: -426344.5986 | Y29: =Analise_Fundamentalista!$C$12*Monte_Carlo!V29 -> 208394.2641 | Z29: =-Analise_Fundamentalista!$C$14*Monte_Carlo!V29 -> -61359.70222 | AA29: 6134354.266 | AB29: =(RAND()*($D$17-$D$16)+$D$16)*(1-Analise_Fundamentalista!$C$6)*AA29 -> 890713.6557 | AC29: -1038325.193 | AD29: =Analise_Fundamentalista!$C$12*Monte_Carlo!AA29 -> 222675.0621 | AE29: =-Analise_Fundamentalista!$C$14*Monte_Carlo!AA29 -> -65564.54691 | AF29: 7509708.816 | AG29: =(RAND()*($D$17-$D$16)+$D$16)*(1-Analise_Fundamentalista!$C$6)*AF29 -> 1015350.406 | AH29: -826892.5143 | AI29: =Analise_Fundamentalista!$C$12*Monte_Carlo!AF29 -> 272599.9844 | AJ29: =-Analise_Fundamentalista!$C$14*Monte_Carlo!AF29 -> -80264.4638 | AK29: 8589583.901 | AL29: =(RAND()*($D$17-$D$16)+$D$16)*(1-Analise_Fundamentalista!$C$6)*AK29 -> 1131059.916 | AM29: -1000094.038 | AN29: =Analise_Fundamentalista!$C$12*Monte_Carlo!AK29 -> 311799.0983 | AO29: =-Analise_Fundamentalista!$C$14*Monte_Carlo!AK29 -> -91806.26878 | AP29: 10652381.83 | AQ29: =(RAND()*($D$17-$D$16)+$D$16)*(1-Analise_Fundamentalista!$C$6)*AP29 -> 914024.8982 | AR29: -683808.4057 | AS29: =Analise_Fundamentalista!$C$12*Monte_Carlo!AP29 -> 386677.9914 | AT29: =-Analise_Fundamentalista!$C$14*Monte_Carlo!AP29 -> -113853.6442 | AU29: 14551595.93 | AV29: =(RAND()*($D$17-$D$16)+$D$16)*(1-Analise_Fundamentalista!$C$6)*AU29 -> 1741982.956 | AW29: -1128999.423 | AX29: =Analise_Fundamentalista!$C$12*Monte_Carlo!AU29 -> 528218.1933 | AY29: =-Analise_Fundamentalista!$C$14*Monte_Carlo!AU29 -> -155528.8059 | AZ29: 31382.83728 | BA29: 477666.3369 | BB29: 389709.2312 | BC29: 607295.411 | BD29: 549459.9966 | BE29: 9498.977873 | BF29: 380793.4122 | BG29: 350958.7071 | BH29: 503040.8397 | BI29: 985672.9212 | BJ29: =BI29*(1+Analise_Fundamentalista!$C$10)/(Analise_Fundamentalista!$C$10) -> 13739460.56 | BK29: =NPV(Analise_Fundamentalista!$C$10,Monte_Carlo!AZ29:BI29)+Monte_Carlo!BJ29/(1+Analise_Fundamentalista!$C$10)^10 -> 9259574.932 | BL29: =(BK29+Analise_Fundamentalista!$C$15-Analise_Fundamentalista!$C$16-Analise_Fundamentalista!$C$17)/(Analise_Fundamentalista!$F$29+Analise_Fundamentalista!$F$30)*1000 -> 59.20745286 | BM29: 0.7812987105
A30: 5 | B30: 2447104.98 | C30: =(RAND()*($D$17-$D$16)+$D$16)*(1-Analise_Fundamentalista!$C$6)*B30 -> 382898.871 | D30: -96850.35564 | E30: =Analise_Fundamentalista!$C$12*Monte_Carlo!B30 -> 88829.11385 | F30: =-Analise_Fundamentalista!$C$14*Monte_Carlo!B30 -> -26154.88482 | G30: 2929015.821 | H30: =(RAND()*($D$17-$D$16)+$D$16)*(1-Analise_Fundamentalista!$C$6)*G30 -> 165323.3152 | I30: -196744.9352 | J30: =Analise_Fundamentalista!$C$12*Monte_Carlo!G30 -> 106322.3204 | K30: =-Analise_Fundamentalista!$C$14*Monte_Carlo!G30 -> -31305.59254 | L30: 3580033.855 | M30: =(RAND()*($D$17-$D$16)+$D$16)*(1-Analise_Fundamentalista!$C$6)*L30 -> 272848.9812 | N30: -69265.16701 | O30: =Analise_Fundamentalista!$C$12*Monte_Carlo!L30 -> 129954.0631 | P30: =-Analise_Fundamentalista!$C$14*Monte_Carlo!L30 -> -38263.73363 | Q30: 4891048.169 | R30: =(RAND()*($D$17-$D$16)+$D$16)*(1-Analise_Fundamentalista!$C$6)*Q30 -> 757581.2902 | S30: -175483.3817 | T30: =Analise_Fundamentalista!$C$12*Monte_Carlo!Q30 -> 177543.4557 | U30: =-Analise_Fundamentalista!$C$14*Monte_Carlo!Q30 -> -52275.97612 | V30: 5045478.589 | W30: =(RAND()*($D$17-$D$16)+$D$16)*(1-Analise_Fundamentalista!$C$6)*V30 -> 658208.937 | X30: -675885.4168 | Y30: =Analise_Fundamentalista!$C$12*Monte_Carlo!V30 -> 183149.2297 | Z30: =-Analise_Fundamentalista!$C$14*Monte_Carlo!V30 -> -53926.54276 | AA30: 5988134.276 | AB30: =(RAND()*($D$17-$D$16)+$D$16)*(1-Analise_Fundamentalista!$C$6)*AA30 -> 747671.9877 | AC30: -73941.56144 | AD30: =Analise_Fundamentalista!$C$12*Monte_Carlo!AA30 -> 217367.3241 | AE30: =-Analise_Fundamentalista!$C$14*Monte_Carlo!AA30 -> -64001.7341 | AF30: 5738956.793 | AG30: =(RAND()*($D$17-$D$16)+$D$16)*(1-Analise_Fundamentalista!$C$6)*AF30 -> 627043.3465 | AH30: -291510.7728 | AI30: =Analise_Fundamentalista!$C$12*Monte_Carlo!AF30 -> 208322.2626 | AJ30: =-Analise_Fundamentalista!$C$14*Monte_Carlo!AF30 -> -61338.50207 | AK30: 9173019.356 | AL30: =(RAND()*($D$17-$D$16)+$D$16)*(1-Analise_Fundamentalista!$C$6)*AK30 -> 997412.5982 | AM30: -1456501.191 | AN30: =Analise_Fundamentalista!$C$12*Monte_Carlo!AK30 -> 332977.6153 | AO30: =-Analise_Fundamentalista!$C$14*Monte_Carlo!AK30 -> -98042.081 | AP30: 9070483.323 | AQ30: =(RAND()*($D$17-$D$16)+$D$16)*(1-Analise_Fundamentalista!$C$6)*AP30 -> 1161917.691 | AR30: -537907.1052 | AS30: =Analise_Fundamentalista!$C$12*Monte_Carlo!AP30 -> 329255.5907 | AT30: =-Analise_Fundamentalista!$C$14*Monte_Carlo!AP30 -> -96946.16637 | AU30: 10634440.22 | AV30: =(RAND()*($D$17-$D$16)+$D$16)*(1-Analise_Fundamentalista!$C$6)*AU30 -> 1512445.895 | AW30: -667799.3087 | AX30: =Analise_Fundamentalista!$C$12*Monte_Carlo!AU30 -> 386026.7168 | AY30: =-Analise_Fundamentalista!$C$14*Monte_Carlo!AU30 -> -113661.8826 | AZ30: 348722.7444 | BA30: 43595.10792 | BB30: 295274.1436 | BC30: 707365.3881 | BD30: 111546.2071 | BE30: 827096.0162 | BF30: 482516.3342 | BG30: -224153.0585 | BH30: 856320.0104 | BI30: 1117011.42 | BJ30: =BI30*(1+Analise_Fundamentalista!$C$10)/(Analise_Fundamentalista!$C$10) -> 15570209.97 | BK30: =NPV(Analise_Fundamentalista!$C$10,Monte_Carlo!AZ30:BI30)+Monte_Carlo!BJ30/(1+Analise_Fundamentalista!$C$10)^10 -> 10256288.91 | BL30: =(BK30+Analise_Fundamentalista!$C$15-Analise_Fundamentalista!$C$16-Analise_Fundamentalista!$C$17)/(Analise_Fundamentalista!$F$29+Analise_Fundamentalista!$F$30)*1000 -> 65.33075251 | BM30: 0.8290709542
A31: 6 | B31: 2250196.397 | C31: =(RAND()*($D$17-$D$16)+$D$16)*(1-Analise_Fundamentalista!$C$6)*B31 -> 326669.5652 | D31: -305449.5937 | E31: =Analise_Fundamentalista!$C$12*Monte_Carlo!B31 -> 81681.39642 | F31: =-Analise_Fundamentalista!$C$14*Monte_Carlo!B31 -> -24050.30763 | G31: 3181425.856 | H31: =(RAND()*($D$17-$D$16)+$D$16)*(1-Analise_Fundamentalista!$C$6)*G31 -> 497074.8906 | I31: -293581.8541 | J31: =Analise_Fundamentalista!$C$12*Monte_Carlo!G31 -> 115484.7225 | K31: =-Analise_Fundamentalista!$C$14*Monte_Carlo!G31 -> -34003.37439 | L31: 3848106.936 | M31: =(RAND()*($D$17-$D$16)+$D$16)*(1-Analise_Fundamentalista!$C$6)*L31 -> 231723.7597 | N31: -41474.51144 | O31: =Analise_Fundamentalista!$C$12*Monte_Carlo!L31 -> 139685.0286 | P31: =-Analise_Fundamentalista!$C$14*Monte_Carlo!L31 -> -41128.92356 | Q31: 4241866.816 | R31: =(RAND()*($D$17-$D$16)+$D$16)*(1-Analise_Fundamentalista!$C$6)*Q31 -> 227435.8024 | S31: -253483.2897 | T31: =Analise_Fundamentalista!$C$12*Monte_Carlo!Q31 -> 153978.384 | U31: =-Analise_Fundamentalista!$C$14*Monte_Carlo!Q31 -> -45337.46565 | V31: 5253443.352 | W31: =(RAND()*($D$17-$D$16)+$D$16)*(1-Analise_Fundamentalista!$C$6)*V31 -> 814379.1741 | X31: -22790.95695 | Y31: =Analise_Fundamentalista!$C$12*Monte_Carlo!V31 -> 190698.2828 | Z31: =-Analise_Fundamentalista!$C$14*Monte_Carlo!V31 -> -56149.28941 | AA31: 6027171.281 | AB31: =(RAND()*($D$17-$D$16)+$D$16)*(1-Analise_Fundamentalista!$C$6)*AA31 -> 753795.1326 | AC31: -1303053.664 | AD31: =Analise_Fundamentalista!$C$12*Monte_Carlo!AA31 -> 218784.3547 | AE31: =-Analise_Fundamentalista!$C$14*Monte_Carlo!AA31 -> -64418.96522 | AF31: 7290830.906 | AG31: =(RAND()*($D$17-$D$16)+$D$16)*(1-Analise_Fundamentalista!$C$6)*AF31 -> 1026459.84 | AH31: -873054.6999 | AI31: =Analise_Fundamentalista!$C$12*Monte_Carlo!AF31 -> 264654.7876 | AJ31: =-Analise_Fundamentalista!$C$14*Monte_Carlo!AF31 -> -77925.07641 | AK31: 8793560.165 | AL31: =(RAND()*($D$17-$D$16)+$D$16)*(1-Analise_Fundamentalista!$C$6)*AK31 -> 963703.2873 | AM31: -379321.4411 | AN31: =Analise_Fundamentalista!$C$12*Monte_Carlo!AK31 -> 319203.3703 | AO31: =-Analise_Fundamentalista!$C$14*Monte_Carlo!AK31 -> -93986.386 | AP31: 9083783.537 | AQ31: =(RAND()*($D$17-$D$16)+$D$16)*(1-Analise_Fundamentalista!$C$6)*AP31 -> 803049.1133 | AR31: -346822.4673 | AS31: =Analise_Fundamentalista!$C$12*Monte_Carlo!AP31 -> 329738.3842 | AT31: =-Analise_Fundamentalista!$C$14*Monte_Carlo!AP31 -> -97088.32029 | AU31: 11022512.59 | AV31: =(RAND()*($D$17-$D$16)+$D$16)*(1-Analise_Fundamentalista!$C$6)*AU31 -> 657785.3884 | AW31: -702152.4806 | AX31: =Analise_Fundamentalista!$C$12*Monte_Carlo!AU31 -> 400113.6174 | AY31: =-Analise_Fundamentalista!$C$14*Monte_Carlo!AU31 -> -117809.6361 | AZ31: 78851.06028 | BA31: 284974.3846 | BB31: 288805.3533 | BC31: 82593.43112 | BD31: 926137.2106 | BE31: -394893.1421 | BF31: 340134.8508 | BG31: 809598.8305 | BH31: 688876.71 | BI31: 237936.8891 | BJ31: =BI31*(1+Analise_Fundamentalista!$C$10)/(Analise_Fundamentalista!$C$10) -> 3316642.298 | BK31: =NPV(Analise_Fundamentalista!$C$10,Monte_Carlo!AZ31:BI31)+Monte_Carlo!BJ31/(1+Analise_Fundamentalista!$C$10)^10 -> 3685960.691 | BL31: =(BK31+Analise_Fundamentalista!$C$15-Analise_Fundamentalista!$C$16-Analise_Fundamentalista!$C$17)/(Analise_Fundamentalista!$F$29+Analise_Fundamentalista!$F$30)*1000 -> 24.96602462 | BM31: 0.4223302638
A32: 7 | B32: 2111862.307 | C32: =(RAND()*($D$17-$D$16)+$D$16)*(1-Analise_Fundamentalista!$C$6)*B32 -> 79318.15683 | D32: -160890.779 | E32: =Analise_Fundamentalista!$C$12*Monte_Carlo!B32 -> 76659.91398 | F32: =-Analise_Fundamentalista!$C$14*Monte_Carlo!B32 -> -22571.78005 | G32: 3074735.743 | H32: =(RAND()*($D$17-$D$16)+$D$16)*(1-Analise_Fundamentalista!$C$6)*G32 -> 235544.3307 | I32: -324566.9387 | J32: =Analise_Fundamentalista!$C$12*Monte_Carlo!G32 -> 111611.9061 | K32: =-Analise_Fundamentalista!$C$14*Monte_Carlo!G32 -> -32863.06057 | L32: 3552705.541 | M32: =(RAND()*($D$17-$D$16)+$D$16)*(1-Analise_Fundamentalista!$C$6)*L32 -> 265094.8912 | N32: -114867.3318 | O32: =Analise_Fundamentalista!$C$12*Monte_Carlo!L32 -> 128962.0542 | P32: =-Analise_Fundamentalista!$C$14*Monte_Carlo!L32 -> -37971.64608 | Q32: 4388187.592 | R32: =(RAND()*($D$17-$D$16)+$D$16)*(1-Analise_Fundamentalista!$C$6)*Q32 -> 651200.7554 | S32: -586560.6634 | T32: =Analise_Fundamentalista!$C$12*Monte_Carlo!Q32 -> 159289.7805 | U32: =-Analise_Fundamentalista!$C$14*Monte_Carlo!Q32 -> -46901.35566 | V32: 4722871.019 | W32: =(RAND()*($D$17-$D$16)+$D$16)*(1-Analise_Fundamentalista!$C$6)*V32 -> 393991.8333 | X32: -268085.2566 | Y32: =Analise_Fundamentalista!$C$12*Monte_Carlo!V32 -> 171438.68 | Z32: =-Analise_Fundamentalista!$C$14*Monte_Carlo!V32 -> -50478.48315 | AA32: 6519779.023 | AB32: =(RAND()*($D$17-$D$16)+$D$16)*(1-Analise_Fundamentalista!$C$6)*AA32 -> 816696.3599 | AC32: -163052.3865 | AD32: =Analise_Fundamentalista!$C$12*Monte_Carlo!AA32 -> 236665.8553 | AE32: =-Analise_Fundamentalista!$C$14*Monte_Carlo!AA32 -> -69684.00242 | AF32: 7591449.179 | AG32: =(RAND()*($D$17-$D$16)+$D$16)*(1-Analise_Fundamentalista!$C$6)*AF32 -> 397216.9576 | AH32: -855351.5089 | AI32: =Analise_Fundamentalista!$C$12*Monte_Carlo!AF32 -> 275567.133 | AJ32: =-Analise_Fundamentalista!$C$14*Monte_Carlo!AF32 -> -81138.11237 | AK32: 7972877.377 | AL32: =(RAND()*($D$17-$D$16)+$D$16)*(1-Analise_Fundamentalista!$C$6)*AK32 -> 530398.7259 | AM32: -525285.0635 | AN32: =Analise_Fundamentalista!$C$12*Monte_Carlo!AK32 -> 289412.8523 | AO32: =-Analise_Fundamentalista!$C$14*Monte_Carlo!AK32 -> -85214.8523 | AP32: 8295701.069 | AQ32: =(RAND()*($D$17-$D$16)+$D$16)*(1-Analise_Fundamentalista!$C$6)*AP32 -> 880558.5452 | AR32: -1171304.728 | AS32: =Analise_Fundamentalista!$C$12*Monte_Carlo!AP32 -> 301131.2472 | AT32: =-Analise_Fundamentalista!$C$14*Monte_Carlo!AP32 -> -88665.22183 | AU32: 12386455.96 | AV32: =(RAND()*($D$17-$D$16)+$D$16)*(1-Analise_Fundamentalista!$C$6)*AU32 -> 1594762.133 | AW32: -396518.5583 | AX32: =Analise_Fundamentalista!$C$12*Monte_Carlo!AU32 -> 449624.3176 | AY32: =-Analise_Fundamentalista!$C$14*Monte_Carlo!AU32 -> -132387.5893 | AZ32: -27484.48826 | BA32: -10273.76245 | BB32: 241217.9675 | BC32: 177028.5169 | BD32: 246866.7736 | BE32: 820625.8262 | BF32: -263705.5307 | BG32: 209311.6624 | BH32: -78280.15772 | BI32: 1515480.303 | BJ32: =BI32*(1+Analise_Fundamentalista!$C$10)/(Analise_Fundamentalista!$C$10) -> 21124534.72 | BK32: =NPV(Analise_Fundamentalista!$C$10,Monte_Carlo!AZ32:BI32)+Monte_Carlo!BJ32/(1+Analise_Fundamentalista!$C$10)^10 -> 11657920.45 | BL32: =(BK32+Analise_Fundamentalista!$C$15-Analise_Fundamentalista!$C$16-Analise_Fundamentalista!$C$17)/(Analise_Fundamentalista!$F$29+Analise_Fundamentalista!$F$30)*1000 -> 73.94165804 | BM32: 0.8839694975
A33: 8 | B33: 2486255.267 | C33: =(RAND()*($D$17-$D$16)+$D$16)*(1-Analise_Fundamentalista!$C$6)*B33 -> 319873.6915 | D33: -372842.2719 | E33: =Analise_Fundamentalista!$C$12*Monte_Carlo!B33 -> 90250.25653 | F33: =-Analise_Fundamentalista!$C$14*Monte_Carlo!B33 -> -26573.32671 | G33: 2951784.373 | H33: =(RAND()*($D$17-$D$16)+$D$16)*(1-Analise_Fundamentalista!$C$6)*G33 -> 152141.8041 | I33: -261849.8131 | J33: =Analise_Fundamentalista!$C$12*Monte_Carlo!G33 -> 107148.8115 | K33: =-Analise_Fundamentalista!$C$14*Monte_Carlo!G33 -> -31548.94494 | L33: 3656696.188 | M33: =(RAND()*($D$17-$D$16)+$D$16)*(1-Analise_Fundamentalista!$C$6)*L33 -> 397428.298 | N33: -504215.9283 | O33: =Analise_Fundamentalista!$C$12*Monte_Carlo!L33 -> 132736.8808 | P33: =-Analise_Fundamentalista!$C$14*Monte_Carlo!L33 -> -39083.10774 | Q33: 4373532.49 | R33: =(RAND()*($D$17-$D$16)+$D$16)*(1-Analise_Fundamentalista!$C$6)*Q33 -> 274488.6944 | S33: -207737.8008 | T33: =Analise_Fundamentalista!$C$12*Monte_Carlo!Q33 -> 158757.8051 | U33: =-Analise_Fundamentalista!$C$14*Monte_Carlo!Q33 -> -46744.72058 | V33: 5325986.018 | W33: =(RAND()*($D$17-$D$16)+$D$16)*(1-Analise_Fundamentalista!$C$6)*V33 -> 731581.2062 | X33: -738136.0001 | Y33: =Analise_Fundamentalista!$C$12*Monte_Carlo!V33 -> 193331.558 | Z33: =-Analise_Fundamentalista!$C$14*Monte_Carlo!V33 -> -56924.63216 | AA33: 4791232.462 | AB33: =(RAND()*($D$17-$D$16)+$D$16)*(1-Analise_Fundamentalista!$C$6)*AA33 -> 601363.9891 | AC33: -680050.7457 | AD33: =Analise_Fundamentalista!$C$12*Monte_Carlo!AA33 -> 173920.1781 | AE33: =-Analise_Fundamentalista!$C$14*Monte_Carlo!AA33 -> -51209.13659 | AF33: 6757368.672 | AG33: =(RAND()*($D$17-$D$16)+$D$16)*(1-Analise_Fundamentalista!$C$6)*AF33 -> 804960.413 | AH33: -1461994.709 | AI33: =Analise_Fundamentalista!$C$12*Monte_Carlo!AF33 -> 245290.2822 | AJ33: =-Analise_Fundamentalista!$C$14*Monte_Carlo!AF33 -> -72223.38261 | AK33: 9357240.758 | AL33: =(RAND()*($D$17-$D$16)+$D$16)*(1-Analise_Fundamentalista!$C$6)*AK33 -> 608732.9947 | AM33: -357377.3462 | AN33: =Analise_Fundamentalista!$C$12*Monte_Carlo!AK33 -> 339664.7922 | AO33: =-Analise_Fundamentalista!$C$14*Monte_Carlo!AK33 -> -100011.0564 | AP33: 9453754.958 | AQ33: =(RAND()*($D$17-$D$16)+$D$16)*(1-Analise_Fundamentalista!$C$6)*AP33 -> 1100786.587 | AR33: -756162.9499 | AS33: =Analise_Fundamentalista!$C$12*Monte_Carlo!AP33 -> 343168.2263 | AT33: =-Analise_Fundamentalista!$C$14*Monte_Carlo!AP33 -> -101042.6091 | AU33: 12633197.91 | AV33: =(RAND()*($D$17-$D$16)+$D$16)*(1-Analise_Fundamentalista!$C$6)*AU33 -> 1239421.991 | AW33: -185421.4788 | AX33: =Analise_Fundamentalista!$C$12*Monte_Carlo!AU33 -> 458580.9699 | AY33: =-Analise_Fundamentalista!$C$14*Monte_Carlo!AU33 -> -135024.79 | AZ33: 10708.34937 | BA33: -34108.14242 | BB33: -13133.85729 | BC33: 178763.9781 | BD33: 129852.132 | BE33: 44024.2849 | BF33: -483967.3968 | BG33: 491009.3843 | BH33: 586749.2539 | BI33: 1377556.692 | BJ33: =BI33*(1+Analise_Fundamentalista!$C$10)/(Analise_Fundamentalista!$C$10) -> 19201994.32 | BK33: =NPV(Analise_Fundamentalista!$C$10,Monte_Carlo!AZ33:BI33)+Monte_Carlo!BJ33/(1+Analise_Fundamentalista!$C$10)^10 -> 10279258.86 | BL33: =(BK33+Analise_Fundamentalista!$C$15-Analise_Fundamentalista!$C$16-Analise_Fundamentalista!$C$17)/(Analise_Fundamentalista!$F$29+Analise_Fundamentalista!$F$30)*1000 -> 65.47186811 | BM33: 0.8300867885
A34: 9 | B34: 2599523.897 | C34: =(RAND()*($D$17-$D$16)+$D$16)*(1-Analise_Fundamentalista!$C$6)*B34 -> 272598.1785 | D34: -234166.7109 | E34: =Analise_Fundamentalista!$C$12*Monte_Carlo!B34 -> 94361.87088 | F34: =-Analise_Fundamentalista!$C$14*Monte_Carlo!B34 -> -27783.95232 | G34: 2767934.752 | H34: =(RAND()*($D$17-$D$16)+$D$16)*(1-Analise_Fundamentalista!$C$6)*G34 -> 363940.9884 | I34: -405108.8742 | J34: =Analise_Fundamentalista!$C$12*Monte_Carlo!G34 -> 100475.1301 | K34: =-Analise_Fundamentalista!$C$14*Monte_Carlo!G34 -> -29583.94315 | L34: 3391612.358 | M34: =(RAND()*($D$17-$D$16)+$D$16)*(1-Analise_Fundamentalista!$C$6)*L34 -> 502626.137 | N34: -350714.1404 | O34: =Analise_Fundamentalista!$C$12*Monte_Carlo!L34 -> 123114.4241 | P34: =-Analise_Fundamentalista!$C$14*Monte_Carlo!L34 -> -36249.8672 | Q34: 4251767.153 | R34: =(RAND()*($D$17-$D$16)+$D$16)*(1-Analise_Fundamentalista!$C$6)*Q34 -> 373838.3435 | S34: -494926.7858 | T34: =Analise_Fundamentalista!$C$12*Monte_Carlo!Q34 -> 154337.763 | U34: =-Analise_Fundamentalista!$C$14*Monte_Carlo!Q34 -> -45443.28137 | V34: 5524299.827 | W34: =(RAND()*($D$17-$D$16)+$D$16)*(1-Analise_Fundamentalista!$C$6)*V34 -> 441514.665 | X34: -572764.7033 | Y34: =Analise_Fundamentalista!$C$12*Monte_Carlo!V34 -> 200530.2847 | Z34: =-Analise_Fundamentalista!$C$14*Monte_Carlo!V34 -> -59044.22852 | AA34: 5444900.28 | AB34: =(RAND()*($D$17-$D$16)+$D$16)*(1-Analise_Fundamentalista!$C$6)*AA34 -> 611806.8681 | AC34: -322051.8406 | AD34: =Analise_Fundamentalista!$C$12*Monte_Carlo!AA34 -> 197648.107 | AE34: =-Analise_Fundamentalista!$C$14*Monte_Carlo!AA34 -> -58195.5988 | AF34: 7629233.191 | AG34: =(RAND()*($D$17-$D$16)+$D$16)*(1-Analise_Fundamentalista!$C$6)*AF34 -> 759595.1395 | AH34: -31293.36442 | AI34: =Analise_Fundamentalista!$C$12*Monte_Carlo!AF34 -> 276938.6803 | AJ34: =-Analise_Fundamentalista!$C$14*Monte_Carlo!AF34 -> -81541.95139 | AK34: 8672586.114 | AL34: =(RAND()*($D$17-$D$16)+$D$16)*(1-Analise_Fundamentalista!$C$6)*AK34 -> 336036.7191 | AM34: -1063320.07 | AN34: =Analise_Fundamentalista!$C$12*Monte_Carlo!AK34 -> 314812.0516 | AO34: =-Analise_Fundamentalista!$C$14*Monte_Carlo!AK34 -> -92693.40413 | AP34: 10761595.64 | AQ34: =(RAND()*($D$17-$D$16)+$D$16)*(1-Analise_Fundamentalista!$C$6)*AP34 -> 742889.238 | AR34: -266911.8859 | AS34: =Analise_Fundamentalista!$C$12*Monte_Carlo!AP34 -> 390642.4172 | AT34: =-Analise_Fundamentalista!$C$14*Monte_Carlo!AP34 -> -115020.9316 | AU34: 11567948.46 | AV34: =(RAND()*($D$17-$D$16)+$D$16)*(1-Analise_Fundamentalista!$C$6)*AU34 -> 1718365.132 | AW34: -1069163.916 | AX34: =Analise_Fundamentalista!$C$12*Monte_Carlo!AU34 -> 419912.7619 | AY34: =-Analise_Fundamentalista!$C$14*Monte_Carlo!AU34 -> -123639.3052 | AZ34: 105009.3861 | BA34: 29723.30107 | BB34: 238776.5535 | BC34: -12193.96061 | BD34: 10236.01785 | BE34: 429207.5356 | BF34: 923698.5039 | BG34: -505164.703 | BH34: 751598.8378 | BI34: 945474.6727 | BJ34: =BI34*(1+Analise_Fundamentalista!$C$10)/(Analise_Fundamentalista!$C$10) -> 13179130.41 | BK34: =NPV(Analise_Fundamentalista!$C$10,Monte_Carlo!AZ34:BI34)+Monte_Carlo!BJ34/(1+Analise_Fundamentalista!$C$10)^10 -> 7950548.527 | BL34: =(BK34+Analise_Fundamentalista!$C$15-Analise_Fundamentalista!$C$16-Analise_Fundamentalista!$C$17)/(Analise_Fundamentalista!$F$29+Analise_Fundamentalista!$F$30)*1000 -> 51.16546578 | BM34: 0.7082154682
A35: 10 | B35: =B$25*(1+LN(_xlfn.LOGNORM.INV(RAND(),$D$10,$D$12))) -> 2567116.395 | C35: =(RAND()*($D$17-$D$16)+$D$16)*(1-Analise_Fundamentalista!$C$6)*B35 -> 207092.8588 | D35: -232829.3426 | E35: =Analise_Fundamentalista!$C$12*Monte_Carlo!B35 -> 93185.48912 | F35: =-Analise_Fundamentalista!$C$14*Monte_Carlo!B35 -> -27437.57794 | G35: 3188592.855 | H35: =(RAND()*($D$17-$D$16)+$D$16)*(1-Analise_Fundamentalista!$C$6)*G35 -> 209927.0078 | I35: -203917.5226 | J35: =Analise_Fundamentalista!$C$12*Monte_Carlo!G35 -> 115744.8822 | K35: =-Analise_Fundamentalista!$C$14*Monte_Carlo!G35 -> -34079.97594 | L35: 3367424.6 | M35: =(RAND()*($D$17-$D$16)+$D$16)*(1-Analise_Fundamentalista!$C$6)*L35 -> 196226.8043 | N35: -231023.3289 | O35: =Analise_Fundamentalista!$C$12*Monte_Carlo!L35 -> 122236.4163 | P35: =-Analise_Fundamentalista!$C$14*Monte_Carlo!L35 -> -35991.34621 | Q35: 3697375.471 | R35: =(RAND()*($D$17-$D$16)+$D$16)*(1-Analise_Fundamentalista!$C$6)*Q35 -> 327763.2673 | S35: -128217.958 | T35: =Analise_Fundamentalista!$C$12*Monte_Carlo!Q35 -> 134213.5255 | U35: =-Analise_Fundamentalista!$C$14*Monte_Carlo!Q35 -> -39517.89169 | V35: 5849603.797 | W35: =(RAND()*($D$17-$D$16)+$D$16)*(1-Analise_Fundamentalista!$C$6)*V35 -> 367336.3643 | X35: -74322.1009 | Y35: =Analise_Fundamentalista!$C$12*Monte_Carlo!V35 -> 212338.7128 | Z35: =-Analise_Fundamentalista!$C$14*Monte_Carlo!V35 -> -62521.1075 | AA35: 6181211.983 | AB35: =(RAND()*($D$17-$D$16)+$D$16)*(1-Analise_Fundamentalista!$C$6)*AA35 -> 216271.5952 | AC35: -86472.96099 | AD35: =Analise_Fundamentalista!$C$12*Monte_Carlo!AA35 -> 224375.982 | AE35: =-Analise_Fundamentalista!$C$14*Monte_Carlo!AA35 -> -66065.36652 | AF35: 7218879.045 | AG35: =(RAND()*($D$17-$D$16)+$D$16)*(1-Analise_Fundamentalista!$C$6)*AF35 -> 759998.4533 | AH35: -134739.0656 | AI35: =Analise_Fundamentalista!$C$12*Monte_Carlo!AF35 -> 262042.9584 | AJ35: =-Analise_Fundamentalista!$C$14*Monte_Carlo!AF35 -> -77156.04825 | AK35: 8297162.091 | AL35: =(RAND()*($D$17-$D$16)+$D$16)*(1-Analise_Fundamentalista!$C$6)*AK35 -> 630019.0189 | AM35: -628263.8997 | AN35: =Analise_Fundamentalista!$C$12*Monte_Carlo!AK35 -> 301184.2819 | AO35: =-Analise_Fundamentalista!$C$14*Monte_Carlo!AK35 -> -88680.83738 | AP35: 9025978.075 | AQ35: =(RAND()*($D$17-$D$16)+$D$16)*(1-Analise_Fundamentalista!$C$6)*AP35 -> 1013479.096 | AR35: -565671.5286 | AS35: =Analise_Fundamentalista!$C$12*Monte_Carlo!AP35 -> 327640.0647 | AT35: =-Analise_Fundamentalista!$C$14*Monte_Carlo!AP35 -> -96470.49016 | AU35: 10276600.4 | AV35: =(RAND()*($D$17-$D$16)+$D$16)*(1-Analise_Fundamentalista!$C$6)*AU35 -> 865079.7534 | AW35: -856718.8057 | AX35: =Analise_Fundamentalista!$C$12*Monte_Carlo!AU35 -> 373037.248 | AY35: =-Analise_Fundamentalista!$C$14*Monte_Carlo!AU35 -> -109837.2575 | AZ35: 40011.42743 | BA35: 87674.39147 | BB35: 51448.54558 | BC35: 294240.9432 | BD35: 442831.8688 | BE35: 288109.2497 | BF35: 810146.2978 | BG35: 214258.5636 | BH35: 678977.1416 | BI35: 271560.9382 | BJ35: =BI35*(1+Analise_Fundamentalista!$C$10)/(Analise_Fundamentalista!$C$10) -> 3785333.571 | BK35: =NPV(Analise_Fundamentalista!$C$10,Monte_Carlo!AZ35:BI35)+Monte_Carlo!BJ35/(1+Analise_Fundamentalista!$C$10)^10 -> 3735524.721 | BL35: =(BK35+Analise_Fundamentalista!$C$15-Analise_Fundamentalista!$C$16-Analise_Fundamentalista!$C$17)/(Analise_Fundamentalista!$F$29+Analise_Fundamentalista!$F$30)*1000 -> 25.2705206 | BM35: 0.4257176566
A36: Tent11 | B36: 2437709.227 | C36: =(RAND()*($D$17-$D$16)+$D$16)*(1-Analise_Fundamentalista!$C$6)*B36 -> 280490.6105 | D36: -152381.9689 | E36: =Analise_Fundamentalista!$C$12*Monte_Carlo!B36 -> 88488.05107 | F36: =-Analise_Fundamentalista!$C$14*Monte_Carlo!B36 -> -26054.46213 | G36: 2966693.219 | H36: =(RAND()*($D$17-$D$16)+$D$16)*(1-Analise_Fundamentalista!$C$6)*G36 -> 102615.3177 | I36: -239109.5734 | J36: =Analise_Fundamentalista!$C$12*Monte_Carlo!G36 -> 107689.9977 | K36: =-Analise_Fundamentalista!$C$14*Monte_Carlo!G36 -> -31708.29207 | L36: 3128079.443 | M36: =(RAND()*($D$17-$D$16)+$D$16)*(1-Analise_Fundamentalista!$C$6)*L36 -> 346076.4803 | N36: -61707.07706 | O36: =Analise_Fundamentalista!$C$12*Monte_Carlo!L36 -> 113548.2651 | P36: =-Analise_Fundamentalista!$C$14*Monte_Carlo!L36 -> -33433.20299 | Q36: 3787618.481 | R36: =(RAND()*($D$17-$D$16)+$D$16)*(1-Analise_Fundamentalista!$C$6)*Q36 -> 520787.0339 | S36: -38078.8903 | T36: =Analise_Fundamentalista!$C$12*Monte_Carlo!Q36 -> 137489.3174 | U36: =-Analise_Fundamentalista!$C$14*Monte_Carlo!Q36 -> -40482.41735 | V36: 4442343.608 | W36: =(RAND()*($D$17-$D$16)+$D$16)*(1-Analise_Fundamentalista!$C$6)*V36 -> 547441.0683 | X36: -445947.2974 | Y36: =Analise_Fundamentalista!$C$12*Monte_Carlo!V36 -> 161255.6263 | Z36: =-Analise_Fundamentalista!$C$14*Monte_Carlo!V36 -> -47480.18018 | AA36: 6522320.257 | AB36: =(RAND()*($D$17-$D$16)+$D$16)*(1-Analise_Fundamentalista!$C$6)*AA36 -> 848267.255 | AC36: -225234.678 | AD36: =Analise_Fundamentalista!$C$12*Monte_Carlo!AA36 -> 236758.1013 | AE36: =-Analise_Fundamentalista!$C$14*Monte_Carlo!AA36 -> -69711.16337 | AF36: 7429287.334 | AG36: =(RAND()*($D$17-$D$16)+$D$16)*(1-Analise_Fundamentalista!$C$6)*AF36 -> 640849.8101 | AH36: -245133.4821 | AI36: =Analise_Fundamentalista!$C$12*Monte_Carlo!AF36 -> 269680.7108 | AJ36: =-Analise_Fundamentalista!$C$14*Monte_Carlo!AF36 -> -79404.91154 | AK36: 8020176.808 | AL36: =(RAND()*($D$17-$D$16)+$D$16)*(1-Analise_Fundamentalista!$C$6)*AK36 -> 1115605.052 | AM36: -503913.8866 | AN36: =Analise_Fundamentalista!$C$12*Monte_Carlo!AK36 -> 291129.8063 | AO36: =-Analise_Fundamentalista!$C$14*Monte_Carlo!AK36 -> -85720.39301 | AP36: 10619972.1 | AQ36: =(RAND()*($D$17-$D$16)+$D$16)*(1-Analise_Fundamentalista!$C$6)*AP36 -> 1099325.421 | AR36: -1296118.893 | AS36: =Analise_Fundamentalista!$C$12*Monte_Carlo!AP36 -> 385501.5289 | AT36: =-Analise_Fundamentalista!$C$14*Monte_Carlo!AP36 -> -113507.2461 | AU36: 12751740.21 | AV36: =(RAND()*($D$17-$D$16)+$D$16)*(1-Analise_Fundamentalista!$C$6)*AU36 -> 2016057.011 | AW36: -2897619.502 | AX36: =Analise_Fundamentalista!$C$12*Monte_Carlo!AU36 -> 462884.0169 | AY36: =-Analise_Fundamentalista!$C$14*Monte_Carlo!AU36 -> -136291.7811 | AZ36: 190542.2305 | BA36: -60512.5501 | BB36: 364484.4653 | BC36: 579715.0437 | BD36: 215269.217 | BE36: 790079.5149 | BF36: 585992.1273 | BG36: 817100.5783 | BH36: 75200.81098 | BI36: -554970.255 | BJ36: =BI36*(1+Analise_Fundamentalista!$C$10)/(Analise_Fundamentalista!$C$10) -> -7735823.684 | BK36: =NPV(Analise_Fundamentalista!$C$10,Monte_Carlo!AZ36:BI36)+Monte_Carlo!BJ36/(1+Analise_Fundamentalista!$C$10)^10 -> -1600715.424 | BL36: =(BK36+Analise_Fundamentalista!$C$15-Analise_Fundamentalista!$C$16-Analise_Fundamentalista!$C$17)/(Analise_Fundamentalista!$F$29+Analise_Fundamentalista!$F$30)*1000 -> -7.5126029 | BM36: 0.131699975
A37: Tent12 | B37: 2565898.733 | C37: =(RAND()*($D$17-$D$16)+$D$16)*(1-Analise_Fundamentalista!$C$6)*B37 -> 122796.3012 | D37: -17788.25634 | E37: =Analise_Fundamentalista!$C$12*Monte_Carlo!B37 -> 93141.28839 | F37: =-Analise_Fundamentalista!$C$14*Monte_Carlo!B37 -> -27424.56345 | G37: 3268215.614 | H37: =(RAND()*($D$17-$D$16)+$D$16)*(1-Analise_Fundamentalista!$C$6)*G37 -> 450294.2533 | I37: -33978.66436 | J37: =Analise_Fundamentalista!$C$12*Monte_Carlo!G37 -> 118635.1625 | K37: =-Analise_Fundamentalista!$C$14*Monte_Carlo!G37 -> -34930.99137 | L37: 3808344.537 | M37: =(RAND()*($D$17-$D$16)+$D$16)*(1-Analise_Fundamentalista!$C$6)*L37 -> 458918.0071 | N37: -380522.3356 | O37: =Analise_Fundamentalista!$C$12*Monte_Carlo!L37 -> 138241.6665 | P37: =-Analise_Fundamentalista!$C$14*Monte_Carlo!L37 -> -40703.93936 | Q37: 4430935.466 | R37: =(RAND()*($D$17-$D$16)+$D$16)*(1-Analise_Fundamentalista!$C$6)*Q37 -> 479426.8423 | S37: -593988.1038 | T37: =Analise_Fundamentalista!$C$12*Monte_Carlo!Q37 -> 160841.5144 | U37: =-Analise_Fundamentalista!$C$14*Monte_Carlo!Q37 -> -47358.2489 | V37: 4757486.364 | W37: =(RAND()*($D$17-$D$16)+$D$16)*(1-Analise_Fundamentalista!$C$6)*V37 -> 602013.4852 | X37: -282863.2618 | Y37: =Analise_Fundamentalista!$C$12*Monte_Carlo!V37 -> 172695.2057 | Z37: =-Analise_Fundamentalista!$C$14*Monte_Carlo!V37 -> -50848.45516 | AA37: 5443906.982 | AB37: =(RAND()*($D$17-$D$16)+$D$16)*(1-Analise_Fundamentalista!$C$6)*AA37 -> 492978.2828 | AC37: -45223.30629 | AD37: =Analise_Fundamentalista!$C$12*Monte_Carlo!AA37 -> 197612.0506 | AE37: =-Analise_Fundamentalista!$C$14*Monte_Carlo!AA37 -> -58184.98235 | AF37: 7765074.613 | AG37: =(RAND()*($D$17-$D$16)+$D$16)*(1-Analise_Fundamentalista!$C$6)*AF37 -> 294701.8714 | AH37: -274155.8375 | AI37: =Analise_Fundamentalista!$C$12*Monte_Carlo!AF37 -> 281869.6797 | AJ37: =-Analise_Fundamentalista!$C$14*Monte_Carlo!AF37 -> -82993.8371 | AK37: 8241912.913 | AL37: =(RAND()*($D$17-$D$16)+$D$16)*(1-Analise_Fundamentalista!$C$6)*AK37 -> 385937.3363 | AM37: -1202171.942 | AN37: =Analise_Fundamentalista!$C$12*Monte_Carlo!AK37 -> 299178.7547 | AO37: =-Analise_Fundamentalista!$C$14*Monte_Carlo!AK37 -> -88090.32904 | AP37: 9291606.96 | AQ37: =(RAND()*($D$17-$D$16)+$D$16)*(1-Analise_Fundamentalista!$C$6)*AP37 -> 1113090.758 | AR37: -255177.342 | AS37: =Analise_Fundamentalista!$C$12*Monte_Carlo!AP37 -> 337282.3067 | AT37: =-Analise_Fundamentalista!$C$14*Monte_Carlo!AP37 -> -99309.55629 | AU37: 12893261.72 | AV37: =(RAND()*($D$17-$D$16)+$D$16)*(1-Analise_Fundamentalista!$C$6)*AU37 -> 1525218.06 | AW37: -1115915.229 | AX37: =Analise_Fundamentalista!$C$12*Monte_Carlo!AU37 -> 468021.2018 | AY37: =-Analise_Fundamentalista!$C$14*Monte_Carlo!AU37 -> -137804.3762 | AZ37: 170724.7698 | BA37: 500019.76 | BB37: 175933.3986 | BC37: -1077.995959 | BD37: 440996.9738 | BE37: 587182.0448 | BF37: 219421.8765 | BG37: -605146.1796 | BH37: 1095886.166 | BI37: 739519.6566 | BJ37: =BI37*(1+Analise_Fundamentalista!$C$10)/(Analise_Fundamentalista!$C$10) -> 10308288.82 | BK37: =NPV(Analise_Fundamentalista!$C$10,Monte_Carlo!AZ37:BI37)+Monte_Carlo!BJ37/(1+Analise_Fundamentalista!$C$10)^10 -> 7014056.948 | BL37: =(BK37+Analise_Fundamentalista!$C$15-Analise_Fundamentalista!$C$16-Analise_Fundamentalista!$C$17)/(Analise_Fundamentalista!$F$29+Analise_Fundamentalista!$F$30)*1000 -> 45.41214167 | BM37: 0.6497973558
A38: Tent13 | B38: 2454484.126 | C38: =(RAND()*($D$17-$D$16)+$D$16)*(1-Analise_Fundamentalista!$C$6)*B38 -> 252521.3777 | D38: -255624.4087 | E38: =Analise_Fundamentalista!$C$12*Monte_Carlo!B38 -> 89096.97446 | F38: =-Analise_Fundamentalista!$C$14*Monte_Carlo!B38 -> -26233.75381 | G38: 2978393.332 | H38: =(RAND()*($D$17-$D$16)+$D$16)*(1-Analise_Fundamentalista!$C$6)*G38 -> 241661.6299 | I38: -68544.42843 | J38: =Analise_Fundamentalista!$C$12*Monte_Carlo!G38 -> 108114.708 | K38: =-Analise_Fundamentalista!$C$14*Monte_Carlo!G38 -> -31833.34396 | L38: 3143256.392 | M38: =(RAND()*($D$17-$D$16)+$D$16)*(1-Analise_Fundamentalista!$C$6)*L38 -> 459165.8992 | N38: -439491.6738 | O38: =Analise_Fundamentalista!$C$12*Monte_Carlo!L38 -> 114099.1834 | P38: =-Analise_Fundamentalista!$C$14*Monte_Carlo!L38 -> -33595.41562 | Q38: 3658166.959 | R38: =(RAND()*($D$17-$D$16)+$D$16)*(1-Analise_Fundamentalista!$C$6)*Q38 -> 591708.6732 | S38: -588141.8808 | T38: =Analise_Fundamentalista!$C$12*Monte_Carlo!Q38 -> 132790.2693 | U38: =-Analise_Fundamentalista!$C$14*Monte_Carlo!Q38 -> -39098.82748 | V38: 5411557.142 | W38: =(RAND()*($D$17-$D$16)+$D$16)*(1-Analise_Fundamentalista!$C$6)*V38 -> 762977.7544 | X38: -172617.3873 | Y38: =Analise_Fundamentalista!$C$12*Monte_Carlo!V38 -> 196437.7619 | Z38: =-Analise_Fundamentalista!$C$14*Monte_Carlo!V38 -> -57839.22425 | AA38: 5361836.011 | AB38: =(RAND()*($D$17-$D$16)+$D$16)*(1-Analise_Fundamentalista!$C$6)*AA38 -> 234699.8505 | AC38: -873413.4105 | AD38: =Analise_Fundamentalista!$C$12*Monte_Carlo!AA38 -> 194632.9011 | AE38: =-Analise_Fundamentalista!$C$14*Monte_Carlo!AA38 -> -57307.8002 | AF38: 7809039.687 | AG38: =(RAND()*($D$17-$D$16)+$D$16)*(1-Analise_Fundamentalista!$C$6)*AF38 -> 1226688.421 | AH38: -51438.49429 | AI38: =Analise_Fundamentalista!$C$12*Monte_Carlo!AF38 -> 283465.5975 | AJ38: =-Analise_Fundamentalista!$C$14*Monte_Carlo!AF38 -> -83463.73989 | AK38: 8407022.732 | AL38: =(RAND()*($D$17-$D$16)+$D$16)*(1-Analise_Fundamentalista!$C$6)*AK38 -> 965629.4563 | AM38: -413229.9307 | AN38: =Analise_Fundamentalista!$C$12*Monte_Carlo!AK38 -> 305172.1873 | AO38: =-Analise_Fundamentalista!$C$14*Monte_Carlo!AK38 -> -89855.03809 | AP38: 9831796.281 | AQ38: =(RAND()*($D$17-$D$16)+$D$16)*(1-Analise_Fundamentalista!$C$6)*AP38 -> 390785.8051 | AR38: -273849.7456 | AS38: =Analise_Fundamentalista!$C$12*Monte_Carlo!AP38 -> 356891.0032 | AT38: =-Analise_Fundamentalista!$C$14*Monte_Carlo!AP38 -> -105083.1498 | AU38: 10789987.75 | AV38: =(RAND()*($D$17-$D$16)+$D$16)*(1-Analise_Fundamentalista!$C$6)*AU38 -> 836785.3808 | AW38: -2261880.306 | AX38: =Analise_Fundamentalista!$C$12*Monte_Carlo!AU38 -> 391673.0414 | AY38: =-Analise_Fundamentalista!$C$14*Monte_Carlo!AU38 -> -115324.389 | AZ38: 59760.18963 | BA38: 249398.5655 | BB38: 100177.9931 | BC38: 97258.23417 | BD38: 728958.9047 | BE38: -501388.4591 | BF38: 1375251.784 | BG38: 767716.6749 | BH38: 368743.9129 | BI38: -1148746.273 | BJ38: =BI38*(1+Analise_Fundamentalista!$C$10)/(Analise_Fundamentalista!$C$10) -> -16012567.42 | BK38: =NPV(Analise_Fundamentalista!$C$10,Monte_Carlo!AZ38:BI38)+Monte_Carlo!BJ38/(1+Analise_Fundamentalista!$C$10)^10 -> -6118694.151 | BL38: =(BK38+Analise_Fundamentalista!$C$15-Analise_Fundamentalista!$C$16-Analise_Fundamentalista!$C$17)/(Analise_Fundamentalista!$F$29+Analise_Fundamentalista!$F$30)*1000 -> -35.26874778 | BM38: 0.02827848294
A39: Tent14 | B39: 2606111.833 | C39: =(RAND()*($D$17-$D$16)+$D$16)*(1-Analise_Fundamentalista!$C$6)*B39 -> 259484.6604 | D39: -437440.0583 | E39: =Analise_Fundamentalista!$C$12*Monte_Carlo!B39 -> 94601.01081 | F39: =-Analise_Fundamentalista!$C$14*Monte_Carlo!B39 -> -27854.36479 | G39: 3222279.984 | H39: =(RAND()*($D$17-$D$16)+$D$16)*(1-Analise_Fundamentalista!$C$6)*G39 -> 379230.9644 | I39: -192191.4071 | J39: =Analise_Fundamentalista!$C$12*Monte_Carlo!G39 -> 116967.714 | K39: =-Analise_Fundamentalista!$C$14*Monte_Carlo!G39 -> -34440.0271 | L39: 3738551.11 | M39: =(RAND()*($D$17-$D$16)+$D$16)*(1-Analise_Fundamentalista!$C$6)*L39 -> 507717.719 | N39: -201664.6093 | O39: =Analise_Fundamentalista!$C$12*Monte_Carlo!L39 -> 135708.1878 | P39: =-Analise_Fundamentalista!$C$14*Monte_Carlo!L39 -> -39957.98074 | Q39: 3859774.713 | R39: =(RAND()*($D$17-$D$16)+$D$16)*(1-Analise_Fundamentalista!$C$6)*Q39 -> 251193.3618 | S39: -74910.06641 | T39: =Analise_Fundamentalista!$C$12*Monte_Carlo!Q39 -> 140108.5651 | U39: =-Analise_Fundamentalista!$C$14*Monte_Carlo!Q39 -> -41253.62984 | V39: 5464436.613 | W39: =(RAND()*($D$17-$D$16)+$D$16)*(1-Analise_Fundamentalista!$C$6)*V39 -> 606577.4287 | X39: -421177.9423 | Y39: =Analise_Fundamentalista!$C$12*Monte_Carlo!V39 -> 198357.2695 | Z39: =-Analise_Fundamentalista!$C$14*Monte_Carlo!V39 -> -58404.40495 | AA39: 6768184.535 | AB39: =(RAND()*($D$17-$D$16)+$D$16)*(1-Analise_Fundamentalista!$C$6)*AA39 -> 320858.1183 | AC39: -211798.6967 | AD39: =Analise_Fundamentalista!$C$12*Monte_Carlo!AA39 -> 245682.8945 | AE39: =-Analise_Fundamentalista!$C$14*Monte_Carlo!AA39 -> -72338.98356 | AF39: 6808925.513 | AG39: =(RAND()*($D$17-$D$16)+$D$16)*(1-Analise_Fundamentalista!$C$6)*AF39 -> 994486.6242 | AH39: -722353.831 | AI39: =Analise_Fundamentalista!$C$12*Monte_Carlo!AF39 -> 247161.7787 | AJ39: =-Analise_Fundamentalista!$C$14*Monte_Carlo!AF39 -> -72774.4269 | AK39: 8086831.737 | AL39: =(RAND()*($D$17-$D$16)+$D$16)*(1-Analise_Fundamentalista!$C$6)*AK39 -> 1087312.294 | AM39: -95051.22474 | AN39: =Analise_Fundamentalista!$C$12*Monte_Carlo!AK39 -> 293549.3585 | AO39: =-Analise_Fundamentalista!$C$14*Monte_Carlo!AK39 -> -86432.80706 | AP39: 9051197.84 | AQ39: =(RAND()*($D$17-$D$16)+$D$16)*(1-Analise_Fundamentalista!$C$6)*AP39 -> 557390.766 | AR39: -1023326.798 | AS39: =Analise_Fundamentalista!$C$12*Monte_Carlo!AP39 -> 328555.534 | AT39: =-Analise_Fundamentalista!$C$14*Monte_Carlo!AP39 -> -96740.04134 | AU39: 13992143.4 | AV39: =(RAND()*($D$17-$D$16)+$D$16)*(1-Analise_Fundamentalista!$C$6)*AU39 -> 1087245.927 | AW39: -973729.4321 | AX39: =Analise_Fundamentalista!$C$12*Monte_Carlo!AU39 -> 507910.2486 | AY39: =-Analise_Fundamentalista!$C$14*Monte_Carlo!AU39 -> -149549.3253 | AZ39: -111208.7519 | BA39: 269567.2442 | BB39: 401803.3167 | BC39: 275138.2307 | BD39: 325352.3509 | BE39: 282403.3326 | BF39: 446520.1451 | BG39: 1199377.62 | BH39: -234120.5397 | BI39: 471877.4181 | BJ39: =BI39*(1+Analise_Fundamentalista!$C$10)/(Analise_Fundamentalista!$C$10) -> 6577578.661 | BK39: =NPV(Analise_Fundamentalista!$C$10,Monte_Carlo!AZ39:BI39)+Monte_Carlo!BJ39/(1+Analise_Fundamentalista!$C$10)^10 -> 5214654.627 | BL39: =(BK39+Analise_Fundamentalista!$C$15-Analise_Fundamentalista!$C$16-Analise_Fundamentalista!$C$17)/(Analise_Fundamentalista!$F$29+Analise_Fundamentalista!$F$30)*1000 -> 34.35753638 | BM39: 0.5282220737
A40: Tent15 | B40: 2527225.782 | C40: =(RAND()*($D$17-$D$16)+$D$16)*(1-Analise_Fundamentalista!$C$6)*B40 -> 270304.3503 | D40: -28611.87799 | E40: =Analise_Fundamentalista!$C$12*Monte_Carlo!B40 -> 91737.47288 | F40: =-Analise_Fundamentalista!$C$14*Monte_Carlo!B40 -> -27011.22337 | G40: 3339722.909 | H40: =(RAND()*($D$17-$D$16)+$D$16)*(1-Analise_Fundamentalista!$C$6)*G40 -> 131888.982 | I40: -221665.7311 | J40: =Analise_Fundamentalista!$C$12*Monte_Carlo!G40 -> 121230.854 | K40: =-Analise_Fundamentalista!$C$14*Monte_Carlo!G40 -> -35695.26796 | L40: 3603617.971 | M40: =(RAND()*($D$17-$D$16)+$D$16)*(1-Analise_Fundamentalista!$C$6)*L40 -> 306951.3503 | N40: -90051.06796 | O40: =Analise_Fundamentalista!$C$12*Monte_Carlo!L40 -> 130810.1588 | P40: =-Analise_Fundamentalista!$C$14*Monte_Carlo!L40 -> -38515.80284 | Q40: 4320659.944 | R40: =(RAND()*($D$17-$D$16)+$D$16)*(1-Analise_Fundamentalista!$C$6)*Q40 -> 151220.8261 | S40: -492520.7932 | T40: =Analise_Fundamentalista!$C$12*Monte_Carlo!Q40 -> 156838.5489 | U40: =-Analise_Fundamentalista!$C$14*Monte_Carlo!Q40 -> -46179.6139 | V40: 5233799.538 | W40: =(RAND()*($D$17-$D$16)+$D$16)*(1-Analise_Fundamentalista!$C$6)*V40 -> 394587.753 | X40: -751925.0614 | Y40: =Analise_Fundamentalista!$C$12*Monte_Carlo!V40 -> 189985.2188 | Z40: =-Analise_Fundamentalista!$C$14*Monte_Carlo!V40 -> -55939.33452 | AA40: 6052986.839 | AB40: =(RAND()*($D$17-$D$16)+$D$16)*(1-Analise_Fundamentalista!$C$6)*AA40 -> 716534.7348 | AC40: -708373.1733 | AD40: =Analise_Fundamentalista!$C$12*Monte_Carlo!AA40 -> 219721.451 | AE40: =-Analise_Fundamentalista!$C$14*Monte_Carlo!AA40 -> -64694.8843 | AF40: 6575264.576 | AG40: =(RAND()*($D$17-$D$16)+$D$16)*(1-Analise_Fundamentalista!$C$6)*AF40 -> 757756.0022 | AH40: -681117.2627 | AI40: =Analise_Fundamentalista!$C$12*Monte_Carlo!AF40 -> 238679.9628 | AJ40: =-Analise_Fundamentalista!$C$14*Monte_Carlo!AF40 -> -70277.03716 | AK40: 7553853.984 | AL40: =(RAND()*($D$17-$D$16)+$D$16)*(1-Analise_Fundamentalista!$C$6)*AK40 -> 800739.1756 | AM40: -915132.2539 | AN40: =Analise_Fundamentalista!$C$12*Monte_Carlo!AK40 -> 274202.4396 | AO40: =-Analise_Fundamentalista!$C$14*Monte_Carlo!AK40 -> -80736.29145 | AP40: 9297843.393 | AQ40: =(RAND()*($D$17-$D$16)+$D$16)*(1-Analise_Fundamentalista!$C$6)*AP40 -> 1436231.187 | AR40: -1441673.202 | AS40: =Analise_Fundamentalista!$C$12*Monte_Carlo!AP40 -> 337508.6872 | AT40: =-Analise_Fundamentalista!$C$14*Monte_Carlo!AP40 -> -99376.21187 | AU40: 11841943.09 | AV40: =(RAND()*($D$17-$D$16)+$D$16)*(1-Analise_Fundamentalista!$C$6)*AU40 -> 1615825.294 | AW40: -1095250.544 | AX40: =Analise_Fundamentalista!$C$12*Monte_Carlo!AU40 -> 429858.6779 | AY40: =-Analise_Fundamentalista!$C$14*Monte_Carlo!AU40 -> -126567.7853 | AZ40: 306418.7218 | BA40: -4241.16306 | BB40: 309194.6383 | BC40: -230641.0321 | BD40: -223291.4241 | BE40: 163188.1282 | BF40: 245041.6652 | BG40: 79073.06994 | BH40: 232690.4604 | BI40: 823865.6432 | BJ40: =BI40*(1+Analise_Fundamentalista!$C$10)/(Analise_Fundamentalista!$C$10) -> 11484001.71 | BK40: =NPV(Analise_Fundamentalista!$C$10,Monte_Carlo!AZ40:BI40)+Monte_Carlo!BJ40/(1+Analise_Fundamentalista!$C$10)^10 -> 6461792.43 | BL40: =(BK40+Analise_Fundamentalista!$C$15-Analise_Fundamentalista!$C$16-Analise_Fundamentalista!$C$17)/(Analise_Fundamentalista!$F$29+Analise_Fundamentalista!$F$30)*1000 -> 42.01931162 | BM40: 0.613483743
A41: Tent16 | B41: 2252645.549 | C41: =(RAND()*($D$17-$D$16)+$D$16)*(1-Analise_Fundamentalista!$C$6)*B41 -> 358282.9811 | D41: -211080.7395 | E41: =Analise_Fundamentalista!$C$12*Monte_Carlo!B41 -> 81770.29984 | F41: =-Analise_Fundamentalista!$C$14*Monte_Carlo!B41 -> -24076.4844 | G41: 3001412.761 | H41: =(RAND()*($D$17-$D$16)+$D$16)*(1-Analise_Fundamentalista!$C$6)*G41 -> 344921.1719 | I41: -220600.1532 | J41: =Analise_Fundamentalista!$C$12*Monte_Carlo!G41 -> 108950.3058 | K41: =-Analise_Fundamentalista!$C$14*Monte_Carlo!G41 -> -32079.37775 | L41: 3170921.296 | M41: =(RAND()*($D$17-$D$16)+$D$16)*(1-Analise_Fundamentalista!$C$6)*L41 -> 267196.7306 | N41: -475238.6592 | O41: =Analise_Fundamentalista!$C$12*Monte_Carlo!L41 -> 115103.4104 | P41: =-Analise_Fundamentalista!$C$14*Monte_Carlo!L41 -> -33891.10068 | Q41: 3648675.478 | R41: =(RAND()*($D$17-$D$16)+$D$16)*(1-Analise_Fundamentalista!$C$6)*Q41 -> 275408.507 | S41: -490275.1104 | T41: =Analise_Fundamentalista!$C$12*Monte_Carlo!Q41 -> 132445.7316 | U41: =-Analise_Fundamentalista!$C$14*Monte_Carlo!Q41 -> -38997.38165 | V41: 5057332.717 | W41: =(RAND()*($D$17-$D$16)+$D$16)*(1-Analise_Fundamentalista!$C$6)*V41 -> 602412.243 | X41: -412689.4712 | Y41: =Analise_Fundamentalista!$C$12*Monte_Carlo!V41 -> 183579.5306 | Z41: =-Analise_Fundamentalista!$C$14*Monte_Carlo!V41 -> -54053.24077 | AA41: 5932007.809 | AB41: =(RAND()*($D$17-$D$16)+$D$16)*(1-Analise_Fundamentalista!$C$6)*AA41 -> 604042.0875 | AC41: -567711.5363 | AD41: =Analise_Fundamentalista!$C$12*Monte_Carlo!AA41 -> 215329.9517 | AE41: =-Analise_Fundamentalista!$C$14*Monte_Carlo!AA41 -> -63401.84922 | AF41: 6755825.706 | AG41: =(RAND()*($D$17-$D$16)+$D$16)*(1-Analise_Fundamentalista!$C$6)*AF41 -> 945128.3838 | AH41: -799133.06 | AI41: =Analise_Fundamentalista!$C$12*Monte_Carlo!AF41 -> 245234.273 | AJ41: =-Analise_Fundamentalista!$C$14*Monte_Carlo!AF41 -> -72206.89124 | AK41: 9414605.219 | AL41: =(RAND()*($D$17-$D$16)+$D$16)*(1-Analise_Fundamentalista!$C$6)*AK41 -> 363621.1512 | AM41: -1390713.714 | AN41: =Analise_Fundamentalista!$C$12*Monte_Carlo!AK41 -> 341747.1035 | AO41: =-Analise_Fundamentalista!$C$14*Monte_Carlo!AK41 -> -100624.1731 | AP41: 12044147.81 | AQ41: =(RAND()*($D$17-$D$16)+$D$16)*(1-Analise_Fundamentalista!$C$6)*AP41 -> 1356430.746 | AR41: -247968.053 | AS41: =Analise_Fundamentalista!$C$12*Monte_Carlo!AP41 -> 437198.6432 | AT41: =-Analise_Fundamentalista!$C$14*Monte_Carlo!AP41 -> -128728.968 | AU41: 11882954.68 | AV41: =(RAND()*($D$17-$D$16)+$D$16)*(1-Analise_Fundamentalista!$C$6)*AU41 -> 1235289.153 | AW41: -594313.2537 | AX41: =Analise_Fundamentalista!$C$12*Monte_Carlo!AU41 -> 431347.3851 | AY41: =-Analise_Fundamentalista!$C$14*Monte_Carlo!AU41 -> -127006.1209 | AZ41: 204896.057 | BA41: 201191.9467 | BB41: -126829.6189 | BC41: -121418.2534 | BD41: 319249.0617 | BE41: 188258.6536 | BF41: 319022.7056 | BG41: -785969.6322 | BH41: 1416932.368 | BI41: 945317.1634 | BJ41: =BI41*(1+Analise_Fundamentalista!$C$10)/(Analise_Fundamentalista!$C$10) -> 13176934.86 | BK41: =NPV(Analise_Fundamentalista!$C$10,Monte_Carlo!AZ41:BI41)+Monte_Carlo!BJ41/(1+Analise_Fundamentalista!$C$10)^10 -> 7701766.056 | BL41: =(BK41+Analise_Fundamentalista!$C$15-Analise_Fundamentalista!$C$16-Analise_Fundamentalista!$C$17)/(Analise_Fundamentalista!$F$29+Analise_Fundamentalista!$F$30)*1000 -> 49.63707383 | BM41: 0.6931396769
A42: Tent17 | B42: 2494747.457 | C42: =(RAND()*($D$17-$D$16)+$D$16)*(1-Analise_Fundamentalista!$C$6)*B42 -> 340849.0799 | D42: -384451.2243 | E42: =Analise_Fundamentalista!$C$12*Monte_Carlo!B42 -> 90558.52024 | F42: =-Analise_Fundamentalista!$C$14*Monte_Carlo!B42 -> -26664.09202 | G42: 3616148.317 | H42: =(RAND()*($D$17-$D$16)+$D$16)*(1-Analise_Fundamentalista!$C$6)*G42 -> 265306.0319 | I42: -465940.0379 | J42: =Analise_Fundamentalista!$C$12*Monte_Carlo!G42 -> 131265.0063 | K42: =-Analise_Fundamentalista!$C$14*Monte_Carlo!G42 -> -38649.72834 | L42: 3424704.906 | M42: =(RAND()*($D$17-$D$16)+$D$16)*(1-Analise_Fundamentalista!$C$6)*L42 -> 528488.4932 | N42: -29725.6216 | O42: =Analise_Fundamentalista!$C$12*Monte_Carlo!L42 -> 124315.6728 | P42: =-Analise_Fundamentalista!$C$14*Monte_Carlo!L42 -> -36603.56342 | Q42: 4436384.588 | R42: =(RAND()*($D$17-$D$16)+$D$16)*(1-Analise_Fundamentalista!$C$6)*Q42 -> 311869.963 | S42: -294179.6471 | T42: =Analise_Fundamentalista!$C$12*Monte_Carlo!Q42 -> 161039.3158 | U42: =-Analise_Fundamentalista!$C$14*Monte_Carlo!Q42 -> -47416.48962 | V42: 4633295.961 | W42: =(RAND()*($D$17-$D$16)+$D$16)*(1-Analise_Fundamentalista!$C$6)*V42 -> 603320.2862 | X42: -109678.0604 | Y42: =Analise_Fundamentalista!$C$12*Monte_Carlo!V42 -> 168187.1345 | Z42: =-Analise_Fundamentalista!$C$14*Monte_Carlo!V42 -> -49521.09663 | AA42: 5528096.826 | AB42: =(RAND()*($D$17-$D$16)+$D$16)*(1-Analise_Fundamentalista!$C$6)*AA42 -> 769762.1095 | AC42: -62744.18643 | AD42: =Analise_Fundamentalista!$C$12*Monte_Carlo!AA42 -> 200668.1145 | AE42: =-Analise_Fundamentalista!$C$14*Monte_Carlo!AA42 -> -59084.8112 | AF42: 7177669.656 | AG42: =(RAND()*($D$17-$D$16)+$D$16)*(1-Analise_Fundamentalista!$C$6)*AF42 -> 1034427.396 | AH42: -586455.0316 | AI42: =Analise_Fundamentalista!$C$12*Monte_Carlo!AF42 -> 260547.071 | AJ42: =-Analise_Fundamentalista!$C$14*Monte_Carlo!AF42 -> -76715.59848 | AK42: 7986117.266 | AL42: =(RAND()*($D$17-$D$16)+$D$16)*(1-Analise_Fundamentalista!$C$6)*AK42 -> 1013831.33 | AM42: -232415.8682 | AN42: =Analise_Fundamentalista!$C$12*Monte_Carlo!AK42 -> 289893.456 | AO42: =-Analise_Fundamentalista!$C$14*Monte_Carlo!AK42 -> -85356.36146 | AP42: 9814013.319 | AQ42: =(RAND()*($D$17-$D$16)+$D$16)*(1-Analise_Fundamentalista!$C$6)*AP42 -> 742971.7207 | AR42: -1544513.592 | AS42: =Analise_Fundamentalista!$C$12*Monte_Carlo!AP42 -> 356245.4875 | AT42: =-Analise_Fundamentalista!$C$14*Monte_Carlo!AP42 -> -104893.0839 | AU42: 11346160.36 | AV42: =(RAND()*($D$17-$D$16)+$D$16)*(1-Analise_Fundamentalista!$C$6)*AU42 -> 594086.7503 | AW42: -941010.8396 | AX42: =Analise_Fundamentalista!$C$12*Monte_Carlo!AU42 -> 411861.926 | AY42: =-Analise_Fundamentalista!$C$14*Monte_Carlo!AU42 -> -121268.8134 | AZ42: 20292.28382 | BA42: -108018.7281 | BB42: 586474.9809 | BC42: 131313.1421 | BD42: 612308.2637 | BE42: 848601.2264 | BF42: 631803.8366 | BG42: 985952.5565 | BH42: -550189.4682 | BI42: -56330.9768 | BJ42: =BI42*(1+Analise_Fundamentalista!$C$10)/(Analise_Fundamentalista!$C$10) -> -785206.9558 | BK42: =NPV(Analise_Fundamentalista!$C$10,Monte_Carlo!AZ42:BI42)+Monte_Carlo!BJ42/(1+Analise_Fundamentalista!$C$10)^10 -> 1694704.735 | BL42: =(BK42+Analise_Fundamentalista!$C$15-Analise_Fundamentalista!$C$16-Analise_Fundamentalista!$C$17)/(Analise_Fundamentalista!$F$29+Analise_Fundamentalista!$F$30)*1000 -> 12.73276896 | BM42: 0.2934328341
A43: Tent18 | B43: 2545313.106 | C43: =(RAND()*($D$17-$D$16)+$D$16)*(1-Analise_Fundamentalista!$C$6)*B43 -> 160611.4265 | D43: -213699.0903 | E43: =Analise_Fundamentalista!$C$12*Monte_Carlo!B43 -> 92394.03686 | F43: =-Analise_Fundamentalista!$C$14*Monte_Carlo!B43 -> -27204.54237 | G43: 3247793.095 | H43: =(RAND()*($D$17-$D$16)+$D$16)*(1-Analise_Fundamentalista!$C$6)*G43 -> 433710.8627 | I43: -228570.639 | J43: =Analise_Fundamentalista!$C$12*Monte_Carlo!G43 -> 117893.8317 | K43: =-Analise_Fundamentalista!$C$14*Monte_Carlo!G43 -> -34712.7136 | L43: 3902021.759 | M43: =(RAND()*($D$17-$D$16)+$D$16)*(1-Analise_Fundamentalista!$C$6)*L43 -> 607309.319 | N43: -863247.8415 | O43: =Analise_Fundamentalista!$C$12*Monte_Carlo!L43 -> 141642.1191 | P43: =-Analise_Fundamentalista!$C$14*Monte_Carlo!L43 -> -41705.17019 | Q43: 4095393.152 | R43: =(RAND()*($D$17-$D$16)+$D$16)*(1-Analise_Fundamentalista!$C$6)*Q43 -> 494592.4384 | S43: -421191.1272 | T43: =Analise_Fundamentalista!$C$12*Monte_Carlo!Q43 -> 148661.4377 | U43: =-Analise_Fundamentalista!$C$14*Monte_Carlo!Q43 -> -43771.94156 | V43: 5001772.309 | W43: =(RAND()*($D$17-$D$16)+$D$16)*(1-Analise_Fundamentalista!$C$6)*V43 -> 280277.6487 | X43: -42863.98754 | Y43: =Analise_Fundamentalista!$C$12*Monte_Carlo!V43 -> 181562.7059 | Z43: =-Analise_Fundamentalista!$C$14*Monte_Carlo!V43 -> -53459.40598 | AA43: 5822984.095 | AB43: =(RAND()*($D$17-$D$16)+$D$16)*(1-Analise_Fundamentalista!$C$6)*AA43 -> 335199.7153 | AC43: -391493.9799 | AD43: =Analise_Fundamentalista!$C$12*Monte_Carlo!AA43 -> 211372.4263 | AE43: =-Analise_Fundamentalista!$C$14*Monte_Carlo!AA43 -> -62236.59366 | AF43: 7101808.704 | AG43: =(RAND()*($D$17-$D$16)+$D$16)*(1-Analise_Fundamentalista!$C$6)*AF43 -> 670880.7881 | AH43: -1332.336965 | AI43: =Analise_Fundamentalista!$C$12*Monte_Carlo!AF43 -> 257793.3432 | AJ43: =-Analise_Fundamentalista!$C$14*Monte_Carlo!AF43 -> -75904.78959 | AK43: 7230287.891 | AL43: =(RAND()*($D$17-$D$16)+$D$16)*(1-Analise_Fundamentalista!$C$6)*AK43 -> 245953.4101 | AM43: -691039.3968 | AN43: =Analise_Fundamentalista!$C$12*Monte_Carlo!AK43 -> 262457.0958 | AO43: =-Analise_Fundamentalista!$C$14*Monte_Carlo!AK43 -> -77277.98706 | AP43: 10412320.48 | AQ43: =(RAND()*($D$17-$D$16)+$D$16)*(1-Analise_Fundamentalista!$C$6)*AP43 -> 942773.4356 | AR43: -644101.9665 | AS43: =Analise_Fundamentalista!$C$12*Monte_Carlo!AP43 -> 377963.8425 | AT43: =-Analise_Fundamentalista!$C$14*Monte_Carlo!AP43 -> -111287.8463 | AU43: 12218146.07 | AV43: =(RAND()*($D$17-$D$16)+$D$16)*(1-Analise_Fundamentalista!$C$6)*AU43 -> 1963979.535 | AW43: -539650.9137 | AX43: =Analise_Fundamentalista!$C$12*Monte_Carlo!AU43 -> 443514.7234 | AY43: =-Analise_Fundamentalista!$C$14*Monte_Carlo!AU43 -> -130588.6775 | AZ43: 12101.83069 | BA43: 288321.3418 | BB43: -156001.5735 | BC43: 178290.8073 | BD43: 365516.9611 | BE43: 92841.56809 | BF43: 851437.0047 | BG43: -259906.8779 | BH43: 565347.4653 | BI43: 1737254.667 | BJ43: =BI43*(1+Analise_Fundamentalista!$C$10)/(Analise_Fundamentalista!$C$10) -> 24215884.86 | BK43: =NPV(Analise_Fundamentalista!$C$10,Monte_Carlo!AZ43:BI43)+Monte_Carlo!BJ43/(1+Analise_Fundamentalista!$C$10)^10 -> 13558016.44 | BL43: =(BK43+Analise_Fundamentalista!$C$15-Analise_Fundamentalista!$C$16-Analise_Fundamentalista!$C$17)/(Analise_Fundamentalista!$F$29+Analise_Fundamentalista!$F$30)*1000 -> 85.61487365 | BM43: 0.9365707925
A44: Tent19 | B44: 2487613.633 | C44: =(RAND()*($D$17-$D$16)+$D$16)*(1-Analise_Fundamentalista!$C$6)*B44 -> 326863.4983 | D44: -67864.92257 | E44: =Analise_Fundamentalista!$C$12*Monte_Carlo!B44 -> 90299.56475 | F44: =-Analise_Fundamentalista!$C$14*Monte_Carlo!B44 -> -26587.84505 | G44: 3220388.357 | H44: =(RAND()*($D$17-$D$16)+$D$16)*(1-Analise_Fundamentalista!$C$6)*G44 -> 182913.4089 | I44: -286394.2881 | J44: =Analise_Fundamentalista!$C$12*Monte_Carlo!G44 -> 116899.0486 | K44: =-Analise_Fundamentalista!$C$14*Monte_Carlo!G44 -> -34419.80922 | L44: 3587130.927 | M44: =(RAND()*($D$17-$D$16)+$D$16)*(1-Analise_Fundamentalista!$C$6)*L44 -> 585624.2087 | N44: -173709.2258 | O44: =Analise_Fundamentalista!$C$12*Monte_Carlo!L44 -> 130211.6845 | P44: =-Analise_Fundamentalista!$C$14*Monte_Carlo!L44 -> -38339.58779 | Q44: 4100406.768 | R44: =(RAND()*($D$17-$D$16)+$D$16)*(1-Analise_Fundamentalista!$C$6)*Q44 -> 228245.6563 | S44: -118158.6639 | T44: =Analise_Fundamentalista!$C$12*Monte_Carlo!Q44 -> 148843.4303 | U44: =-Analise_Fundamentalista!$C$14*Monte_Carlo!Q44 -> -43825.52755 | V44: 5549838.832 | W44: =(RAND()*($D$17-$D$16)+$D$16)*(1-Analise_Fundamentalista!$C$6)*V44 -> 246639.5955 | X44: -844277.244 | Y44: =Analise_Fundamentalista!$C$12*Monte_Carlo!V44 -> 201457.3422 | Z44: =-Analise_Fundamentalista!$C$14*Monte_Carlo!V44 -> -59317.19177 | AA44: 5683002.458 | AB44: =(RAND()*($D$17-$D$16)+$D$16)*(1-Analise_Fundamentalista!$C$6)*AA44 -> 504940.0195 | AC44: -415219.0655 | AD44: =Analise_Fundamentalista!$C$12*Monte_Carlo!AA44 -> 206291.1385 | AE44: =-Analise_Fundamentalista!$C$14*Monte_Carlo!AA44 -> -60740.45695 | AF44: 7887938.674 | AG44: =(RAND()*($D$17-$D$16)+$D$16)*(1-Analise_Fundamentalista!$C$6)*AF44 -> 941259.5397 | AH44: -1383830.857 | AI44: =Analise_Fundamentalista!$C$12*Monte_Carlo!AF44 -> 286329.6051 | AJ44: =-Analise_Fundamentalista!$C$14*Monte_Carlo!AF44 -> -84307.01957 | AK44: 8321905.905 | AL44: =(RAND()*($D$17-$D$16)+$D$16)*(1-Analise_Fundamentalista!$C$6)*AK44 -> 1324885.97 | AM44: -1367835.564 | AN44: =Analise_Fundamentalista!$C$12*Monte_Carlo!AK44 -> 302082.4743 | AO44: =-Analise_Fundamentalista!$C$14*Monte_Carlo!AK44 -> -88945.30156 | AP44: 9441725.667 | AQ44: =(RAND()*($D$17-$D$16)+$D$16)*(1-Analise_Fundamentalista!$C$6)*AP44 -> 545020.5207 | AR44: -219688.0299 | AS44: =Analise_Fundamentalista!$C$12*Monte_Carlo!AP44 -> 342731.5669 | AT44: =-Analise_Fundamentalista!$C$14*Monte_Carlo!AP44 -> -100914.039 | AU44: 13928522.76 | AV44: =(RAND()*($D$17-$D$16)+$D$16)*(1-Analise_Fundamentalista!$C$6)*AU44 -> 953255.9545 | AW44: -633438.7708 | AX44: =Analise_Fundamentalista!$C$12*Monte_Carlo!AU44 -> 505600.8401 | AY44: =-Analise_Fundamentalista!$C$14*Monte_Carlo!AU44 -> -148869.3421 | AZ44: 322710.2954 | BA44: -21001.63982 | BB44: 503787.0795 | BC44: 215104.8952 | BD44: -455497.4981 | BE44: 235271.6356 | BF44: -240548.7316 | BG44: 170187.5787 | BH44: 567150.0188 | BI44: 676548.6818 | BJ44: =BI44*(1+Analise_Fundamentalista!$C$10)/(Analise_Fundamentalista!$C$10) -> 9430525.815 | BK44: =NPV(Analise_Fundamentalista!$C$10,Monte_Carlo!AZ44:BI44)+Monte_Carlo!BJ44/(1+Analise_Fundamentalista!$C$10)^10 -> 5722769.617 | BL44: =(BK44+Analise_Fundamentalista!$C$15-Analise_Fundamentalista!$C$16-Analise_Fundamentalista!$C$17)/(Analise_Fundamentalista!$F$29+Analise_Fundamentalista!$F$30)*1000 -> 37.47913437 | BM44: 0.5633470595
A45: Tent20 | B45: 2538792.515 | C45: =(RAND()*($D$17-$D$16)+$D$16)*(1-Analise_Fundamentalista!$C$6)*B45 -> 281052.9559 | D45: -136095.7512 | E45: =Analise_Fundamentalista!$C$12*Monte_Carlo!B45 -> 92157.34153 | F45: =-Analise_Fundamentalista!$C$14*Monte_Carlo!B45 -> -27134.84969 | G45: 2689676.76 | H45: =(RAND()*($D$17-$D$16)+$D$16)*(1-Analise_Fundamentalista!$C$6)*G45 -> 99959.69507 | I45: -96366.65172 | J45: =Analise_Fundamentalista!$C$12*Monte_Carlo!G45 -> 97634.39046 | K45: =-Analise_Fundamentalista!$C$14*Monte_Carlo!G45 -> -28747.51448 | L45: 3535297.973 | M45: =(RAND()*($D$17-$D$16)+$D$16)*(1-Analise_Fundamentalista!$C$6)*L45 -> 461896.5558 | N45: -622631.5612 | O45: =Analise_Fundamentalista!$C$12*Monte_Carlo!L45 -> 128330.1651 | P45: =-Analise_Fundamentalista!$C$14*Monte_Carlo!L45 -> -37785.59238 | Q45: 4070044.022 | R45: =(RAND()*($D$17-$D$16)+$D$16)*(1-Analise_Fundamentalista!$C$6)*Q45 -> 556818.1366 | S45: -77817.47481 | T45: =Analise_Fundamentalista!$C$12*Monte_Carlo!Q45 -> 147741.2725 | U45: =-Analise_Fundamentalista!$C$14*Monte_Carlo!Q45 -> -43501.0077 | V45: 5329337.61 | W45: =(RAND()*($D$17-$D$16)+$D$16)*(1-Analise_Fundamentalista!$C$6)*V45 -> 779960.9628 | X45: -327650.7433 | Y45: =Analise_Fundamentalista!$C$12*Monte_Carlo!V45 -> 193453.2197 | Z45: =-Analise_Fundamentalista!$C$14*Monte_Carlo!V45 -> -56960.45427 | AA45: 5726142.636 | AB45: =(RAND()*($D$17-$D$16)+$D$16)*(1-Analise_Fundamentalista!$C$6)*AA45 -> 796439.2986 | AC45: -40297.41762 | AD45: =Analise_Fundamentalista!$C$12*Monte_Carlo!AA45 -> 207857.1129 | AE45: =-Analise_Fundamentalista!$C$14*Monte_Carlo!AA45 -> -61201.54317 | AF45: 7116385.781 | AG45: =(RAND()*($D$17-$D$16)+$D$16)*(1-Analise_Fundamentalista!$C$6)*AF45 -> 771378.1694 | AH45: -431117.6002 | AI45: =Analise_Fundamentalista!$C$12*Monte_Carlo!AF45 -> 258322.4863 | AJ45: =-Analise_Fundamentalista!$C$14*Monte_Carlo!AF45 -> -76060.59075 | AK45: 8340227.432 | AL45: =(RAND()*($D$17-$D$16)+$D$16)*(1-Analise_Fundamentalista!$C$6)*AK45 -> 585884.9051 | AM45: -287812.9573 | AN45: =Analise_Fundamentalista!$C$12*Monte_Carlo!AK45 -> 302747.5397 | AO45: =-Analise_Fundamentalista!$C$14*Monte_Carlo!AK45 -> -89141.12373 | AP45: 8947113.182 | AQ45: =(RAND()*($D$17-$D$16)+$D$16)*(1-Analise_Fundamentalista!$C$6)*AP45 -> 994560.3 | AR45: -69540.22534 | AS45: =Analise_Fundamentalista!$C$12*Monte_Carlo!AP45 -> 324777.2948 | AT45: =-Analise_Fundamentalista!$C$14*Monte_Carlo!AP45 -> -95627.57487 | AU45: 11513583.35 | AV45: =(RAND()*($D$17-$D$16)+$D$16)*(1-Analise_Fundamentalista!$C$6)*AU45 -> 1265389.19 | AW45: -25605.75629 | AX45: =Analise_Fundamentalista!$C$12*Monte_Carlo!AU45 -> 417939.3262 | AY45: =-Analise_Fundamentalista!$C$14*Monte_Carlo!AU45 -> -123058.2459 | AZ45: 209979.6965 | BA45: 72479.91933 | BB45: -70190.43265 | BC45: 583240.9267 | BD45: 588802.9849 | BE45: 902797.4508 | BF45: 522522.4648 | BG45: 511678.3637 | BH45: 1154169.795 | BI45: 1534664.514 | BJ45: =BI45*(1+Analise_Fundamentalista!$C$10)/(Analise_Fundamentalista!$C$10) -> 21391946.66 | BK45: =NPV(Analise_Fundamentalista!$C$10,Monte_Carlo!AZ45:BI45)+Monte_Carlo!BJ45/(1+Analise_Fundamentalista!$C$10)^10 -> 13690795.92 | BL45: =(BK45+Analise_Fundamentalista!$C$15-Analise_Fundamentalista!$C$16-Analise_Fundamentalista!$C$17)/(Analise_Fundamentalista!$F$29+Analise_Fundamentalista!$F$30)*1000 -> 86.43060265 | BM45: 0.9394024372
A46: Tent21 | B46: 2495189.77 | C46: =(RAND()*($D$17-$D$16)+$D$16)*(1-Analise_Fundamentalista!$C$6)*B46 -> 220462.1688 | D46: -89670.08289 | E46: =Analise_Fundamentalista!$C$12*Monte_Carlo!B46 -> 90574.57606 | F46: =-Analise_Fundamentalista!$C$14*Monte_Carlo!B46 -> -26668.8195 | G46: 2438255.804 | H46: =(RAND()*($D$17-$D$16)+$D$16)*(1-Analise_Fundamentalista!$C$6)*G46 -> 120544.5578 | I46: -220546.4348 | J46: =Analise_Fundamentalista!$C$12*Monte_Carlo!G46 -> 88507.89164 | K46: =-Analise_Fundamentalista!$C$14*Monte_Carlo!G46 -> -26060.304 | L46: 3695879.019 | M46: =(RAND()*($D$17-$D$16)+$D$16)*(1-Analise_Fundamentalista!$C$6)*L46 -> 122348.0396 | N46: -389714.7475 | O46: =Analise_Fundamentalista!$C$12*Monte_Carlo!L46 -> 134159.2048 | P46: =-Analise_Fundamentalista!$C$14*Monte_Carlo!L46 -> -39501.89748 | Q46: 4456624.089 | R46: =(RAND()*($D$17-$D$16)+$D$16)*(1-Analise_Fundamentalista!$C$6)*Q46 -> 387232.4134 | S46: -446290.2567 | T46: =Analise_Fundamentalista!$C$12*Monte_Carlo!Q46 -> 161774.0031 | U46: =-Analise_Fundamentalista!$C$14*Monte_Carlo!Q46 -> -47632.81128 | V46: 4962674.879 | W46: =(RAND()*($D$17-$D$16)+$D$16)*(1-Analise_Fundamentalista!$C$6)*V46 -> 437318.3107 | X46: -542674.1415 | Y46: =Analise_Fundamentalista!$C$12*Monte_Carlo!V46 -> 180143.482 | Z46: =-Analise_Fundamentalista!$C$14*Monte_Carlo!V46 -> -53041.52903 | AA46: 6054008.384 | AB46: =(RAND()*($D$17-$D$16)+$D$16)*(1-Analise_Fundamentalista!$C$6)*AA46 -> 268876.8516 | AC46: -460162.3178 | AD46: =Analise_Fundamentalista!$C$12*Monte_Carlo!AA46 -> 219758.5328 | AE46: =-Analise_Fundamentalista!$C$14*Monte_Carlo!AA46 -> -64705.80267 | AF46: 6879062.9 | AG46: =(RAND()*($D$17-$D$16)+$D$16)*(1-Analise_Fundamentalista!$C$6)*AF46 -> 670959.2368 | AH46: -4403.70078 | AI46: =Analise_Fundamentalista!$C$12*Monte_Carlo!AF46 -> 249707.743 | AJ46: =-Analise_Fundamentalista!$C$14*Monte_Carlo!AF46 -> -73524.0618 | AK46: 8156502.04 | AL46: =(RAND()*($D$17-$D$16)+$D$16)*(1-Analise_Fundamentalista!$C$6)*AK46 -> 826420.7627 | AM46: -452788.0412 | AN46: =Analise_Fundamentalista!$C$12*Monte_Carlo!AK46 -> 296078.3678 | AO46: =-Analise_Fundamentalista!$C$14*Monte_Carlo!AK46 -> -87177.44972 | AP46: 10551972 | AQ46: =(RAND()*($D$17-$D$16)+$D$16)*(1-Analise_Fundamentalista!$C$6)*AP46 -> 520661.5437 | AR46: -158785.4122 | AS46: =Analise_Fundamentalista!$C$12*Monte_Carlo!AP46 -> 383033.1471 | AT46: =-Analise_Fundamentalista!$C$14*Monte_Carlo!AP46 -> -112780.4546 | AU46: 10358253.63 | AV46: =(RAND()*($D$17-$D$16)+$D$16)*(1-Analise_Fundamentalista!$C$6)*AU46 -> 1033254.53 | AW46: -1356742.899 | AX46: =Analise_Fundamentalista!$C$12*Monte_Carlo!AU46 -> 376001.2337 | AY46: =-Analise_Fundamentalista!$C$14*Monte_Carlo!AU46 -> -110709.9748 | AZ46: 194697.8425 | BA46: -37554.28934 | BB46: -172709.4005 | BC46: 55083.34855 | BD46: 21746.12218 | BE46: -36232.73603 | BF46: 842739.2173 | BG46: 582533.6395 | BH46: 632128.824 | BI46: -58197.10982 | BJ46: =BI46*(1+Analise_Fundamentalista!$C$10)/(Analise_Fundamentalista!$C$10) -> -811219.2977 | BK46: =NPV(Analise_Fundamentalista!$C$10,Monte_Carlo!AZ46:BI46)+Monte_Carlo!BJ46/(1+Analise_Fundamentalista!$C$10)^10 -> 775026.9632 | BL46: =(BK46+Analise_Fundamentalista!$C$15-Analise_Fundamentalista!$C$16-Analise_Fundamentalista!$C$17)/(Analise_Fundamentalista!$F$29+Analise_Fundamentalista!$F$30)*1000 -> 7.082740261 | BM46: 0.240761427
A47: Tent22 | B47: 2273260.554 | C47: =(RAND()*($D$17-$D$16)+$D$16)*(1-Analise_Fundamentalista!$C$6)*B47 -> 189110.3386 | D47: -139665.7906 | E47: =Analise_Fundamentalista!$C$12*Monte_Carlo!B47 -> 82518.6178 | F47: =-Analise_Fundamentalista!$C$14*Monte_Carlo!B47 -> -24296.81948 | G47: 2837285.683 | H47: =(RAND()*($D$17-$D$16)+$D$16)*(1-Analise_Fundamentalista!$C$6)*G47 -> 257752.5302 | I47: -286083.4475 | J47: =Analise_Fundamentalista!$C$12*Monte_Carlo!G47 -> 102992.5463 | K47: =-Analise_Fundamentalista!$C$14*Monte_Carlo!G47 -> -30325.17233 | L47: 3575652.748 | M47: =(RAND()*($D$17-$D$16)+$D$16)*(1-Analise_Fundamentalista!$C$6)*L47 -> 491638.1339 | N47: -33398.88333 | O47: =Analise_Fundamentalista!$C$12*Monte_Carlo!L47 -> 129795.0303 | P47: =-Analise_Fundamentalista!$C$14*Monte_Carlo!L47 -> -38216.90795 | Q47: 4318887.545 | R47: =(RAND()*($D$17-$D$16)+$D$16)*(1-Analise_Fundamentalista!$C$6)*Q47 -> 390649.3356 | S47: -94036.18277 | T47: =Analise_Fundamentalista!$C$12*Monte_Carlo!Q47 -> 156774.2114 | U47: =-Analise_Fundamentalista!$C$14*Monte_Carlo!Q47 -> -46160.67033 | V47: 4646781.001 | W47: =(RAND()*($D$17-$D$16)+$D$16)*(1-Analise_Fundamentalista!$C$6)*V47 -> 345515.7769 | X47: -468819.5104 | Y47: =Analise_Fundamentalista!$C$12*Monte_Carlo!V47 -> 168676.6371 | Z47: =-Analise_Fundamentalista!$C$14*Monte_Carlo!V47 -> -49665.22598 | AA47: 6110195.219 | AB47: =(RAND()*($D$17-$D$16)+$D$16)*(1-Analise_Fundamentalista!$C$6)*AA47 -> 332780.0514 | AC47: -375026.8691 | AD47: =Analise_Fundamentalista!$C$12*Monte_Carlo!AA47 -> 221798.0966 | AE47: =-Analise_Fundamentalista!$C$14*Monte_Carlo!AA47 -> -65306.33277 | AF47: 6035086.647 | AG47: =(RAND()*($D$17-$D$16)+$D$16)*(1-Analise_Fundamentalista!$C$6)*AF47 -> 287066.9505 | AH47: -461954.3783 | AI47: =Analise_Fundamentalista!$C$12*Monte_Carlo!AF47 -> 219071.6799 | AJ47: =-Analise_Fundamentalista!$C$14*Monte_Carlo!AF47 -> -64503.56539 | AK47: 8747333.978 | AL47: =(RAND()*($D$17-$D$16)+$D$16)*(1-Analise_Fundamentalista!$C$6)*AK47 -> 963841.8941 | AM47: -455792.5806 | AN47: =Analise_Fundamentalista!$C$12*Monte_Carlo!AK47 -> 317525.3747 | AO47: =-Analise_Fundamentalista!$C$14*Monte_Carlo!AK47 -> -93492.31622 | AP47: 9684810.302 | AQ47: =(RAND()*($D$17-$D$16)+$D$16)*(1-Analise_Fundamentalista!$C$6)*AP47 -> 1249253.836 | AR47: -572077.1786 | AS47: =Analise_Fundamentalista!$C$12*Monte_Carlo!AP47 -> 351555.46 | AT47: =-Analise_Fundamentalista!$C$14*Monte_Carlo!AP47 -> -103512.1501 | AU47: 12117269.4 | AV47: =(RAND()*($D$17-$D$16)+$D$16)*(1-Analise_Fundamentalista!$C$6)*AU47 -> 772679.5188 | AW47: -743837.2345 | AX47: =Analise_Fundamentalista!$C$12*Monte_Carlo!AU47 -> 439852.9331 | AY47: =-Analise_Fundamentalista!$C$14*Monte_Carlo!AU47 -> -129510.4983 | AZ47: 107666.3464 | BA47: 44336.45671 | BB47: 549817.3729 | BC47: 407226.6939 | BD47: -4292.322407 | BE47: 114244.9461 | BF47: -20319.31331 | BG47: 732082.372 | BH47: 925219.9676 | BI47: 339184.7191 | BJ47: =BI47*(1+Analise_Fundamentalista!$C$10)/(Analise_Fundamentalista!$C$10) -> 4727952.822 | BK47: =NPV(Analise_Fundamentalista!$C$10,Monte_Carlo!AZ47:BI47)+Monte_Carlo!BJ47/(1+Analise_Fundamentalista!$C$10)^10 -> 4222245.388 | BL47: =(BK47+Analise_Fundamentalista!$C$15-Analise_Fundamentalista!$C$16-Analise_Fundamentalista!$C$17)/(Analise_Fundamentalista!$F$29+Analise_Fundamentalista!$F$30)*1000 -> 28.26068283 | BM47: 0.4592350607
A48: Tent23 | B48: 2397775.391 | C48: =(RAND()*($D$17-$D$16)+$D$16)*(1-Analise_Fundamentalista!$C$6)*B48 -> 254760.8765 | D48: -341867.9183 | E48: =Analise_Fundamentalista!$C$12*Monte_Carlo!B48 -> 87038.46583 | F48: =-Analise_Fundamentalista!$C$14*Monte_Carlo!B48 -> -25627.64559 | G48: 2160060.631 | H48: =(RAND()*($D$17-$D$16)+$D$16)*(1-Analise_Fundamentalista!$C$6)*G48 -> 99102.77465 | I48: -233109.9151 | J48: =Analise_Fundamentalista!$C$12*Monte_Carlo!G48 -> 78409.49747 | K48: =-Analise_Fundamentalista!$C$14*Monte_Carlo!G48 -> -23086.92821 | L48: 3488343.672 | M48: =(RAND()*($D$17-$D$16)+$D$16)*(1-Analise_Fundamentalista!$C$6)*L48 -> 551228.2487 | N48: -395632.5762 | O48: =Analise_Fundamentalista!$C$12*Monte_Carlo!L48 -> 126625.7393 | P48: =-Analise_Fundamentalista!$C$14*Monte_Carlo!L48 -> -37283.74045 | Q48: 4668393.844 | R48: =(RAND()*($D$17-$D$16)+$D$16)*(1-Analise_Fundamentalista!$C$6)*Q48 -> 221069.7576 | S48: -385547.1521 | T48: =Analise_Fundamentalista!$C$12*Monte_Carlo!Q48 -> 169461.1762 | U48: =-Analise_Fundamentalista!$C$14*Monte_Carlo!Q48 -> -49896.22605 | V48: 5287175.308 | W48: =(RAND()*($D$17-$D$16)+$D$16)*(1-Analise_Fundamentalista!$C$6)*V48 -> 282303.5997 | X48: -347448.3033 | Y48: =Analise_Fundamentalista!$C$12*Monte_Carlo!V48 -> 191922.7418 | Z48: =-Analise_Fundamentalista!$C$14*Monte_Carlo!V48 -> -56509.81968 | AA48: 5409605.977 | AB48: =(RAND()*($D$17-$D$16)+$D$16)*(1-Analise_Fundamentalista!$C$6)*AA48 -> 843497.0529 | AC48: -30150.18127 | AD48: =Analise_Fundamentalista!$C$12*Monte_Carlo!AA48 -> 196366.9353 | AE48: =-Analise_Fundamentalista!$C$14*Monte_Carlo!AA48 -> -57818.37003 | AF48: 6113872.499 | AG48: =(RAND()*($D$17-$D$16)+$D$16)*(1-Analise_Fundamentalista!$C$6)*AF48 -> 926022.3924 | AH48: -227023.2394 | AI48: =Analise_Fundamentalista!$C$12*Monte_Carlo!AF48 -> 221931.5807 | AJ48: =-Analise_Fundamentalista!$C$14*Monte_Carlo!AF48 -> -65345.63588 | AK48: 7891845.321 | AL48: =(RAND()*($D$17-$D$16)+$D$16)*(1-Analise_Fundamentalista!$C$6)*AK48 -> 638015.1014 | AM48: -430720.1155 | AN48: =Analise_Fundamentalista!$C$12*Monte_Carlo!AK48 -> 286471.4151 | AO48: =-Analise_Fundamentalista!$C$14*Monte_Carlo!AK48 -> -84348.77418 | AP48: 10493845.27 | AQ48: =(RAND()*($D$17-$D$16)+$D$16)*(1-Analise_Fundamentalista!$C$6)*AP48 -> 558536.0792 | AR48: -1392875.164 | AS48: =Analise_Fundamentalista!$C$12*Monte_Carlo!AP48 -> 380923.1658 | AT48: =-Analise_Fundamentalista!$C$14*Monte_Carlo!AP48 -> -112159.1908 | AU48: 11085392.51 | AV48: =(RAND()*($D$17-$D$16)+$D$16)*(1-Analise_Fundamentalista!$C$6)*AU48 -> 701991.8653 | AW48: -999592.8475 | AX48: =Analise_Fundamentalista!$C$12*Monte_Carlo!AU48 -> 402396.1382 | AY48: =-Analise_Fundamentalista!$C$14*Monte_Carlo!AU48 -> -118481.7025 | AZ48: -25696.22154 | BA48: -78684.57121 | BB48: 244937.6713 | BC48: -44912.44433 | BD48: 70268.21858 | BE48: 951895.4369 | BF48: 855585.0977 | BG48: 409417.6269 | BH48: -565575.1095 | BI48: -13686.54658 | BJ48: =BI48*(1+Analise_Fundamentalista!$C$10)/(Analise_Fundamentalista!$C$10) -> -190779.0737 | BK48: =NPV(Analise_Fundamentalista!$C$10,Monte_Carlo!AZ48:BI48)+Monte_Carlo!BJ48/(1+Analise_Fundamentalista!$C$10)^10 -> 1075591.248 | BL48: =(BK48+Analise_Fundamentalista!$C$15-Analise_Fundamentalista!$C$16-Analise_Fundamentalista!$C$17)/(Analise_Fundamentalista!$F$29+Analise_Fundamentalista!$F$30)*1000 -> 8.929253124 | BM48: 0.2573906576
A49: Tent24 | B49: 2229015.936 | C49: =(RAND()*($D$17-$D$16)+$D$16)*(1-Analise_Fundamentalista!$C$6)*B49 -> 191729.7937 | D49: -50052.20253 | E49: =Analise_Fundamentalista!$C$12*Monte_Carlo!B49 -> 80912.55257 | F49: =-Analise_Fundamentalista!$C$14*Monte_Carlo!B49 -> -23823.9289 | G49: 2862881.521 | H49: =(RAND()*($D$17-$D$16)+$D$16)*(1-Analise_Fundamentalista!$C$6)*G49 -> 445517.5279 | I49: -11970.42449 | J49: =Analise_Fundamentalista!$C$12*Monte_Carlo!G49 -> 103921.6669 | K49: =-Analise_Fundamentalista!$C$14*Monte_Carlo!G49 -> -30598.74302 | L49: 3667349.658 | M49: =(RAND()*($D$17-$D$16)+$D$16)*(1-Analise_Fundamentalista!$C$6)*L49 -> 275950.7403 | N49: -278628.8667 | O49: =Analise_Fundamentalista!$C$12*Monte_Carlo!L49 -> 133123.5983 | P49: =-Analise_Fundamentalista!$C$14*Monte_Carlo!L49 -> -39196.97302 | Q49: 4167217.734 | R49: =(RAND()*($D$17-$D$16)+$D$16)*(1-Analise_Fundamentalista!$C$6)*Q49 -> 159785.5835 | S49: -8314.425044 | T49: =Analise_Fundamentalista!$C$12*Monte_Carlo!Q49 -> 151268.6466 | U49: =-Analise_Fundamentalista!$C$14*Monte_Carlo!Q49 -> -44539.60934 | V49: 4458930.735 | W49: =(RAND()*($D$17-$D$16)+$D$16)*(1-Analise_Fundamentalista!$C$6)*V49 -> 397313.4051 | X49: -355499.4238 | Y49: =Analise_Fundamentalista!$C$12*Monte_Carlo!V49 -> 161857.7336 | Z49: =-Analise_Fundamentalista!$C$14*Monte_Carlo!V49 -> -47657.46493 | AA49: 5397705.818 | AB49: =(RAND()*($D$17-$D$16)+$D$16)*(1-Analise_Fundamentalista!$C$6)*AA49 -> 806984.4144 | AC49: -196644.0906 | AD49: =Analise_Fundamentalista!$C$12*Monte_Carlo!AA49 -> 195934.9634 | AE49: =-Analise_Fundamentalista!$C$14*Monte_Carlo!AA49 -> -57691.18002 | AF49: 6657434.549 | AG49: =(RAND()*($D$17-$D$16)+$D$16)*(1-Analise_Fundamentalista!$C$6)*AF49 -> 979906.1199 | AH49: -153323.1947 | AI49: =Analise_Fundamentalista!$C$12*Monte_Carlo!AF49 -> 241662.7061 | AJ49: =-Analise_Fundamentalista!$C$14*Monte_Carlo!AF49 -> -71155.27745 | AK49: 8529835.022 | AL49: =(RAND()*($D$17-$D$16)+$D$16)*(1-Analise_Fundamentalista!$C$6)*AK49 -> 609633.1915 | AM49: -180809.6401 | AN49: =Analise_Fundamentalista!$C$12*Monte_Carlo!AK49 -> 309630.2335 | AO49: =-Analise_Fundamentalista!$C$14*Monte_Carlo!AK49 -> -91167.66723 | AP49: 8897010.198 | AQ49: =(RAND()*($D$17-$D$16)+$D$16)*(1-Analise_Fundamentalista!$C$6)*AP49 -> 616235.8317 | AR49: -846226.5585 | AS49: =Analise_Fundamentalista!$C$12*Monte_Carlo!AP49 -> 322958.5728 | AT49: =-Analise_Fundamentalista!$C$14*Monte_Carlo!AP49 -> -95092.06954 | AU49: 12211260.72 | AV49: =(RAND()*($D$17-$D$16)+$D$16)*(1-Analise_Fundamentalista!$C$6)*AU49 -> 805520.2239 | AW49: -707942.2629 | AX49: =Analise_Fundamentalista!$C$12*Monte_Carlo!AU49 -> 443264.7875 | AY49: =-Analise_Fundamentalista!$C$14*Monte_Carlo!AU49 -> -130515.0863 | AZ49: 198766.2149 | BA49: 506870.0273 | BB49: 91248.49892 | BC49: 258200.1957 | BD49: 156014.2499 | BE49: 748584.1071 | BF49: 997090.3538 | BG49: 647286.1177 | BH49: -2124.223481 | BI49: 410327.6622 | BJ49: =BI49*(1+Analise_Fundamentalista!$C$10)/(Analise_Fundamentalista!$C$10) -> 5719626.266 | BK49: =NPV(Analise_Fundamentalista!$C$10,Monte_Carlo!AZ49:BI49)+Monte_Carlo!BJ49/(1+Analise_Fundamentalista!$C$10)^10 -> 5331997.976 | BL49: =(BK49+Analise_Fundamentalista!$C$15-Analise_Fundamentalista!$C$16-Analise_Fundamentalista!$C$17)/(Analise_Fundamentalista!$F$29+Analise_Fundamentalista!$F$30)*1000 -> 35.07843376 | BM49: 0.5363634473
A50: Tent25 | B50: 2460092.557 | C50: =(RAND()*($D$17-$D$16)+$D$16)*(1-Analise_Fundamentalista!$C$6)*B50 -> 274748.0313 | D50: -164124.834 | E50: =Analise_Fundamentalista!$C$12*Monte_Carlo!B50 -> 89300.55867 | F50: =-Analise_Fundamentalista!$C$14*Monte_Carlo!B50 -> -26293.69724 | G50: 3027064.87 | H50: =(RAND()*($D$17-$D$16)+$D$16)*(1-Analise_Fundamentalista!$C$6)*G50 -> 472732.0027 | I50: -27561.30508 | J50: =Analise_Fundamentalista!$C$12*Monte_Carlo!G50 -> 109881.469 | K50: =-Analise_Fundamentalista!$C$14*Monte_Carlo!G50 -> -32353.54987 | L50: 3084857.991 | M50: =(RAND()*($D$17-$D$16)+$D$16)*(1-Analise_Fundamentalista!$C$6)*L50 -> 450817.1291 | N50: -40086.03018 | O50: =Analise_Fundamentalista!$C$12*Monte_Carlo!L50 -> 111979.3405 | P50: =-Analise_Fundamentalista!$C$14*Monte_Carlo!L50 -> -32971.2481 | Q50: 4222194.342 | R50: =(RAND()*($D$17-$D$16)+$D$16)*(1-Analise_Fundamentalista!$C$6)*Q50 -> 501973.9901 | S50: -118768.2936 | T50: =Analise_Fundamentalista!$C$12*Monte_Carlo!Q50 -> 153264.2796 | U50: =-Analise_Fundamentalista!$C$14*Monte_Carlo!Q50 -> -45127.20443 | V50: 5194289.406 | W50: =(RAND()*($D$17-$D$16)+$D$16)*(1-Analise_Fundamentalista!$C$6)*V50 -> 634105.5026 | X50: -312624.1596 | Y50: =Analise_Fundamentalista!$C$12*Monte_Carlo!V50 -> 188551.0139 | Z50: =-Analise_Fundamentalista!$C$14*Monte_Carlo!V50 -> -55517.04656 | AA50: 5352131.117 | AB50: =(RAND()*($D$17-$D$16)+$D$16)*(1-Analise_Fundamentalista!$C$6)*AA50 -> 801965.3169 | AC50: -821562.9115 | AD50: =Analise_Fundamentalista!$C$12*Monte_Carlo!AA50 -> 194280.6166 | AE50: =-Analise_Fundamentalista!$C$14*Monte_Carlo!AA50 -> -57204.07339 | AF50: 6614163.671 | AG50: =(RAND()*($D$17-$D$16)+$D$16)*(1-Analise_Fundamentalista!$C$6)*AF50 -> 984613.5393 | AH50: -690544.5023 | AI50: =Analise_Fundamentalista!$C$12*Monte_Carlo!AF50 -> 240091.9873 | AJ50: =-Analise_Fundamentalista!$C$14*Monte_Carlo!AF50 -> -70692.79429 | AK50: 7099186.329 | AL50: =(RAND()*($D$17-$D$16)+$D$16)*(1-Analise_Fundamentalista!$C$6)*AK50 -> 795894.1014 | AM50: -679349.344 | AN50: =Analise_Fundamentalista!$C$12*Monte_Carlo!AK50 -> 257698.1518 | AO50: =-Analise_Fundamentalista!$C$14*Monte_Carlo!AK50 -> -75876.76141 | AP50: 9702582.414 | AQ50: =(RAND()*($D$17-$D$16)+$D$16)*(1-Analise_Fundamentalista!$C$6)*AP50 -> 1457423.661 | AR50: -397807.5714 | AS50: =Analise_Fundamentalista!$C$12*Monte_Carlo!AP50 -> 352200.5819 | AT50: =-Analise_Fundamentalista!$C$14*Monte_Carlo!AP50 -> -103702.1 | AU50: 11612248.17 | AV50: =(RAND()*($D$17-$D$16)+$D$16)*(1-Analise_Fundamentalista!$C$6)*AU50 -> 1455335.006 | AW50: -1583459.473 | AX50: =Analise_Fundamentalista!$C$12*Monte_Carlo!AU50 -> 421520.8269 | AY50: =-Analise_Fundamentalista!$C$14*Monte_Carlo!AU50 -> -124112.7846 | AZ50: 173630.0587 | BA50: 522698.6167 | BB50: 489739.1912 | BC50: 491342.7716 | BD50: 454515.3103 | BE50: 117478.9485 | BF50: 463468.2299 | BG50: 298366.1478 | BH50: 1308114.572 | BI50: 169283.5744 | BJ50: =BI50*(1+Analise_Fundamentalista!$C$10)/(Analise_Fundamentalista!$C$10) -> 2359672.203 | BK50: =NPV(Analise_Fundamentalista!$C$10,Monte_Carlo!AZ50:BI50)+Monte_Carlo!BJ50/(1+Analise_Fundamentalista!$C$10)^10 -> 4066851.191 | BL50: =(BK50+Analise_Fundamentalista!$C$15-Analise_Fundamentalista!$C$16-Analise_Fundamentalista!$C$17)/(Analise_Fundamentalista!$F$29+Analise_Fundamentalista!$F$30)*1000 -> 27.30602056 | BM50: 0.4484907968
A51: Tent26 | B51: 1941107.388 | C51: =(RAND()*($D$17-$D$16)+$D$16)*(1-Analise_Fundamentalista!$C$6)*B51 -> 174909.3685 | D51: -335108.4667 | E51: =Analise_Fundamentalista!$C$12*Monte_Carlo!B51 -> 70461.56604 | F51: =-Analise_Fundamentalista!$C$14*Monte_Carlo!B51 -> -20746.73566 | G51: 2771552.121 | H51: =(RAND()*($D$17-$D$16)+$D$16)*(1-Analise_Fundamentalista!$C$6)*G51 -> 392548.2731 | I51: -512839.3547 | J51: =Analise_Fundamentalista!$C$12*Monte_Carlo!G51 -> 100606.4394 | K51: =-Analise_Fundamentalista!$C$14*Monte_Carlo!G51 -> -29622.60593 | L51: 3875316.386 | M51: =(RAND()*($D$17-$D$16)+$D$16)*(1-Analise_Fundamentalista!$C$6)*L51 -> 251965.0646 | N51: -379958.8056 | O51: =Analise_Fundamentalista!$C$12*Monte_Carlo!L51 -> 140672.7228 | P51: =-Analise_Fundamentalista!$C$14*Monte_Carlo!L51 -> -41419.74068 | Q51: 3557200.28 | R51: =(RAND()*($D$17-$D$16)+$D$16)*(1-Analise_Fundamentalista!$C$6)*Q51 -> 163767.0959 | S51: -189087.0353 | T51: =Analise_Fundamentalista!$C$12*Monte_Carlo!Q51 -> 129125.2117 | U51: =-Analise_Fundamentalista!$C$14*Monte_Carlo!Q51 -> -38019.68626 | V51: 5213093.206 | W51: =(RAND()*($D$17-$D$16)+$D$16)*(1-Analise_Fundamentalista!$C$6)*V51 -> 269638.4217 | X51: -825737.2237 | Y51: =Analise_Fundamentalista!$C$12*Monte_Carlo!V51 -> 189233.5857 | Z51: =-Analise_Fundamentalista!$C$14*Monte_Carlo!V51 -> -55718.02331 | AA51: 6721996.312 | AB51: =(RAND()*($D$17-$D$16)+$D$16)*(1-Analise_Fundamentalista!$C$6)*AA51 -> 814226.653 | AC51: -107931.4892 | AD51: =Analise_Fundamentalista!$C$12*Monte_Carlo!AA51 -> 244006.277 | AE51: =-Analise_Fundamentalista!$C$14*Monte_Carlo!AA51 -> -71845.31955 | AF51: 8026039.717 | AG51: =(RAND()*($D$17-$D$16)+$D$16)*(1-Analise_Fundamentalista!$C$6)*AF51 -> 1215611.004 | AH51: -595641.6725 | AI51: =Analise_Fundamentalista!$C$12*Monte_Carlo!AF51 -> 291342.628 | AJ51: =-Analise_Fundamentalista!$C$14*Monte_Carlo!AF51 -> -85783.05632 | AK51: 7917938.804 | AL51: =(RAND()*($D$17-$D$16)+$D$16)*(1-Analise_Fundamentalista!$C$6)*AK51 -> 368579.771 | AM51: -1387018.973 | AN51: =Analise_Fundamentalista!$C$12*Monte_Carlo!AK51 -> 287418.6 | AO51: =-Analise_Fundamentalista!$C$14*Monte_Carlo!AK51 -> -84627.66374 | AP51: 10628224.65 | AQ51: =(RAND()*($D$17-$D$16)+$D$16)*(1-Analise_Fundamentalista!$C$6)*AP51 -> 820492.2013 | AR51: -595186.8474 | AS51: =Analise_Fundamentalista!$C$12*Monte_Carlo!AP51 -> 385801.0936 | AT51: =-Analise_Fundamentalista!$C$14*Monte_Carlo!AP51 -> -113595.45 | AU51: 12282532.11 | AV51: =(RAND()*($D$17-$D$16)+$D$16)*(1-Analise_Fundamentalista!$C$6)*AU51 -> 850247.2467 | AW51: -2379316.173 | AX51: =Analise_Fundamentalista!$C$12*Monte_Carlo!AU51 -> 445851.9157 | AY51: =-Analise_Fundamentalista!$C$14*Monte_Carlo!AU51 -> -131276.8415 | AZ51: -110484.2678 | BA51: -49307.2481 | BB51: -28740.75891 | BC51: 65785.58607 | BD51: -422583.2396 | BE51: 878456.1213 | BF51: 825528.9032 | BG51: -815648.2657 | BH51: 497510.9974 | BI51: -1214493.852 | BJ51: =BI51*(1+Analise_Fundamentalista!$C$10)/(Analise_Fundamentalista!$C$10) -> -16929033.98 | BK51: =NPV(Analise_Fundamentalista!$C$10,Monte_Carlo!AZ51:BI51)+Monte_Carlo!BJ51/(1+Analise_Fundamentalista!$C$10)^10 -> -8171437.31 | BL51: =(BK51+Analise_Fundamentalista!$C$15-Analise_Fundamentalista!$C$16-Analise_Fundamentalista!$C$17)/(Analise_Fundamentalista!$F$29+Analise_Fundamentalista!$F$30)*1000 -> -47.87974929 | BM51: 0.01175953517
A52: Tent27 | B52: 2711115.676 | C52: =(RAND()*($D$17-$D$16)+$D$16)*(1-Analise_Fundamentalista!$C$6)*B52 -> 294711.6116 | D52: -188965.3018 | E52: =Analise_Fundamentalista!$C$12*Monte_Carlo!B52 -> 98412.61613 | F52: =-Analise_Fundamentalista!$C$14*Monte_Carlo!B52 -> -28976.6556 | G52: 2658919.693 | H52: =(RAND()*($D$17-$D$16)+$D$16)*(1-Analise_Fundamentalista!$C$6)*G52 -> 175217.1236 | I52: -332225.3534 | J52: =Analise_Fundamentalista!$C$12*Monte_Carlo!G52 -> 96517.91894 | K52: =-Analise_Fundamentalista!$C$14*Monte_Carlo!G52 -> -28418.78009 | L52: 3899042.809 | M52: =(RAND()*($D$17-$D$16)+$D$16)*(1-Analise_Fundamentalista!$C$6)*L52 -> 577204.7196 | N52: -392849.9267 | O52: =Analise_Fundamentalista!$C$12*Monte_Carlo!L52 -> 141533.9842 | P52: =-Analise_Fundamentalista!$C$14*Monte_Carlo!L52 -> -41673.3309 | Q52: 3945064.697 | R52: =(RAND()*($D$17-$D$16)+$D$16)*(1-Analise_Fundamentalista!$C$6)*Q52 -> 552581.9692 | S52: -184608.711 | T52: =Analise_Fundamentalista!$C$12*Monte_Carlo!Q52 -> 143204.5638 | U52: =-Analise_Fundamentalista!$C$14*Monte_Carlo!Q52 -> -42165.2171 | V52: 5243393.551 | W52: =(RAND()*($D$17-$D$16)+$D$16)*(1-Analise_Fundamentalista!$C$6)*V52 -> 486314.5674 | X52: -261785.7507 | Y52: =Analise_Fundamentalista!$C$12*Monte_Carlo!V52 -> 190333.4783 | Z52: =-Analise_Fundamentalista!$C$14*Monte_Carlo!V52 -> -56041.87621 | AA52: 6055518.763 | AB52: =(RAND()*($D$17-$D$16)+$D$16)*(1-Analise_Fundamentalista!$C$6)*AA52 -> 426883.9129 | AC52: -988455.3019 | AD52: =Analise_Fundamentalista!$C$12*Monte_Carlo!AA52 -> 219813.3591 | AE52: =-Analise_Fundamentalista!$C$14*Monte_Carlo!AA52 -> -64721.94574 | AF52: 6757629.803 | AG52: =(RAND()*($D$17-$D$16)+$D$16)*(1-Analise_Fundamentalista!$C$6)*AF52 -> 929417.7976 | AH52: -628910.9471 | AI52: =Analise_Fundamentalista!$C$12*Monte_Carlo!AF52 -> 245299.7611 | AJ52: =-Analise_Fundamentalista!$C$14*Monte_Carlo!AF52 -> -72226.1736 | AK52: 8002770.485 | AL52: =(RAND()*($D$17-$D$16)+$D$16)*(1-Analise_Fundamentalista!$C$6)*AK52 -> 439694.4247 | AM52: -1173099.133 | AN52: =Analise_Fundamentalista!$C$12*Monte_Carlo!AK52 -> 290497.9624 | AO52: =-Analise_Fundamentalista!$C$14*Monte_Carlo!AK52 -> -85534.35261 | AP52: 9745026.325 | AQ52: =(RAND()*($D$17-$D$16)+$D$16)*(1-Analise_Fundamentalista!$C$6)*AP52 -> 964131.2842 | AR52: -570655.2381 | AS52: =Analise_Fundamentalista!$C$12*Monte_Carlo!AP52 -> 353741.282 | AT52: =-Analise_Fundamentalista!$C$14*Monte_Carlo!AP52 -> -104155.7445 | AU52: 10585331.93 | AV52: =(RAND()*($D$17-$D$16)+$D$16)*(1-Analise_Fundamentalista!$C$6)*AU52 -> 998253.0735 | AW52: -1015376.007 | AX52: =Analise_Fundamentalista!$C$12*Monte_Carlo!AU52 -> 384244.1019 | AY52: =-Analise_Fundamentalista!$C$14*Monte_Carlo!AU52 -> -113137.0087 | AZ52: 175182.2703 | BA52: -88909.09097 | BB52: 284215.4462 | BC52: 469012.6049 | BD52: 358820.4188 | BE52: -406479.9757 | BF52: 473580.438 | BG52: -528441.0988 | BH52: 643061.5836 | BI52: 253984.1598 | BJ52: =BI52*(1+Analise_Fundamentalista!$C$10)/(Analise_Fundamentalista!$C$10) -> 3540327.903 | BK52: =NPV(Analise_Fundamentalista!$C$10,Monte_Carlo!AZ52:BI52)+Monte_Carlo!BJ52/(1+Analise_Fundamentalista!$C$10)^10 -> 2770112.339 | BL52: =(BK52+Analise_Fundamentalista!$C$15-Analise_Fundamentalista!$C$16-Analise_Fundamentalista!$C$17)/(Analise_Fundamentalista!$F$29+Analise_Fundamentalista!$F$30)*1000 -> 19.33952191 | BM52: 0.3610179556
A53: Tent28 | B53: 2657206.191 | C53: =(RAND()*($D$17-$D$16)+$D$16)*(1-Analise_Fundamentalista!$C$6)*B53 -> 314123.3015 | D53: -787.4662914 | E53: =Analise_Fundamentalista!$C$12*Monte_Carlo!B53 -> 96455.71939 | F53: =-Analise_Fundamentalista!$C$14*Monte_Carlo!B53 -> -28400.46603 | G53: 2885870.894 | H53: =(RAND()*($D$17-$D$16)+$D$16)*(1-Analise_Fundamentalista!$C$6)*G53 -> 294778.283 | I53: -86270.22612 | J53: =Analise_Fundamentalista!$C$12*Monte_Carlo!G53 -> 104756.1736 | K53: =-Analise_Fundamentalista!$C$14*Monte_Carlo!G53 -> -30844.45556 | L53: 3400767.286 | M53: =(RAND()*($D$17-$D$16)+$D$16)*(1-Analise_Fundamentalista!$C$6)*L53 -> 172946.9704 | N53: -111421.7505 | O53: =Analise_Fundamentalista!$C$12*Monte_Carlo!L53 -> 123446.745 | P53: =-Analise_Fundamentalista!$C$14*Monte_Carlo!L53 -> -36347.71592 | Q53: 4636247.161 | R53: =(RAND()*($D$17-$D$16)+$D$16)*(1-Analise_Fundamentalista!$C$6)*Q53 -> 271073.103 | S53: -808359.4916 | T53: =Analise_Fundamentalista!$C$12*Monte_Carlo!Q53 -> 168294.2621 | U53: =-Analise_Fundamentalista!$C$14*Monte_Carlo!Q53 -> -49552.63933 | V53: 4701870.75 | W53: =(RAND()*($D$17-$D$16)+$D$16)*(1-Analise_Fundamentalista!$C$6)*V53 -> 235356.7944 | X53: -403771.5734 | Y53: =Analise_Fundamentalista!$C$12*Monte_Carlo!V53 -> 170676.377 | Z53: =-Analise_Fundamentalista!$C$14*Monte_Carlo!V53 -> -50254.03033 | AA53: 6284010.77 | AB53: =(RAND()*($D$17-$D$16)+$D$16)*(1-Analise_Fundamentalista!$C$6)*AA53 -> 431195.5208 | AC53: -657194.46 | AD53: =Analise_Fundamentalista!$C$12*Monte_Carlo!AA53 -> 228107.5445 | AE53: =-Analise_Fundamentalista!$C$14*Monte_Carlo!AA53 -> -67164.08949 | AF53: 6601080.511 | AG53: =(RAND()*($D$17-$D$16)+$D$16)*(1-Analise_Fundamentalista!$C$6)*AF53 -> 635883.2474 | AH53: -387581.7804 | AI53: =Analise_Fundamentalista!$C$12*Monte_Carlo!AF53 -> 239617.0728 | AJ53: =-Analise_Fundamentalista!$C$14*Monte_Carlo!AF53 -> -70552.96026 | AK53: 9098478.323 | AL53: =(RAND()*($D$17-$D$16)+$D$16)*(1-Analise_Fundamentalista!$C$6)*AK53 -> 1454151.906 | AM53: -1256718.698 | AN53: =Analise_Fundamentalista!$C$12*Monte_Carlo!AK53 -> 330271.8001 | AO53: =-Analise_Fundamentalista!$C$14*Monte_Carlo!AK53 -> -97245.37953 | AP53: 10362594.77 | AQ53: =(RAND()*($D$17-$D$16)+$D$16)*(1-Analise_Fundamentalista!$C$6)*AP53 -> 1365130.349 | AR53: -1353435.61 | AS53: =Analise_Fundamentalista!$C$12*Monte_Carlo!AP53 -> 376158.8155 | AT53: =-Analise_Fundamentalista!$C$14*Monte_Carlo!AP53 -> -110756.3733 | AU53: 9308085.452 | AV53: =(RAND()*($D$17-$D$16)+$D$16)*(1-Analise_Fundamentalista!$C$6)*AU53 -> 786950.2518 | AW53: -1158553.916 | AX53: =Analise_Fundamentalista!$C$12*Monte_Carlo!AU53 -> 337880.4706 | AY53: =-Analise_Fundamentalista!$C$14*Monte_Carlo!AU53 -> -99485.67995 | AZ53: 381391.0886 | BA53: 282419.7749 | BB53: 148624.249 | BC53: -418544.7659 | BD53: -47992.43231 | BE53: -65055.48416 | BF53: 417365.5795 | BG53: 430459.629 | BH53: 277097.1818 | BI53: -133208.8739 | BJ53: =BI53*(1+Analise_Fundamentalista!$C$10)/(Analise_Fundamentalista!$C$10) -> -1856820.887 | BK53: =NPV(Analise_Fundamentalista!$C$10,Monte_Carlo!AZ53:BI53)+Monte_Carlo!BJ53/(1+Analise_Fundamentalista!$C$10)^10 -> 12485.67293 | BL53: =(BK53+Analise_Fundamentalista!$C$15-Analise_Fundamentalista!$C$16-Analise_Fundamentalista!$C$17)/(Analise_Fundamentalista!$F$29+Analise_Fundamentalista!$F$30)*1000 -> 2.398077537 | BM53: 0.201321917
A54: Tent29 | B54: 2258889.296 | C54: =(RAND()*($D$17-$D$16)+$D$16)*(1-Analise_Fundamentalista!$C$6)*B54 -> 130975.5479 | D54: -86065.77771 | E54: =Analise_Fundamentalista!$C$12*Monte_Carlo!B54 -> 81996.94582 | F54: =-Analise_Fundamentalista!$C$14*Monte_Carlo!B54 -> -24143.21814 | G54: 3015213.274 | H54: =(RAND()*($D$17-$D$16)+$D$16)*(1-Analise_Fundamentalista!$C$6)*G54 -> 425554.526 | I54: -35861.3236 | J54: =Analise_Fundamentalista!$C$12*Monte_Carlo!G54 -> 109451.2599 | K54: =-Analise_Fundamentalista!$C$14*Monte_Carlo!G54 -> -32226.87891 | L54: 3248851.516 | M54: =(RAND()*($D$17-$D$16)+$D$16)*(1-Analise_Fundamentalista!$C$6)*L54 -> 159602.1066 | N54: -304826.2309 | O54: =Analise_Fundamentalista!$C$12*Monte_Carlo!L54 -> 117932.252 | P54: =-Analise_Fundamentalista!$C$14*Monte_Carlo!L54 -> -34724.02609 | Q54: 4658696.165 | R54: =(RAND()*($D$17-$D$16)+$D$16)*(1-Analise_Fundamentalista!$C$6)*Q54 -> 305309.8375 | S54: -621726.6458 | T54: =Analise_Fundamentalista!$C$12*Monte_Carlo!Q54 -> 169109.1536 | U54: =-Analise_Fundamentalista!$C$14*Monte_Carlo!Q54 -> -49792.57636 | V54: 5184946.174 | W54: =(RAND()*($D$17-$D$16)+$D$16)*(1-Analise_Fundamentalista!$C$6)*V54 -> 694389.8689 | X54: -160580.3381 | Y54: =Analise_Fundamentalista!$C$12*Monte_Carlo!V54 -> 188211.8576 | Z54: =-Analise_Fundamentalista!$C$14*Monte_Carlo!V54 -> -55417.18523 | AA54: 4493701.21 | AB54: =(RAND()*($D$17-$D$16)+$D$16)*(1-Analise_Fundamentalista!$C$6)*AA54 -> 272921.2234 | AC54: -462402.6489 | AD54: =Analise_Fundamentalista!$C$12*Monte_Carlo!AA54 -> 163119.8905 | AE54: =-Analise_Fundamentalista!$C$14*Monte_Carlo!AA54 -> -48029.095 | AF54: 6167747.044 | AG54: =(RAND()*($D$17-$D$16)+$D$16)*(1-Analise_Fundamentalista!$C$6)*AF54 -> 254517.2697 | AH54: -699037.107 | AI54: =Analise_Fundamentalista!$C$12*Monte_Carlo!AF54 -> 223887.2091 | AJ54: =-Analise_Fundamentalista!$C$14*Monte_Carlo!AF54 -> -65921.45201 | AK54: 7428031.76 | AL54: =(RAND()*($D$17-$D$16)+$D$16)*(1-Analise_Fundamentalista!$C$6)*AK54 -> 284424.7689 | AM54: -160769.7819 | AN54: =Analise_Fundamentalista!$C$12*Monte_Carlo!AK54 -> 269635.1339 | AO54: =-Analise_Fundamentalista!$C$14*Monte_Carlo!AK54 -> -79391.49185 | AP54: 9447131.242 | AQ54: =(RAND()*($D$17-$D$16)+$D$16)*(1-Analise_Fundamentalista!$C$6)*AP54 -> 1251715.884 | AR54: -1895465.315 | AS54: =Analise_Fundamentalista!$C$12*Monte_Carlo!AP54 -> 342927.7875 | AT54: =-Analise_Fundamentalista!$C$14*Monte_Carlo!AP54 -> -100971.8142 | AU54: 10574191.61 | AV54: =(RAND()*($D$17-$D$16)+$D$16)*(1-Analise_Fundamentalista!$C$6)*AU54 -> 501644.0657 | AW54: -60095.52707 | AX54: =Analise_Fundamentalista!$C$12*Monte_Carlo!AU54 -> 383839.7119 | AY54: =-Analise_Fundamentalista!$C$14*Monte_Carlo!AU54 -> -113017.9399 | AZ54: 102763.4979 | BA54: 466917.5834 | BB54: -62015.89831 | BC54: -197100.2311 | BD54: 666604.2032 | BE54: -74390.62994 | BF54: -286554.0802 | BG54: 313898.6291 | BH54: -401793.4579 | BI54: 712370.3107 | BJ54: =BI54*(1+Analise_Fundamentalista!$C$10)/(Analise_Fundamentalista!$C$10) -> 9929849.522 | BK54: =NPV(Analise_Fundamentalista!$C$10,Monte_Carlo!AZ54:BI54)+Monte_Carlo!BJ54/(1+Analise_Fundamentalista!$C$10)^10 -> 5565941.665 | BL54: =(BK54+Analise_Fundamentalista!$C$15-Analise_Fundamentalista!$C$16-Analise_Fundamentalista!$C$17)/(Analise_Fundamentalista!$F$29+Analise_Fundamentalista!$F$30)*1000 -> 36.51566384 | BM54: 0.5525459508
A55: Tent30 | B55: 2193498.321 | C55: =(RAND()*($D$17-$D$16)+$D$16)*(1-Analise_Fundamentalista!$C$6)*B55 -> 358109.9468 | D55: -171276.0129 | E55: =Analise_Fundamentalista!$C$12*Monte_Carlo!B55 -> 79623.27473 | F55: =-Analise_Fundamentalista!$C$14*Monte_Carlo!B55 -> -23444.31334 | G55: 2890214.069 | H55: =(RAND()*($D$17-$D$16)+$D$16)*(1-Analise_Fundamentalista!$C$6)*G55 -> 308500.5842 | I55: -329760.8086 | J55: =Analise_Fundamentalista!$C$12*Monte_Carlo!G55 -> 104913.8295 | K55: =-Analise_Fundamentalista!$C$14*Monte_Carlo!G55 -> -30890.87582 | L55: 3039105.322 | M55: =(RAND()*($D$17-$D$16)+$D$16)*(1-Analise_Fundamentalista!$C$6)*L55 -> 252827.3438 | N55: -511567.3762 | O55: =Analise_Fundamentalista!$C$12*Monte_Carlo!L55 -> 110318.5335 | P55: =-Analise_Fundamentalista!$C$14*Monte_Carlo!L55 -> -32482.23934 | Q55: 4286627.835 | R55: =(RAND()*($D$17-$D$16)+$D$16)*(1-Analise_Fundamentalista!$C$6)*Q55 -> 407479.5095 | S55: -514328.0754 | T55: =Analise_Fundamentalista!$C$12*Monte_Carlo!Q55 -> 155603.1944 | U55: =-Analise_Fundamentalista!$C$14*Monte_Carlo!Q55 -> -45815.87557 | V55: 4727151.248 | W55: =(RAND()*($D$17-$D$16)+$D$16)*(1-Analise_Fundamentalista!$C$6)*V55 -> 176873.3988 | X55: -579820.0877 | Y55: =Analise_Fundamentalista!$C$12*Monte_Carlo!V55 -> 171594.0509 | Z55: =-Analise_Fundamentalista!$C$14*Monte_Carlo!V55 -> -50524.23063 | AA55: 6279153.692 | AB55: =(RAND()*($D$17-$D$16)+$D$16)*(1-Analise_Fundamentalista!$C$6)*AA55 -> 790375.8437 | AC55: -976805.389 | AD55: =Analise_Fundamentalista!$C$12*Monte_Carlo!AA55 -> 227931.2341 | AE55: =-Analise_Fundamentalista!$C$14*Monte_Carlo!AA55 -> -67112.17658 | AF55: 7218600.755 | AG55: =(RAND()*($D$17-$D$16)+$D$16)*(1-Analise_Fundamentalista!$C$6)*AF55 -> 480135.6219 | AH55: -1048923.423 | AI55: =Analise_Fundamentalista!$C$12*Monte_Carlo!AF55 -> 262032.8566 | AJ55: =-Analise_Fundamentalista!$C$14*Monte_Carlo!AF55 -> -77153.07386 | AK55: 9603883.882 | AL55: =(RAND()*($D$17-$D$16)+$D$16)*(1-Analise_Fundamentalista!$C$6)*AK55 -> 465064.2984 | AM55: -1753329.854 | AN55: =Analise_Fundamentalista!$C$12*Monte_Carlo!AK55 -> 348617.8573 | AO55: =-Analise_Fundamentalista!$C$14*Monte_Carlo!AK55 -> -102647.201 | AP55: 9319427.931 | AQ55: =(RAND()*($D$17-$D$16)+$D$16)*(1-Analise_Fundamentalista!$C$6)*AP55 -> 765858.8859 | AR55: -494816.9405 | AS55: =Analise_Fundamentalista!$C$12*Monte_Carlo!AP55 -> 338292.1989 | AT55: =-Analise_Fundamentalista!$C$14*Monte_Carlo!AP55 -> -99606.90942 | AU55: 10517746.82 | AV55: =(RAND()*($D$17-$D$16)+$D$16)*(1-Analise_Fundamentalista!$C$6)*AU55 -> 1324178.805 | AW55: -339740.1198 | AX55: =Analise_Fundamentalista!$C$12*Monte_Carlo!AU55 -> 381790.7845 | AY55: =-Analise_Fundamentalista!$C$14*Monte_Carlo!AU55 -> -112414.6528 | AZ55: 243012.8953 | BA55: 52762.7293 | BB55: -180903.7383 | BC55: 2938.752991 | BD55: -281876.8687 | BE55: -25610.48775 | BF55: -383908.0182 | BG55: -1042294.899 | BH55: 509727.2348 | BI55: 1253814.817 | BJ55: =BI55*(1+Analise_Fundamentalista!$C$10)/(Analise_Fundamentalista!$C$10) -> 17477135.52 | BK55: =NPV(Analise_Fundamentalista!$C$10,Monte_Carlo!AZ55:BI55)+Monte_Carlo!BJ55/(1+Analise_Fundamentalista!$C$10)^10 -> 8273373.487 | BL55: =(BK55+Analise_Fundamentalista!$C$15-Analise_Fundamentalista!$C$16-Analise_Fundamentalista!$C$17)/(Analise_Fundamentalista!$F$29+Analise_Fundamentalista!$F$30)*1000 -> 53.14873682 | BM55: 0.7272468986
A56: Tent31 | B56: 2896943.898 | C56: =(RAND()*($D$17-$D$16)+$D$16)*(1-Analise_Fundamentalista!$C$6)*B56 -> 109666.945 | D56: -259859.1235 | E56: =Analise_Fundamentalista!$C$12*Monte_Carlo!B56 -> 105158.1201 | F56: =-Analise_Fundamentalista!$C$14*Monte_Carlo!B56 -> -30962.80486 | G56: 3327649.12 | H56: =(RAND()*($D$17-$D$16)+$D$16)*(1-Analise_Fundamentalista!$C$6)*G56 -> 543544.7399 | I56: -237271.0174 | J56: =Analise_Fundamentalista!$C$12*Monte_Carlo!G56 -> 120792.5794 | K56: =-Analise_Fundamentalista!$C$14*Monte_Carlo!G56 -> -35566.22219 | L56: 3841896.242 | M56: =(RAND()*($D$17-$D$16)+$D$16)*(1-Analise_Fundamentalista!$C$6)*L56 -> 266586.2563 | N56: -816171.6197 | O56: =Analise_Fundamentalista!$C$12*Monte_Carlo!L56 -> 139459.5824 | P56: =-Analise_Fundamentalista!$C$14*Monte_Carlo!L56 -> -41062.54308 | Q56: 3674397.556 | R56: =(RAND()*($D$17-$D$16)+$D$16)*(1-Analise_Fundamentalista!$C$6)*Q56 -> 125486.7514 | S56: -307664.0134 | T56: =Analise_Fundamentalista!$C$12*Monte_Carlo!Q56 -> 133379.4347 | U56: =-Analise_Fundamentalista!$C$14*Monte_Carlo!Q56 -> -39272.3016 | V56: 4911246.643 | W56: =(RAND()*($D$17-$D$16)+$D$16)*(1-Analise_Fundamentalista!$C$6)*V56 -> 321051.6221 | X56: -635656.276 | Y56: =Analise_Fundamentalista!$C$12*Monte_Carlo!V56 -> 178276.6537 | Z56: =-Analise_Fundamentalista!$C$14*Monte_Carlo!V56 -> -52491.85927 | AA56: 6157495.991 | AB56: =(RAND()*($D$17-$D$16)+$D$16)*(1-Analise_Fundamentalista!$C$6)*AA56 -> 304466.0692 | AC56: -34049.32543 | AD56: =Analise_Fundamentalista!$C$12*Monte_Carlo!AA56 -> 223515.0992 | AE56: =-Analise_Fundamentalista!$C$14*Monte_Carlo!AA56 -> -65811.88781 | AF56: 6340579.764 | AG56: =(RAND()*($D$17-$D$16)+$D$16)*(1-Analise_Fundamentalista!$C$6)*AF56 -> 842677.2333 | AH56: -140972.9815 | AI56: =Analise_Fundamentalista!$C$12*Monte_Carlo!AF56 -> 230160.9806 | AJ56: =-Analise_Fundamentalista!$C$14*Monte_Carlo!AF56 -> -67768.70414 | AK56: 9373795.116 | AL56: =(RAND()*($D$17-$D$16)+$D$16)*(1-Analise_Fundamentalista!$C$6)*AK56 -> 868113.6202 | AM56: -449936.4462 | AN56: =Analise_Fundamentalista!$C$12*Monte_Carlo!AK56 -> 340265.71 | AO56: =-Analise_Fundamentalista!$C$14*Monte_Carlo!AK56 -> -100187.9909 | AP56: 11023576.61 | AQ56: =(RAND()*($D$17-$D$16)+$D$16)*(1-Analise_Fundamentalista!$C$6)*AP56 -> 1534200.55 | AR56: -329754.0295 | AS56: =Analise_Fundamentalista!$C$12*Monte_Carlo!AP56 -> 400152.241 | AT56: =-Analise_Fundamentalista!$C$14*Monte_Carlo!AP56 -> -117821.0084 | AU56: 11771194.37 | AV56: =(RAND()*($D$17-$D$16)+$D$16)*(1-Analise_Fundamentalista!$C$6)*AU56 -> 1421905.52 | AW56: -1063194.161 | AX56: =Analise_Fundamentalista!$C$12*Monte_Carlo!AU56 -> 427290.5221 | AY56: =-Analise_Fundamentalista!$C$14*Monte_Carlo!AU56 -> -125811.6163 | AZ56: -75996.86325 | BA56: 391500.0797 | BB56: -451188.3241 | BC56: -88070.12887 | BD56: -188819.8595 | BE56: 428119.9552 | BF56: 864096.5283 | BG56: 658254.8931 | BH56: 1486777.753 | BI56: 660190.2654 | BJ56: =BI56*(1+Analise_Fundamentalista!$C$10)/(Analise_Fundamentalista!$C$10) -> 9202503.098 | BK56: =NPV(Analise_Fundamentalista!$C$10,Monte_Carlo!AZ56:BI56)+Monte_Carlo!BJ56/(1+Analise_Fundamentalista!$C$10)^10 -> 6305904.488 | BL56: =(BK56+Analise_Fundamentalista!$C$15-Analise_Fundamentalista!$C$16-Analise_Fundamentalista!$C$17)/(Analise_Fundamentalista!$F$29+Analise_Fundamentalista!$F$30)*1000 -> 41.06161603 | BM56: 0.6030347643
A57: Tent32 | B57: 2682555.552 | C57: =(RAND()*($D$17-$D$16)+$D$16)*(1-Analise_Fundamentalista!$C$6)*B57 -> 437270.2911 | D57: -462488.4654 | E57: =Analise_Fundamentalista!$C$12*Monte_Carlo!B57 -> 97375.89294 | F57: =-Analise_Fundamentalista!$C$14*Monte_Carlo!B57 -> -28671.40235 | G57: 3107063.344 | H57: =(RAND()*($D$17-$D$16)+$D$16)*(1-Analise_Fundamentalista!$C$6)*G57 -> 364125.2693 | I57: -110968.0811 | J57: =Analise_Fundamentalista!$C$12*Monte_Carlo!G57 -> 112785.3876 | K57: =-Analise_Fundamentalista!$C$14*Monte_Carlo!G57 -> -33208.58098 | L57: 3602405.392 | M57: =(RAND()*($D$17-$D$16)+$D$16)*(1-Analise_Fundamentalista!$C$6)*L57 -> 341253.4201 | N57: -384109.4226 | O57: =Analise_Fundamentalista!$C$12*Monte_Carlo!L57 -> 130766.1426 | P57: =-Analise_Fundamentalista!$C$14*Monte_Carlo!L57 -> -38502.84269 | Q57: 4216579.548 | R57: =(RAND()*($D$17-$D$16)+$D$16)*(1-Analise_Fundamentalista!$C$6)*Q57 -> 650066.6975 | S57: -298813.3701 | T57: =Analise_Fundamentalista!$C$12*Monte_Carlo!Q57 -> 153060.4644 | U57: =-Analise_Fundamentalista!$C$14*Monte_Carlo!Q57 -> -45067.19299 | V57: 4652904.586 | W57: =(RAND()*($D$17-$D$16)+$D$16)*(1-Analise_Fundamentalista!$C$6)*V57 -> 415182.5267 | X57: -147264.2999 | Y57: =Analise_Fundamentalista!$C$12*Monte_Carlo!V57 -> 168898.9212 | Z57: =-Analise_Fundamentalista!$C$14*Monte_Carlo!V57 -> -49730.67542 | AA57: 5715430.748 | AB57: =(RAND()*($D$17-$D$16)+$D$16)*(1-Analise_Fundamentalista!$C$6)*AA57 -> 696056.2222 | AC57: -503263.7265 | AD57: =Analise_Fundamentalista!$C$12*Monte_Carlo!AA57 -> 207468.2749 | AE57: =-Analise_Fundamentalista!$C$14*Monte_Carlo!AA57 -> -61087.05352 | AF57: 6791782.443 | AG57: =(RAND()*($D$17-$D$16)+$D$16)*(1-Analise_Fundamentalista!$C$6)*AF57 -> 860194.9413 | AH57: -509274.8033 | AI57: =Analise_Fundamentalista!$C$12*Monte_Carlo!AF57 -> 246539.4909 | AJ57: =-Analise_Fundamentalista!$C$14*Monte_Carlo!AF57 -> -72591.20019 | AK57: 8352926.89 | AL57: =(RAND()*($D$17-$D$16)+$D$16)*(1-Analise_Fundamentalista!$C$6)*AK57 -> 343040.7318 | AM57: -1178766.251 | AN57: =Analise_Fundamentalista!$C$12*Monte_Carlo!AK57 -> 303208.5259 | AO57: =-Analise_Fundamentalista!$C$14*Monte_Carlo!AK57 -> -89276.85672 | AP57: 11297727.93 | AQ57: =(RAND()*($D$17-$D$16)+$D$16)*(1-Analise_Fundamentalista!$C$6)*AP57 -> 1539757.484 | AR57: -231922.675 | AS57: =Analise_Fundamentalista!$C$12*Monte_Carlo!AP57 -> 410103.8446 | AT57: =-Analise_Fundamentalista!$C$14*Monte_Carlo!AP57 -> -120751.1631 | AU57: 11816802.91 | AV57: =(RAND()*($D$17-$D$16)+$D$16)*(1-Analise_Fundamentalista!$C$6)*AU57 -> 1730528.437 | AW57: -3545.588082 | AX57: =Analise_Fundamentalista!$C$12*Monte_Carlo!AU57 -> 428946.0974 | AY57: =-Analise_Fundamentalista!$C$14*Monte_Carlo!AU57 -> -126299.0847 | AZ57: 43486.31629 | BA57: 332733.9948 | BB57: 49407.29741 | BC57: 459246.5989 | BD57: 387086.4726 | BE57: 339173.7171 | BF57: 524868.4286 | BG57: -621793.8501 | BH57: 1597187.491 | BI57: 2029629.862 | BJ57: =BI57*(1+Analise_Fundamentalista!$C$10)/(Analise_Fundamentalista!$C$10) -> 28291351.85 | BK57: =NPV(Analise_Fundamentalista!$C$10,Monte_Carlo!AZ57:BI57)+Monte_Carlo!BJ57/(1+Analise_Fundamentalista!$C$10)^10 -> 16380080.33 | BL57: =(BK57+Analise_Fundamentalista!$C$15-Analise_Fundamentalista!$C$16-Analise_Fundamentalista!$C$17)/(Analise_Fundamentalista!$F$29+Analise_Fundamentalista!$F$30)*1000 -> 102.9521872 | BM57: 0.978257507
A58: Tent33 | B58: 2643280.06 | C58: =(RAND()*($D$17-$D$16)+$D$16)*(1-Analise_Fundamentalista!$C$6)*B58 -> 417303.8871 | D58: -11345.76373 | E58: =Analise_Fundamentalista!$C$12*Monte_Carlo!B58 -> 95950.20538 | F58: =-Analise_Fundamentalista!$C$14*Monte_Carlo!B58 -> -28251.62225 | G58: 3009748.151 | H58: =(RAND()*($D$17-$D$16)+$D$16)*(1-Analise_Fundamentalista!$C$6)*G58 -> 441137.9375 | I58: -24408.8273 | J58: =Analise_Fundamentalista!$C$12*Monte_Carlo!G58 -> 109252.8777 | K58: =-Analise_Fundamentalista!$C$14*Monte_Carlo!G58 -> -32168.46717 | L58: 3489074.361 | M58: =(RAND()*($D$17-$D$16)+$D$16)*(1-Analise_Fundamentalista!$C$6)*L58 -> 569894.9373 | N58: -625144.0107 | O58: =Analise_Fundamentalista!$C$12*Monte_Carlo!L58 -> 126652.263 | P58: =-Analise_Fundamentalista!$C$14*Monte_Carlo!L58 -> -37291.55012 | Q58: 4250504.04 | R58: =(RAND()*($D$17-$D$16)+$D$16)*(1-Analise_Fundamentalista!$C$6)*Q58 -> 158280.6891 | S58: -578642.6435 | T58: =Analise_Fundamentalista!$C$12*Monte_Carlo!Q58 -> 154291.9124 | U58: =-Analise_Fundamentalista!$C$14*Monte_Carlo!Q58 -> -45429.7811 | V58: 4576048.178 | W58: =(RAND()*($D$17-$D$16)+$D$16)*(1-Analise_Fundamentalista!$C$6)*V58 -> 398168.5052 | X58: -803182.0728 | Y58: =Analise_Fundamentalista!$C$12*Monte_Carlo!V58 -> 166109.0586 | Z58: =-Analise_Fundamentalista!$C$14*Monte_Carlo!V58 -> -48909.22702 | AA58: 5790035.072 | AB58: =(RAND()*($D$17-$D$16)+$D$16)*(1-Analise_Fundamentalista!$C$6)*AA58 -> 333303.2665 | AC58: -907480.8485 | AD58: =Analise_Fundamentalista!$C$12*Monte_Carlo!AA58 -> 210176.3875 | AE58: =-Analise_Fundamentalista!$C$14*Monte_Carlo!AA58 -> -61884.43144 | AF58: 6707894.58 | AG58: =(RAND()*($D$17-$D$16)+$D$16)*(1-Analise_Fundamentalista!$C$6)*AF58 -> 324393.6526 | AH58: -282208.2997 | AI58: =Analise_Fundamentalista!$C$12*Monte_Carlo!AF58 -> 243494.3888 | AJ58: =-Analise_Fundamentalista!$C$14*Monte_Carlo!AF58 -> -71694.59893 | AK58: 8522564.969 | AL58: =(RAND()*($D$17-$D$16)+$D$16)*(1-Analise_Fundamentalista!$C$6)*AK58 -> 1065237.586 | AM58: -1783452.667 | AN58: =Analise_Fundamentalista!$C$12*Monte_Carlo!AK58 -> 309366.3329 | AO58: =-Analise_Fundamentalista!$C$14*Monte_Carlo!AK58 -> -91089.96423 | AP58: 11278234.6 | AQ58: =(RAND()*($D$17-$D$16)+$D$16)*(1-Analise_Fundamentalista!$C$6)*AP58 -> 949404.7093 | AR58: -277259.0432 | AS58: =Analise_Fundamentalista!$C$12*Monte_Carlo!AP58 -> 409396.2432 | AT58: =-Analise_Fundamentalista!$C$14*Monte_Carlo!AP58 -> -120542.8167 | AU58: 11159463.41 | AV58: =(RAND()*($D$17-$D$16)+$D$16)*(1-Analise_Fundamentalista!$C$6)*AU58 -> 693418.8757 | AW58: -1283710.576 | AX58: =Analise_Fundamentalista!$C$12*Monte_Carlo!AU58 -> 405084.8878 | AY58: =-Analise_Fundamentalista!$C$14*Monte_Carlo!AU58 -> -119273.3792 | AZ58: 473656.7065 | BA58: 493813.5208 | BB58: 34111.63952 | BC58: -311499.823 | BD58: -287813.736 | BE58: -425885.626 | BF58: 213985.1427 | BG58: -499938.7119 | BH58: 960999.0927 | BI58: -304480.1922 | BJ58: =BI58*(1+Analise_Fundamentalista!$C$10)/(Analise_Fundamentalista!$C$10) -> -4244200.587 | BK58: =NPV(Analise_Fundamentalista!$C$10,Monte_Carlo!AZ58:BI58)+Monte_Carlo!BJ58/(1+Analise_Fundamentalista!$C$10)^10 -> -1627036.177 | BL58: =(BK58+Analise_Fundamentalista!$C$15-Analise_Fundamentalista!$C$16-Analise_Fundamentalista!$C$17)/(Analise_Fundamentalista!$F$29+Analise_Fundamentalista!$F$30)*1000 -> -7.674304107 | BM58: 0.1307221815
A59: Tent34 | B59: 2765691.672 | C59: =(RAND()*($D$17-$D$16)+$D$16)*(1-Analise_Fundamentalista!$C$6)*B59 -> 105895.1931 | D59: -69228.98605 | E59: =Analise_Fundamentalista!$C$12*Monte_Carlo!B59 -> 100393.707 | F59: =-Analise_Fundamentalista!$C$14*Monte_Carlo!B59 -> -29559.96891 | G59: 2956652.046 | H59: =(RAND()*($D$17-$D$16)+$D$16)*(1-Analise_Fundamentalista!$C$6)*G59 -> 183733.7401 | I59: -24022.67552 | J59: =Analise_Fundamentalista!$C$12*Monte_Carlo!G59 -> 107325.5064 | K59: =-Analise_Fundamentalista!$C$14*Monte_Carlo!G59 -> -31600.97107 | L59: 3132978.719 | M59: =(RAND()*($D$17-$D$16)+$D$16)*(1-Analise_Fundamentalista!$C$6)*L59 -> 205761.871 | N59: -274157.3821 | O59: =Analise_Fundamentalista!$C$12*Monte_Carlo!L59 -> 113726.1072 | P59: =-Analise_Fundamentalista!$C$14*Monte_Carlo!L59 -> -33485.5669 | Q59: 3989005.54 | R59: =(RAND()*($D$17-$D$16)+$D$16)*(1-Analise_Fundamentalista!$C$6)*Q59 -> 468527.8244 | S59: -443610.9112 | T59: =Analise_Fundamentalista!$C$12*Monte_Carlo!Q59 -> 144799.602 | U59: =-Analise_Fundamentalista!$C$14*Monte_Carlo!Q59 -> -42634.8609 | V59: 4550092.887 | W59: =(RAND()*($D$17-$D$16)+$D$16)*(1-Analise_Fundamentalista!$C$6)*V59 -> 470083.7685 | X59: -898729.6059 | Y59: =Analise_Fundamentalista!$C$12*Monte_Carlo!V59 -> 165166.89 | Z59: =-Analise_Fundamentalista!$C$14*Monte_Carlo!V59 -> -48631.81446 | AA59: 5036693.859 | AB59: =(RAND()*($D$17-$D$16)+$D$16)*(1-Analise_Fundamentalista!$C$6)*AA59 -> 801560.4679 | AC59: -687158.7517 | AD59: =Analise_Fundamentalista!$C$12*Monte_Carlo!AA59 -> 182830.3468 | AE59: =-Analise_Fundamentalista!$C$14*Monte_Carlo!AA59 -> -53832.65075 | AF59: 7501927.945 | AG59: =(RAND()*($D$17-$D$16)+$D$16)*(1-Analise_Fundamentalista!$C$6)*AF59 -> 867188.4207 | AH59: -696868.3106 | AI59: =Analise_Fundamentalista!$C$12*Monte_Carlo!AF59 -> 272317.5413 | AJ59: =-Analise_Fundamentalista!$C$14*Monte_Carlo!AF59 -> -80181.30113 | AK59: 9015978.336 | AL59: =(RAND()*($D$17-$D$16)+$D$16)*(1-Analise_Fundamentalista!$C$6)*AK59 -> 631534.0406 | AM59: -64311.2081 | AN59: =Analise_Fundamentalista!$C$12*Monte_Carlo!AK59 -> 327277.0775 | AO59: =-Analise_Fundamentalista!$C$14*Monte_Carlo!AK59 -> -96363.61203 | AP59: 10560020.39 | AQ59: =(RAND()*($D$17-$D$16)+$D$16)*(1-Analise_Fundamentalista!$C$6)*AP59 -> 1408913.105 | AR59: -1244227.986 | AS59: =Analise_Fundamentalista!$C$12*Monte_Carlo!AP59 -> 383325.3013 | AT59: =-Analise_Fundamentalista!$C$14*Monte_Carlo!AP59 -> -112866.4766 | AU59: 10913970.42 | AV59: =(RAND()*($D$17-$D$16)+$D$16)*(1-Analise_Fundamentalista!$C$6)*AU59 -> 953420.4439 | AW59: -925170.9412 | AX59: =Analise_Fundamentalista!$C$12*Monte_Carlo!AU59 -> 396173.5719 | AY59: =-Analise_Fundamentalista!$C$14*Monte_Carlo!AU59 -> -116649.5273 | AZ59: 107499.9452 | BA59: 235435.5999 | BB59: 11845.02923 | BC59: 127081.6544 | BD59: -312110.7619 | BE59: 243399.4123 | BF59: 362456.3503 | BG59: 798136.2979 | BH59: 435143.9436 | BI59: 307773.5473 | BJ59: =BI59*(1+Analise_Fundamentalista!$C$10)/(Analise_Fundamentalista!$C$10) -> 4290107.217 | BK59: =NPV(Analise_Fundamentalista!$C$10,Monte_Carlo!AZ59:BI59)+Monte_Carlo!BJ59/(1+Analise_Fundamentalista!$C$10)^10 -> 3408990.751 | BL59: =(BK59+Analise_Fundamentalista!$C$15-Analise_Fundamentalista!$C$16-Analise_Fundamentalista!$C$17)/(Analise_Fundamentalista!$F$29+Analise_Fundamentalista!$F$30)*1000 -> 23.26446331 | BM59: 0.4035134626
A60: Tent35 | B60: 2695913.998 | C60: =(RAND()*($D$17-$D$16)+$D$16)*(1-Analise_Fundamentalista!$C$6)*B60 -> 106096.3382 | D60: -627716.2672 | E60: =Analise_Fundamentalista!$C$12*Monte_Carlo!B60 -> 97860.80019 | F60: =-Analise_Fundamentalista!$C$14*Monte_Carlo!B60 -> -28814.17866 | G60: 2639220.859 | H60: =(RAND()*($D$17-$D$16)+$D$16)*(1-Analise_Fundamentalista!$C$6)*G60 -> 389086.0176 | I60: -294794.2013 | J60: =Analise_Fundamentalista!$C$12*Monte_Carlo!G60 -> 95802.85768 | K60: =-Analise_Fundamentalista!$C$14*Monte_Carlo!G60 -> -28208.23713 | L60: 3389344.175 | M60: =(RAND()*($D$17-$D$16)+$D$16)*(1-Analise_Fundamentalista!$C$6)*L60 -> 201872.1078 | N60: -38873.28631 | O60: =Analise_Fundamentalista!$C$12*Monte_Carlo!L60 -> 123032.0898 | P60: =-Analise_Fundamentalista!$C$14*Monte_Carlo!L60 -> -36225.62466 | Q60: 4410411.472 | R60: =(RAND()*($D$17-$D$16)+$D$16)*(1-Analise_Fundamentalista!$C$6)*Q60 -> 711480.5542 | S60: -726758.2479 | T60: =Analise_Fundamentalista!$C$12*Monte_Carlo!Q60 -> 160096.5001 | U60: =-Analise_Fundamentalista!$C$14*Monte_Carlo!Q60 -> -47138.88655 | V60: 5289681.469 | W60: =(RAND()*($D$17-$D$16)+$D$16)*(1-Analise_Fundamentalista!$C$6)*V60 -> 604394.8893 | X60: -828618.1796 | Y60: =Analise_Fundamentalista!$C$12*Monte_Carlo!V60 -> 192013.7147 | Z60: =-Analise_Fundamentalista!$C$14*Monte_Carlo!V60 -> -56536.60577 | AA60: 6232893.734 | AB60: =(RAND()*($D$17-$D$16)+$D$16)*(1-Analise_Fundamentalista!$C$6)*AA60 -> 619315.195 | AC60: -643698.7996 | AD60: =Analise_Fundamentalista!$C$12*Monte_Carlo!AA60 -> 226252.0127 | AE60: =-Analise_Fundamentalista!$C$14*Monte_Carlo!AA60 -> -66617.74587 | AF60: 7832757.286 | AG60: =(RAND()*($D$17-$D$16)+$D$16)*(1-Analise_Fundamentalista!$C$6)*AF60 -> 873075.7922 | AH60: -732573.9692 | AI60: =Analise_Fundamentalista!$C$12*Monte_Carlo!AF60 -> 284326.5387 | AJ60: =-Analise_Fundamentalista!$C$14*Monte_Carlo!AF60 -> -83717.23578 | AK60: 7703974.343 | AL60: =(RAND()*($D$17-$D$16)+$D$16)*(1-Analise_Fundamentalista!$C$6)*AK60 -> 1236308.623 | AM60: -1701144.944 | AN60: =Analise_Fundamentalista!$C$12*Monte_Carlo!AK60 -> 279651.7598 | AO60: =-Analise_Fundamentalista!$C$14*Monte_Carlo!AK60 -> -82340.79175 | AP60: 9560099.13 | AQ60: =(RAND()*($D$17-$D$16)+$D$16)*(1-Analise_Fundamentalista!$C$6)*AP60 -> 606170.7477 | AR60: -304695.4146 | AS60: =Analise_Fundamentalista!$C$12*Monte_Carlo!AP60 -> 347028.4851 | AT60: =-Analise_Fundamentalista!$C$14*Monte_Carlo!AP60 -> -102179.2255 | AU60: 12273697.89 | AV60: =(RAND()*($D$17-$D$16)+$D$16)*(1-Analise_Fundamentalista!$C$6)*AU60 -> 1197684.422 | AW60: -175832.7786 | AX60: =Analise_Fundamentalista!$C$12*Monte_Carlo!AU60 -> 445531.2364 | AY60: =-Analise_Fundamentalista!$C$14*Monte_Carlo!AU60 -> -131182.4206 | AZ60: -452573.3075 | BA60: 161886.4369 | BB60: 249805.2867 | BC60: 97679.91986 | BD60: -88746.18133 | BE60: 135250.6623 | BF60: 341111.1259 | BG60: -267525.3536 | BH60: 546324.5927 | BI60: 1336200.459 | BJ60: =BI60*(1+Analise_Fundamentalista!$C$10)/(Analise_Fundamentalista!$C$10) -> 18625522.84 | BK60: =NPV(Analise_Fundamentalista!$C$10,Monte_Carlo!AZ60:BI60)+Monte_Carlo!BJ60/(1+Analise_Fundamentalista!$C$10)^10 -> 9833588.38 | BL60: =(BK60+Analise_Fundamentalista!$C$15-Analise_Fundamentalista!$C$16-Analise_Fundamentalista!$C$17)/(Analise_Fundamentalista!$F$29+Analise_Fundamentalista!$F$30)*1000 -> 62.73389718 | BM60: 0.8096873199
A61: Tent36 | B61: 2432387.586 | C61: =(RAND()*($D$17-$D$16)+$D$16)*(1-Analise_Fundamentalista!$C$6)*B61 -> 96835.8187 | D61: -326363.8918 | E61: =Analise_Fundamentalista!$C$12*Monte_Carlo!B61 -> 88294.87726 | F61: =-Analise_Fundamentalista!$C$14*Monte_Carlo!B61 -> -25997.58395 | G61: 3065287.89 | H61: =(RAND()*($D$17-$D$16)+$D$16)*(1-Analise_Fundamentalista!$C$6)*G61 -> 268293.5812 | I61: -31759.86693 | J61: =Analise_Fundamentalista!$C$12*Monte_Carlo!G61 -> 111268.9522 | K61: =-Analise_Fundamentalista!$C$14*Monte_Carlo!G61 -> -32762.08105 | L61: 3698815.531 | M61: =(RAND()*($D$17-$D$16)+$D$16)*(1-Analise_Fundamentalista!$C$6)*L61 -> 187405.6737 | N61: -420361.097 | O61: =Analise_Fundamentalista!$C$12*Monte_Carlo!L61 -> 134265.7992 | P61: =-Analise_Fundamentalista!$C$14*Monte_Carlo!L61 -> -39533.28318 | Q61: 4051710.764 | R61: =(RAND()*($D$17-$D$16)+$D$16)*(1-Analise_Fundamentalista!$C$6)*Q61 -> 482238.8848 | S61: -526485.813 | T61: =Analise_Fundamentalista!$C$12*Monte_Carlo!Q61 -> 147075.7812 | U61: =-Analise_Fundamentalista!$C$14*Monte_Carlo!Q61 -> -43305.06014 | V61: 4425903.196 | W61: =(RAND()*($D$17-$D$16)+$D$16)*(1-Analise_Fundamentalista!$C$6)*V61 -> 652614.6428 | X61: -462288.9413 | Y61: =Analise_Fundamentalista!$C$12*Monte_Carlo!V61 -> 160658.8447 | Z61: =-Analise_Fundamentalista!$C$14*Monte_Carlo!V61 -> -47304.46353 | AA61: 5764959.966 | AB61: =(RAND()*($D$17-$D$16)+$D$16)*(1-Analise_Fundamentalista!$C$6)*AA61 -> 376883.4209 | AC61: -40096.09798 | AD61: =Analise_Fundamentalista!$C$12*Monte_Carlo!AA61 -> 209266.1694 | AE61: =-Analise_Fundamentalista!$C$14*Monte_Carlo!AA61 -> -61616.42639 | AF61: 7539288.632 | AG61: =(RAND()*($D$17-$D$16)+$D$16)*(1-Analise_Fundamentalista!$C$6)*AF61 -> 331052.4047 | AH61: -1011.685282 | AI61: =Analise_Fundamentalista!$C$12*Monte_Carlo!AF61 -> 273673.7221 | AJ61: =-Analise_Fundamentalista!$C$14*Monte_Carlo!AF61 -> -80580.61561 | AK61: 7806261.669 | AL61: =(RAND()*($D$17-$D$16)+$D$16)*(1-Analise_Fundamentalista!$C$6)*AK61 -> 772062.6648 | AM61: -1149711.95 | AN61: =Analise_Fundamentalista!$C$12*Monte_Carlo!AK61 -> 283364.7564 | AO61: =-Analise_Fundamentalista!$C$14*Monte_Carlo!AK61 -> -83434.04817 | AP61: 10701364.75 | AQ61: =(RAND()*($D$17-$D$16)+$D$16)*(1-Analise_Fundamentalista!$C$6)*AP61 -> 590295.3802 | AR61: -391257.4252 | AS61: =Analise_Fundamentalista!$C$12*Monte_Carlo!AP61 -> 388456.0554 | AT61: =-Analise_Fundamentalista!$C$14*Monte_Carlo!AP61 -> -114377.1782 | AU61: 13029556.23 | AV61: =(RAND()*($D$17-$D$16)+$D$16)*(1-Analise_Fundamentalista!$C$6)*AU61 -> 1013237.607 | AW61: -149478.3361 | AX61: =Analise_Fundamentalista!$C$12*Monte_Carlo!AU61 -> 472968.648 | AY61: =-Analise_Fundamentalista!$C$14*Monte_Carlo!AU61 -> -139261.1045 | AZ61: -167230.7798 | BA61: 315040.5854 | BB61: -138222.9073 | BC61: 59523.79288 | BD61: 303680.0827 | BE61: 484437.0659 | BF61: 523133.826 | BG61: -177718.5767 | BH61: 473116.8322 | BI61: 1197466.814 | BJ61: =BI61*(1+Analise_Fundamentalista!$C$10)/(Analise_Fundamentalista!$C$10) -> 16691691.24 | BK61: =NPV(Analise_Fundamentalista!$C$10,Monte_Carlo!AZ61:BI61)+Monte_Carlo!BJ61/(1+Analise_Fundamentalista!$C$10)^10 -> 9521261.587 | BL61: =(BK61+Analise_Fundamentalista!$C$15-Analise_Fundamentalista!$C$16-Analise_Fundamentalista!$C$17)/(Analise_Fundamentalista!$F$29+Analise_Fundamentalista!$F$30)*1000 -> 60.8151215 | BM61: 0.7945320338
A62: Tent37 | B62: 2249409.85 | C62: =(RAND()*($D$17-$D$16)+$D$16)*(1-Analise_Fundamentalista!$C$6)*B62 -> 104694.6421 | D62: -343686.3364 | E62: =Analise_Fundamentalista!$C$12*Monte_Carlo!B62 -> 81652.845 | F62: =-Analise_Fundamentalista!$C$14*Monte_Carlo!B62 -> -24041.90094 | G62: 3009581.628 | H62: =(RAND()*($D$17-$D$16)+$D$16)*(1-Analise_Fundamentalista!$C$6)*G62 -> 334521.4886 | I62: -651045.8306 | J62: =Analise_Fundamentalista!$C$12*Monte_Carlo!G62 -> 109246.833 | K62: =-Analise_Fundamentalista!$C$14*Monte_Carlo!G62 -> -32166.68736 | L62: 4191207.954 | M62: =(RAND()*($D$17-$D$16)+$D$16)*(1-Analise_Fundamentalista!$C$6)*L62 -> 364694.4316 | N62: -281283.2378 | O62: =Analise_Fundamentalista!$C$12*Monte_Carlo!L62 -> 152139.4838 | P62: =-Analise_Fundamentalista!$C$14*Monte_Carlo!L62 -> -44796.01904 | Q62: 3827431.751 | R62: =(RAND()*($D$17-$D$16)+$D$16)*(1-Analise_Fundamentalista!$C$6)*Q62 -> 457435.5044 | S62: -68234.37475 | T62: =Analise_Fundamentalista!$C$12*Monte_Carlo!Q62 -> 138934.5261 | U62: =-Analise_Fundamentalista!$C$14*Monte_Carlo!Q62 -> -40907.94527 | V62: 5398423.87 | W62: =(RAND()*($D$17-$D$16)+$D$16)*(1-Analise_Fundamentalista!$C$6)*V62 -> 877379.3257 | X62: -399712.2739 | Y62: =Analise_Fundamentalista!$C$12*Monte_Carlo!V62 -> 195961.0284 | Z62: =-Analise_Fundamentalista!$C$14*Monte_Carlo!V62 -> -57698.85463 | AA62: 5986035.504 | AB62: =(RAND()*($D$17-$D$16)+$D$16)*(1-Analise_Fundamentalista!$C$6)*AA62 -> 762500.2149 | AC62: -667628.558 | AD62: =Analise_Fundamentalista!$C$12*Monte_Carlo!AA62 -> 217291.1394 | AE62: =-Analise_Fundamentalista!$C$14*Monte_Carlo!AA62 -> -63979.30222 | AF62: 7708983.764 | AG62: =(RAND()*($D$17-$D$16)+$D$16)*(1-Analise_Fundamentalista!$C$6)*AF62 -> 947243.3487 | AH62: -1034177.213 | AI62: =Analise_Fundamentalista!$C$12*Monte_Carlo!AF62 -> 279833.6001 | AJ62: =-Analise_Fundamentalista!$C$14*Monte_Carlo!AF62 -> -82394.33291 | AK62: 9427924.965 | AL62: =(RAND()*($D$17-$D$16)+$D$16)*(1-Analise_Fundamentalista!$C$6)*AK62 -> 628321.2779 | AM62: -1413498.094 | AN62: =Analise_Fundamentalista!$C$12*Monte_Carlo!AK62 -> 342230.6059 | AO62: =-Analise_Fundamentalista!$C$14*Monte_Carlo!AK62 -> -100766.5358 | AP62: 10218428.71 | AQ62: =(RAND()*($D$17-$D$16)+$D$16)*(1-Analise_Fundamentalista!$C$6)*AP62 -> 1201538.177 | AR62: -1740190.046 | AS62: =Analise_Fundamentalista!$C$12*Monte_Carlo!AP62 -> 370925.6345 | AT62: =-Analise_Fundamentalista!$C$14*Monte_Carlo!AP62 -> -109215.5131 | AU62: 10404216.42 | AV62: =(RAND()*($D$17-$D$16)+$D$16)*(1-Analise_Fundamentalista!$C$6)*AU62 -> 636281.406 | AW62: -959459.9768 | AX62: =Analise_Fundamentalista!$C$12*Monte_Carlo!AU62 -> 377669.6678 | AY62: =-Analise_Fundamentalista!$C$14*Monte_Carlo!AU62 -> -111201.2293 | AZ62: -181380.7503 | BA62: -239444.1964 | BB62: 190754.6586 | BC62: 487227.7105 | BD62: 615929.2256 | BE62: 248183.4941 | BF62: 110505.4025 | BG62: -543712.7457 | BH62: -276941.747 | BI62: -56710.13221 | BJ62: =BI62*(1+Analise_Fundamentalista!$C$10)/(Analise_Fundamentalista!$C$10) -> -790492.0668 | BK62: =NPV(Analise_Fundamentalista!$C$10,Monte_Carlo!AZ62:BI62)+Monte_Carlo!BJ62/(1+Analise_Fundamentalista!$C$10)^10 -> -55323.00825 | BL62: =(BK62+Analise_Fundamentalista!$C$15-Analise_Fundamentalista!$C$16-Analise_Fundamentalista!$C$17)/(Analise_Fundamentalista!$F$29+Analise_Fundamentalista!$F$30)*1000 -> 1.981495766 | BM62: 0.1980128459
A63: Tent38 | B63: 2598058.853 | C63: =(RAND()*($D$17-$D$16)+$D$16)*(1-Analise_Fundamentalista!$C$6)*B63 -> 93709.61044 | D63: -365627.9263 | E63: =Analise_Fundamentalista!$C$12*Monte_Carlo!B63 -> 94308.69027 | F63: =-Analise_Fundamentalista!$C$14*Monte_Carlo!B63 -> -27768.2938 | G63: 2803942.814 | H63: =(RAND()*($D$17-$D$16)+$D$16)*(1-Analise_Fundamentalista!$C$6)*G63 -> 124872.8657 | I63: -171658.0325 | J63: =Analise_Fundamentalista!$C$12*Monte_Carlo!G63 -> 101782.211 | K63: =-Analise_Fundamentalista!$C$14*Monte_Carlo!G63 -> -29968.80066 | L63: 3835680.566 | M63: =(RAND()*($D$17-$D$16)+$D$16)*(1-Analise_Fundamentalista!$C$6)*L63 -> 381726.5536 | N63: -190070.426 | O63: =Analise_Fundamentalista!$C$12*Monte_Carlo!L63 -> 139233.9554 | P63: =-Analise_Fundamentalista!$C$14*Monte_Carlo!L63 -> -40996.10936 | Q63: 4642127.276 | R63: =(RAND()*($D$17-$D$16)+$D$16)*(1-Analise_Fundamentalista!$C$6)*Q63 -> 579545.8403 | S63: -594015.2014 | T63: =Analise_Fundamentalista!$C$12*Monte_Carlo!Q63 -> 168507.7084 | U63: =-Analise_Fundamentalista!$C$14*Monte_Carlo!Q63 -> -49615.48654 | V63: 4531127.219 | W63: =(RAND()*($D$17-$D$16)+$D$16)*(1-Analise_Fundamentalista!$C$6)*V63 -> 676922.337 | X63: -651973.4331 | Y63: =Analise_Fundamentalista!$C$12*Monte_Carlo!V63 -> 164478.4424 | Z63: =-Analise_Fundamentalista!$C$14*Monte_Carlo!V63 -> -48429.10764 | AA63: 5532247.986 | AB63: =(RAND()*($D$17-$D$16)+$D$16)*(1-Analise_Fundamentalista!$C$6)*AA63 -> 545116.9211 | AC63: -141793.8431 | AD63: =Analise_Fundamentalista!$C$12*Monte_Carlo!AA63 -> 200818.8003 | AE63: =-Analise_Fundamentalista!$C$14*Monte_Carlo!AA63 -> -59129.17919 | AF63: 8188674.031 | AG63: =(RAND()*($D$17-$D$16)+$D$16)*(1-Analise_Fundamentalista!$C$6)*AF63 -> 1275479.967 | AH63: -303280.731 | AI63: =Analise_Fundamentalista!$C$12*Monte_Carlo!AF63 -> 297246.2006 | AJ63: =-Analise_Fundamentalista!$C$14*Monte_Carlo!AF63 -> -87521.30694 | AK63: 9079623.035 | AL63: =(RAND()*($D$17-$D$16)+$D$16)*(1-Analise_Fundamentalista!$C$6)*AK63 -> 1337229.135 | AM63: -84275.15208 | AN63: =Analise_Fundamentalista!$C$12*Monte_Carlo!AK63 -> 329587.3593 | AO63: =-Analise_Fundamentalista!$C$14*Monte_Carlo!AK63 -> -97043.85246 | AP63: 10729187.36 | AQ63: =(RAND()*($D$17-$D$16)+$D$16)*(1-Analise_Fundamentalista!$C$6)*AP63 -> 816918.8036 | AR63: -951968.0793 | AS63: =Analise_Fundamentalista!$C$12*Monte_Carlo!AP63 -> 389466.007 | AT63: =-Analise_Fundamentalista!$C$14*Monte_Carlo!AP63 -> -114674.5488 | AU63: 12479939.27 | AV63: =(RAND()*($D$17-$D$16)+$D$16)*(1-Analise_Fundamentalista!$C$6)*AU63 -> 994160.8923 | AW63: -128600.9811 | AX63: =Analise_Fundamentalista!$C$12*Monte_Carlo!AU63 -> 453017.7312 | AY63: =-Analise_Fundamentalista!$C$14*Monte_Carlo!AU63 -> -133386.7475 | AZ63: -205377.9194 | BA63: 25028.24362 | BB63: 289893.9736 | BC63: 104422.8608 | BD63: 140998.2387 | BE63: 545012.6991 | BF63: 1181924.129 | BG63: 1485497.49 | BH63: 139742.1824 | BI63: 1185190.895 | BJ63: =BI63*(1+Analise_Fundamentalista!$C$10)/(Analise_Fundamentalista!$C$10) -> 16520575.13 | BK63: =NPV(Analise_Fundamentalista!$C$10,Monte_Carlo!AZ63:BI63)+Monte_Carlo!BJ63/(1+Analise_Fundamentalista!$C$10)^10 -> 10588747.29 | BL63: =(BK63+Analise_Fundamentalista!$C$15-Analise_Fundamentalista!$C$16-Analise_Fundamentalista!$C$17)/(Analise_Fundamentalista!$F$29+Analise_Fundamentalista!$F$30)*1000 -> 67.37320632 | BM63: 0.8433951408
A64: Tent39 | B64: 2149842.155 | C64: =(RAND()*($D$17-$D$16)+$D$16)*(1-Analise_Fundamentalista!$C$6)*B64 -> 240528.6685 | D64: -104854.3549 | E64: =Analise_Fundamentalista!$C$12*Monte_Carlo!B64 -> 78038.57011 | F64: =-Analise_Fundamentalista!$C$14*Monte_Carlo!B64 -> -22977.71219 | G64: 2979188.233 | H64: =(RAND()*($D$17-$D$16)+$D$16)*(1-Analise_Fundamentalista!$C$6)*G64 -> 360143.9632 | I64: -71724.01261 | J64: =Analise_Fundamentalista!$C$12*Monte_Carlo!G64 -> 108143.5627 | K64: =-Analise_Fundamentalista!$C$14*Monte_Carlo!G64 -> -31841.83993 | L64: 3287704.498 | M64: =(RAND()*($D$17-$D$16)+$D$16)*(1-Analise_Fundamentalista!$C$6)*L64 -> 377295.1426 | N64: -136223.3986 | O64: =Analise_Fundamentalista!$C$12*Monte_Carlo!L64 -> 119342.6026 | P64: =-Analise_Fundamentalista!$C$14*Monte_Carlo!L64 -> -35139.29036 | Q64: 3903147.933 | R64: =(RAND()*($D$17-$D$16)+$D$16)*(1-Analise_Fundamentalista!$C$6)*Q64 -> 348179.0524 | S64: -104198.4876 | T64: =Analise_Fundamentalista!$C$12*Monte_Carlo!Q64 -> 141682.9988 | U64: =-Analise_Fundamentalista!$C$14*Monte_Carlo!Q64 -> -41717.20683 | V64: 4735585.143 | W64: =(RAND()*($D$17-$D$16)+$D$16)*(1-Analise_Fundamentalista!$C$6)*V64 -> 658936.2425 | X64: -598037.1078 | Y64: =Analise_Fundamentalista!$C$12*Monte_Carlo!V64 -> 171900.1985 | Z64: =-Analise_Fundamentalista!$C$14*Monte_Carlo!V64 -> -50614.37288 | AA64: 6487414.345 | AB64: =(RAND()*($D$17-$D$16)+$D$16)*(1-Analise_Fundamentalista!$C$6)*AA64 -> 802145.9649 | AC64: -589831.9194 | AD64: =Analise_Fundamentalista!$C$12*Monte_Carlo!AA64 -> 235491.028 | AE64: =-Analise_Fundamentalista!$C$14*Monte_Carlo!AA64 -> -69338.08574 | AF64: 6642764.809 | AG64: =(RAND()*($D$17-$D$16)+$D$16)*(1-Analise_Fundamentalista!$C$6)*AF64 -> 955534.2056 | AH64: -532994.2067 | AI64: =Analise_Fundamentalista!$C$12*Monte_Carlo!AF64 -> 241130.1993 | AJ64: =-Analise_Fundamentalista!$C$14*Monte_Carlo!AF64 -> -70998.48591 | AK64: 8356406.223 | AL64: =(RAND()*($D$17-$D$16)+$D$16)*(1-Analise_Fundamentalista!$C$6)*AK64 -> 944081.5466 | AM64: -133217.5797 | AN64: =Analise_Fundamentalista!$C$12*Monte_Carlo!AK64 -> 303334.8245 | AO64: =-Analise_Fundamentalista!$C$14*Monte_Carlo!AK64 -> -89314.04415 | AP64: 9142777.607 | AQ64: =(RAND()*($D$17-$D$16)+$D$16)*(1-Analise_Fundamentalista!$C$6)*AP64 -> 1399519.711 | AR64: -605390.9135 | AS64: =Analise_Fundamentalista!$C$12*Monte_Carlo!AP64 -> 331879.8497 | AT64: =-Analise_Fundamentalista!$C$14*Monte_Carlo!AP64 -> -97718.85438 | AU64: 11687195.69 | AV64: =(RAND()*($D$17-$D$16)+$D$16)*(1-Analise_Fundamentalista!$C$6)*AU64 -> 1508492.227 | AW64: -110038.2354 | AX64: =Analise_Fundamentalista!$C$12*Monte_Carlo!AU64 -> 424241.3973 | AY64: =-Analise_Fundamentalista!$C$14*Monte_Carlo!AU64 -> -124913.8306 | AZ64: 190735.1715 | BA64: 364721.6733 | BB64: 325275.0562 | BC64: 343946.3568 | BD64: 182184.9603 | BE64: 378466.9878 | BF64: 592671.7122 | BG64: 1024884.747 | BH64: 1028289.793 | BI64: 1697781.558 | BJ64: =BI64*(1+Analise_Fundamentalista!$C$10)/(Analise_Fundamentalista!$C$10) -> 23665662.57 | BK64: =NPV(Analise_Fundamentalista!$C$10,Monte_Carlo!AZ64:BI64)+Monte_Carlo!BJ64/(1+Analise_Fundamentalista!$C$10)^10 -> 14865356.96 | BL64: =(BK64+Analise_Fundamentalista!$C$15-Analise_Fundamentalista!$C$16-Analise_Fundamentalista!$C$17)/(Analise_Fundamentalista!$F$29+Analise_Fundamentalista!$F$30)*1000 -> 93.64650349 | BM64: 0.9603465779
A65: Tent40 | B65: 2695755.526 | C65: =(RAND()*($D$17-$D$16)+$D$16)*(1-Analise_Fundamentalista!$C$6)*B65 -> 388871.8234 | D65: -429318.2058 | E65: =Analise_Fundamentalista!$C$12*Monte_Carlo!B65 -> 97855.0477 | F65: =-Analise_Fundamentalista!$C$14*Monte_Carlo!B65 -> -28812.4849 | G65: 3130942.098 | H65: =(RAND()*($D$17-$D$16)+$D$16)*(1-Analise_Fundamentalista!$C$6)*G65 -> 177828.2761 | I65: -385850.7103 | J65: =Analise_Fundamentalista!$C$12*Monte_Carlo!G65 -> 113652.1785 | K65: =-Analise_Fundamentalista!$C$14*Monte_Carlo!G65 -> -33463.79931 | L65: 3586616.624 | M65: =(RAND()*($D$17-$D$16)+$D$16)*(1-Analise_Fundamentalista!$C$6)*L65 -> 368456.6848 | N65: -303433.6046 | O65: =Analise_Fundamentalista!$C$12*Monte_Carlo!L65 -> 130193.0154 | P65: =-Analise_Fundamentalista!$C$14*Monte_Carlo!L65 -> -38334.09087 | Q65: 3981649.793 | R65: =(RAND()*($D$17-$D$16)+$D$16)*(1-Analise_Fundamentalista!$C$6)*Q65 -> 611251.3924 | S65: -173272.0488 | T65: =Analise_Fundamentalista!$C$12*Monte_Carlo!Q65 -> 144532.5908 | U65: =-Analise_Fundamentalista!$C$14*Monte_Carlo!Q65 -> -42556.24199 | V65: 5310318.099 | W65: =(RAND()*($D$17-$D$16)+$D$16)*(1-Analise_Fundamentalista!$C$6)*V65 -> 739355.2258 | X65: -813739.2755 | Y65: =Analise_Fundamentalista!$C$12*Monte_Carlo!V65 -> 192762.8176 | Z65: =-Analise_Fundamentalista!$C$14*Monte_Carlo!V65 -> -56757.17198 | AA65: 5314466.025 | AB65: =(RAND()*($D$17-$D$16)+$D$16)*(1-Analise_Fundamentalista!$C$6)*AA65 -> 665258.3433 | AC65: -56149.81737 | AD65: =Analise_Fundamentalista!$C$12*Monte_Carlo!AA65 -> 192913.386 | AE65: =-Analise_Fundamentalista!$C$14*Monte_Carlo!AA65 -> -56801.5054 | AF65: 7566251.399 | AG65: =(RAND()*($D$17-$D$16)+$D$16)*(1-Analise_Fundamentalista!$C$6)*AF65 -> 1038054.457 | AH65: -379094.6858 | AI65: =Analise_Fundamentalista!$C$12*Monte_Carlo!AF65 -> 274652.4618 | AJ65: =-Analise_Fundamentalista!$C$14*Monte_Carlo!AF65 -> -80868.79616 | AK65: 7930613.447 | AL65: =(RAND()*($D$17-$D$16)+$D$16)*(1-Analise_Fundamentalista!$C$6)*AK65 -> 1146734.609 | AM65: -657674.4026 | AN65: =Analise_Fundamentalista!$C$12*Monte_Carlo!AK65 -> 287878.6854 | AO65: =-Analise_Fundamentalista!$C$14*Monte_Carlo!AK65 -> -84763.1315 | AP65: 10171377.72 | AQ65: =(RAND()*($D$17-$D$16)+$D$16)*(1-Analise_Fundamentalista!$C$6)*AP65 -> 513641.1384 | AR65: -376429.5307 | AS65: =Analise_Fundamentalista!$C$12*Monte_Carlo!AP65 -> 369217.699 | AT65: =-Analise_Fundamentalista!$C$14*Monte_Carlo!AP65 -> -108712.6278 | AU65: 11909908.04 | AV65: =(RAND()*($D$17-$D$16)+$D$16)*(1-Analise_Fundamentalista!$C$6)*AU65 -> 1859675.629 | AW65: -1708071.95 | AX65: =Analise_Fundamentalista!$C$12*Monte_Carlo!AU65 -> 432325.7834 | AY65: =-Analise_Fundamentalista!$C$14*Monte_Carlo!AU65 -> -127294.2009 | AZ65: 28596.18042 | BA65: -127834.0549 | BB65: 156882.0047 | BC65: 539955.6924 | BD65: 61621.59599 | BE65: 745220.4065 | BF65: 852743.4369 | BG65: 692175.7601 | BH65: 397716.6789 | BI65: 456635.261 | BJ65: =BI65*(1+Analise_Fundamentalista!$C$10)/(Analise_Fundamentalista!$C$10) -> 6365115.671 | BK65: =NPV(Analise_Fundamentalista!$C$10,Monte_Carlo!AZ65:BI65)+Monte_Carlo!BJ65/(1+Analise_Fundamentalista!$C$10)^10 -> 5293848.277 | BL65: =(BK65+Analise_Fundamentalista!$C$15-Analise_Fundamentalista!$C$16-Analise_Fundamentalista!$C$17)/(Analise_Fundamentalista!$F$29+Analise_Fundamentalista!$F$30)*1000 -> 34.84406156 | BM65: 0.5337180949
A66: Tent41 | B66: 2494430.458 | C66: =(RAND()*($D$17-$D$16)+$D$16)*(1-Analise_Fundamentalista!$C$6)*B66 -> 288560.689 | D66: -545253.1416 | E66: =Analise_Fundamentalista!$C$12*Monte_Carlo!B66 -> 90547.01327 | F66: =-Analise_Fundamentalista!$C$14*Monte_Carlo!B66 -> -26660.7039 | G66: 3139620.633 | H66: =(RAND()*($D$17-$D$16)+$D$16)*(1-Analise_Fundamentalista!$C$6)*G66 -> 215957.2785 | I66: -45256.63311 | J66: =Analise_Fundamentalista!$C$12*Monte_Carlo!G66 -> 113967.2065 | K66: =-Analise_Fundamentalista!$C$14*Monte_Carlo!G66 -> -33556.55629 | L66: 4068841.306 | M66: =(RAND()*($D$17-$D$16)+$D$16)*(1-Analise_Fundamentalista!$C$6)*L66 -> 647689.4029 | N66: -198435.4374 | O66: =Analise_Fundamentalista!$C$12*Monte_Carlo!L66 -> 147697.6143 | P66: =-Analise_Fundamentalista!$C$14*Monte_Carlo!L66 -> -43488.15296 | Q66: 4103045.803 | R66: =(RAND()*($D$17-$D$16)+$D$16)*(1-Analise_Fundamentalista!$C$6)*Q66 -> 604073.1952 | S66: -229577.5594 | T66: =Analise_Fundamentalista!$C$12*Monte_Carlo!Q66 -> 148939.2264 | U66: =-Analise_Fundamentalista!$C$14*Monte_Carlo!Q66 -> -43853.73379 | V66: 4852952.769 | W66: =(RAND()*($D$17-$D$16)+$D$16)*(1-Analise_Fundamentalista!$C$6)*V66 -> 195489.7294 | X66: -431127.5743 | Y66: =Analise_Fundamentalista!$C$12*Monte_Carlo!V66 -> 176160.6051 | Z66: =-Analise_Fundamentalista!$C$14*Monte_Carlo!V66 -> -51868.80895 | AA66: 6181194.871 | AB66: =(RAND()*($D$17-$D$16)+$D$16)*(1-Analise_Fundamentalista!$C$6)*AA66 -> 531093.3081 | AC66: -413167.1055 | AD66: =Analise_Fundamentalista!$C$12*Monte_Carlo!AA66 -> 224375.3608 | AE66: =-Analise_Fundamentalista!$C$14*Monte_Carlo!AA66 -> -66065.18363 | AF66: 7010752.733 | AG66: =(RAND()*($D$17-$D$16)+$D$16)*(1-Analise_Fundamentalista!$C$6)*AF66 -> 1005334.632 | AH66: -703711.0057 | AI66: =Analise_Fundamentalista!$C$12*Monte_Carlo!AF66 -> 254488.0411 | AJ66: =-Analise_Fundamentalista!$C$14*Monte_Carlo!AF66 -> -74931.57494 | AK66: 8434397.93 | AL66: =(RAND()*($D$17-$D$16)+$D$16)*(1-Analise_Fundamentalista!$C$6)*AK66 -> 876667.7903 | AM66: -785392.8345 | AN66: =Analise_Fundamentalista!$C$12*Monte_Carlo!AK66 -> 306165.8981 | AO66: =-Analise_Fundamentalista!$C$14*Monte_Carlo!AK66 -> -90147.62674 | AP66: 11379797.76 | AQ66: =(RAND()*($D$17-$D$16)+$D$16)*(1-Analise_Fundamentalista!$C$6)*AP66 -> 1857503.194 | AR66: -1154793.891 | AS66: =Analise_Fundamentalista!$C$12*Monte_Carlo!AP66 -> 413082.9529 | AT66: =-Analise_Fundamentalista!$C$14*Monte_Carlo!AP66 -> -121628.3331 | AU66: 10584303.26 | AV66: =(RAND()*($D$17-$D$16)+$D$16)*(1-Analise_Fundamentalista!$C$6)*AU66 -> 1503972.872 | AW66: -889913.1175 | AX66: =Analise_Fundamentalista!$C$12*Monte_Carlo!AU66 -> 384206.7614 | AY66: =-Analise_Fundamentalista!$C$14*Monte_Carlo!AU66 -> -113126.0142 | AZ66: -192806.1432 | BA66: 251111.2957 | BB66: 553463.4268 | BC66: 479581.1284 | BD66: -111346.0487 | BE66: 276236.3799 | BF66: 481180.0922 | BG66: 307293.2272 | BH66: 994163.9231 | BI66: 885140.5014 | BJ66: =BI66*(1+Analise_Fundamentalista!$C$10)/(Analise_Fundamentalista!$C$10) -> 12338122.26 | BK66: =NPV(Analise_Fundamentalista!$C$10,Monte_Carlo!AZ66:BI66)+Monte_Carlo!BJ66/(1+Analise_Fundamentalista!$C$10)^10 -> 8181095.122 | BL66: =(BK66+Analise_Fundamentalista!$C$15-Analise_Fundamentalista!$C$16-Analise_Fundamentalista!$C$17)/(Analise_Fundamentalista!$F$29+Analise_Fundamentalista!$F$30)*1000 -> 52.58182586 | BM66: 0.7218701816
A67: Tent42 | B67: 2798161.135 | C67: =(RAND()*($D$17-$D$16)+$D$16)*(1-Analise_Fundamentalista!$C$6)*B67 -> 216279.4195 | D67: -130354.8266 | E67: =Analise_Fundamentalista!$C$12*Monte_Carlo!B67 -> 101572.338 | F67: =-Analise_Fundamentalista!$C$14*Monte_Carlo!B67 -> -29907.00553 | G67: 3305798.629 | H67: =(RAND()*($D$17-$D$16)+$D$16)*(1-Analise_Fundamentalista!$C$6)*G67 -> 232879.6465 | I67: -72002.17776 | J67: =Analise_Fundamentalista!$C$12*Monte_Carlo!G67 -> 119999.4137 | K67: =-Analise_Fundamentalista!$C$14*Monte_Carlo!G67 -> -35332.68212 | L67: 3971006.817 | M67: =(RAND()*($D$17-$D$16)+$D$16)*(1-Analise_Fundamentalista!$C$6)*L67 -> 337569.3575 | N67: -321315.6198 | O67: =Analise_Fundamentalista!$C$12*Monte_Carlo!L67 -> 144146.2543 | P67: =-Analise_Fundamentalista!$C$14*Monte_Carlo!L67 -> -42442.48888 | Q67: 4233110.194 | R67: =(RAND()*($D$17-$D$16)+$D$16)*(1-Analise_Fundamentalista!$C$6)*Q67 -> 153916.3847 | S67: -420560.8518 | T67: =Analise_Fundamentalista!$C$12*Monte_Carlo!Q67 -> 153660.5215 | U67: =-Analise_Fundamentalista!$C$14*Monte_Carlo!Q67 -> -45243.87407 | V67: 5187826.174 | W67: =(RAND()*($D$17-$D$16)+$D$16)*(1-Analise_Fundamentalista!$C$6)*V67 -> 380185.0577 | X67: -584614.2157 | Y67: =Analise_Fundamentalista!$C$12*Monte_Carlo!V67 -> 188316.4006 | Z67: =-Analise_Fundamentalista!$C$14*Monte_Carlo!V67 -> -55447.96693 | AA67: 5740783.081 | AB67: =(RAND()*($D$17-$D$16)+$D$16)*(1-Analise_Fundamentalista!$C$6)*AA67 -> 290906.1718 | AC67: -414643.4275 | AD67: =Analise_Fundamentalista!$C$12*Monte_Carlo!AA67 -> 208388.5563 | AE67: =-Analise_Fundamentalista!$C$14*Monte_Carlo!AA67 -> -61358.02161 | AF67: 6960010.532 | AG67: =(RAND()*($D$17-$D$16)+$D$16)*(1-Analise_Fundamentalista!$C$6)*AF67 -> 899742.9015 | AH67: -227913.0648 | AI67: =Analise_Fundamentalista!$C$12*Monte_Carlo!AF67 -> 252646.1157 | AJ67: =-Analise_Fundamentalista!$C$14*Monte_Carlo!AF67 -> -74389.23759 | AK67: 8401407.261 | AL67: =(RAND()*($D$17-$D$16)+$D$16)*(1-Analise_Fundamentalista!$C$6)*AK67 -> 620054.5096 | AM67: -1150951.991 | AN67: =Analise_Fundamentalista!$C$12*Monte_Carlo!AK67 -> 304968.3476 | AO67: =-Analise_Fundamentalista!$C$14*Monte_Carlo!AK67 -> -89795.01942 | AP67: 10044608.19 | AQ67: =(RAND()*($D$17-$D$16)+$D$16)*(1-Analise_Fundamentalista!$C$6)*AP67 -> 1077995.807 | AR67: -694584.4943 | AS67: =Analise_Fundamentalista!$C$12*Monte_Carlo!AP67 -> 364616.0062 | AT67: =-Analise_Fundamentalista!$C$14*Monte_Carlo!AP67 -> -107357.7032 | AU67: 13471616.85 | AV67: =(RAND()*($D$17-$D$16)+$D$16)*(1-Analise_Fundamentalista!$C$6)*AU67 -> 1222460.942 | AW67: -753153.573 | AX67: =Analise_Fundamentalista!$C$12*Monte_Carlo!AU67 -> 489015.3046 | AY67: =-Analise_Fundamentalista!$C$14*Monte_Carlo!AU67 -> -143985.8894 | AZ67: 157589.9253 | BA67: 245544.2003 | BB67: 117957.5031 | BC67: -158227.8197 | BD67: -71560.72433 | BE67: 23293.27895 | BF67: 850086.7148 | BG67: -315724.1537 | BH67: 640669.6156 | BI67: 814336.7846 | BJ67: =BI67*(1+Analise_Fundamentalista!$C$10)/(Analise_Fundamentalista!$C$10) -> 11351177.34 | BK67: =NPV(Analise_Fundamentalista!$C$10,Monte_Carlo!AZ67:BI67)+Monte_Carlo!BJ67/(1+Analise_Fundamentalista!$C$10)^10 -> 6737578.141 | BL67: =(BK67+Analise_Fundamentalista!$C$15-Analise_Fundamentalista!$C$16-Analise_Fundamentalista!$C$17)/(Analise_Fundamentalista!$F$29+Analise_Fundamentalista!$F$30)*1000 -> 43.71359763 | BM67: 0.6317649516
A68: Tent43 | B68: 2401280.163 | C68: =(RAND()*($D$17-$D$16)+$D$16)*(1-Analise_Fundamentalista!$C$6)*B68 -> 328722.3632 | D68: -240670.6734 | E68: =Analise_Fundamentalista!$C$12*Monte_Carlo!B68 -> 87165.68793 | F68: =-Analise_Fundamentalista!$C$14*Monte_Carlo!B68 -> -25665.10493 | G68: 3320563.529 | H68: =(RAND()*($D$17-$D$16)+$D$16)*(1-Analise_Fundamentalista!$C$6)*G68 -> 442121.621 | I68: -618547.163 | J68: =Analise_Fundamentalista!$C$12*Monte_Carlo!G68 -> 120535.3747 | K68: =-Analise_Fundamentalista!$C$14*Monte_Carlo!G68 -> -35490.49074 | L68: 3621585.536 | M68: =(RAND()*($D$17-$D$16)+$D$16)*(1-Analise_Fundamentalista!$C$6)*L68 -> 219134.6561 | N68: -143898.6261 | O68: =Analise_Fundamentalista!$C$12*Monte_Carlo!L68 -> 131462.3755 | P68: =-Analise_Fundamentalista!$C$14*Monte_Carlo!L68 -> -38707.84184 | Q68: 4181227.408 | R68: =(RAND()*($D$17-$D$16)+$D$16)*(1-Analise_Fundamentalista!$C$6)*Q68 -> 586151.0644 | S68: -413886.4204 | T68: =Analise_Fundamentalista!$C$12*Monte_Carlo!Q68 -> 151777.1932 | U68: =-Analise_Fundamentalista!$C$14*Monte_Carlo!Q68 -> -44689.34603 | V68: 5105175.887 | W68: =(RAND()*($D$17-$D$16)+$D$16)*(1-Analise_Fundamentalista!$C$6)*V68 -> 485135.7136 | X68: -10996.64789 | Y68: =Analise_Fundamentalista!$C$12*Monte_Carlo!V68 -> 185316.2222 | Z68: =-Analise_Fundamentalista!$C$14*Monte_Carlo!V68 -> -54564.59301 | AA68: 5870359.97 | AB68: =(RAND()*($D$17-$D$16)+$D$16)*(1-Analise_Fundamentalista!$C$6)*AA68 -> 279889.5665 | AC68: -1058604.116 | AD68: =Analise_Fundamentalista!$C$12*Monte_Carlo!AA68 -> 213092.1552 | AE68: =-Analise_Fundamentalista!$C$14*Monte_Carlo!AA68 -> -62742.9514 | AF68: 7722986.886 | AG68: =(RAND()*($D$17-$D$16)+$D$16)*(1-Analise_Fundamentalista!$C$6)*AF68 -> 787589.8213 | AH68: -192235.139 | AI68: =Analise_Fundamentalista!$C$12*Monte_Carlo!AF68 -> 280341.9089 | AJ68: =-Analise_Fundamentalista!$C$14*Monte_Carlo!AF68 -> -82543.99958 | AK68: 8329172.668 | AL68: =(RAND()*($D$17-$D$16)+$D$16)*(1-Analise_Fundamentalista!$C$6)*AK68 -> 1297602.99 | AM68: -653865.0719 | AN68: =Analise_Fundamentalista!$C$12*Monte_Carlo!AK68 -> 302346.2554 | AO68: =-Analise_Fundamentalista!$C$14*Monte_Carlo!AK68 -> -89022.9694 | AP68: 10919268.35 | AQ68: =(RAND()*($D$17-$D$16)+$D$16)*(1-Analise_Fundamentalista!$C$6)*AP68 -> 794092.8891 | AR68: -576443.0654 | AS68: =Analise_Fundamentalista!$C$12*Monte_Carlo!AP68 -> 396365.8852 | AT68: =-Analise_Fundamentalista!$C$14*Monte_Carlo!AP68 -> -116706.1521 | AU68: 12215167.47 | AV68: =(RAND()*($D$17-$D$16)+$D$16)*(1-Analise_Fundamentalista!$C$6)*AU68 -> 1536037.072 | AW68: -1096319.719 | AX68: =Analise_Fundamentalista!$C$12*Monte_Carlo!AU68 -> 443406.6012 | AY68: =-Analise_Fundamentalista!$C$14*Monte_Carlo!AU68 -> -130556.842 | AZ68: 149552.2728 | BA68: -91380.65801 | BB68: 167990.5637 | BC68: 279352.4912 | BD68: 604890.6949 | BE68: -628365.346 | BF68: 793152.5917 | BG68: 857061.2045 | BH68: 497309.5568 | BI68: 752567.1118 | BJ68: =BI68*(1+Analise_Fundamentalista!$C$10)/(Analise_Fundamentalista!$C$10) -> 10490159.49 | BK68: =NPV(Analise_Fundamentalista!$C$10,Monte_Carlo!AZ68:BI68)+Monte_Carlo!BJ68/(1+Analise_Fundamentalista!$C$10)^10 -> 6955029.9 | BL68: =(BK68+Analise_Fundamentalista!$C$15-Analise_Fundamentalista!$C$16-Analise_Fundamentalista!$C$17)/(Analise_Fundamentalista!$F$29+Analise_Fundamentalista!$F$30)*1000 -> 45.04950975 | BM68: 0.6459741451
A69: Tent44 | B69: 2519037.452 | C69: =(RAND()*($D$17-$D$16)+$D$16)*(1-Analise_Fundamentalista!$C$6)*B69 -> 84614.44377 | D69: -374176.9868 | E69: =Analise_Fundamentalista!$C$12*Monte_Carlo!B69 -> 91440.23915 | F69: =-Analise_Fundamentalista!$C$14*Monte_Carlo!B69 -> -26923.70574 | G69: 3229856.138 | H69: =(RAND()*($D$17-$D$16)+$D$16)*(1-Analise_Fundamentalista!$C$6)*G69 -> 488924.0872 | I69: -101757.8816 | J69: =Analise_Fundamentalista!$C$12*Monte_Carlo!G69 -> 117242.726 | K69: =-Analise_Fundamentalista!$C$14*Monte_Carlo!G69 -> -34521.00173 | L69: 3595644.737 | M69: =(RAND()*($D$17-$D$16)+$D$16)*(1-Analise_Fundamentalista!$C$6)*L69 -> 382399.8641 | N69: -264695.1703 | O69: =Analise_Fundamentalista!$C$12*Monte_Carlo!L69 -> 130520.733 | P69: =-Analise_Fundamentalista!$C$14*Monte_Carlo!L69 -> -38430.58418 | Q69: 3938941.541 | R69: =(RAND()*($D$17-$D$16)+$D$16)*(1-Analise_Fundamentalista!$C$6)*Q69 -> 516971.1845 | S69: -200940.7429 | T69: =Analise_Fundamentalista!$C$12*Monte_Carlo!Q69 -> 142982.2952 | U69: =-Analise_Fundamentalista!$C$14*Monte_Carlo!Q69 -> -42099.77224 | V69: 4716358.678 | W69: =(RAND()*($D$17-$D$16)+$D$16)*(1-Analise_Fundamentalista!$C$6)*V69 -> 387644.8228 | X69: -513573.0154 | Y69: =Analise_Fundamentalista!$C$12*Monte_Carlo!V69 -> 171202.2841 | Z69: =-Analise_Fundamentalista!$C$14*Monte_Carlo!V69 -> -50408.87864 | AA69: 6177463.534 | AB69: =(RAND()*($D$17-$D$16)+$D$16)*(1-Analise_Fundamentalista!$C$6)*AA69 -> 922623.6997 | AC69: -645479.4096 | AD69: =Analise_Fundamentalista!$C$12*Monte_Carlo!AA69 -> 224239.9145 | AE69: =-Analise_Fundamentalista!$C$14*Monte_Carlo!AA69 -> -66025.30275 | AF69: 7220187.977 | AG69: =(RAND()*($D$17-$D$16)+$D$16)*(1-Analise_Fundamentalista!$C$6)*AF69 -> 1002240.299 | AH69: -996687.7798 | AI69: =Analise_Fundamentalista!$C$12*Monte_Carlo!AF69 -> 262090.4723 | AJ69: =-Analise_Fundamentalista!$C$14*Monte_Carlo!AF69 -> -77170.03824 | AK69: 7468473.647 | AL69: =(RAND()*($D$17-$D$16)+$D$16)*(1-Analise_Fundamentalista!$C$6)*AK69 -> 1143959.182 | AM69: -659425.0916 | AN69: =Analise_Fundamentalista!$C$12*Monte_Carlo!AK69 -> 271103.1612 | AO69: =-Analise_Fundamentalista!$C$14*Monte_Carlo!AK69 -> -79823.73849 | AP69: 8570685.744 | AQ69: =(RAND()*($D$17-$D$16)+$D$16)*(1-Analise_Fundamentalista!$C$6)*AP69 -> 476834.5642 | AR69: -1230940.169 | AS69: =Analise_Fundamentalista!$C$12*Monte_Carlo!AP69 -> 311113.1014 | AT69: =-Analise_Fundamentalista!$C$14*Monte_Carlo!AP69 -> -91604.28353 | AU69: 11259025.85 | AV69: =(RAND()*($D$17-$D$16)+$D$16)*(1-Analise_Fundamentalista!$C$6)*AU69 -> 509281.982 | AW69: -1465354.556 | AX69: =Analise_Fundamentalista!$C$12*Monte_Carlo!AU69 -> 408698.9716 | AY69: =-Analise_Fundamentalista!$C$14*Monte_Carlo!AU69 -> -120337.5117 | AZ69: -225046.0096 | BA69: 469887.9298 | BB69: 209794.8426 | BC69: 416912.9646 | BD69: -5134.787167 | BE69: 435358.9019 | BF69: 190472.9528 | BG69: 675813.5128 | BH69: -534596.7873 | BI69: -667711.1141 | BJ69: =BI69*(1+Analise_Fundamentalista!$C$10)/(Analise_Fundamentalista!$C$10) -> -9307337.473 | BK69: =NPV(Analise_Fundamentalista!$C$10,Monte_Carlo!AZ69:BI69)+Monte_Carlo!BJ69/(1+Analise_Fundamentalista!$C$10)^10 -> -3577738.591 | BL69: =(BK69+Analise_Fundamentalista!$C$15-Analise_Fundamentalista!$C$16-Analise_Fundamentalista!$C$17)/(Analise_Fundamentalista!$F$29+Analise_Fundamentalista!$F$30)*1000 -> -19.65841959 | BM69: 0.07168502626
A70: Tent45 | B70: 2651415.825 | C70: =(RAND()*($D$17-$D$16)+$D$16)*(1-Analise_Fundamentalista!$C$6)*B70 -> 407766.3939 | D70: -170867.1529 | E70: =Analise_Fundamentalista!$C$12*Monte_Carlo!B70 -> 96245.53097 | F70: =-Analise_Fundamentalista!$C$14*Monte_Carlo!B70 -> -28338.57806 | G70: 2483322.434 | H70: =(RAND()*($D$17-$D$16)+$D$16)*(1-Analise_Fundamentalista!$C$6)*G70 -> 153709.4714 | I70: -510229.6618 | J70: =Analise_Fundamentalista!$C$12*Monte_Carlo!G70 -> 90143.79563 | K70: =-Analise_Fundamentalista!$C$14*Monte_Carlo!G70 -> -26541.98032 | L70: 4009086.877 | M70: =(RAND()*($D$17-$D$16)+$D$16)*(1-Analise_Fundamentalista!$C$6)*L70 -> 638621.049 | N70: -397756.601 | O70: =Analise_Fundamentalista!$C$12*Monte_Carlo!L70 -> 145528.548 | P70: =-Analise_Fundamentalista!$C$14*Monte_Carlo!L70 -> -42849.49209 | Q70: 3984709.32 | R70: =(RAND()*($D$17-$D$16)+$D$16)*(1-Analise_Fundamentalista!$C$6)*Q70 -> 515482.8461 | S70: -40424.53991 | T70: =Analise_Fundamentalista!$C$12*Monte_Carlo!Q70 -> 144643.6507 | U70: =-Analise_Fundamentalista!$C$14*Monte_Carlo!Q70 -> -42588.9425 | V70: 5570647.04 | W70: =(RAND()*($D$17-$D$16)+$D$16)*(1-Analise_Fundamentalista!$C$6)*V70 -> 610299.7049 | X70: -1274281.847 | Y70: =Analise_Fundamentalista!$C$12*Monte_Carlo!V70 -> 202212.6734 | Z70: =-Analise_Fundamentalista!$C$14*Monte_Carlo!V70 -> -59539.59183 | AA70: 5585367.154 | AB70: =(RAND()*($D$17-$D$16)+$D$16)*(1-Analise_Fundamentalista!$C$6)*AA70 -> 378414.4766 | AC70: -788730.7883 | AD70: =Analise_Fundamentalista!$C$12*Monte_Carlo!AA70 -> 202747.0087 | AE70: =-Analise_Fundamentalista!$C$14*Monte_Carlo!AA70 -> -59696.92177 | AF70: 7695895.331 | AG70: =(RAND()*($D$17-$D$16)+$D$16)*(1-Analise_Fundamentalista!$C$6)*AF70 -> 446762.5014 | AH70: -640441.9505 | AI70: =Analise_Fundamentalista!$C$12*Monte_Carlo!AF70 -> 279358.4943 | AJ70: =-Analise_Fundamentalista!$C$14*Monte_Carlo!AF70 -> -82254.44253 | AK70: 8329671.86 | AL70: =(RAND()*($D$17-$D$16)+$D$16)*(1-Analise_Fundamentalista!$C$6)*AK70 -> 1112267.101 | AM70: -1371544.428 | AN70: =Analise_Fundamentalista!$C$12*Monte_Carlo!AK70 -> 302364.3759 | AO70: =-Analise_Fundamentalista!$C$14*Monte_Carlo!AK70 -> -89028.3048 | AP70: 10041834.14 | AQ70: =(RAND()*($D$17-$D$16)+$D$16)*(1-Analise_Fundamentalista!$C$6)*AP70 -> 791085.2172 | AR70: -918805.5685 | AS70: =Analise_Fundamentalista!$C$12*Monte_Carlo!AP70 -> 364515.309 | AT70: =-Analise_Fundamentalista!$C$14*Monte_Carlo!AP70 -> -107328.0539 | AU70: 11160165.53 | AV70: =(RAND()*($D$17-$D$16)+$D$16)*(1-Analise_Fundamentalista!$C$6)*AU70 -> 984082.2589 | AW70: -517687.9738 | AX70: =Analise_Fundamentalista!$C$12*Monte_Carlo!AU70 -> 405110.3743 | AY70: =-Analise_Fundamentalista!$C$14*Monte_Carlo!AU70 -> -119280.8835 | AZ70: 304806.1939 | BA70: -292918.375 | BB70: 343543.504 | BC70: 577113.0144 | BD70: -521309.0607 | BE70: -267266.2247 | BF70: 3424.602659 | BG70: -45941.25572 | BH70: 129466.9038 | BI70: 752223.776 | BJ70: =BI70*(1+Analise_Fundamentalista!$C$10)/(Analise_Fundamentalista!$C$10) -> 10485373.68 | BK70: =NPV(Analise_Fundamentalista!$C$10,Monte_Carlo!AZ70:BI70)+Monte_Carlo!BJ70/(1+Analise_Fundamentalista!$C$10)^10 -> 5584372.441 | BL70: =(BK70+Analise_Fundamentalista!$C$15-Analise_Fundamentalista!$C$16-Analise_Fundamentalista!$C$17)/(Analise_Fundamentalista!$F$29+Analise_Fundamentalista!$F$30)*1000 -> 36.62889308 | BM70: 0.5538175034
A71: Tent46 | B71: 2540673.232 | C71: =(RAND()*($D$17-$D$16)+$D$16)*(1-Analise_Fundamentalista!$C$6)*B71 -> 275913.8851 | D71: -217572.2383 | E71: =Analise_Fundamentalista!$C$12*Monte_Carlo!B71 -> 92225.61093 | F71: =-Analise_Fundamentalista!$C$14*Monte_Carlo!B71 -> -27154.95096 | G71: 2744977.252 | H71: =(RAND()*($D$17-$D$16)+$D$16)*(1-Analise_Fundamentalista!$C$6)*G71 -> 154579.5883 | I71: -107452.8611 | J71: =Analise_Fundamentalista!$C$12*Monte_Carlo!G71 -> 99641.78032 | K71: =-Analise_Fundamentalista!$C$14*Monte_Carlo!G71 -> -29338.57127 | L71: 3420483.152 | M71: =(RAND()*($D$17-$D$16)+$D$16)*(1-Analise_Fundamentalista!$C$6)*L71 -> 205516.6172 | N71: -247534.7727 | O71: =Analise_Fundamentalista!$C$12*Monte_Carlo!L71 -> 124162.4245 | P71: =-Analise_Fundamentalista!$C$14*Monte_Carlo!L71 -> -36558.44093 | Q71: 3953942.546 | R71: =(RAND()*($D$17-$D$16)+$D$16)*(1-Analise_Fundamentalista!$C$6)*Q71 -> 633603.5915 | S71: -133400.9178 | T71: =Analise_Fundamentalista!$C$12*Monte_Carlo!Q71 -> 143526.8268 | U71: =-Analise_Fundamentalista!$C$14*Monte_Carlo!Q71 -> -42260.10437 | V71: 4753951.021 | W71: =(RAND()*($D$17-$D$16)+$D$16)*(1-Analise_Fundamentalista!$C$6)*V71 -> 321696.1697 | X71: -389637.906 | Y71: =Analise_Fundamentalista!$C$12*Monte_Carlo!V71 -> 172566.8739 | Z71: =-Analise_Fundamentalista!$C$14*Monte_Carlo!V71 -> -50810.66909 | AA71: 5389769.418 | AB71: =(RAND()*($D$17-$D$16)+$D$16)*(1-Analise_Fundamentalista!$C$6)*AA71 -> 432735.7228 | AC71: -153800.8802 | AD71: =Analise_Fundamentalista!$C$12*Monte_Carlo!AA71 -> 195646.8746 | AE71: =-Analise_Fundamentalista!$C$14*Monte_Carlo!AA71 -> -57606.35504 | AF71: 7689773.394 | AG71: =(RAND()*($D$17-$D$16)+$D$16)*(1-Analise_Fundamentalista!$C$6)*AF71 -> 296577.8217 | AH71: -738567.5338 | AI71: =Analise_Fundamentalista!$C$12*Monte_Carlo!AF71 -> 279136.27 | AJ71: =-Analise_Fundamentalista!$C$14*Monte_Carlo!AF71 -> -82189.0107 | AK71: 7564949.833 | AL71: =(RAND()*($D$17-$D$16)+$D$16)*(1-Analise_Fundamentalista!$C$6)*AK71 -> 791337.6968 | AM71: -550775.6531 | AN71: =Analise_Fundamentalista!$C$12*Monte_Carlo!AK71 -> 274605.2153 | AO71: =-Analise_Fundamentalista!$C$14*Monte_Carlo!AK71 -> -80854.8849 | AP71: 9437846.634 | AQ71: =(RAND()*($D$17-$D$16)+$D$16)*(1-Analise_Fundamentalista!$C$6)*AP71 -> 1036507.817 | AR71: -723506.4661 | AS71: =Analise_Fundamentalista!$C$12*Monte_Carlo!AP71 -> 342590.7593 | AT71: =-Analise_Fundamentalista!$C$14*Monte_Carlo!AP71 -> -100872.5795 | AU71: 10077460.96 | AV71: =(RAND()*($D$17-$D$16)+$D$16)*(1-Analise_Fundamentalista!$C$6)*AU71 -> 767713.2599 | AW71: -1549426.954 | AX71: =Analise_Fundamentalista!$C$12*Monte_Carlo!AU71 -> 365808.551 | AY71: =-Analise_Fundamentalista!$C$14*Monte_Carlo!AU71 -> -107708.8367 | AZ71: 123412.3068 | BA71: 117429.9363 | BB71: 45585.82813 | BC71: 601469.3961 | BD71: 53814.46851 | BE71: 416975.3622 | BF71: -245042.4528 | BG71: 434312.3741 | BH71: 554719.5304 | BI71: -523613.9794 | BJ71: =BI71*(1+Analise_Fundamentalista!$C$10)/(Analise_Fundamentalista!$C$10) -> -7298743.288 | BK71: =NPV(Analise_Fundamentalista!$C$10,Monte_Carlo!AZ71:BI71)+Monte_Carlo!BJ71/(1+Analise_Fundamentalista!$C$10)^10 -> -2335246.784 | BL71: =(BK71+Analise_Fundamentalista!$C$15-Analise_Fundamentalista!$C$16-Analise_Fundamentalista!$C$17)/(Analise_Fundamentalista!$F$29+Analise_Fundamentalista!$F$30)*1000 -> -12.02518697 | BM71: 0.1062799376
A72: Tent47 | B72: 2188154.503 | C72: =(RAND()*($D$17-$D$16)+$D$16)*(1-Analise_Fundamentalista!$C$6)*B72 -> 227410.7752 | D72: -325320.9601 | E72: =Analise_Fundamentalista!$C$12*Monte_Carlo!B72 -> 79429.29585 | F72: =-Analise_Fundamentalista!$C$14*Monte_Carlo!B72 -> -23387.19811 | G72: 3039153.819 | H72: =(RAND()*($D$17-$D$16)+$D$16)*(1-Analise_Fundamentalista!$C$6)*G72 -> 435216.0051 | I72: -342360.8393 | J72: =Analise_Fundamentalista!$C$12*Monte_Carlo!G72 -> 110320.2939 | K72: =-Analise_Fundamentalista!$C$14*Monte_Carlo!G72 -> -32482.75767 | L72: 3320918.516 | M72: =(RAND()*($D$17-$D$16)+$D$16)*(1-Analise_Fundamentalista!$C$6)*L72 -> 217071.0203 | N72: -247200.2807 | O72: =Analise_Fundamentalista!$C$12*Monte_Carlo!L72 -> 120548.2606 | P72: =-Analise_Fundamentalista!$C$14*Monte_Carlo!L72 -> -35494.28487 | Q72: 4011449.186 | R72: =(RAND()*($D$17-$D$16)+$D$16)*(1-Analise_Fundamentalista!$C$6)*Q72 -> 199549.7967 | S72: -482662.8208 | T72: =Analise_Fundamentalista!$C$12*Monte_Carlo!Q72 -> 145614.2991 | U72: =-Analise_Fundamentalista!$C$14*Monte_Carlo!Q72 -> -42874.74067 | V72: 5039761.468 | W72: =(RAND()*($D$17-$D$16)+$D$16)*(1-Analise_Fundamentalista!$C$6)*V72 -> 310010.0326 | X72: -216729.8574 | Y72: =Analise_Fundamentalista!$C$12*Monte_Carlo!V72 -> 182941.7 | Z72: =-Analise_Fundamentalista!$C$14*Monte_Carlo!V72 -> -53865.43764 | AA72: 6406701.902 | AB72: =(RAND()*($D$17-$D$16)+$D$16)*(1-Analise_Fundamentalista!$C$6)*AA72 -> 714446.3362 | AC72: -313980.599 | AD72: =Analise_Fundamentalista!$C$12*Monte_Carlo!AA72 -> 232561.1926 | AE72: =-Analise_Fundamentalista!$C$14*Monte_Carlo!AA72 -> -68475.42367 | AF72: 7063492.939 | AG72: =(RAND()*($D$17-$D$16)+$D$16)*(1-Analise_Fundamentalista!$C$6)*AF72 -> 849345.8279 | AH72: -6068.903116 | AI72: =Analise_Fundamentalista!$C$12*Monte_Carlo!AF72 -> 256402.4934 | AJ72: =-Analise_Fundamentalista!$C$14*Monte_Carlo!AF72 -> -75495.26715 | AK72: 9393022.751 | AL72: =(RAND()*($D$17-$D$16)+$D$16)*(1-Analise_Fundamentalista!$C$6)*AK72 -> 496144.2015 | AM72: -30661.1978 | AN72: =Analise_Fundamentalista!$C$12*Monte_Carlo!AK72 -> 340963.6669 | AO72: =-Analise_Fundamentalista!$C$14*Monte_Carlo!AK72 -> -100393.4977 | AP72: 10735192.78 | AQ72: =(RAND()*($D$17-$D$16)+$D$16)*(1-Analise_Fundamentalista!$C$6)*AP72 -> 1650637.98 | AR72: -523888.4457 | AS72: =Analise_Fundamentalista!$C$12*Monte_Carlo!AP72 -> 389684.0019 | AT72: =-Analise_Fundamentalista!$C$14*Monte_Carlo!AP72 -> -114738.7353 | AU72: 13431795.37 | AV72: =(RAND()*($D$17-$D$16)+$D$16)*(1-Analise_Fundamentalista!$C$6)*AU72 -> 2095584.615 | AW72: -1925095.631 | AX72: =Analise_Fundamentalista!$C$12*Monte_Carlo!AU72 -> 487569.7976 | AY72: =-Analise_Fundamentalista!$C$14*Monte_Carlo!AU72 -> -143560.2737 | AZ72: -41868.08716 | BA72: 170692.7021 | BB72: 54924.71541 | BC72: -180373.4657 | BD72: 222356.4376 | BE72: 564551.5062 | BF72: 1024184.151 | BG72: 706053.1729 | BH72: 1401694.8 | BI72: 514498.5081 | BJ72: =BI72*(1+Analise_Fundamentalista!$C$10)/(Analise_Fundamentalista!$C$10) -> 7171681.2 | BK72: =NPV(Analise_Fundamentalista!$C$10,Monte_Carlo!AZ72:BI72)+Monte_Carlo!BJ72/(1+Analise_Fundamentalista!$C$10)^10 -> 5898306.543 | BL72: =(BK72+Analise_Fundamentalista!$C$15-Analise_Fundamentalista!$C$16-Analise_Fundamentalista!$C$17)/(Analise_Fundamentalista!$F$29+Analise_Fundamentalista!$F$30)*1000 -> 38.55754324 | BM72: 0.5753805544
A73: Tent48 | B73: 2710310.497 | C73: =(RAND()*($D$17-$D$16)+$D$16)*(1-Analise_Fundamentalista!$C$6)*B73 -> 195006.2774 | D73: -146859.4137 | E73: =Analise_Fundamentalista!$C$12*Monte_Carlo!B73 -> 98383.38842 | F73: =-Analise_Fundamentalista!$C$14*Monte_Carlo!B73 -> -28968.04978 | G73: 3213069.801 | H73: =(RAND()*($D$17-$D$16)+$D$16)*(1-Analise_Fundamentalista!$C$6)*G73 -> 155549.9023 | I73: -74188.46542 | J73: =Analise_Fundamentalista!$C$12*Monte_Carlo!G73 -> 116633.3874 | K73: =-Analise_Fundamentalista!$C$14*Monte_Carlo!G73 -> -34341.58781 | L73: 3369009.95 | M73: =(RAND()*($D$17-$D$16)+$D$16)*(1-Analise_Fundamentalista!$C$6)*L73 -> 223968.8808 | N73: -655951.4098 | O73: =Analise_Fundamentalista!$C$12*Monte_Carlo!L73 -> 122293.964 | P73: =-Analise_Fundamentalista!$C$14*Monte_Carlo!L73 -> -36008.29057 | Q73: 4642452.344 | R73: =(RAND()*($D$17-$D$16)+$D$16)*(1-Analise_Fundamentalista!$C$6)*Q73 -> 709571.5406 | S73: -231230.25 | T73: =Analise_Fundamentalista!$C$12*Monte_Carlo!Q73 -> 168519.5082 | U73: =-Analise_Fundamentalista!$C$14*Monte_Carlo!Q73 -> -49618.9609 | V73: 4989403.144 | W73: =(RAND()*($D$17-$D$16)+$D$16)*(1-Analise_Fundamentalista!$C$6)*V73 -> 519321.0827 | X73: -234200.5244 | Y73: =Analise_Fundamentalista!$C$12*Monte_Carlo!V73 -> 181113.7093 | Z73: =-Analise_Fundamentalista!$C$14*Monte_Carlo!V73 -> -53327.20321 | AA73: 6794948.996 | AB73: =(RAND()*($D$17-$D$16)+$D$16)*(1-Analise_Fundamentalista!$C$6)*AA73 -> 636684.491 | AC73: -1046286.762 | AD73: =Analise_Fundamentalista!$C$12*Monte_Carlo!AA73 -> 246654.4357 | AE73: =-Analise_Fundamentalista!$C$14*Monte_Carlo!AA73 -> -72625.0446 | AF73: 6836721.167 | AG73: =(RAND()*($D$17-$D$16)+$D$16)*(1-Analise_Fundamentalista!$C$6)*AF73 -> 394492.8665 | AH73: -76832.25358 | AI73: =Analise_Fundamentalista!$C$12*Monte_Carlo!AF73 -> 248170.7519 | AJ73: =-Analise_Fundamentalista!$C$14*Monte_Carlo!AF73 -> -73071.50944 | AK73: 8208679.144 | AL73: =(RAND()*($D$17-$D$16)+$D$16)*(1-Analise_Fundamentalista!$C$6)*AK73 -> 1137948.458 | AM73: -469478.5671 | AN73: =Analise_Fundamentalista!$C$12*Monte_Carlo!AK73 -> 297972.3797 | AO73: =-Analise_Fundamentalista!$C$14*Monte_Carlo!AK73 -> -87735.12344 | AP73: 10363248.28 | AQ73: =(RAND()*($D$17-$D$16)+$D$16)*(1-Analise_Fundamentalista!$C$6)*AP73 -> 1052053.648 | AR73: -172322.9783 | AS73: =Analise_Fundamentalista!$C$12*Monte_Carlo!AP73 -> 376182.5378 | AT73: =-Analise_Fundamentalista!$C$14*Monte_Carlo!AP73 -> -110763.3581 | AU73: 11974423.77 | AV73: =(RAND()*($D$17-$D$16)+$D$16)*(1-Analise_Fundamentalista!$C$6)*AU73 -> 1897306.087 | AW73: -273459.3129 | AX73: =Analise_Fundamentalista!$C$12*Monte_Carlo!AU73 -> 434667.6834 | AY73: =-Analise_Fundamentalista!$C$14*Monte_Carlo!AU73 -> -127983.751 | AZ73: 117562.2023 | BA73: 163653.2365 | BB73: -345696.8555 | BC73: 597241.8379 | BD73: 412907.0644 | BE73: -235572.8797 | BF73: 492759.8554 | BG73: 878707.1475 | BH73: 1145149.849 | BI73: 1930530.706 | BJ73: =BI73*(1+Analise_Fundamentalista!$C$10)/(Analise_Fundamentalista!$C$10) -> 26909992.07 | BK73: =NPV(Analise_Fundamentalista!$C$10,Monte_Carlo!AZ73:BI73)+Monte_Carlo!BJ73/(1+Analise_Fundamentalista!$C$10)^10 -> 15613243.64 | BL73: =(BK73+Analise_Fundamentalista!$C$15-Analise_Fundamentalista!$C$16-Analise_Fundamentalista!$C$17)/(Analise_Fundamentalista!$F$29+Analise_Fundamentalista!$F$30)*1000 -> 98.24113579 | BM73: 0.9702998319
A74: Tent49 | B74: 2995499.702 | C74: =(RAND()*($D$17-$D$16)+$D$16)*(1-Analise_Fundamentalista!$C$6)*B74 -> 271478.123 | D74: -141055.2002 | E74: =Analise_Fundamentalista!$C$12*Monte_Carlo!B74 -> 108735.6637 | F74: =-Analise_Fundamentalista!$C$14*Monte_Carlo!B74 -> -32016.17843 | G74: 2957673.481 | H74: =(RAND()*($D$17-$D$16)+$D$16)*(1-Analise_Fundamentalista!$C$6)*G74 -> 420016.7754 | I74: -450450.4416 | J74: =Analise_Fundamentalista!$C$12*Monte_Carlo!G74 -> 107362.5842 | K74: =-Analise_Fundamentalista!$C$14*Monte_Carlo!G74 -> -31611.88827 | L74: 3699111.74 | M74: =(RAND()*($D$17-$D$16)+$D$16)*(1-Analise_Fundamentalista!$C$6)*L74 -> 489685.3347 | N74: -217986.0118 | O74: =Analise_Fundamentalista!$C$12*Monte_Carlo!L74 -> 134276.5515 | P74: =-Analise_Fundamentalista!$C$14*Monte_Carlo!L74 -> -39536.4491 | Q74: 4424137.933 | R74: =(RAND()*($D$17-$D$16)+$D$16)*(1-Analise_Fundamentalista!$C$6)*Q74 -> 590075.6029 | S74: -646109.2558 | T74: =Analise_Fundamentalista!$C$12*Monte_Carlo!Q74 -> 160594.7662 | U74: =-Analise_Fundamentalista!$C$14*Monte_Carlo!Q74 -> -47285.59624 | V74: 5716725.773 | W74: =(RAND()*($D$17-$D$16)+$D$16)*(1-Analise_Fundamentalista!$C$6)*V74 -> 640275.4666 | X74: -166326.7165 | Y74: =Analise_Fundamentalista!$C$12*Monte_Carlo!V74 -> 207515.2838 | Z74: =-Analise_Fundamentalista!$C$14*Monte_Carlo!V74 -> -61100.89486 | AA74: 7005212.497 | AB74: =(RAND()*($D$17-$D$16)+$D$16)*(1-Analise_Fundamentalista!$C$6)*AA74 -> 498972.0115 | AC74: -38801.38274 | AD74: =Analise_Fundamentalista!$C$12*Monte_Carlo!AA74 -> 254286.9323 | AE74: =-Analise_Fundamentalista!$C$14*Monte_Carlo!AA74 -> -74872.36039 | AF74: 6448259.304 | AG74: =(RAND()*($D$17-$D$16)+$D$16)*(1-Analise_Fundamentalista!$C$6)*AF74 -> 302344.8937 | AH74: -713544.8245 | AI74: =Analise_Fundamentalista!$C$12*Monte_Carlo!AF74 -> 234069.7128 | AJ74: =-Analise_Fundamentalista!$C$14*Monte_Carlo!AF74 -> -68919.59304 | AK74: 8722556.411 | AL74: =(RAND()*($D$17-$D$16)+$D$16)*(1-Analise_Fundamentalista!$C$6)*AK74 -> 944201.971 | AM74: -739110.7869 | AN74: =Analise_Fundamentalista!$C$12*Monte_Carlo!AK74 -> 316625.9571 | AO74: =-Analise_Fundamentalista!$C$14*Monte_Carlo!AK74 -> -93227.4913 | AP74: 10938632.69 | AQ74: =(RAND()*($D$17-$D$16)+$D$16)*(1-Analise_Fundamentalista!$C$6)*AP74 -> 1656272.934 | AR74: -561433.0191 | AS74: =Analise_Fundamentalista!$C$12*Monte_Carlo!AP74 -> 397068.8043 | AT74: =-Analise_Fundamentalista!$C$14*Monte_Carlo!AP74 -> -116913.1199 | AU74: 11722255.18 | AV74: =(RAND()*($D$17-$D$16)+$D$16)*(1-Analise_Fundamentalista!$C$6)*AU74 -> 881255.3327 | AW74: -975182.2409 | AX74: =Analise_Fundamentalista!$C$12*Monte_Carlo!AU74 -> 425514.0457 | AY74: =-Analise_Fundamentalista!$C$14*Monte_Carlo!AU74 -> -125288.5498 | AZ74: 207142.4081 | BA74: 45317.02971 | BB74: 366439.4254 | BC74: 57275.51704 | BD74: 620363.139 | BE74: 639585.2007 | BF74: -246049.811 | BG74: 428489.65 | BH74: 1374995.599 | BI74: 206298.5877 | BJ74: =BI74*(1+Analise_Fundamentalista!$C$10)/(Analise_Fundamentalista!$C$10) -> 2875630.696 | BK74: =NPV(Analise_Fundamentalista!$C$10,Monte_Carlo!AZ74:BI74)+Monte_Carlo!BJ74/(1+Analise_Fundamentalista!$C$10)^10 -> 3661300.966 | BL74: =(BK74+Analise_Fundamentalista!$C$15-Analise_Fundamentalista!$C$16-Analise_Fundamentalista!$C$17)/(Analise_Fundamentalista!$F$29+Analise_Fundamentalista!$F$30)*1000 -> 24.81452791 | BM74: 0.4206470465
A75: Tent50 | B75: 2648900.836 | C75: =(RAND()*($D$17-$D$16)+$D$16)*(1-Analise_Fundamentalista!$C$6)*B75 -> 333158.2777 | D75: -349599.51 | E75: =Analise_Fundamentalista!$C$12*Monte_Carlo!B75 -> 96154.23772 | F75: =-Analise_Fundamentalista!$C$14*Monte_Carlo!B75 -> -28311.69763 | G75: 3137754.986 | H75: =(RAND()*($D$17-$D$16)+$D$16)*(1-Analise_Fundamentalista!$C$6)*G75 -> 283712.5274 | I75: -129903.6757 | J75: =Analise_Fundamentalista!$C$12*Monte_Carlo!G75 -> 113899.4842 | K75: =-Analise_Fundamentalista!$C$14*Monte_Carlo!G75 -> -33536.61609 | L75: 3082839.319 | M75: =(RAND()*($D$17-$D$16)+$D$16)*(1-Analise_Fundamentalista!$C$6)*L75 -> 428914.5643 | N75: -407934.0251 | O75: =Analise_Fundamentalista!$C$12*Monte_Carlo!L75 -> 111906.0633 | P75: =-Analise_Fundamentalista!$C$14*Monte_Carlo!L75 -> -32949.67235 | Q75: 4429203.146 | R75: =(RAND()*($D$17-$D$16)+$D$16)*(1-Analise_Fundamentalista!$C$6)*Q75 -> 326790.2722 | S75: -600139.0332 | T75: =Analise_Fundamentalista!$C$12*Monte_Carlo!Q75 -> 160778.6318 | U75: =-Analise_Fundamentalista!$C$14*Monte_Carlo!Q75 -> -47339.73371 | V75: 5472732.271 | W75: =(RAND()*($D$17-$D$16)+$D$16)*(1-Analise_Fundamentalista!$C$6)*V75 -> 275606.6463 | X75: -552962.5283 | Y75: =Analise_Fundamentalista!$C$12*Monte_Carlo!V75 -> 198658.3992 | Z75: =-Analise_Fundamentalista!$C$14*Monte_Carlo!V75 -> -58493.06971 | AA75: 6386499.493 | AB75: =(RAND()*($D$17-$D$16)+$D$16)*(1-Analise_Fundamentalista!$C$6)*AA75 -> 212665.9105 | AC75: -1010187.681 | AD75: =Analise_Fundamentalista!$C$12*Monte_Carlo!AA75 -> 231827.8518 | AE75: =-Analise_Fundamentalista!$C$14*Monte_Carlo!AA75 -> -68259.49845 | AF75: 7138761.229 | AG75: =(RAND()*($D$17-$D$16)+$D$16)*(1-Analise_Fundamentalista!$C$6)*AF75 -> 1104753.77 | AH75: -670644.2765 | AI75: =Analise_Fundamentalista!$C$12*Monte_Carlo!AF75 -> 259134.7078 | AJ75: =-Analise_Fundamentalista!$C$14*Monte_Carlo!AF75 -> -76299.74161 | AK75: 7921060.284 | AL75: =(RAND()*($D$17-$D$16)+$D$16)*(1-Analise_Fundamentalista!$C$6)*AK75 -> 1058238.127 | AM75: -1276514.406 | AN75: =Analise_Fundamentalista!$C$12*Monte_Carlo!AK75 -> 287531.9087 | AO75: =-Analise_Fundamentalista!$C$14*Monte_Carlo!AK75 -> -84661.0264 | AP75: 10366536.67 | AQ75: =(RAND()*($D$17-$D$16)+$D$16)*(1-Analise_Fundamentalista!$C$6)*AP75 -> 1038533.254 | AR75: -1076872.783 | AS75: =Analise_Fundamentalista!$C$12*Monte_Carlo!AP75 -> 376301.9051 | AT75: =-Analise_Fundamentalista!$C$14*Monte_Carlo!AP75 -> -110798.5047 | AU75: 11452065.13 | AV75: =(RAND()*($D$17-$D$16)+$D$16)*(1-Analise_Fundamentalista!$C$6)*AU75 -> 1845112.341 | AW75: -955163.1209 | AX75: =Analise_Fundamentalista!$C$12*Monte_Carlo!AU75 -> 415706.2349 | AY75: =-Analise_Fundamentalista!$C$14*Monte_Carlo!AU75 -> -122400.7335 | AZ75: 51401.30779 | BA75: 234171.7198 | BB75: 99936.93021 | BC75: -159909.8628 | BD75: -137190.5526 | BE75: -633953.4176 | BF75: 616944.4593 | BG75: -15405.39669 | BH75: 227163.8718 | BI75: 1183254.721 | BJ75: =BI75*(1+Analise_Fundamentalista!$C$10)/(Analise_Fundamentalista!$C$10) -> 16493586.48 | BK75: =NPV(Analise_Fundamentalista!$C$10,Monte_Carlo!AZ75:BI75)+Monte_Carlo!BJ75/(1+Analise_Fundamentalista!$C$10)^10 -> 8581225.074 | BL75: =(BK75+Analise_Fundamentalista!$C$15-Analise_Fundamentalista!$C$16-Analise_Fundamentalista!$C$17)/(Analise_Fundamentalista!$F$29+Analise_Fundamentalista!$F$30)*1000 -> 55.04001913 | BM75: 0.744802795
A76: Tent51 | B76: 2249073.405 | C76: =(RAND()*($D$17-$D$16)+$D$16)*(1-Analise_Fundamentalista!$C$6)*B76 -> 206118.2768 | D76: -22281.34332 | E76: =Analise_Fundamentalista!$C$12*Monte_Carlo!B76 -> 81640.63218 | F76: =-Analise_Fundamentalista!$C$14*Monte_Carlo!B76 -> -24038.30499 | G76: 2883037.746 | H76: =(RAND()*($D$17-$D$16)+$D$16)*(1-Analise_Fundamentalista!$C$6)*G76 -> 312377.606 | I76: -106653.8492 | J76: =Analise_Fundamentalista!$C$12*Monte_Carlo!G76 -> 104653.3313 | K76: =-Analise_Fundamentalista!$C$14*Monte_Carlo!G76 -> -30814.17462 | L76: 3486460.308 | M76: =(RAND()*($D$17-$D$16)+$D$16)*(1-Analise_Fundamentalista!$C$6)*L76 -> 340786.22 | N76: -172163.6194 | O76: =Analise_Fundamentalista!$C$12*Monte_Carlo!L76 -> 126557.3738 | P76: =-Analise_Fundamentalista!$C$14*Monte_Carlo!L76 -> -37263.61088 | Q76: 5018131.643 | R76: =(RAND()*($D$17-$D$16)+$D$16)*(1-Analise_Fundamentalista!$C$6)*Q76 -> 536626.3292 | S76: -355930.1208 | T76: =Analise_Fundamentalista!$C$12*Monte_Carlo!Q76 -> 182156.5444 | U76: =-Analise_Fundamentalista!$C$14*Monte_Carlo!Q76 -> -53634.25606 | V76: 5185789.8 | W76: =(RAND()*($D$17-$D$16)+$D$16)*(1-Analise_Fundamentalista!$C$6)*V76 -> 256756.0688 | X76: -111311.0275 | Y76: =Analise_Fundamentalista!$C$12*Monte_Carlo!V76 -> 188242.4809 | Z76: =-Analise_Fundamentalista!$C$14*Monte_Carlo!V76 -> -55426.20199 | AA76: 6434320.085 | AB76: =(RAND()*($D$17-$D$16)+$D$16)*(1-Analise_Fundamentalista!$C$6)*AA76 -> 453241.3128 | AC76: -340067.6629 | AD76: =Analise_Fundamentalista!$C$12*Monte_Carlo!AA76 -> 233563.7237 | AE76: =-Analise_Fundamentalista!$C$14*Monte_Carlo!AA76 -> -68770.60938 | AF76: 7431357.623 | AG76: =(RAND()*($D$17-$D$16)+$D$16)*(1-Analise_Fundamentalista!$C$6)*AF76 -> 951990.4065 | AH76: -232399.1792 | AI76: =Analise_Fundamentalista!$C$12*Monte_Carlo!AF76 -> 269755.8616 | AJ76: =-Analise_Fundamentalista!$C$14*Monte_Carlo!AF76 -> -79427.03898 | AK76: 8538431.835 | AL76: =(RAND()*($D$17-$D$16)+$D$16)*(1-Analise_Fundamentalista!$C$6)*AK76 -> 519707.6321 | AM76: -1466678.399 | AN76: =Analise_Fundamentalista!$C$12*Monte_Carlo!AK76 -> 309942.295 | AO76: =-Analise_Fundamentalista!$C$14*Monte_Carlo!AK76 -> -91259.55076 | AP76: 9911311.576 | AQ76: =(RAND()*($D$17-$D$16)+$D$16)*(1-Analise_Fundamentalista!$C$6)*AP76 -> 839524.2727 | AR76: -2287599.834 | AS76: =Analise_Fundamentalista!$C$12*Monte_Carlo!AP76 -> 359777.3825 | AT76: =-Analise_Fundamentalista!$C$14*Monte_Carlo!AP76 -> -105933.0167 | AU76: 13300432.47 | AV76: =(RAND()*($D$17-$D$16)+$D$16)*(1-Analise_Fundamentalista!$C$6)*AU76 -> 646362.545 | AW76: -141464.0199 | AX76: =Analise_Fundamentalista!$C$12*Monte_Carlo!AU76 -> 482801.3671 | AY76: =-Analise_Fundamentalista!$C$14*Monte_Carlo!AU76 -> -142156.2548 | AZ76: 241439.2607 | BA76: 279562.9135 | BB76: 257916.3635 | BC76: 309218.4967 | BD76: 278261.3203 | BE76: 277966.7643 | BF76: 909920.0499 | BG76: -728288.0229 | BH76: -1194231.195 | BI76: 845543.6374 | BJ76: =BI76*(1+Analise_Fundamentalista!$C$10)/(Analise_Fundamentalista!$C$10) -> 11786174.91 | BK76: =NPV(Analise_Fundamentalista!$C$10,Monte_Carlo!AZ76:BI76)+Monte_Carlo!BJ76/(1+Analise_Fundamentalista!$C$10)^10 -> 6798373.947 | BL76: =(BK76+Analise_Fundamentalista!$C$15-Analise_Fundamentalista!$C$16-Analise_Fundamentalista!$C$17)/(Analise_Fundamentalista!$F$29+Analise_Fundamentalista!$F$30)*1000 -> 44.08709589 | BM76: 0.6357567688
A77: Tent52 | B77: 2749572.481 | C77: =(RAND()*($D$17-$D$16)+$D$16)*(1-Analise_Fundamentalista!$C$6)*B77 -> 381462.2486 | D77: -172407.8935 | E77: =Analise_Fundamentalista!$C$12*Monte_Carlo!B77 -> 99808.58562 | F77: =-Analise_Fundamentalista!$C$14*Monte_Carlo!B77 -> -29387.68549 | G77: 3406472.171 | H77: =(RAND()*($D$17-$D$16)+$D$16)*(1-Analise_Fundamentalista!$C$6)*G77 -> 136207.5817 | I77: -522389.648 | J77: =Analise_Fundamentalista!$C$12*Monte_Carlo!G77 -> 123653.8305 | K77: =-Analise_Fundamentalista!$C$14*Monte_Carlo!G77 -> -36408.69027 | L77: 3327249.437 | M77: =(RAND()*($D$17-$D$16)+$D$16)*(1-Analise_Fundamentalista!$C$6)*L77 -> 357786.4346 | N77: -161420.8144 | O77: =Analise_Fundamentalista!$C$12*Monte_Carlo!L77 -> 120778.071 | P77: =-Analise_Fundamentalista!$C$14*Monte_Carlo!L77 -> -35561.95034 | Q77: 4423585.763 | R77: =(RAND()*($D$17-$D$16)+$D$16)*(1-Analise_Fundamentalista!$C$6)*Q77 -> 359646.303 | S77: -536962.8074 | T77: =Analise_Fundamentalista!$C$12*Monte_Carlo!Q77 -> 160574.7226 | U77: =-Analise_Fundamentalista!$C$14*Monte_Carlo!Q77 -> -47279.69459 | V77: 5501707.302 | W77: =(RAND()*($D$17-$D$16)+$D$16)*(1-Analise_Fundamentalista!$C$6)*V77 -> 431320.4852 | X77: -705325.7715 | Y77: =Analise_Fundamentalista!$C$12*Monte_Carlo!V77 -> 199710.1834 | Z77: =-Analise_Fundamentalista!$C$14*Monte_Carlo!V77 -> -58802.75752 | AA77: 6029156.769 | AB77: =(RAND()*($D$17-$D$16)+$D$16)*(1-Analise_Fundamentalista!$C$6)*AA77 -> 592623.7402 | AC77: -832177.828 | AD77: =Analise_Fundamentalista!$C$12*Monte_Carlo!AA77 -> 218856.4273 | AE77: =-Analise_Fundamentalista!$C$14*Monte_Carlo!AA77 -> -64440.18631 | AF77: 7701927.831 | AG77: =(RAND()*($D$17-$D$16)+$D$16)*(1-Analise_Fundamentalista!$C$6)*AF77 -> 614057.2789 | AH77: -554505.0733 | AI77: =Analise_Fundamentalista!$C$12*Monte_Carlo!AF77 -> 279577.4721 | AJ77: =-Analise_Fundamentalista!$C$14*Monte_Carlo!AF77 -> -82318.91844 | AK77: 8933341.501 | AL77: =(RAND()*($D$17-$D$16)+$D$16)*(1-Analise_Fundamentalista!$C$6)*AK77 -> 940320.7255 | AM77: -218709.7521 | AN77: =Analise_Fundamentalista!$C$12*Monte_Carlo!AK77 -> 324277.3873 | AO77: =-Analise_Fundamentalista!$C$14*Monte_Carlo!AK77 -> -95480.38187 | AP77: 10465819.69 | AQ77: =(RAND()*($D$17-$D$16)+$D$16)*(1-Analise_Fundamentalista!$C$6)*AP77 -> 505045.3913 | AR77: -211372.9201 | AS77: =Analise_Fundamentalista!$C$12*Monte_Carlo!AP77 -> 379905.8465 | AT77: =-Analise_Fundamentalista!$C$14*Monte_Carlo!AP77 -> -111859.6508 | AU77: 14068907.87 | AV77: =(RAND()*($D$17-$D$16)+$D$16)*(1-Analise_Fundamentalista!$C$6)*AU77 -> 1430890.595 | AW77: -428213.2596 | AX77: =Analise_Fundamentalista!$C$12*Monte_Carlo!AU77 -> 510696.7741 | AY77: =-Analise_Fundamentalista!$C$14*Monte_Carlo!AU77 -> -150369.7912 | AZ77: 279475.2552 | BA77: -298936.9261 | BB77: 281581.7409 | BC77: -64021.47636 | BD77: -133097.8604 | BE77: -85137.84677 | BF77: 256810.7593 | BG77: 950407.9788 | BH77: 561718.667 | BI77: 1363004.319 | BJ77: =BI77*(1+Analise_Fundamentalista!$C$10)/(Analise_Fundamentalista!$C$10) -> 18999146.34 | BK77: =NPV(Analise_Fundamentalista!$C$10,Monte_Carlo!AZ77:BI77)+Monte_Carlo!BJ77/(1+Analise_Fundamentalista!$C$10)^10 -> 10669254.07 | BL77: =(BK77+Analise_Fundamentalista!$C$15-Analise_Fundamentalista!$C$16-Analise_Fundamentalista!$C$17)/(Analise_Fundamentalista!$F$29+Analise_Fundamentalista!$F$30)*1000 -> 67.86779875 | BM77: 0.8467414003
A78: Tent53 | B78: 2241743.704 | C78: =(RAND()*($D$17-$D$16)+$D$16)*(1-Analise_Fundamentalista!$C$6)*B78 -> 119385.8614 | D78: -1967.047747 | E78: =Analise_Fundamentalista!$C$12*Monte_Carlo!B78 -> 81374.56642 | F78: =-Analise_Fundamentalista!$C$14*Monte_Carlo!B78 -> -23959.96447 | G78: 2680193.837 | H78: =(RAND()*($D$17-$D$16)+$D$16)*(1-Analise_Fundamentalista!$C$6)*G78 -> 221236.1749 | I78: -212359.1809 | J78: =Analise_Fundamentalista!$C$12*Monte_Carlo!G78 -> 97290.16345 | K78: =-Analise_Fundamentalista!$C$14*Monte_Carlo!G78 -> -28646.16012 | L78: 3801179.317 | M78: =(RAND()*($D$17-$D$16)+$D$16)*(1-Analise_Fundamentalista!$C$6)*L78 -> 226394.285 | N78: -573286.6915 | O78: =Analise_Fundamentalista!$C$12*Monte_Carlo!L78 -> 137981.5713 | P78: =-Analise_Fundamentalista!$C$14*Monte_Carlo!L78 -> -40627.35682 | Q78: 4267934.827 | R78: =(RAND()*($D$17-$D$16)+$D$16)*(1-Analise_Fundamentalista!$C$6)*Q78 -> 319451.4937 | S78: -522297.2008 | T78: =Analise_Fundamentalista!$C$12*Monte_Carlo!Q78 -> 154924.6443 | U78: =-Analise_Fundamentalista!$C$14*Monte_Carlo!Q78 -> -45616.08297 | V78: 5034102.859 | W78: =(RAND()*($D$17-$D$16)+$D$16)*(1-Analise_Fundamentalista!$C$6)*V78 -> 251354.6424 | X78: -322988.2561 | Y78: =Analise_Fundamentalista!$C$12*Monte_Carlo!V78 -> 182736.2944 | Z78: =-Analise_Fundamentalista!$C$14*Monte_Carlo!V78 -> -53804.9579 | AA78: 5952529.879 | AB78: =(RAND()*($D$17-$D$16)+$D$16)*(1-Analise_Fundamentalista!$C$6)*AA78 -> 890767.245 | AC78: -760745.8112 | AD78: =Analise_Fundamentalista!$C$12*Monte_Carlo!AA78 -> 216074.8961 | AE78: =-Analise_Fundamentalista!$C$14*Monte_Carlo!AA78 -> -63621.19101 | AF78: 7349149.212 | AG78: =(RAND()*($D$17-$D$16)+$D$16)*(1-Analise_Fundamentalista!$C$6)*AF78 -> 478364.7808 | AH78: -794207.8179 | AI78: =Analise_Fundamentalista!$C$12*Monte_Carlo!AF78 -> 266771.7231 | AJ78: =-Analise_Fundamentalista!$C$14*Monte_Carlo!AF78 -> -78548.38787 | AK78: 8692421.826 | AL78: =(RAND()*($D$17-$D$16)+$D$16)*(1-Analise_Fundamentalista!$C$6)*AK78 -> 474476.6971 | AM78: -218836.932 | AN78: =Analise_Fundamentalista!$C$12*Monte_Carlo!AK78 -> 315532.0815 | AO78: =-Analise_Fundamentalista!$C$14*Monte_Carlo!AK78 -> -92905.41005 | AP78: 9886109.181 | AQ78: =(RAND()*($D$17-$D$16)+$D$16)*(1-Analise_Fundamentalista!$C$6)*AP78 -> 931506.8906 | AR78: -1063572.649 | AS78: =Analise_Fundamentalista!$C$12*Monte_Carlo!AP78 -> 358862.5437 | AT78: =-Analise_Fundamentalista!$C$14*Monte_Carlo!AP78 -> -105663.6511 | AU78: 10695987.39 | AV78: =(RAND()*($D$17-$D$16)+$D$16)*(1-Analise_Fundamentalista!$C$6)*AU78 -> 1457844.384 | AW78: -444613.261 | AX78: =Analise_Fundamentalista!$C$12*Monte_Carlo!AU78 -> 388260.859 | AY78: =-Analise_Fundamentalista!$C$14*Monte_Carlo!AU78 -> -114319.7045 | AZ78: 174833.4156 | BA78: 77520.99734 | BB78: -249538.1919 | BC78: -93537.1457 | BD78: 57297.7227 | BE78: 282475.1388 | BF78: -127619.7019 | BG78: 478266.4365 | BH78: 121133.1337 | BI78: 1287172.277 | BJ78: =BI78*(1+Analise_Fundamentalista!$C$10)/(Analise_Fundamentalista!$C$10) -> 17942110.76 | BK78: =NPV(Analise_Fundamentalista!$C$10,Monte_Carlo!AZ78:BI78)+Monte_Carlo!BJ78/(1+Analise_Fundamentalista!$C$10)^10 -> 9564036.67 | BL78: =(BK78+Analise_Fundamentalista!$C$15-Analise_Fundamentalista!$C$16-Analise_Fundamentalista!$C$17)/(Analise_Fundamentalista!$F$29+Analise_Fundamentalista!$F$30)*1000 -> 61.07790968 | BM78: 0.7966490117
A79: Tent54 | B79: 2599860.085 | C79: =(RAND()*($D$17-$D$16)+$D$16)*(1-Analise_Fundamentalista!$C$6)*B79 -> 366527.032 | D79: -482638.0935 | E79: =Analise_Fundamentalista!$C$12*Monte_Carlo!B79 -> 94374.07442 | F79: =-Analise_Fundamentalista!$C$14*Monte_Carlo!B79 -> -27787.54554 | G79: 2708590.159 | H79: =(RAND()*($D$17-$D$16)+$D$16)*(1-Analise_Fundamentalista!$C$6)*G79 -> 327617.8502 | I79: -308339.4967 | J79: =Analise_Fundamentalista!$C$12*Monte_Carlo!G79 -> 98320.94068 | K79: =-Analise_Fundamentalista!$C$14*Monte_Carlo!G79 -> -28949.66264 | L79: 3827255.84 | M79: =(RAND()*($D$17-$D$16)+$D$16)*(1-Analise_Fundamentalista!$C$6)*L79 -> 268679.1796 | N79: -308419.1999 | O79: =Analise_Fundamentalista!$C$12*Monte_Carlo!L79 -> 138928.1406 | P79: =-Analise_Fundamentalista!$C$14*Monte_Carlo!L79 -> -40906.06511 | Q79: 4057410.774 | R79: =(RAND()*($D$17-$D$16)+$D$16)*(1-Analise_Fundamentalista!$C$6)*Q79 -> 284996.9817 | S79: -213688.2056 | T79: =Analise_Fundamentalista!$C$12*Monte_Carlo!Q79 -> 147282.6898 | U79: =-Analise_Fundamentalista!$C$14*Monte_Carlo!Q79 -> -43365.98238 | V79: 4790986.992 | W79: =(RAND()*($D$17-$D$16)+$D$16)*(1-Analise_Fundamentalista!$C$6)*V79 -> 379196.8077 | X79: -21276.80569 | Y79: =Analise_Fundamentalista!$C$12*Monte_Carlo!V79 -> 173911.2676 | Z79: =-Analise_Fundamentalista!$C$14*Monte_Carlo!V79 -> -51206.51298 | AA79: 5205605.597 | AB79: =(RAND()*($D$17-$D$16)+$D$16)*(1-Analise_Fundamentalista!$C$6)*AA79 -> 554088.5203 | AC79: -294557.1973 | AD79: =Analise_Fundamentalista!$C$12*Monte_Carlo!AA79 -> 188961.7879 | AE79: =-Analise_Fundamentalista!$C$14*Monte_Carlo!AA79 -> -55637.99506 | AF79: 6843026.825 | AG79: =(RAND()*($D$17-$D$16)+$D$16)*(1-Analise_Fundamentalista!$C$6)*AF79 -> 434511.4829 | AH79: -119892.457 | AI79: =Analise_Fundamentalista!$C$12*Monte_Carlo!AF79 -> 248399.6452 | AJ79: =-Analise_Fundamentalista!$C$14*Monte_Carlo!AF79 -> -73138.90489 | AK79: 7900645.805 | AL79: =(RAND()*($D$17-$D$16)+$D$16)*(1-Analise_Fundamentalista!$C$6)*AK79 -> 1179709.125 | AM79: -707262.306 | AN79: =Analise_Fundamentalista!$C$12*Monte_Carlo!AK79 -> 286790.8698 | AO79: =-Analise_Fundamentalista!$C$14*Monte_Carlo!AK79 -> -84442.83456 | AP79: 9663056.293 | AQ79: =(RAND()*($D$17-$D$16)+$D$16)*(1-Analise_Fundamentalista!$C$6)*AP79 -> 1161203.047 | AR79: -443767.1391 | AS79: =Analise_Fundamentalista!$C$12*Monte_Carlo!AP79 -> 350765.7966 | AT79: =-Analise_Fundamentalista!$C$14*Monte_Carlo!AP79 -> -103279.6412 | AU79: 12311153.01 | AV79: =(RAND()*($D$17-$D$16)+$D$16)*(1-Analise_Fundamentalista!$C$6)*AU79 -> 744555.8744 | AW79: -800741.4947 | AX79: =Analise_Fundamentalista!$C$12*Monte_Carlo!AU79 -> 446890.8451 | AY79: =-Analise_Fundamentalista!$C$14*Monte_Carlo!AU79 -> -131582.7443 | AZ79: -49524.53263 | BA79: 88649.63155 | BB79: 58282.05519 | BC79: 175225.4835 | BD79: 480624.7566 | BE79: 392855.1159 | BF79: 489879.7662 | BG79: 674794.8546 | BH79: 964922.0628 | BI79: 259122.4805 | BJ79: =BI79*(1+Analise_Fundamentalista!$C$10)/(Analise_Fundamentalista!$C$10) -> 3611951.819 | BK79: =NPV(Analise_Fundamentalista!$C$10,Monte_Carlo!AZ79:BI79)+Monte_Carlo!BJ79/(1+Analise_Fundamentalista!$C$10)^10 -> 3785149.121 | BL79: =(BK79+Analise_Fundamentalista!$C$15-Analise_Fundamentalista!$C$16-Analise_Fundamentalista!$C$17)/(Analise_Fundamentalista!$F$29+Analise_Fundamentalista!$F$30)*1000 -> 25.57538748 | BM79: 0.4291146763
A80: Tent55 | B80: 2519516.28 | C80: =(RAND()*($D$17-$D$16)+$D$16)*(1-Analise_Fundamentalista!$C$6)*B80 -> 193689.2085 | D80: -214891.3688 | E80: =Analise_Fundamentalista!$C$12*Monte_Carlo!B80 -> 91457.62045 | F80: =-Analise_Fundamentalista!$C$14*Monte_Carlo!B80 -> -26928.8235 | G80: 3309504.865 | H80: =(RAND()*($D$17-$D$16)+$D$16)*(1-Analise_Fundamentalista!$C$6)*G80 -> 267607.6176 | I80: -78402.54518 | J80: =Analise_Fundamentalista!$C$12*Monte_Carlo!G80 -> 120133.9488 | K80: =-Analise_Fundamentalista!$C$14*Monte_Carlo!G80 -> -35372.29471 | L80: 3303740.066 | M80: =(RAND()*($D$17-$D$16)+$D$16)*(1-Analise_Fundamentalista!$C$6)*L80 -> 507808.6904 | N80: -401018.5771 | O80: =Analise_Fundamentalista!$C$12*Monte_Carlo!L80 -> 119924.6885 | P80: =-Analise_Fundamentalista!$C$14*Monte_Carlo!L80 -> -35310.68 | Q80: 3962799.63 | R80: =(RAND()*($D$17-$D$16)+$D$16)*(1-Analise_Fundamentalista!$C$6)*Q80 -> 449855.6103 | S80: -535562.788 | T80: =Analise_Fundamentalista!$C$12*Monte_Carlo!Q80 -> 143848.336 | U80: =-Analise_Fundamentalista!$C$14*Monte_Carlo!Q80 -> -42354.7697 | V80: 5008173.528 | W80: =(RAND()*($D$17-$D$16)+$D$16)*(1-Analise_Fundamentalista!$C$6)*V80 -> 581558.7217 | X80: -721182.1716 | Y80: =Analise_Fundamentalista!$C$12*Monte_Carlo!V80 -> 181795.0681 | Z80: =-Analise_Fundamentalista!$C$14*Monte_Carlo!V80 -> -53527.82281 | AA80: 4988770.991 | AB80: =(RAND()*($D$17-$D$16)+$D$16)*(1-Analise_Fundamentalista!$C$6)*AA80 -> 769611.8382 | AC80: -986886.6312 | AD80: =Analise_Fundamentalista!$C$12*Monte_Carlo!AA80 -> 181090.7623 | AE80: =-Analise_Fundamentalista!$C$14*Monte_Carlo!AA80 -> -53320.44669 | AF80: 7439380.19 | AG80: =(RAND()*($D$17-$D$16)+$D$16)*(1-Analise_Fundamentalista!$C$6)*AF80 -> 945048.5403 | AH80: -567195.5615 | AI80: =Analise_Fundamentalista!$C$12*Monte_Carlo!AF80 -> 270047.0782 | AJ80: =-Analise_Fundamentalista!$C$14*Monte_Carlo!AF80 -> -79512.78492 | AK80: 8308325.492 | AL80: =(RAND()*($D$17-$D$16)+$D$16)*(1-Analise_Fundamentalista!$C$6)*AK80 -> 605535.3697 | AM80: -341271.4597 | AN80: =Analise_Fundamentalista!$C$12*Monte_Carlo!AK80 -> 301589.5097 | AO80: =-Analise_Fundamentalista!$C$14*Monte_Carlo!AK80 -> -88800.15285 | AP80: 10508463.97 | AQ80: =(RAND()*($D$17-$D$16)+$D$16)*(1-Analise_Fundamentalista!$C$6)*AP80 -> 353812.5683 | AR80: -1618305.779 | AS80: =Analise_Fundamentalista!$C$12*Monte_Carlo!AP80 -> 381453.8199 | AT80: =-Analise_Fundamentalista!$C$14*Monte_Carlo!AP80 -> -112315.4368 | AU80: 11486988.96 | AV80: =(RAND()*($D$17-$D$16)+$D$16)*(1-Analise_Fundamentalista!$C$6)*AU80 -> 1888892.861 | AW80: -172685.4964 | AX80: =Analise_Fundamentalista!$C$12*Monte_Carlo!AU80 -> 416973.9585 | AY80: =-Analise_Fundamentalista!$C$14*Monte_Carlo!AU80 -> -122774.0026 | AZ80: 43326.63662 | BA80: 273966.7265 | BB80: 191404.1219 | BC80: 15786.38865 | BD80: -11356.20458 | BE80: -89504.4774 | BF80: 568387.272 | BG80: 477053.2669 | BH80: -995354.8274 | BI80: 2010407.321 | BJ80: =BI80*(1+Analise_Fundamentalista!$C$10)/(Analise_Fundamentalista!$C$10) -> 28023405.63 | BK80: =NPV(Analise_Fundamentalista!$C$10,Monte_Carlo!AZ80:BI80)+Monte_Carlo!BJ80/(1+Analise_Fundamentalista!$C$10)^10 -> 14733309.8 | BL80: =(BK80+Analise_Fundamentalista!$C$15-Analise_Fundamentalista!$C$16-Analise_Fundamentalista!$C$17)/(Analise_Fundamentalista!$F$29+Analise_Fundamentalista!$F$30)*1000 -> 92.83527347 | BM80: 0.9583348714
A81: Tent56 | B81: 2974311.869 | C81: =(RAND()*($D$17-$D$16)+$D$16)*(1-Analise_Fundamentalista!$C$6)*B81 -> 338308.1964 | D81: -311469.7532 | E81: =Analise_Fundamentalista!$C$12*Monte_Carlo!B81 -> 107966.5522 | F81: =-Analise_Fundamentalista!$C$14*Monte_Carlo!B81 -> -31789.7209 | G81: 3104402.722 | H81: =(RAND()*($D$17-$D$16)+$D$16)*(1-Analise_Fundamentalista!$C$6)*G81 -> 277602.3117 | I81: -30155.69899 | J81: =Analise_Fundamentalista!$C$12*Monte_Carlo!G81 -> 112688.8078 | K81: =-Analise_Fundamentalista!$C$14*Monte_Carlo!G81 -> -33180.14399 | L81: 3721264.106 | M81: =(RAND()*($D$17-$D$16)+$D$16)*(1-Analise_Fundamentalista!$C$6)*L81 -> 390104.3276 | N81: -275759.6326 | O81: =Analise_Fundamentalista!$C$12*Monte_Carlo!L81 -> 135080.6752 | P81: =-Analise_Fundamentalista!$C$14*Monte_Carlo!L81 -> -39773.21564 | Q81: 3786036.235 | R81: =(RAND()*($D$17-$D$16)+$D$16)*(1-Analise_Fundamentalista!$C$6)*Q81 -> 234606.1517 | S81: -141577.6623 | T81: =Analise_Fundamentalista!$C$12*Monte_Carlo!Q81 -> 137431.8824 | U81: =-Analise_Fundamentalista!$C$14*Monte_Carlo!Q81 -> -40465.50615 | V81: 4798632.307 | W81: =(RAND()*($D$17-$D$16)+$D$16)*(1-Analise_Fundamentalista!$C$6)*V81 -> 784444.8915 | X81: -513908.7158 | Y81: =Analise_Fundamentalista!$C$12*Monte_Carlo!V81 -> 174188.79 | Z81: =-Analise_Fundamentalista!$C$14*Monte_Carlo!V81 -> -51288.22682 | AA81: 5366009.396 | AB81: =(RAND()*($D$17-$D$16)+$D$16)*(1-Analise_Fundamentalista!$C$6)*AA81 -> 591117.9439 | AC81: -507409.6129 | AD81: =Analise_Fundamentalista!$C$12*Monte_Carlo!AA81 -> 194784.3936 | AE81: =-Analise_Fundamentalista!$C$14*Monte_Carlo!AA81 -> -57352.40573 | AF81: 7209411.871 | AG81: =(RAND()*($D$17-$D$16)+$D$16)*(1-Analise_Fundamentalista!$C$6)*AF81 -> 1165251.659 | AH81: -312365.2432 | AI81: =Analise_Fundamentalista!$C$12*Monte_Carlo!AF81 -> 261699.3031 | AJ81: =-Analise_Fundamentalista!$C$14*Monte_Carlo!AF81 -> -77054.86222 | AK81: 7905115.939 | AL81: =(RAND()*($D$17-$D$16)+$D$16)*(1-Analise_Fundamentalista!$C$6)*AK81 -> 518591.0848 | AM81: -83672.03609 | AN81: =Analise_Fundamentalista!$C$12*Monte_Carlo!AK81 -> 286953.1342 | AO81: =-Analise_Fundamentalista!$C$14*Monte_Carlo!AK81 -> -84490.61177 | AP81: 10667431.67 | AQ81: =(RAND()*($D$17-$D$16)+$D$16)*(1-Analise_Fundamentalista!$C$6)*AP81 -> 659771.2794 | AR81: -770107.5893 | AS81: =Analise_Fundamentalista!$C$12*Monte_Carlo!AP81 -> 387224.2958 | AT81: =-Analise_Fundamentalista!$C$14*Monte_Carlo!AP81 -> -114014.4983 | AU81: 14373862.72 | AV81: =(RAND()*($D$17-$D$16)+$D$16)*(1-Analise_Fundamentalista!$C$6)*AU81 -> 974306.2748 | AW81: -1527952.71 | AX81: =Analise_Fundamentalista!$C$12*Monte_Carlo!AU81 -> 521766.5359 | AY81: =-Analise_Fundamentalista!$C$14*Monte_Carlo!AU81 -> -153629.1769 | AZ81: 103015.2745 | BA81: 326955.2766 | BB81: 209652.1545 | BC81: 189994.8656 | BD81: 393436.7389 | BE81: 221140.3188 | BF81: 1037530.857 | BG81: 637381.5712 | BH81: 162873.4875 | BI81: -185509.0763 | BJ81: =BI81*(1+Analise_Fundamentalista!$C$10)/(Analise_Fundamentalista!$C$10) -> -2585842.201 | BK81: =NPV(Analise_Fundamentalista!$C$10,Monte_Carlo!AZ81:BI81)+Monte_Carlo!BJ81/(1+Analise_Fundamentalista!$C$10)^10 -> 833203.6691 | BL81: =(BK81+Analise_Fundamentalista!$C$15-Analise_Fundamentalista!$C$16-Analise_Fundamentalista!$C$17)/(Analise_Fundamentalista!$F$29+Analise_Fundamentalista!$F$30)*1000 -> 7.440148114 | BM81: 0.243933838
A82: Tent57 | B82: 2721471.963 | C82: =(RAND()*($D$17-$D$16)+$D$16)*(1-Analise_Fundamentalista!$C$6)*B82 -> 352269.0981 | D82: -180714.5849 | E82: =Analise_Fundamentalista!$C$12*Monte_Carlo!B82 -> 98788.54598 | F82: =-Analise_Fundamentalista!$C$14*Monte_Carlo!B82 -> -29087.34456 | G82: 2683342.453 | H82: =(RAND()*($D$17-$D$16)+$D$16)*(1-Analise_Fundamentalista!$C$6)*G82 -> 101737.4853 | I82: -110714.7696 | J82: =Analise_Fundamentalista!$C$12*Monte_Carlo!G82 -> 97404.4572 | K82: =-Analise_Fundamentalista!$C$14*Monte_Carlo!G82 -> -28679.81282 | L82: 2967934.333 | M82: =(RAND()*($D$17-$D$16)+$D$16)*(1-Analise_Fundamentalista!$C$6)*L82 -> 279728.9532 | N82: -442128.306 | O82: =Analise_Fundamentalista!$C$12*Monte_Carlo!L82 -> 107735.0498 | P82: =-Analise_Fundamentalista!$C$14*Monte_Carlo!L82 -> -31721.55721 | Q82: 3823621.318 | R82: =(RAND()*($D$17-$D$16)+$D$16)*(1-Analise_Fundamentalista!$C$6)*Q82 -> 514474.9307 | S82: -43937.02309 | T82: =Analise_Fundamentalista!$C$12*Monte_Carlo!Q82 -> 138796.2087 | U82: =-Analise_Fundamentalista!$C$14*Monte_Carlo!Q82 -> -40867.21901 | V82: 4495320.162 | W82: =(RAND()*($D$17-$D$16)+$D$16)*(1-Analise_Fundamentalista!$C$6)*V82 -> 433257.6923 | X82: -467837.2152 | Y82: =Analise_Fundamentalista!$C$12*Monte_Carlo!V82 -> 163178.6579 | Z82: =-Analise_Fundamentalista!$C$14*Monte_Carlo!V82 -> -48046.3985 | AA82: 6460069.483 | AB82: =(RAND()*($D$17-$D$16)+$D$16)*(1-Analise_Fundamentalista!$C$6)*AA82 -> 309458.7956 | AC82: -678352.9896 | AD82: =Analise_Fundamentalista!$C$12*Monte_Carlo!AA82 -> 234498.4185 | AE82: =-Analise_Fundamentalista!$C$14*Monte_Carlo!AA82 -> -69045.82133 | AF82: 6592942.996 | AG82: =(RAND()*($D$17-$D$16)+$D$16)*(1-Analise_Fundamentalista!$C$6)*AF82 -> 1022885.726 | AH82: -147408.3369 | AI82: =Analise_Fundamentalista!$C$12*Monte_Carlo!AF82 -> 239321.6837 | AJ82: =-Analise_Fundamentalista!$C$14*Monte_Carlo!AF82 -> -70465.98575 | AK82: 9443449.236 | AL82: =(RAND()*($D$17-$D$16)+$D$16)*(1-Analise_Fundamentalista!$C$6)*AK82 -> 688775.3363 | AM82: -616515.9398 | AN82: =Analise_Fundamentalista!$C$12*Monte_Carlo!AK82 -> 342794.1319 | AO82: =-Analise_Fundamentalista!$C$14*Monte_Carlo!AK82 -> -100932.4606 | AP82: 8769647.828 | AQ82: =(RAND()*($D$17-$D$16)+$D$16)*(1-Analise_Fundamentalista!$C$6)*AP82 -> 770060.1975 | AR82: -597965.0954 | AS82: =Analise_Fundamentalista!$C$12*Monte_Carlo!AP82 -> 318335.3602 | AT82: =-Analise_Fundamentalista!$C$14*Monte_Carlo!AP82 -> -93730.80872 | AU82: 11333227.89 | AV82: =(RAND()*($D$17-$D$16)+$D$16)*(1-Analise_Fundamentalista!$C$6)*AU82 -> 1409175.15 | AW82: -768141.6655 | AX82: =Analise_Fundamentalista!$C$12*Monte_Carlo!AU82 -> 411392.4815 | AY82: =-Analise_Fundamentalista!$C$14*Monte_Carlo!AU82 -> -121130.59 | AZ82: 241255.7145 | BA82: 59747.36006 | BB82: -86385.86024 | BC82: 568466.8973 | BD82: 80552.73657 | BE82: -203441.5968 | BF82: 1044333.088 | BG82: 314121.0678 | BH82: 396699.6536 | BI82: 931295.3763 | BJ82: =BI82*(1+Analise_Fundamentalista!$C$10)/(Analise_Fundamentalista!$C$10) -> 12981482.82 | BK82: =NPV(Analise_Fundamentalista!$C$10,Monte_Carlo!AZ82:BI82)+Monte_Carlo!BJ82/(1+Analise_Fundamentalista!$C$10)^10 -> 8158706.656 | BL82: =(BK82+Analise_Fundamentalista!$C$15-Analise_Fundamentalista!$C$16-Analise_Fundamentalista!$C$17)/(Analise_Fundamentalista!$F$29+Analise_Fundamentalista!$F$30)*1000 -> 52.4442826 | BM82: 0.720557939
A83: Tent58 | B83: 2130132.46 | C83: =(RAND()*($D$17-$D$16)+$D$16)*(1-Analise_Fundamentalista!$C$6)*B83 -> 171081.2062 | D83: -129136.9235 | E83: =Analise_Fundamentalista!$C$12*Monte_Carlo!B83 -> 77323.11461 | F83: =-Analise_Fundamentalista!$C$14*Monte_Carlo!B83 -> -22767.05315 | G83: 2915501.444 | H83: =(RAND()*($D$17-$D$16)+$D$16)*(1-Analise_Fundamentalista!$C$6)*G83 -> 339891.811 | I83: -363521.6952 | J83: =Analise_Fundamentalista!$C$12*Monte_Carlo!G83 -> 105831.753 | K83: =-Analise_Fundamentalista!$C$14*Monte_Carlo!G83 -> -31161.14963 | L83: 3624140.929 | M83: =(RAND()*($D$17-$D$16)+$D$16)*(1-Analise_Fundamentalista!$C$6)*L83 -> 421327.4784 | N83: -363171.0446 | O83: =Analise_Fundamentalista!$C$12*Monte_Carlo!L83 -> 131555.1355 | P83: =-Analise_Fundamentalista!$C$14*Monte_Carlo!L83 -> -38735.15412 | Q83: 4458211.195 | R83: =(RAND()*($D$17-$D$16)+$D$16)*(1-Analise_Fundamentalista!$C$6)*Q83 -> 373781.9849 | S83: -841170.9152 | T83: =Analise_Fundamentalista!$C$12*Monte_Carlo!Q83 -> 161831.6145 | U83: =-Analise_Fundamentalista!$C$14*Monte_Carlo!Q83 -> -47649.77443 | V83: 5574791.3 | W83: =(RAND()*($D$17-$D$16)+$D$16)*(1-Analise_Fundamentalista!$C$6)*V83 -> 470521.8411 | X83: -193980.1347 | Y83: =Analise_Fundamentalista!$C$12*Monte_Carlo!V83 -> 202363.1087 | Z83: =-Analise_Fundamentalista!$C$14*Monte_Carlo!V83 -> -59583.88607 | AA83: 6461676.029 | AB83: =(RAND()*($D$17-$D$16)+$D$16)*(1-Analise_Fundamentalista!$C$6)*AA83 -> 935748.8744 | AC83: -65388.87364 | AD83: =Analise_Fundamentalista!$C$12*Monte_Carlo!AA83 -> 234556.7355 | AE83: =-Analise_Fundamentalista!$C$14*Monte_Carlo!AA83 -> -69062.99224 | AF83: 8281318.851 | AG83: =(RAND()*($D$17-$D$16)+$D$16)*(1-Analise_Fundamentalista!$C$6)*AF83 -> 720067.6567 | AH83: -350131.1211 | AI83: =Analise_Fundamentalista!$C$12*Monte_Carlo!AF83 -> 300609.1774 | AJ83: =-Analise_Fundamentalista!$C$14*Monte_Carlo!AF83 -> -88511.50336 | AK83: 6515449.908 | AL83: =(RAND()*($D$17-$D$16)+$D$16)*(1-Analise_Fundamentalista!$C$6)*AK83 -> 801924.7922 | AM83: -379190.5539 | AN83: =Analise_Fundamentalista!$C$12*Monte_Carlo!AK83 -> 236508.7098 | AO83: =-Analise_Fundamentalista!$C$14*Monte_Carlo!AK83 -> -69637.73244 | AP83: 10514645.65 | AQ83: =(RAND()*($D$17-$D$16)+$D$16)*(1-Analise_Fundamentalista!$C$6)*AP83 -> 1429862.756 | AR83: -178615.0963 | AS83: =Analise_Fundamentalista!$C$12*Monte_Carlo!AP83 -> 381678.2128 | AT83: =-Analise_Fundamentalista!$C$14*Monte_Carlo!AP83 -> -112381.5071 | AU83: 10676968.83 | AV83: =(RAND()*($D$17-$D$16)+$D$16)*(1-Analise_Fundamentalista!$C$6)*AU83 -> 976207.6888 | AW83: -888032.1576 | AX83: =Analise_Fundamentalista!$C$12*Monte_Carlo!AU83 -> 387570.4914 | AY83: =-Analise_Fundamentalista!$C$14*Monte_Carlo!AU83 -> -114116.4323 | AZ83: 96500.34418 | BA83: 51040.71915 | BB83: 150976.4151 | BC83: -353207.0902 | BD83: 419320.929 | BE83: 1035853.744 | BF83: 582034.2097 | BG83: 589605.2157 | BH83: 1520544.365 | BI83: 361629.5903 | BJ83: =BI83*(1+Analise_Fundamentalista!$C$10)/(Analise_Fundamentalista!$C$10) -> 5040815.655 | BK83: =NPV(Analise_Fundamentalista!$C$10,Monte_Carlo!AZ83:BI83)+Monte_Carlo!BJ83/(1+Analise_Fundamentalista!$C$10)^10 -> 4958690.386 | BL83: =(BK83+Analise_Fundamentalista!$C$15-Analise_Fundamentalista!$C$16-Analise_Fundamentalista!$C$17)/(Analise_Fundamentalista!$F$29+Analise_Fundamentalista!$F$30)*1000 -> 32.78502332 | BM83: 0.5104267481
A84: Tent59 | B84: 2224973.492 | C84: =(RAND()*($D$17-$D$16)+$D$16)*(1-Analise_Fundamentalista!$C$6)*B84 -> 175111.8754 | D84: -80562.54062 | E84: =Analise_Fundamentalista!$C$12*Monte_Carlo!B84 -> 80765.81319 | F84: =-Analise_Fundamentalista!$C$14*Monte_Carlo!B84 -> -23780.72289 | G84: 3274165.428 | H84: =(RAND()*($D$17-$D$16)+$D$16)*(1-Analise_Fundamentalista!$C$6)*G84 -> 376723.0281 | I84: -470891.6544 | J84: =Analise_Fundamentalista!$C$12*Monte_Carlo!G84 -> 118851.1388 | K84: =-Analise_Fundamentalista!$C$14*Monte_Carlo!G84 -> -34994.58353 | L84: 3415116.907 | M84: =(RAND()*($D$17-$D$16)+$D$16)*(1-Analise_Fundamentalista!$C$6)*L84 -> 344934.3758 | N84: -468571.9355 | O84: =Analise_Fundamentalista!$C$12*Monte_Carlo!L84 -> 123967.6316 | P84: =-Analise_Fundamentalista!$C$14*Monte_Carlo!L84 -> -36501.08601 | Q84: 4614293.568 | R84: =(RAND()*($D$17-$D$16)+$D$16)*(1-Analise_Fundamentalista!$C$6)*Q84 -> 228422.0765 | S84: -239852.7058 | T84: =Analise_Fundamentalista!$C$12*Monte_Carlo!Q84 -> 167497.3538 | U84: =-Analise_Fundamentalista!$C$14*Monte_Carlo!Q84 -> -49317.99729 | V84: 5373355.761 | W84: =(RAND()*($D$17-$D$16)+$D$16)*(1-Analise_Fundamentalista!$C$6)*V84 -> 239373.0718 | X84: -519150.2853 | Y84: =Analise_Fundamentalista!$C$12*Monte_Carlo!V84 -> 195051.0642 | Z84: =-Analise_Fundamentalista!$C$14*Monte_Carlo!V84 -> -57430.92436 | AA84: 6221761.33 | AB84: =(RAND()*($D$17-$D$16)+$D$16)*(1-Analise_Fundamentalista!$C$6)*AA84 -> 386104.976 | AC84: -136422.447 | AD84: =Analise_Fundamentalista!$C$12*Monte_Carlo!AA84 -> 225847.9101 | AE84: =-Analise_Fundamentalista!$C$14*Monte_Carlo!AA84 -> -66498.76171 | AF84: 7189847.698 | AG84: =(RAND()*($D$17-$D$16)+$D$16)*(1-Analise_Fundamentalista!$C$6)*AF84 -> 1076642.427 | AH84: -242013.6948 | AI84: =Analise_Fundamentalista!$C$12*Monte_Carlo!AF84 -> 260989.13 | AJ84: =-Analise_Fundamentalista!$C$14*Monte_Carlo!AF84 -> -76845.75853 | AK84: 8433602.795 | AL84: =(RAND()*($D$17-$D$16)+$D$16)*(1-Analise_Fundamentalista!$C$6)*AK84 -> 617082.3739 | AM84: -243705.4615 | AN84: =Analise_Fundamentalista!$C$12*Monte_Carlo!AK84 -> 306137.035 | AO84: =-Analise_Fundamentalista!$C$14*Monte_Carlo!AK84 -> -90139.12826 | AP84: 9874374.634 | AQ84: =(RAND()*($D$17-$D$16)+$D$16)*(1-Analise_Fundamentalista!$C$6)*AP84 -> 574133.93 | AR84: -900730.0513 | AS84: =Analise_Fundamentalista!$C$12*Monte_Carlo!AP84 -> 358436.5835 | AT84: =-Analise_Fundamentalista!$C$14*Monte_Carlo!AP84 -> -105538.2312 | AU84: 10985725.71 | AV84: =(RAND()*($D$17-$D$16)+$D$16)*(1-Analise_Fundamentalista!$C$6)*AU84 -> 570662.4871 | AW84: -1235554.849 | AX84: =Analise_Fundamentalista!$C$12*Monte_Carlo!AU84 -> 398778.2655 | AY84: =-Analise_Fundamentalista!$C$14*Monte_Carlo!AU84 -> -117416.4545 | AZ84: 151534.4251 | BA84: -10312.07106 | BB84: -36171.01419 | BC84: 106748.7273 | BD84: -142157.0736 | BE84: 409031.6775 | BF84: 1018772.104 | BG84: 589374.819 | BH84: -73697.76898 | BI84: -383530.5504 | BJ84: =BI84*(1+Analise_Fundamentalista!$C$10)/(Analise_Fundamentalista!$C$10) -> -5346096.82 | BK84: =NPV(Analise_Fundamentalista!$C$10,Monte_Carlo!AZ84:BI84)+Monte_Carlo!BJ84/(1+Analise_Fundamentalista!$C$10)^10 -> -1483573.12 | BL84: =(BK84+Analise_Fundamentalista!$C$15-Analise_Fundamentalista!$C$16-Analise_Fundamentalista!$C$17)/(Analise_Fundamentalista!$F$29+Analise_Fundamentalista!$F$30)*1000 -> -6.792940641 | BM84: 0.1361128539
A85: Tent60 | B85: 2598440.99 | C85: =(RAND()*($D$17-$D$16)+$D$16)*(1-Analise_Fundamentalista!$C$6)*B85 -> 380048.205 | D85: -23833.53107 | E85: =Analise_Fundamentalista!$C$12*Monte_Carlo!B85 -> 94322.56172 | F85: =-Analise_Fundamentalista!$C$14*Monte_Carlo!B85 -> -27772.37811 | G85: 2860080.327 | H85: =(RAND()*($D$17-$D$16)+$D$16)*(1-Analise_Fundamentalista!$C$6)*G85 -> 134954.7364 | I85: -137133.5229 | J85: =Analise_Fundamentalista!$C$12*Monte_Carlo!G85 -> 103819.9844 | K85: =-Analise_Fundamentalista!$C$14*Monte_Carlo!G85 -> -30568.80359 | L85: 3589192.701 | M85: =(RAND()*($D$17-$D$16)+$D$16)*(1-Analise_Fundamentalista!$C$6)*L85 -> 538413.6937 | N85: -75421.44553 | O85: =Analise_Fundamentalista!$C$12*Monte_Carlo!L85 -> 130286.5262 | P85: =-Analise_Fundamentalista!$C$14*Monte_Carlo!L85 -> -38361.62422 | Q85: 3850613.181 | R85: =(RAND()*($D$17-$D$16)+$D$16)*(1-Analise_Fundamentalista!$C$6)*Q85 -> 450271.7522 | S85: -157632.2158 | T85: =Analise_Fundamentalista!$C$12*Monte_Carlo!Q85 -> 139776.0045 | U85: =-Analise_Fundamentalista!$C$14*Monte_Carlo!Q85 -> -41155.71054 | V85: 5702032.741 | W85: =(RAND()*($D$17-$D$16)+$D$16)*(1-Analise_Fundamentalista!$C$6)*V85 -> 413282.584 | X85: -813912.9711 | Y85: =Analise_Fundamentalista!$C$12*Monte_Carlo!V85 -> 206981.9316 | Z85: =-Analise_Fundamentalista!$C$14*Monte_Carlo!V85 -> -60943.85438 | AA85: 5974996.994 | AB85: =(RAND()*($D$17-$D$16)+$D$16)*(1-Analise_Fundamentalista!$C$6)*AA85 -> 597324.1677 | AC85: -336090.2192 | AD85: =Analise_Fundamentalista!$C$12*Monte_Carlo!AA85 -> 216890.4451 | AE85: =-Analise_Fundamentalista!$C$14*Monte_Carlo!AA85 -> -63861.32161 | AF85: 8007062.813 | AG85: =(RAND()*($D$17-$D$16)+$D$16)*(1-Analise_Fundamentalista!$C$6)*AF85 -> 460272.1426 | AH85: -87309.6769 | AI85: =Analise_Fundamentalista!$C$12*Monte_Carlo!AF85 -> 290653.7725 | AJ85: =-Analise_Fundamentalista!$C$14*Monte_Carlo!AF85 -> -85580.22941 | AK85: 8775467.735 | AL85: =(RAND()*($D$17-$D$16)+$D$16)*(1-Analise_Fundamentalista!$C$6)*AK85 -> 1257879.983 | AM85: -630894.3657 | AN85: =Analise_Fundamentalista!$C$12*Monte_Carlo!AK85 -> 318546.621 | AO85: =-Analise_Fundamentalista!$C$14*Monte_Carlo!AK85 -> -93793.01243 | AP85: 10627462.4 | AQ85: =(RAND()*($D$17-$D$16)+$D$16)*(1-Analise_Fundamentalista!$C$6)*AP85 -> 1482342.543 | AR85: -20351.04977 | AS85: =Analise_Fundamentalista!$C$12*Monte_Carlo!AP85 -> 385773.4241 | AT85: =-Analise_Fundamentalista!$C$14*Monte_Carlo!AP85 -> -113587.303 | AU85: 10963965.37 | AV85: =(RAND()*($D$17-$D$16)+$D$16)*(1-Analise_Fundamentalista!$C$6)*AU85 -> 1381460.235 | AW85: -80198.09253 | AX85: =Analise_Fundamentalista!$C$12*Monte_Carlo!AU85 -> 397988.3724 | AY85: =-Analise_Fundamentalista!$C$14*Monte_Carlo!AU85 -> -117183.878 | AZ85: 422764.8576 | BA85: 71072.39437 | BB85: 554917.1501 | BC85: 391259.8303 | BD85: -254592.31 | BE85: 414263.072 | BF85: 578036.0089 | BG85: 851739.2258 | BH85: 1734177.615 | BI85: 1582066.637 | BJ85: =BI85*(1+Analise_Fundamentalista!$C$10)/(Analise_Fundamentalista!$C$10) -> 22052692.83 | BK85: =NPV(Analise_Fundamentalista!$C$10,Monte_Carlo!AZ85:BI85)+Monte_Carlo!BJ85/(1+Analise_Fundamentalista!$C$10)^10 -> 14204337.21 | BL85: =(BK85+Analise_Fundamentalista!$C$15-Analise_Fundamentalista!$C$16-Analise_Fundamentalista!$C$17)/(Analise_Fundamentalista!$F$29+Analise_Fundamentalista!$F$30)*1000 -> 89.58553709 | BM85: 0.949433229
A86: Tent61 | B86: 2515810.166 | C86: =(RAND()*($D$17-$D$16)+$D$16)*(1-Analise_Fundamentalista!$C$6)*B86 -> 262780.1125 | D86: -383546.6552 | E86: =Analise_Fundamentalista!$C$12*Monte_Carlo!B86 -> 91323.08973 | F86: =-Analise_Fundamentalista!$C$14*Monte_Carlo!B86 -> -26889.21221 | G86: 3337086.307 | H86: =(RAND()*($D$17-$D$16)+$D$16)*(1-Analise_Fundamentalista!$C$6)*G86 -> 427978.964 | I86: -82623.50021 | J86: =Analise_Fundamentalista!$C$12*Monte_Carlo!G86 -> 121135.1462 | K86: =-Analise_Fundamentalista!$C$14*Monte_Carlo!G86 -> -35667.08772 | L86: 3583101.158 | M86: =(RAND()*($D$17-$D$16)+$D$16)*(1-Analise_Fundamentalista!$C$6)*L86 -> 202989.8818 | N86: -79868.63361 | O86: =Analise_Fundamentalista!$C$12*Monte_Carlo!L86 -> 130065.4052 | P86: =-Analise_Fundamentalista!$C$14*Monte_Carlo!L86 -> -38296.51724 | Q86: 3841652.832 | R86: =(RAND()*($D$17-$D$16)+$D$16)*(1-Analise_Fundamentalista!$C$6)*Q86 -> 598523.0061 | S86: -134229.3397 | T86: =Analise_Fundamentalista!$C$12*Monte_Carlo!Q86 -> 139450.7467 | U86: =-Analise_Fundamentalista!$C$14*Monte_Carlo!Q86 -> -41059.9415 | V86: 5193871.742 | W86: =(RAND()*($D$17-$D$16)+$D$16)*(1-Analise_Fundamentalista!$C$6)*V86 -> 437639.6002 | X86: -380424.8072 | Y86: =Analise_Fundamentalista!$C$12*Monte_Carlo!V86 -> 188535.8528 | Z86: =-Analise_Fundamentalista!$C$14*Monte_Carlo!V86 -> -55512.58252 | AA86: 5553773.694 | AB86: =(RAND()*($D$17-$D$16)+$D$16)*(1-Analise_Fundamentalista!$C$6)*AA86 -> 188690.3418 | AC86: -419729.3956 | AD86: =Analise_Fundamentalista!$C$12*Monte_Carlo!AA86 -> 201600.1764 | AE86: =-Analise_Fundamentalista!$C$14*Monte_Carlo!AA86 -> -59359.24794 | AF86: 7199729.734 | AG86: =(RAND()*($D$17-$D$16)+$D$16)*(1-Analise_Fundamentalista!$C$6)*AF86 -> 701347.5435 | AH86: -88086.6771 | AI86: =Analise_Fundamentalista!$C$12*Monte_Carlo!AF86 -> 261347.8447 | AJ86: =-Analise_Fundamentalista!$C$14*Monte_Carlo!AF86 -> -76951.37864 | AK86: 8223519.105 | AL86: =(RAND()*($D$17-$D$16)+$D$16)*(1-Analise_Fundamentalista!$C$6)*AK86 -> 839094.9847 | AM86: -308433.8014 | AN86: =Analise_Fundamentalista!$C$12*Monte_Carlo!AK86 -> 298511.0654 | AO86: =-Analise_Fundamentalista!$C$14*Monte_Carlo!AK86 -> -87893.73431 | AP86: 9940357.226 | AQ86: =(RAND()*($D$17-$D$16)+$D$16)*(1-Analise_Fundamentalista!$C$6)*AP86 -> 425348.9671 | AR86: -1474780.132 | AS86: =Analise_Fundamentalista!$C$12*Monte_Carlo!AP86 -> 360831.7301 | AT86: =-Analise_Fundamentalista!$C$14*Monte_Carlo!AP86 -> -106243.4593 | AU86: 14137037.67 | AV86: =(RAND()*($D$17-$D$16)+$D$16)*(1-Analise_Fundamentalista!$C$6)*AU86 -> 1106580.822 | AW86: -1211936.738 | AX86: =Analise_Fundamentalista!$C$12*Monte_Carlo!AU86 -> 513169.8636 | AY86: =-Analise_Fundamentalista!$C$14*Monte_Carlo!AU86 -> -151097.9688 | AZ86: -56332.66511 | BA86: 430823.5223 | BB86: 214890.1361 | BC86: 562684.4716 | BD86: 190238.0633 | BE86: -88798.12526 | BF86: 797657.3325 | BG86: 741278.5145 | BH86: -794842.8938 | BI86: 256715.9787 | BJ86: =BI86*(1+Analise_Fundamentalista!$C$10)/(Analise_Fundamentalista!$C$10) -> 3578407.186 | BK86: =NPV(Analise_Fundamentalista!$C$10,Monte_Carlo!AZ86:BI86)+Monte_Carlo!BJ86/(1+Analise_Fundamentalista!$C$10)^10 -> 3280188.195 | BL86: =(BK86+Analise_Fundamentalista!$C$15-Analise_Fundamentalista!$C$16-Analise_Fundamentalista!$C$17)/(Analise_Fundamentalista!$F$29+Analise_Fundamentalista!$F$30)*1000 -> 22.47316645 | BM86: 0.39483559
A87: Tent62 | B87: 2463895.778 | C87: =(RAND()*($D$17-$D$16)+$D$16)*(1-Analise_Fundamentalista!$C$6)*B87 -> 333125.6663 | D87: -13273.16921 | E87: =Analise_Fundamentalista!$C$12*Monte_Carlo!B87 -> 89438.61434 | F87: =-Analise_Fundamentalista!$C$14*Monte_Carlo!B87 -> -26334.34642 | G87: 3244039.94 | H87: =(RAND()*($D$17-$D$16)+$D$16)*(1-Analise_Fundamentalista!$C$6)*G87 -> 368906.9219 | I87: -51528.05572 | J87: =Analise_Fundamentalista!$C$12*Monte_Carlo!G87 -> 117757.5934 | K87: =-Analise_Fundamentalista!$C$14*Monte_Carlo!G87 -> -34672.59952 | L87: 2988149.101 | M87: =(RAND()*($D$17-$D$16)+$D$16)*(1-Analise_Fundamentalista!$C$6)*L87 -> 486852.5931 | N87: -37231.5653 | O87: =Analise_Fundamentalista!$C$12*Monte_Carlo!L87 -> 108468.8393 | P87: =-Analise_Fundamentalista!$C$14*Monte_Carlo!L87 -> -31937.61452 | Q87: 4386313.247 | R87: =(RAND()*($D$17-$D$16)+$D$16)*(1-Analise_Fundamentalista!$C$6)*Q87 -> 203972.5861 | S87: -221061.1254 | T87: =Analise_Fundamentalista!$C$12*Monte_Carlo!Q87 -> 159221.7424 | U87: =-Analise_Fundamentalista!$C$14*Monte_Carlo!Q87 -> -46881.32249 | V87: 5410491.762 | W87: =(RAND()*($D$17-$D$16)+$D$16)*(1-Analise_Fundamentalista!$C$6)*V87 -> 225526.6674 | X87: -49118.47281 | Y87: =Analise_Fundamentalista!$C$12*Monte_Carlo!V87 -> 196399.089 | Z87: =-Analise_Fundamentalista!$C$14*Monte_Carlo!V87 -> -57827.83738 | AA87: 6220397.372 | AB87: =(RAND()*($D$17-$D$16)+$D$16)*(1-Analise_Fundamentalista!$C$6)*AA87 -> 501037.8678 | AC87: -51912.21647 | AD87: =Analise_Fundamentalista!$C$12*Monte_Carlo!AA87 -> 225798.3988 | AE87: =-Analise_Fundamentalista!$C$14*Monte_Carlo!AA87 -> -66484.18359 | AF87: 6440811.683 | AG87: =(RAND()*($D$17-$D$16)+$D$16)*(1-Analise_Fundamentalista!$C$6)*AF87 -> 512201.6056 | AH87: -345703.9698 | AI87: =Analise_Fundamentalista!$C$12*Monte_Carlo!AF87 -> 233799.3666 | AJ87: =-Analise_Fundamentalista!$C$14*Monte_Carlo!AF87 -> -68839.99218 | AK87: 8152652.884 | AL87: =(RAND()*($D$17-$D$16)+$D$16)*(1-Analise_Fundamentalista!$C$6)*AK87 -> 1227916.485 | AM87: -586209.7903 | AN87: =Analise_Fundamentalista!$C$12*Monte_Carlo!AK87 -> 295938.6447 | AO87: =-Analise_Fundamentalista!$C$14*Monte_Carlo!AK87 -> -87136.30958 | AP87: 10966520.6 | AQ87: =(RAND()*($D$17-$D$16)+$D$16)*(1-Analise_Fundamentalista!$C$6)*AP87 -> 1029624.222 | AR87: -168990.9741 | AS87: =Analise_Fundamentalista!$C$12*Monte_Carlo!AP87 -> 398081.1265 | AT87: =-Analise_Fundamentalista!$C$14*Monte_Carlo!AP87 -> -117211.1885 | AU87: 13571641.5 | AV87: =(RAND()*($D$17-$D$16)+$D$16)*(1-Analise_Fundamentalista!$C$6)*AU87 -> 1787020.398 | AW87: -2296748.74 | AX87: =Analise_Fundamentalista!$C$12*Monte_Carlo!AU87 -> 492646.1668 | AY87: =-Analise_Fundamentalista!$C$14*Monte_Carlo!AU87 -> -145054.9621 | AZ87: 382956.765 | BA87: 400463.86 | BB87: 526152.2525 | BC87: 95251.88063 | BD87: 314979.4461 | BE87: 608439.8666 | BF87: 331457.0102 | BG87: 850509.0298 | BH87: 1141503.186 | BI87: -162137.1376 | BJ87: =BI87*(1+Analise_Fundamentalista!$C$10)/(Analise_Fundamentalista!$C$10) -> -2260056.819 | BK87: =NPV(Analise_Fundamentalista!$C$10,Monte_Carlo!AZ87:BI87)+Monte_Carlo!BJ87/(1+Analise_Fundamentalista!$C$10)^10 -> 1897720.346 | BL87: =(BK87+Analise_Fundamentalista!$C$15-Analise_Fundamentalista!$C$16-Analise_Fundamentalista!$C$17)/(Analise_Fundamentalista!$F$29+Analise_Fundamentalista!$F$30)*1000 -> 13.97999279 | BM87: 0.3057406591
